Workbook

Sheet Instructions
A2: Associated Streamlyne Report: | E2: Streamlyne Budget Export to Excel by PD Number-V2
A5: Generate an excel budget from a Streamlyne PD Budget.
B6: Run the Streamlyne Budget Export to Excel by PD Number-V2 report from within Streamlyne and select the PD number from the report.
B7: Export the results to .csv file.
B8: Open the .csv file in Excel
B9: Copy the entire sheet from the exported excel file by clicking on the triangle to the left of column A and above row 1.
B10: Paste into cell A1 in worksheet: Streamlyne Budget Export to Excel by PD-V2.05
B11: View your PD budget in the Summary sheet.
A12: Notes:
B13: These sheets are protected from unintentional modification. There is no password assigned, so you may intentionally modify any cells/sheets you want to.
A16: Setup (using BudgetCals sheet)
B17: This excel workbook must be setup to match your institution's configuration. This is done on the BudgetCalcs sheet by completing the cells which are shaded in blue. Once completed, this sheet can be hidden (unless or until any changes are made to the Streamlyne configurations). When any changes are made to the configuration in Streamlyne, the changes need to be reflected on the BudgetCalcs sheet in this workbook.
C19: On the BudgetCalcs sheet, enter the Budget Category Code for Sr Persons and enter the Budget Category Type Codes for each of the Budget Category Types listed
D20: Sections from the report on the Summary sheet | E20: Budget Category Code | F20: Budget Category Type Code | G20: Domestic Travel Budget Category Code | H20: Foreign Travel Budget Category Code | I20: Stipend Budget Category Code | J20: Travel Budget Category Code | K20: Subsistence Budget Category Code | L20: Tuition Budget Category Code | M20: Other Budget Category Code
D21: Sr Persons | E21: 1 | F21: P
D22: other Persons | E22: <> 1 | F22: P
D23: Equipment | F23: E
D24: Participant Support | F24: S | I24: 32 | J24: 31 | K24: 36 | L24: 35 | M24: 2
D25: Travel | F25: T | G25: 7 | H25: 23
D26: Other Direct | F26: O
C28: On the BudgetCalcs sheet, enter the label you'd like to use for each Budget Period. This label will appear in Row 9 as the header for each budget period.
E29: Rename Budget Period | F29: Year
C31: On the BudgetCalcs sheet, enter your institution's name as you want it to appear on the top line of the report on the Summary sheet
E32: School Name for Report | F32: Iowa State University of Science and Technology
C34: Summary tab setup
C35: Set up the Other Direct Costs section of the report. On the BudgetCalcs sheet, enter the labels you'd like to see on the report on the Summary sheet in the Other Direct Cost section. Use Lines 7&8 for the 2 subcontract items. For each label, enter the Budget Category Code to map to that label. For the two subcontract line items (lines 7&8) add the Object Code IDs for each Line. In column 'I', indicate which Lines to exclude from MTDC F&A calculations. An 'x' in that column will exclude those costs from the MTDC Base.
D37: Other Direct Summary
D38: Line | E38: Label | F38: Budget Category Code | G38: subrecipient Object Code ID | I38: exclude from MTDC base (indicate with an 'x')
D39: 1 | E39: Materials and Supplies | F39: 3
D40: 2 | E40: Publication cost | F40: 6
D41: 3 | E41: Consultant/Professional Services | F41: 21
D42: 4 | E42: Computing support | F42: 17
D43: 5 | E43: Equipment/Facility Rental or User Fee | F43: 9 | I43: x
D44: 6 | E44: Alterations and Renovations (not included in MTDC) | F44: 8 | I44: x
D45: 7 | E45: Total Subcontracts - Subject to IDC (first $25,000) | F45: 22 | G45: SBDIR | H45: SBIDC | I45: x
D46: 8 | E46: Total NOT subject to IDC (Amount over $25,000) | F46: 22 | G46: SNDIR | H46: SNIDC
D47: 9 | E47: Tuition | F47: 15 | I47: x
D48: 10 | E48: Trainee - Tuition | F48: 33 | I48: x
D49: 11 | E49: Technical Assistance | F49: 39
D50: 12 | E50: Data Management and Sharing | F50: 41
D51: 13 | E51: Other | F51: {all other}
D52: 14
D53: 15
D54: 16
C56: SPA Budget tab setup
C57: Set up the Other Direct Costs section of the report. On the BudgetCalcs sheet, enter the labels you'd like to see on the report on the SPA Budget sheet in the Other Direct Cost section on lines 1 thru 7. Use Lines 8&9 for the 2 subcontract items. For each label, enter the Budget Category Code to map to that label. For the two subcontract line items (lines 8&9) add the Object Code IDs for each Line. At the bottom, add a Budget Category to include in the Equipment line item and excluded from the Other/Other section. In column 'I' (column 'X' in the BudgetCalcs sheet), indicate which Lines to exclude from MTDC F&A calculations. An 'x' in that column will exclude those costs from the MTDC Base.
D58: Other Direct for SPA Budget
D59: Line | E59: Label | F59: Budget Category Code | I59: exclude from MTDC base (indicate with an 'x')
D60: 1 | E60: Tuition | F60: 15 | G60: 33 | I60: x
D61: 2 | E61: Materials/Supplies | F61: 3
D62: 3 | E62: Publication Costs/Printing | F62: 6
D63: 4 | E63: Honorarium/Services | F63: 21
D64: 5 | E64: Computer Services | F64: 17
D65: 6 | E65: Postage | F65: 11 | G65: subrecipient Object Code ID
D66: 7 | E66: Other/Other | F66: {all other}
A67: Subcontract Budget Categories and Object Codes must remain in these rows | D67: 8 | E67: Subrecipients - Nonburdenable | F67: 22 | G67: SNDIR | H67: SNIDC | I67: x
D68: 9 | E68: Subrecipients - Burdenable | F68: 22 | G68: SBDIR | H68: SBIDC
D69: 10 | E69: PSC - Stipends | F69: 32 | I69: x
D70: 11 | E70: PSC - Travel | F70: 31 | I70: x
D71: 12 | E71: PSC - Tuition | F71: 35 | I71: x
D72: 13 | E72: PSC - Subsistence | F72: 36 | I72: x
D73: 14 | E73: PSC - Other | F73: 2 | I73: x
D74: 15
D75: 16
D76: 17
A77: Budget Category to include with Equipment and exclude from Other/Other | F77: 8 | G77: (Alterations & Renovations)

Sheet Streamlyne Budget Export to Exc
A1: PD # | B1: Budget Period | C1: Budget Period Start Date | D1: Budget Period End Date | E1: CATEGORY TYPE | F1: BUDGET CATEGORY CODE | G1: Budget Category | H1: Person Name | I1: PI Flag | J1: % Charged | K1: % Effort | L1: Cost Element | M1: Cost Element Desc | N1: Line Item Desc | O1: Rate Type Desc | P1: Requested Salary | Q1: Line Item Cost | R1: Calculated Cost | S1: RATE CLASS TYPE | T1: RATE CLASS CODE | U1: RATE TYPE CODE | V1: Calculated Cost Sharing | W1: Cost Sharing Amount | X1: Underrecovery Amount | Y1: RATE TYPE DESCRIPTION | Z1: Person Months | AA1: TITLE | AB1: SPONSOR NAME | AC1: PI FULL NAME | AD1: DEADLINE DATE | AE1: START DATE | AF1: END DATE

Sheet Summary
A1: ="Project Budget Worksheet - "&BudgetCalcs!F11 -> Project Budget Worksheet - Iowa State University of Science and Technology | AC1: ="Version: "&'Version Record'!$B$1 -> Version: 2.06
AC2: ="Updated: "& MONTH('Version Record'!$B$2)&"/"&DAY('Version Record'!$B$2)&"/"&YEAR('Version Record'!$B$2) -> Updated: 7/19/2024
A3: ="Program Sponsor: "&BudgetPeriods!G2 -> Program Sponsor:
A4: ="Title: "&BudgetPeriods!F2 -> Title: | AE4: Negotiated Rate | AF4: Yes
A5: ="PI: "&BudgetPeriods!H2 -> PI: | AE5: Other TDC | AF5: No
A6: ="Period of Performance: "&MONTH(MIN(BudgetPeriods!J:J))&"/"&DAY(MIN(BudgetPeriods!J:J))&"/"&YEAR(MIN(BudgetPeriods!J:J))&" - "&MONTH(MAX(BudgetPeriods!K:K))&"/"&DAY(MAX(BudgetPeriods!K:K))&"/"&YEAR(MAX(BudgetPeriods!K:K)) -> Period of Performance: 1/0/1900 - 1/0/1900 | AE6: Total Project Costs (USDA TFF)
A7: ="Deadline: "&MONTH(BudgetPeriods!I2)&"/"&DAY(BudgetPeriods!I2)&"/"&YEAR(BudgetPeriods!I2) -> Deadline: 1/0/1900 | AE7: Other MTDC
H8: 1 | I8: 1 | J8: 2 | K8: 2 | L8: 3 | M8: 3 | N8: 4 | O8: 4 | P8: 5 | Q8: 5 | R8: 6 | S8: 6 | T8: 7 | U8: 7 | V8: 8 | W8: 8 | X8: 9 | Y8: 9 | Z8: 10 | AA8: 10
A9: ="Proposal Identification: "&BudgetCalcs!B1 -> Proposal Identification: 0 | H9: =IF(BudgetCalcs!$B$2>=H$8,BudgetCalcs!$F$9&" "&H$8,"") ->  | J9: =IF(BudgetCalcs!$B$2>=J$8,BudgetCalcs!$F$9&" "&J$8,"") ->  | L9: =IF(BudgetCalcs!$B$2>=L$8,BudgetCalcs!$F$9&" "&L$8,"") ->  | N9: =IF(BudgetCalcs!$B$2>=N$8,BudgetCalcs!$F$9&" "&N$8,"") ->  | P9: =IF(BudgetCalcs!$B$2>=P$8,BudgetCalcs!$F$9&" "&P$8,"") ->  | R9: =IF(BudgetCalcs!$B$2>=R$8,BudgetCalcs!$F$9&" "&R$8,"") ->  | T9: =IF(BudgetCalcs!$B$2>=T$8,BudgetCalcs!$F$9&" "&T$8,"") ->  | V9: =IF(BudgetCalcs!$B$2>=V$8,BudgetCalcs!$F$9&" "&V$8,"") ->  | X9: =IF(BudgetCalcs!$B$2>=X$8,BudgetCalcs!$F$9&" "&X$8,"") ->  | Z9: =IF(BudgetCalcs!$B$2>=Z$8,BudgetCalcs!$F$9&" "&Z$8,"") ->  | AB9: Total Sponsor Funds | AC9: Total Cost-Shared Matching Funds | AD9: Total Project Funds
H10: Start Date | I10: End Date | J10: Start Date | K10: End Date | L10: Start Date | M10: End Date | N10: Start Date | O10: End Date | P10: Start Date | Q10: End Date | R10: Start Date | S10: End Date | T10: Start Date | U10: End Date | V10: Start Date | W10: End Date | X10: Start Date | Y10: End Date | Z10: Start Date | AA10: End Date
H11: =IFERROR(INDIRECT("'BudgetPeriods'!B"&MATCH(1,BudgetPeriods!$A:$A,0)),"") ->  | I11: =IFERROR(INDIRECT("'BudgetPeriods'!C"&MATCH(1,BudgetPeriods!$A:$A,0)),"") ->  | J11: =IFERROR(INDIRECT("'BudgetPeriods'!B"&MATCH(2,BudgetPeriods!$A:$A,0)),"") ->  | K11: =IFERROR(INDIRECT("'BudgetPeriods'!C"&MATCH(2,BudgetPeriods!$A:$A,0)),"") ->  | L11: =IFERROR(INDIRECT("'BudgetPeriods'!B"&MATCH(3,BudgetPeriods!$A:$A,0)),"") ->  | M11: =IFERROR(INDIRECT("'BudgetPeriods'!C"&MATCH(3,BudgetPeriods!$A:$A,0)),"") ->  | N11: =IFERROR(INDIRECT("'BudgetPeriods'!B"&MATCH(4,BudgetPeriods!$A:$A,0)),"") ->  | O11: =IFERROR(INDIRECT("'BudgetPeriods'!C"&MATCH(4,BudgetPeriods!$A:$A,0)),"") ->  | P11: =IFERROR(INDIRECT("'BudgetPeriods'!B"&MATCH(4,BudgetPeriods!$A:$A,0)),"") ->  | Q11: =IFERROR(INDIRECT("'BudgetPeriods'!C"&MATCH(4,BudgetPeriods!$A:$A,0)),"") ->  | R11: =IFERROR(INDIRECT("'BudgetPeriods'!B"&MATCH(4,BudgetPeriods!$A:$A,0)),"") ->  | S11: =IFERROR(INDIRECT("'BudgetPeriods'!C"&MATCH(4,BudgetPeriods!$A:$A,0)),"") ->  | T11: =IFERROR(INDIRECT("'BudgetPeriods'!B"&MATCH(4,BudgetPeriods!$A:$A,0)),"") ->  | U11: =IFERROR(INDIRECT("'BudgetPeriods'!C"&MATCH(4,BudgetPeriods!$A:$A,0)),"") ->  | V11: =IFERROR(INDIRECT("'BudgetPeriods'!B"&MATCH(4,BudgetPeriods!$A:$A,0)),"") ->  | W11: =IFERROR(INDIRECT("'BudgetPeriods'!C"&MATCH(4,BudgetPeriods!$A:$A,0)),"") ->  | X11: =IFERROR(INDIRECT("'BudgetPeriods'!B"&MATCH(4,BudgetPeriods!$A:$A,0)),"") ->  | Y11: =IFERROR(INDIRECT("'BudgetPeriods'!C"&MATCH(4,BudgetPeriods!$A:$A,0)),"") ->  | Z11: =IFERROR(INDIRECT("'BudgetPeriods'!B"&MATCH(5,BudgetPeriods!$A:$A,0)),"") ->  | AA11: =IFERROR(INDIRECT("'BudgetPeriods'!C"&MATCH(5,BudgetPeriods!$A:$A,0)),"") -> 
H12: Sponsor Funds Requested | I12: Cost-Shared Matching Funds | J12: Sponsor Funds Requested | K12: Cost-Shared Matching Funds | L12: Sponsor Funds Requested | M12: Cost-Shared Matching Funds | N12: Sponsor Funds Requested | O12: Cost-Shared Matching Funds | P12: Sponsor Funds Requested | Q12: Cost-Shared Matching Funds | R12: Sponsor Funds Requested | S12: Cost-Shared Matching Funds | T12: Sponsor Funds Requested | U12: Cost-Shared Matching Funds | V12: Sponsor Funds Requested | W12: Cost-Shared Matching Funds | X12: Sponsor Funds Requested | Y12: Cost-Shared Matching Funds | Z12: Sponsor Funds Requested | AA12: Cost-Shared Matching Funds
A14: A | C14: Key Personnel | D14: Person Months | H14: =SUM(H15:H34) -> 0 | I14: 0 | J14: 0 | K14: 0 | L14: 0 | M14: 0 | N14: 0 | O14: 0 | P14: =SUM(P15:P34) -> 0 | Q14: 0 | R14: 0 | S14: 0 | T14: 0 | U14: 0 | V14: 0 | W14: 0 | X14: 0 | Y14: 0 | Z14: 0 | AA14: 0 | AB14: =SUM(H14+J14+L14+N14+P14+R14+T14+V14+X14+Z14) -> 0 | AC14: =SUM(I14+K14+M14+O14+Q14+S14+U14+W14+Y14+AA14) -> 0 | AD14: =SUM(AB14+AC14) -> 0
B15: 1 | C15: =INDIRECT("SrPersons!A2:A"&SrPersons!C1) -> 0 | D15: =IFERROR(SUMIFS(SrPersons!$AB:$AB,SrPersons!$D:$D,$H$8,SrPersons!$J:$J,$C15) / COUNTIFS(SrPersons!$D:$D,$H$8,SrPersons!$J:$J,$C15),"") ->  | H15: =IFERROR(SUMIFS(SrPersons!$R:$R,SrPersons!$D:$D,H$8,SrPersons!$J:$J,$C15) / COUNTIFS(SrPersons!$D:$D,H$8,SrPersons!$J:$J,$C15),0) -> 0 | I15: =IFERROR(SUMIFS(SrPersons!$Y:$Y,SrPersons!$D:$D,I$8,SrPersons!$J:$J,$C15) / COUNTIFS(SrPersons!$D:$D,I$8,SrPersons!$J:$J,$C15),0) -> 0 | J15: =IFERROR(SUMIFS(SrPersons!$R:$R,SrPersons!$D:$D,J$8,SrPersons!$J:$J,$C15) / COUNTIFS(SrPersons!$D:$D,J$8,SrPersons!$J:$J,$C15),0) -> 0 | K15: =IFERROR(SUMIFS(SrPersons!$Y:$Y,SrPersons!$D:$D,K$8,SrPersons!$J:$J,$C15) / COUNTIFS(SrPersons!$D:$D,K$8,SrPersons!$J:$J,$C15),0) -> 0 | L15: =IFERROR(SUMIFS(SrPersons!$R:$R,SrPersons!$D:$D,L$8,SrPersons!$J:$J,$C15) / COUNTIFS(SrPersons!$D:$D,L$8,SrPersons!$J:$J,$C15),0) -> 0 | M15: =IFERROR(SUMIFS(SrPersons!$Y:$Y,SrPersons!$D:$D,M$8,SrPersons!$J:$J,$C15) / COUNTIFS(SrPersons!$D:$D,M$8,SrPersons!$J:$J,$C15),0) -> 0 | N15: =IFERROR(SUMIFS(SrPersons!$R:$R,SrPersons!$D:$D,N$8,SrPersons!$J:$J,$C15) / COUNTIFS(SrPersons!$D:$D,N$8,SrPersons!$J:$J,$C15),0) -> 0 | O15: =IFERROR(SUMIFS(SrPersons!$Y:$Y,SrPersons!$D:$D,O$8,SrPersons!$J:$J,$C15) / COUNTIFS(SrPersons!$D:$D,O$8,SrPersons!$J:$J,$C15),0) -> 0 | P15: =IFERROR(SUMIFS(SrPersons!$R:$R,SrPersons!$D:$D,P$8,SrPersons!$J:$J,$C15) / COUNTIFS(SrPersons!$D:$D,P$8,SrPersons!$J:$J,$C15),0) -> 0 | Q15: =IFERROR(SUMIFS(SrPersons!$Y:$Y,SrPersons!$D:$D,Q$8,SrPersons!$J:$J,$C15) / COUNTIFS(SrPersons!$D:$D,Q$8,SrPersons!$J:$J,$C15),0) -> 0 | R15: =IFERROR(SUMIFS(SrPersons!$R:$R,SrPersons!$D:$D,R$8,SrPersons!$J:$J,$C15) / COUNTIFS(SrPersons!$D:$D,R$8,SrPersons!$J:$J,$C15),0) -> 0 | S15: =IFERROR(SUMIFS(SrPersons!$Y:$Y,SrPersons!$D:$D,S$8,SrPersons!$J:$J,$C15) / COUNTIFS(SrPersons!$D:$D,S$8,SrPersons!$J:$J,$C15),0) -> 0 | T15: =IFERROR(SUMIFS(SrPersons!$R:$R,SrPersons!$D:$D,T$8,SrPersons!$J:$J,$C15) / COUNTIFS(SrPersons!$D:$D,T$8,SrPersons!$J:$J,$C15),0) -> 0 | U15: =IFERROR(SUMIFS(SrPersons!$Y:$Y,SrPersons!$D:$D,U$8,SrPersons!$J:$J,$C15) / COUNTIFS(SrPersons!$D:$D,U$8,SrPersons!$J:$J,$C15),0) -> 0 | V15: =IFERROR(SUMIFS(SrPersons!$R:$R,SrPersons!$D:$D,V$8,SrPersons!$J:$J,$C15) / COUNTIFS(SrPersons!$D:$D,V$8,SrPersons!$J:$J,$C15),0) -> 0 | W15: =IFERROR(SUMIFS(SrPersons!$Y:$Y,SrPersons!$D:$D,W$8,SrPersons!$J:$J,$C15) / COUNTIFS(SrPersons!$D:$D,W$8,SrPersons!$J:$J,$C15),0) -> 0 | X15: =IFERROR(SUMIFS(SrPersons!$R:$R,SrPersons!$D:$D,X$8,SrPersons!$J:$J,$C15) / COUNTIFS(SrPersons!$D:$D,X$8,SrPersons!$J:$J,$C15),0) -> 0 | Y15: =IFERROR(SUMIFS(SrPersons!$Y:$Y,SrPersons!$D:$D,Y$8,SrPersons!$J:$J,$C15) / COUNTIFS(SrPersons!$D:$D,Y$8,SrPersons!$J:$J,$C15),0) -> 0 | Z15: =IFERROR(SUMIFS(SrPersons!$R:$R,SrPersons!$D:$D,Z$8,SrPersons!$J:$J,$C15) / COUNTIFS(SrPersons!$D:$D,Z$8,SrPersons!$J:$J,$C15),0) -> 0 | AA15: =IFERROR(SUMIFS(SrPersons!$Y:$Y,SrPersons!$D:$D,AA$8,SrPersons!$J:$J,$C15) / COUNTIFS(SrPersons!$D:$D,AA$8,SrPersons!$J:$J,$C15),0) -> 0 | AB15: =SUM(H15+J15+L15+N15+P15+R15+T15+V15+X15+Z15) -> 0 | AC15: =SUM(I15+K15+M15+O15+Q15+S15+U15+W15+Y15+AA15) -> 0 | AD15: =SUM(AB15+AC15) -> 0
B16: 2 | D16: =IFERROR(SUMIFS(SrPersons!$AB:$AB,SrPersons!$D:$D,$H$8,SrPersons!$J:$J,$C16) / COUNTIFS(SrPersons!$D:$D,$H$8,SrPersons!$J:$J,$C16),"") ->  | H16: =IFERROR(SUMIFS(SrPersons!$R:$R,SrPersons!$D:$D,H$8,SrPersons!$J:$J,$C16) / COUNTIFS(SrPersons!$D:$D,H$8,SrPersons!$J:$J,$C16),0) -> 0 | I16: =IFERROR(SUMIFS(SrPersons!$Y:$Y,SrPersons!$D:$D,I$8,SrPersons!$J:$J,$C16) / COUNTIFS(SrPersons!$D:$D,I$8,SrPersons!$J:$J,$C16),0) -> 0 | J16: =IFERROR(SUMIFS(SrPersons!$R:$R,SrPersons!$D:$D,J$8,SrPersons!$J:$J,$C16) / COUNTIFS(SrPersons!$D:$D,J$8,SrPersons!$J:$J,$C16),0) -> 0 | K16: =IFERROR(SUMIFS(SrPersons!$Y:$Y,SrPersons!$D:$D,K$8,SrPersons!$J:$J,$C16) / COUNTIFS(SrPersons!$D:$D,K$8,SrPersons!$J:$J,$C16),0) -> 0 | L16: =IFERROR(SUMIFS(SrPersons!$R:$R,SrPersons!$D:$D,L$8,SrPersons!$J:$J,$C16) / COUNTIFS(SrPersons!$D:$D,L$8,SrPersons!$J:$J,$C16),0) -> 0 | M16: =IFERROR(SUMIFS(SrPersons!$Y:$Y,SrPersons!$D:$D,M$8,SrPersons!$J:$J,$C16) / COUNTIFS(SrPersons!$D:$D,M$8,SrPersons!$J:$J,$C16),0) -> 0 | N16: =IFERROR(SUMIFS(SrPersons!$R:$R,SrPersons!$D:$D,N$8,SrPersons!$J:$J,$C16) / COUNTIFS(SrPersons!$D:$D,N$8,SrPersons!$J:$J,$C16),0) -> 0 | O16: =IFERROR(SUMIFS(SrPersons!$Y:$Y,SrPersons!$D:$D,O$8,SrPersons!$J:$J,$C16) / COUNTIFS(SrPersons!$D:$D,O$8,SrPersons!$J:$J,$C16),0) -> 0 | P16: =IFERROR(SUMIFS(SrPersons!$R:$R,SrPersons!$D:$D,P$8,SrPersons!$J:$J,$C16) / COUNTIFS(SrPersons!$D:$D,P$8,SrPersons!$J:$J,$C16),0) -> 0 | Q16: =IFERROR(SUMIFS(SrPersons!$Y:$Y,SrPersons!$D:$D,Q$8,SrPersons!$J:$J,$C16) / COUNTIFS(SrPersons!$D:$D,Q$8,SrPersons!$J:$J,$C16),0) -> 0 | R16: =IFERROR(SUMIFS(SrPersons!$R:$R,SrPersons!$D:$D,R$8,SrPersons!$J:$J,$C16) / COUNTIFS(SrPersons!$D:$D,R$8,SrPersons!$J:$J,$C16),0) -> 0 | S16: =IFERROR(SUMIFS(SrPersons!$Y:$Y,SrPersons!$D:$D,S$8,SrPersons!$J:$J,$C16) / COUNTIFS(SrPersons!$D:$D,S$8,SrPersons!$J:$J,$C16),0) -> 0 | T16: =IFERROR(SUMIFS(SrPersons!$R:$R,SrPersons!$D:$D,T$8,SrPersons!$J:$J,$C16) / COUNTIFS(SrPersons!$D:$D,T$8,SrPersons!$J:$J,$C16),0) -> 0 | U16: =IFERROR(SUMIFS(SrPersons!$Y:$Y,SrPersons!$D:$D,U$8,SrPersons!$J:$J,$C16) / COUNTIFS(SrPersons!$D:$D,U$8,SrPersons!$J:$J,$C16),0) -> 0 | V16: =IFERROR(SUMIFS(SrPersons!$R:$R,SrPersons!$D:$D,V$8,SrPersons!$J:$J,$C16) / COUNTIFS(SrPersons!$D:$D,V$8,SrPersons!$J:$J,$C16),0) -> 0 | W16: =IFERROR(SUMIFS(SrPersons!$Y:$Y,SrPersons!$D:$D,W$8,SrPersons!$J:$J,$C16) / COUNTIFS(SrPersons!$D:$D,W$8,SrPersons!$J:$J,$C16),0) -> 0 | X16: =IFERROR(SUMIFS(SrPersons!$R:$R,SrPersons!$D:$D,X$8,SrPersons!$J:$J,$C16) / COUNTIFS(SrPersons!$D:$D,X$8,SrPersons!$J:$J,$C16),0) -> 0 | Y16: =IFERROR(SUMIFS(SrPersons!$Y:$Y,SrPersons!$D:$D,Y$8,SrPersons!$J:$J,$C16) / COUNTIFS(SrPersons!$D:$D,Y$8,SrPersons!$J:$J,$C16),0) -> 0 | Z16: =IFERROR(SUMIFS(SrPersons!$R:$R,SrPersons!$D:$D,Z$8,SrPersons!$J:$J,$C16) / COUNTIFS(SrPersons!$D:$D,Z$8,SrPersons!$J:$J,$C16),0) -> 0 | AA16: =IFERROR(SUMIFS(SrPersons!$Y:$Y,SrPersons!$D:$D,AA$8,SrPersons!$J:$J,$C16) / COUNTIFS(SrPersons!$D:$D,AA$8,SrPersons!$J:$J,$C16),0) -> 0 | AB16: 0 | AC16: 0 | AD16: =SUM(AB16+AC16) -> 0
B17: 3 | D17: =IFERROR(SUMIFS(SrPersons!$AB:$AB,SrPersons!$D:$D,$H$8,SrPersons!$J:$J,$C17) / COUNTIFS(SrPersons!$D:$D,$H$8,SrPersons!$J:$J,$C17),"") ->  | H17: =IFERROR(SUMIFS(SrPersons!$R:$R,SrPersons!$D:$D,H$8,SrPersons!$J:$J,$C17) / COUNTIFS(SrPersons!$D:$D,H$8,SrPersons!$J:$J,$C17),0) -> 0 | I17: =IFERROR(SUMIFS(SrPersons!$Y:$Y,SrPersons!$D:$D,I$8,SrPersons!$J:$J,$C17) / COUNTIFS(SrPersons!$D:$D,I$8,SrPersons!$J:$J,$C17),0) -> 0 | J17: =IFERROR(SUMIFS(SrPersons!$R:$R,SrPersons!$D:$D,J$8,SrPersons!$J:$J,$C17) / COUNTIFS(SrPersons!$D:$D,J$8,SrPersons!$J:$J,$C17),0) -> 0 | K17: =IFERROR(SUMIFS(SrPersons!$Y:$Y,SrPersons!$D:$D,K$8,SrPersons!$J:$J,$C17) / COUNTIFS(SrPersons!$D:$D,K$8,SrPersons!$J:$J,$C17),0) -> 0 | L17: =IFERROR(SUMIFS(SrPersons!$R:$R,SrPersons!$D:$D,L$8,SrPersons!$J:$J,$C17) / COUNTIFS(SrPersons!$D:$D,L$8,SrPersons!$J:$J,$C17),0) -> 0 | M17: =IFERROR(SUMIFS(SrPersons!$Y:$Y,SrPersons!$D:$D,M$8,SrPersons!$J:$J,$C17) / COUNTIFS(SrPersons!$D:$D,M$8,SrPersons!$J:$J,$C17),0) -> 0 | N17: =IFERROR(SUMIFS(SrPersons!$R:$R,SrPersons!$D:$D,N$8,SrPersons!$J:$J,$C17) / COUNTIFS(SrPersons!$D:$D,N$8,SrPersons!$J:$J,$C17),0) -> 0 | O17: =IFERROR(SUMIFS(SrPersons!$Y:$Y,SrPersons!$D:$D,O$8,SrPersons!$J:$J,$C17) / COUNTIFS(SrPersons!$D:$D,O$8,SrPersons!$J:$J,$C17),0) -> 0 | P17: =IFERROR(SUMIFS(SrPersons!$R:$R,SrPersons!$D:$D,P$8,SrPersons!$J:$J,$C17) / COUNTIFS(SrPersons!$D:$D,P$8,SrPersons!$J:$J,$C17),0) -> 0 | Q17: =IFERROR(SUMIFS(SrPersons!$Y:$Y,SrPersons!$D:$D,Q$8,SrPersons!$J:$J,$C17) / COUNTIFS(SrPersons!$D:$D,Q$8,SrPersons!$J:$J,$C17),0) -> 0 | R17: =IFERROR(SUMIFS(SrPersons!$R:$R,SrPersons!$D:$D,R$8,SrPersons!$J:$J,$C17) / COUNTIFS(SrPersons!$D:$D,R$8,SrPersons!$J:$J,$C17),0) -> 0 | S17: =IFERROR(SUMIFS(SrPersons!$Y:$Y,SrPersons!$D:$D,S$8,SrPersons!$J:$J,$C17) / COUNTIFS(SrPersons!$D:$D,S$8,SrPersons!$J:$J,$C17),0) -> 0 | T17: =IFERROR(SUMIFS(SrPersons!$R:$R,SrPersons!$D:$D,T$8,SrPersons!$J:$J,$C17) / COUNTIFS(SrPersons!$D:$D,T$8,SrPersons!$J:$J,$C17),0) -> 0 | U17: =IFERROR(SUMIFS(SrPersons!$Y:$Y,SrPersons!$D:$D,U$8,SrPersons!$J:$J,$C17) / COUNTIFS(SrPersons!$D:$D,U$8,SrPersons!$J:$J,$C17),0) -> 0 | V17: =IFERROR(SUMIFS(SrPersons!$R:$R,SrPersons!$D:$D,V$8,SrPersons!$J:$J,$C17) / COUNTIFS(SrPersons!$D:$D,V$8,SrPersons!$J:$J,$C17),0) -> 0 | W17: =IFERROR(SUMIFS(SrPersons!$Y:$Y,SrPersons!$D:$D,W$8,SrPersons!$J:$J,$C17) / COUNTIFS(SrPersons!$D:$D,W$8,SrPersons!$J:$J,$C17),0) -> 0 | X17: =IFERROR(SUMIFS(SrPersons!$R:$R,SrPersons!$D:$D,X$8,SrPersons!$J:$J,$C17) / COUNTIFS(SrPersons!$D:$D,X$8,SrPersons!$J:$J,$C17),0) -> 0 | Y17: =IFERROR(SUMIFS(SrPersons!$Y:$Y,SrPersons!$D:$D,Y$8,SrPersons!$J:$J,$C17) / COUNTIFS(SrPersons!$D:$D,Y$8,SrPersons!$J:$J,$C17),0) -> 0 | Z17: =IFERROR(SUMIFS(SrPersons!$R:$R,SrPersons!$D:$D,Z$8,SrPersons!$J:$J,$C17) / COUNTIFS(SrPersons!$D:$D,Z$8,SrPersons!$J:$J,$C17),0) -> 0 | AA17: =IFERROR(SUMIFS(SrPersons!$Y:$Y,SrPersons!$D:$D,AA$8,SrPersons!$J:$J,$C17) / COUNTIFS(SrPersons!$D:$D,AA$8,SrPersons!$J:$J,$C17),0) -> 0 | AB17: 0 | AC17: 0 | AD17: 0
B18: 4 | D18: =IFERROR(SUMIFS(SrPersons!$AB:$AB,SrPersons!$D:$D,$H$8,SrPersons!$J:$J,$C18) / COUNTIFS(SrPersons!$D:$D,$H$8,SrPersons!$J:$J,$C18),"") ->  | H18: =IFERROR(SUMIFS(SrPersons!$R:$R,SrPersons!$D:$D,H$8,SrPersons!$J:$J,$C18) / COUNTIFS(SrPersons!$D:$D,H$8,SrPersons!$J:$J,$C18),0) -> 0 | I18: =IFERROR(SUMIFS(SrPersons!$Y:$Y,SrPersons!$D:$D,I$8,SrPersons!$J:$J,$C18) / COUNTIFS(SrPersons!$D:$D,I$8,SrPersons!$J:$J,$C18),0) -> 0 | J18: =IFERROR(SUMIFS(SrPersons!$R:$R,SrPersons!$D:$D,J$8,SrPersons!$J:$J,$C18) / COUNTIFS(SrPersons!$D:$D,J$8,SrPersons!$J:$J,$C18),0) -> 0 | K18: =IFERROR(SUMIFS(SrPersons!$Y:$Y,SrPersons!$D:$D,K$8,SrPersons!$J:$J,$C18) / COUNTIFS(SrPersons!$D:$D,K$8,SrPersons!$J:$J,$C18),0) -> 0 | L18: =IFERROR(SUMIFS(SrPersons!$R:$R,SrPersons!$D:$D,L$8,SrPersons!$J:$J,$C18) / COUNTIFS(SrPersons!$D:$D,L$8,SrPersons!$J:$J,$C18),0) -> 0 | M18: =IFERROR(SUMIFS(SrPersons!$Y:$Y,SrPersons!$D:$D,M$8,SrPersons!$J:$J,$C18) / COUNTIFS(SrPersons!$D:$D,M$8,SrPersons!$J:$J,$C18),0) -> 0 | N18: =IFERROR(SUMIFS(SrPersons!$R:$R,SrPersons!$D:$D,N$8,SrPersons!$J:$J,$C18) / COUNTIFS(SrPersons!$D:$D,N$8,SrPersons!$J:$J,$C18),0) -> 0 | O18: =IFERROR(SUMIFS(SrPersons!$Y:$Y,SrPersons!$D:$D,O$8,SrPersons!$J:$J,$C18) / COUNTIFS(SrPersons!$D:$D,O$8,SrPersons!$J:$J,$C18),0) -> 0 | P18: =IFERROR(SUMIFS(SrPersons!$R:$R,SrPersons!$D:$D,P$8,SrPersons!$J:$J,$C18) / COUNTIFS(SrPersons!$D:$D,P$8,SrPersons!$J:$J,$C18),0) -> 0 | Q18: =IFERROR(SUMIFS(SrPersons!$Y:$Y,SrPersons!$D:$D,Q$8,SrPersons!$J:$J,$C18) / COUNTIFS(SrPersons!$D:$D,Q$8,SrPersons!$J:$J,$C18),0) -> 0 | R18: =IFERROR(SUMIFS(SrPersons!$R:$R,SrPersons!$D:$D,R$8,SrPersons!$J:$J,$C18) / COUNTIFS(SrPersons!$D:$D,R$8,SrPersons!$J:$J,$C18),0) -> 0 | S18: =IFERROR(SUMIFS(SrPersons!$Y:$Y,SrPersons!$D:$D,S$8,SrPersons!$J:$J,$C18) / COUNTIFS(SrPersons!$D:$D,S$8,SrPersons!$J:$J,$C18),0) -> 0 | T18: =IFERROR(SUMIFS(SrPersons!$R:$R,SrPersons!$D:$D,T$8,SrPersons!$J:$J,$C18) / COUNTIFS(SrPersons!$D:$D,T$8,SrPersons!$J:$J,$C18),0) -> 0 | U18: =IFERROR(SUMIFS(SrPersons!$Y:$Y,SrPersons!$D:$D,U$8,SrPersons!$J:$J,$C18) / COUNTIFS(SrPersons!$D:$D,U$8,SrPersons!$J:$J,$C18),0) -> 0 | V18: =IFERROR(SUMIFS(SrPersons!$R:$R,SrPersons!$D:$D,V$8,SrPersons!$J:$J,$C18) / COUNTIFS(SrPersons!$D:$D,V$8,SrPersons!$J:$J,$C18),0) -> 0 | W18: =IFERROR(SUMIFS(SrPersons!$Y:$Y,SrPersons!$D:$D,W$8,SrPersons!$J:$J,$C18) / COUNTIFS(SrPersons!$D:$D,W$8,SrPersons!$J:$J,$C18),0) -> 0 | X18: =IFERROR(SUMIFS(SrPersons!$R:$R,SrPersons!$D:$D,X$8,SrPersons!$J:$J,$C18) / COUNTIFS(SrPersons!$D:$D,X$8,SrPersons!$J:$J,$C18),0) -> 0 | Y18: =IFERROR(SUMIFS(SrPersons!$Y:$Y,SrPersons!$D:$D,Y$8,SrPersons!$J:$J,$C18) / COUNTIFS(SrPersons!$D:$D,Y$8,SrPersons!$J:$J,$C18),0) -> 0 | Z18: =IFERROR(SUMIFS(SrPersons!$R:$R,SrPersons!$D:$D,Z$8,SrPersons!$J:$J,$C18) / COUNTIFS(SrPersons!$D:$D,Z$8,SrPersons!$J:$J,$C18),0) -> 0 | AA18: =IFERROR(SUMIFS(SrPersons!$Y:$Y,SrPersons!$D:$D,AA$8,SrPersons!$J:$J,$C18) / COUNTIFS(SrPersons!$D:$D,AA$8,SrPersons!$J:$J,$C18),0) -> 0 | AB18: 0 | AC18: 0 | AD18: 0
B19: 5 | D19: =IFERROR(SUMIFS(SrPersons!$AB:$AB,SrPersons!$D:$D,$H$8,SrPersons!$J:$J,$C19) / COUNTIFS(SrPersons!$D:$D,$H$8,SrPersons!$J:$J,$C19),"") ->  | H19: =IFERROR(SUMIFS(SrPersons!$R:$R,SrPersons!$D:$D,H$8,SrPersons!$J:$J,$C19) / COUNTIFS(SrPersons!$D:$D,H$8,SrPersons!$J:$J,$C19),0) -> 0 | I19: =IFERROR(SUMIFS(SrPersons!$Y:$Y,SrPersons!$D:$D,I$8,SrPersons!$J:$J,$C19) / COUNTIFS(SrPersons!$D:$D,I$8,SrPersons!$J:$J,$C19),0) -> 0 | J19: =IFERROR(SUMIFS(SrPersons!$R:$R,SrPersons!$D:$D,J$8,SrPersons!$J:$J,$C19) / COUNTIFS(SrPersons!$D:$D,J$8,SrPersons!$J:$J,$C19),0) -> 0 | K19: =IFERROR(SUMIFS(SrPersons!$Y:$Y,SrPersons!$D:$D,K$8,SrPersons!$J:$J,$C19) / COUNTIFS(SrPersons!$D:$D,K$8,SrPersons!$J:$J,$C19),0) -> 0 | L19: =IFERROR(SUMIFS(SrPersons!$R:$R,SrPersons!$D:$D,L$8,SrPersons!$J:$J,$C19) / COUNTIFS(SrPersons!$D:$D,L$8,SrPersons!$J:$J,$C19),0) -> 0 | M19: =IFERROR(SUMIFS(SrPersons!$Y:$Y,SrPersons!$D:$D,M$8,SrPersons!$J:$J,$C19) / COUNTIFS(SrPersons!$D:$D,M$8,SrPersons!$J:$J,$C19),0) -> 0 | N19: =IFERROR(SUMIFS(SrPersons!$R:$R,SrPersons!$D:$D,N$8,SrPersons!$J:$J,$C19) / COUNTIFS(SrPersons!$D:$D,N$8,SrPersons!$J:$J,$C19),0) -> 0 | O19: =IFERROR(SUMIFS(SrPersons!$Y:$Y,SrPersons!$D:$D,O$8,SrPersons!$J:$J,$C19) / COUNTIFS(SrPersons!$D:$D,O$8,SrPersons!$J:$J,$C19),0) -> 0 | P19: =IFERROR(SUMIFS(SrPersons!$R:$R,SrPersons!$D:$D,P$8,SrPersons!$J:$J,$C19) / COUNTIFS(SrPersons!$D:$D,P$8,SrPersons!$J:$J,$C19),0) -> 0 | Q19: =IFERROR(SUMIFS(SrPersons!$Y:$Y,SrPersons!$D:$D,Q$8,SrPersons!$J:$J,$C19) / COUNTIFS(SrPersons!$D:$D,Q$8,SrPersons!$J:$J,$C19),0) -> 0 | R19: =IFERROR(SUMIFS(SrPersons!$R:$R,SrPersons!$D:$D,R$8,SrPersons!$J:$J,$C19) / COUNTIFS(SrPersons!$D:$D,R$8,SrPersons!$J:$J,$C19),0) -> 0 | S19: =IFERROR(SUMIFS(SrPersons!$Y:$Y,SrPersons!$D:$D,S$8,SrPersons!$J:$J,$C19) / COUNTIFS(SrPersons!$D:$D,S$8,SrPersons!$J:$J,$C19),0) -> 0 | T19: =IFERROR(SUMIFS(SrPersons!$R:$R,SrPersons!$D:$D,T$8,SrPersons!$J:$J,$C19) / COUNTIFS(SrPersons!$D:$D,T$8,SrPersons!$J:$J,$C19),0) -> 0 | U19: =IFERROR(SUMIFS(SrPersons!$Y:$Y,SrPersons!$D:$D,U$8,SrPersons!$J:$J,$C19) / COUNTIFS(SrPersons!$D:$D,U$8,SrPersons!$J:$J,$C19),0) -> 0 | V19: =IFERROR(SUMIFS(SrPersons!$R:$R,SrPersons!$D:$D,V$8,SrPersons!$J:$J,$C19) / COUNTIFS(SrPersons!$D:$D,V$8,SrPersons!$J:$J,$C19),0) -> 0 | W19: =IFERROR(SUMIFS(SrPersons!$Y:$Y,SrPersons!$D:$D,W$8,SrPersons!$J:$J,$C19) / COUNTIFS(SrPersons!$D:$D,W$8,SrPersons!$J:$J,$C19),0) -> 0 | X19: =IFERROR(SUMIFS(SrPersons!$R:$R,SrPersons!$D:$D,X$8,SrPersons!$J:$J,$C19) / COUNTIFS(SrPersons!$D:$D,X$8,SrPersons!$J:$J,$C19),0) -> 0 | Y19: =IFERROR(SUMIFS(SrPersons!$Y:$Y,SrPersons!$D:$D,Y$8,SrPersons!$J:$J,$C19) / COUNTIFS(SrPersons!$D:$D,Y$8,SrPersons!$J:$J,$C19),0) -> 0 | Z19: =IFERROR(SUMIFS(SrPersons!$R:$R,SrPersons!$D:$D,Z$8,SrPersons!$J:$J,$C19) / COUNTIFS(SrPersons!$D:$D,Z$8,SrPersons!$J:$J,$C19),0) -> 0 | AA19: =IFERROR(SUMIFS(SrPersons!$Y:$Y,SrPersons!$D:$D,AA$8,SrPersons!$J:$J,$C19) / COUNTIFS(SrPersons!$D:$D,AA$8,SrPersons!$J:$J,$C19),0) -> 0 | AB19: 0 | AC19: 0 | AD19: =SUM(AB19+AC19) -> 0
B20: 6 | D20: =IFERROR(SUMIFS(SrPersons!$AB:$AB,SrPersons!$D:$D,$H$8,SrPersons!$J:$J,$C20) / COUNTIFS(SrPersons!$D:$D,$H$8,SrPersons!$J:$J,$C20),"") ->  | H20: =IFERROR(SUMIFS(SrPersons!$R:$R,SrPersons!$D:$D,H$8,SrPersons!$J:$J,$C20) / COUNTIFS(SrPersons!$D:$D,H$8,SrPersons!$J:$J,$C20),0) -> 0 | I20: =IFERROR(SUMIFS(SrPersons!$Y:$Y,SrPersons!$D:$D,I$8,SrPersons!$J:$J,$C20) / COUNTIFS(SrPersons!$D:$D,I$8,SrPersons!$J:$J,$C20),0) -> 0 | J20: =IFERROR(SUMIFS(SrPersons!$R:$R,SrPersons!$D:$D,J$8,SrPersons!$J:$J,$C20) / COUNTIFS(SrPersons!$D:$D,J$8,SrPersons!$J:$J,$C20),0) -> 0 | K20: =IFERROR(SUMIFS(SrPersons!$Y:$Y,SrPersons!$D:$D,K$8,SrPersons!$J:$J,$C20) / COUNTIFS(SrPersons!$D:$D,K$8,SrPersons!$J:$J,$C20),0) -> 0 | L20: =IFERROR(SUMIFS(SrPersons!$R:$R,SrPersons!$D:$D,L$8,SrPersons!$J:$J,$C20) / COUNTIFS(SrPersons!$D:$D,L$8,SrPersons!$J:$J,$C20),0) -> 0 | M20: =IFERROR(SUMIFS(SrPersons!$Y:$Y,SrPersons!$D:$D,M$8,SrPersons!$J:$J,$C20) / COUNTIFS(SrPersons!$D:$D,M$8,SrPersons!$J:$J,$C20),0) -> 0 | N20: =IFERROR(SUMIFS(SrPersons!$R:$R,SrPersons!$D:$D,N$8,SrPersons!$J:$J,$C20) / COUNTIFS(SrPersons!$D:$D,N$8,SrPersons!$J:$J,$C20),0) -> 0 | O20: =IFERROR(SUMIFS(SrPersons!$Y:$Y,SrPersons!$D:$D,O$8,SrPersons!$J:$J,$C20) / COUNTIFS(SrPersons!$D:$D,O$8,SrPersons!$J:$J,$C20),0) -> 0 | P20: =IFERROR(SUMIFS(SrPersons!$R:$R,SrPersons!$D:$D,P$8,SrPersons!$J:$J,$C20) / COUNTIFS(SrPersons!$D:$D,P$8,SrPersons!$J:$J,$C20),0) -> 0 | Q20: =IFERROR(SUMIFS(SrPersons!$Y:$Y,SrPersons!$D:$D,Q$8,SrPersons!$J:$J,$C20) / COUNTIFS(SrPersons!$D:$D,Q$8,SrPersons!$J:$J,$C20),0) -> 0 | R20: =IFERROR(SUMIFS(SrPersons!$R:$R,SrPersons!$D:$D,R$8,SrPersons!$J:$J,$C20) / COUNTIFS(SrPersons!$D:$D,R$8,SrPersons!$J:$J,$C20),0) -> 0 | S20: =IFERROR(SUMIFS(SrPersons!$Y:$Y,SrPersons!$D:$D,S$8,SrPersons!$J:$J,$C20) / COUNTIFS(SrPersons!$D:$D,S$8,SrPersons!$J:$J,$C20),0) -> 0 | T20: =IFERROR(SUMIFS(SrPersons!$R:$R,SrPersons!$D:$D,T$8,SrPersons!$J:$J,$C20) / COUNTIFS(SrPersons!$D:$D,T$8,SrPersons!$J:$J,$C20),0) -> 0 | U20: =IFERROR(SUMIFS(SrPersons!$Y:$Y,SrPersons!$D:$D,U$8,SrPersons!$J:$J,$C20) / COUNTIFS(SrPersons!$D:$D,U$8,SrPersons!$J:$J,$C20),0) -> 0 | V20: =IFERROR(SUMIFS(SrPersons!$R:$R,SrPersons!$D:$D,V$8,SrPersons!$J:$J,$C20) / COUNTIFS(SrPersons!$D:$D,V$8,SrPersons!$J:$J,$C20),0) -> 0 | W20: =IFERROR(SUMIFS(SrPersons!$Y:$Y,SrPersons!$D:$D,W$8,SrPersons!$J:$J,$C20) / COUNTIFS(SrPersons!$D:$D,W$8,SrPersons!$J:$J,$C20),0) -> 0 | X20: =IFERROR(SUMIFS(SrPersons!$R:$R,SrPersons!$D:$D,X$8,SrPersons!$J:$J,$C20) / COUNTIFS(SrPersons!$D:$D,X$8,SrPersons!$J:$J,$C20),0) -> 0 | Y20: =IFERROR(SUMIFS(SrPersons!$Y:$Y,SrPersons!$D:$D,Y$8,SrPersons!$J:$J,$C20) / COUNTIFS(SrPersons!$D:$D,Y$8,SrPersons!$J:$J,$C20),0) -> 0 | Z20: =IFERROR(SUMIFS(SrPersons!$R:$R,SrPersons!$D:$D,Z$8,SrPersons!$J:$J,$C20) / COUNTIFS(SrPersons!$D:$D,Z$8,SrPersons!$J:$J,$C20),0) -> 0 | AA20: =IFERROR(SUMIFS(SrPersons!$Y:$Y,SrPersons!$D:$D,AA$8,SrPersons!$J:$J,$C20) / COUNTIFS(SrPersons!$D:$D,AA$8,SrPersons!$J:$J,$C20),0) -> 0 | AB20: 0 | AC20: 0 | AD20: 0
B21: 7 | D21: =IFERROR(SUMIFS(SrPersons!$AB:$AB,SrPersons!$D:$D,$H$8,SrPersons!$J:$J,$C21) / COUNTIFS(SrPersons!$D:$D,$H$8,SrPersons!$J:$J,$C21),"") ->  | H21: =IFERROR(SUMIFS(SrPersons!$R:$R,SrPersons!$D:$D,H$8,SrPersons!$J:$J,$C21) / COUNTIFS(SrPersons!$D:$D,H$8,SrPersons!$J:$J,$C21),0) -> 0 | I21: =IFERROR(SUMIFS(SrPersons!$Y:$Y,SrPersons!$D:$D,I$8,SrPersons!$J:$J,$C21) / COUNTIFS(SrPersons!$D:$D,I$8,SrPersons!$J:$J,$C21),0) -> 0 | J21: =IFERROR(SUMIFS(SrPersons!$R:$R,SrPersons!$D:$D,J$8,SrPersons!$J:$J,$C21) / COUNTIFS(SrPersons!$D:$D,J$8,SrPersons!$J:$J,$C21),0) -> 0 | K21: =IFERROR(SUMIFS(SrPersons!$Y:$Y,SrPersons!$D:$D,K$8,SrPersons!$J:$J,$C21) / COUNTIFS(SrPersons!$D:$D,K$8,SrPersons!$J:$J,$C21),0) -> 0 | L21: =IFERROR(SUMIFS(SrPersons!$R:$R,SrPersons!$D:$D,L$8,SrPersons!$J:$J,$C21) / COUNTIFS(SrPersons!$D:$D,L$8,SrPersons!$J:$J,$C21),0) -> 0 | M21: =IFERROR(SUMIFS(SrPersons!$Y:$Y,SrPersons!$D:$D,M$8,SrPersons!$J:$J,$C21) / COUNTIFS(SrPersons!$D:$D,M$8,SrPersons!$J:$J,$C21),0) -> 0 | N21: =IFERROR(SUMIFS(SrPersons!$R:$R,SrPersons!$D:$D,N$8,SrPersons!$J:$J,$C21) / COUNTIFS(SrPersons!$D:$D,N$8,SrPersons!$J:$J,$C21),0) -> 0 | O21: =IFERROR(SUMIFS(SrPersons!$Y:$Y,SrPersons!$D:$D,O$8,SrPersons!$J:$J,$C21) / COUNTIFS(SrPersons!$D:$D,O$8,SrPersons!$J:$J,$C21),0) -> 0 | P21: =IFERROR(SUMIFS(SrPersons!$R:$R,SrPersons!$D:$D,P$8,SrPersons!$J:$J,$C21) / COUNTIFS(SrPersons!$D:$D,P$8,SrPersons!$J:$J,$C21),0) -> 0 | Q21: =IFERROR(SUMIFS(SrPersons!$Y:$Y,SrPersons!$D:$D,Q$8,SrPersons!$J:$J,$C21) / COUNTIFS(SrPersons!$D:$D,Q$8,SrPersons!$J:$J,$C21),0) -> 0 | R21: =IFERROR(SUMIFS(SrPersons!$R:$R,SrPersons!$D:$D,R$8,SrPersons!$J:$J,$C21) / COUNTIFS(SrPersons!$D:$D,R$8,SrPersons!$J:$J,$C21),0) -> 0 | S21: =IFERROR(SUMIFS(SrPersons!$Y:$Y,SrPersons!$D:$D,S$8,SrPersons!$J:$J,$C21) / COUNTIFS(SrPersons!$D:$D,S$8,SrPersons!$J:$J,$C21),0) -> 0 | T21: =IFERROR(SUMIFS(SrPersons!$R:$R,SrPersons!$D:$D,T$8,SrPersons!$J:$J,$C21) / COUNTIFS(SrPersons!$D:$D,T$8,SrPersons!$J:$J,$C21),0) -> 0 | U21: =IFERROR(SUMIFS(SrPersons!$Y:$Y,SrPersons!$D:$D,U$8,SrPersons!$J:$J,$C21) / COUNTIFS(SrPersons!$D:$D,U$8,SrPersons!$J:$J,$C21),0) -> 0 | V21: =IFERROR(SUMIFS(SrPersons!$R:$R,SrPersons!$D:$D,V$8,SrPersons!$J:$J,$C21) / COUNTIFS(SrPersons!$D:$D,V$8,SrPersons!$J:$J,$C21),0) -> 0 | W21: =IFERROR(SUMIFS(SrPersons!$Y:$Y,SrPersons!$D:$D,W$8,SrPersons!$J:$J,$C21) / COUNTIFS(SrPersons!$D:$D,W$8,SrPersons!$J:$J,$C21),0) -> 0 | X21: =IFERROR(SUMIFS(SrPersons!$R:$R,SrPersons!$D:$D,X$8,SrPersons!$J:$J,$C21) / COUNTIFS(SrPersons!$D:$D,X$8,SrPersons!$J:$J,$C21),0) -> 0 | Y21: =IFERROR(SUMIFS(SrPersons!$Y:$Y,SrPersons!$D:$D,Y$8,SrPersons!$J:$J,$C21) / COUNTIFS(SrPersons!$D:$D,Y$8,SrPersons!$J:$J,$C21),0) -> 0 | Z21: =IFERROR(SUMIFS(SrPersons!$R:$R,SrPersons!$D:$D,Z$8,SrPersons!$J:$J,$C21) / COUNTIFS(SrPersons!$D:$D,Z$8,SrPersons!$J:$J,$C21),0) -> 0 | AA21: =IFERROR(SUMIFS(SrPersons!$Y:$Y,SrPersons!$D:$D,AA$8,SrPersons!$J:$J,$C21) / COUNTIFS(SrPersons!$D:$D,AA$8,SrPersons!$J:$J,$C21),0) -> 0 | AB21: 0 | AC21: 0 | AD21: 0
B22: 8 | D22: =IFERROR(SUMIFS(SrPersons!$AB:$AB,SrPersons!$D:$D,$H$8,SrPersons!$J:$J,$C22) / COUNTIFS(SrPersons!$D:$D,$H$8,SrPersons!$J:$J,$C22),"") ->  | H22: =IFERROR(SUMIFS(SrPersons!$R:$R,SrPersons!$D:$D,H$8,SrPersons!$J:$J,$C22) / COUNTIFS(SrPersons!$D:$D,H$8,SrPersons!$J:$J,$C22),0) -> 0 | I22: =IFERROR(SUMIFS(SrPersons!$Y:$Y,SrPersons!$D:$D,I$8,SrPersons!$J:$J,$C22) / COUNTIFS(SrPersons!$D:$D,I$8,SrPersons!$J:$J,$C22),0) -> 0 | J22: =IFERROR(SUMIFS(SrPersons!$R:$R,SrPersons!$D:$D,J$8,SrPersons!$J:$J,$C22) / COUNTIFS(SrPersons!$D:$D,J$8,SrPersons!$J:$J,$C22),0) -> 0 | K22: =IFERROR(SUMIFS(SrPersons!$Y:$Y,SrPersons!$D:$D,K$8,SrPersons!$J:$J,$C22) / COUNTIFS(SrPersons!$D:$D,K$8,SrPersons!$J:$J,$C22),0) -> 0 | L22: =IFERROR(SUMIFS(SrPersons!$R:$R,SrPersons!$D:$D,L$8,SrPersons!$J:$J,$C22) / COUNTIFS(SrPersons!$D:$D,L$8,SrPersons!$J:$J,$C22),0) -> 0 | M22: =IFERROR(SUMIFS(SrPersons!$Y:$Y,SrPersons!$D:$D,M$8,SrPersons!$J:$J,$C22) / COUNTIFS(SrPersons!$D:$D,M$8,SrPersons!$J:$J,$C22),0) -> 0 | N22: =IFERROR(SUMIFS(SrPersons!$R:$R,SrPersons!$D:$D,N$8,SrPersons!$J:$J,$C22) / COUNTIFS(SrPersons!$D:$D,N$8,SrPersons!$J:$J,$C22),0) -> 0 | O22: =IFERROR(SUMIFS(SrPersons!$Y:$Y,SrPersons!$D:$D,O$8,SrPersons!$J:$J,$C22) / COUNTIFS(SrPersons!$D:$D,O$8,SrPersons!$J:$J,$C22),0) -> 0 | P22: =IFERROR(SUMIFS(SrPersons!$R:$R,SrPersons!$D:$D,P$8,SrPersons!$J:$J,$C22) / COUNTIFS(SrPersons!$D:$D,P$8,SrPersons!$J:$J,$C22),0) -> 0 | Q22: =IFERROR(SUMIFS(SrPersons!$Y:$Y,SrPersons!$D:$D,Q$8,SrPersons!$J:$J,$C22) / COUNTIFS(SrPersons!$D:$D,Q$8,SrPersons!$J:$J,$C22),0) -> 0 | R22: =IFERROR(SUMIFS(SrPersons!$R:$R,SrPersons!$D:$D,R$8,SrPersons!$J:$J,$C22) / COUNTIFS(SrPersons!$D:$D,R$8,SrPersons!$J:$J,$C22),0) -> 0 | S22: =IFERROR(SUMIFS(SrPersons!$Y:$Y,SrPersons!$D:$D,S$8,SrPersons!$J:$J,$C22) / COUNTIFS(SrPersons!$D:$D,S$8,SrPersons!$J:$J,$C22),0) -> 0 | T22: =IFERROR(SUMIFS(SrPersons!$R:$R,SrPersons!$D:$D,T$8,SrPersons!$J:$J,$C22) / COUNTIFS(SrPersons!$D:$D,T$8,SrPersons!$J:$J,$C22),0) -> 0 | U22: =IFERROR(SUMIFS(SrPersons!$Y:$Y,SrPersons!$D:$D,U$8,SrPersons!$J:$J,$C22) / COUNTIFS(SrPersons!$D:$D,U$8,SrPersons!$J:$J,$C22),0) -> 0 | V22: =IFERROR(SUMIFS(SrPersons!$R:$R,SrPersons!$D:$D,V$8,SrPersons!$J:$J,$C22) / COUNTIFS(SrPersons!$D:$D,V$8,SrPersons!$J:$J,$C22),0) -> 0 | W22: =IFERROR(SUMIFS(SrPersons!$Y:$Y,SrPersons!$D:$D,W$8,SrPersons!$J:$J,$C22) / COUNTIFS(SrPersons!$D:$D,W$8,SrPersons!$J:$J,$C22),0) -> 0 | X22: =IFERROR(SUMIFS(SrPersons!$R:$R,SrPersons!$D:$D,X$8,SrPersons!$J:$J,$C22) / COUNTIFS(SrPersons!$D:$D,X$8,SrPersons!$J:$J,$C22),0) -> 0 | Y22: =IFERROR(SUMIFS(SrPersons!$Y:$Y,SrPersons!$D:$D,Y$8,SrPersons!$J:$J,$C22) / COUNTIFS(SrPersons!$D:$D,Y$8,SrPersons!$J:$J,$C22),0) -> 0 | Z22: =IFERROR(SUMIFS(SrPersons!$R:$R,SrPersons!$D:$D,Z$8,SrPersons!$J:$J,$C22) / COUNTIFS(SrPersons!$D:$D,Z$8,SrPersons!$J:$J,$C22),0) -> 0 | AA22: =IFERROR(SUMIFS(SrPersons!$Y:$Y,SrPersons!$D:$D,AA$8,SrPersons!$J:$J,$C22) / COUNTIFS(SrPersons!$D:$D,AA$8,SrPersons!$J:$J,$C22),0) -> 0 | AB22: 0 | AC22: 0 | AD22: 0
B23: 9 | D23: =IFERROR(SUMIFS(SrPersons!$AB:$AB,SrPersons!$D:$D,$H$8,SrPersons!$J:$J,$C23) / COUNTIFS(SrPersons!$D:$D,$H$8,SrPersons!$J:$J,$C23),"") ->  | H23: =IFERROR(SUMIFS(SrPersons!$R:$R,SrPersons!$D:$D,H$8,SrPersons!$J:$J,$C23) / COUNTIFS(SrPersons!$D:$D,H$8,SrPersons!$J:$J,$C23),0) -> 0 | I23: =IFERROR(SUMIFS(SrPersons!$Y:$Y,SrPersons!$D:$D,I$8,SrPersons!$J:$J,$C23) / COUNTIFS(SrPersons!$D:$D,I$8,SrPersons!$J:$J,$C23),0) -> 0 | J23: =IFERROR(SUMIFS(SrPersons!$R:$R,SrPersons!$D:$D,J$8,SrPersons!$J:$J,$C23) / COUNTIFS(SrPersons!$D:$D,J$8,SrPersons!$J:$J,$C23),0) -> 0 | K23: =IFERROR(SUMIFS(SrPersons!$Y:$Y,SrPersons!$D:$D,K$8,SrPersons!$J:$J,$C23) / COUNTIFS(SrPersons!$D:$D,K$8,SrPersons!$J:$J,$C23),0) -> 0 | L23: =IFERROR(SUMIFS(SrPersons!$R:$R,SrPersons!$D:$D,L$8,SrPersons!$J:$J,$C23) / COUNTIFS(SrPersons!$D:$D,L$8,SrPersons!$J:$J,$C23),0) -> 0 | M23: =IFERROR(SUMIFS(SrPersons!$Y:$Y,SrPersons!$D:$D,M$8,SrPersons!$J:$J,$C23) / COUNTIFS(SrPersons!$D:$D,M$8,SrPersons!$J:$J,$C23),0) -> 0 | N23: =IFERROR(SUMIFS(SrPersons!$R:$R,SrPersons!$D:$D,N$8,SrPersons!$J:$J,$C23) / COUNTIFS(SrPersons!$D:$D,N$8,SrPersons!$J:$J,$C23),0) -> 0 | O23: =IFERROR(SUMIFS(SrPersons!$Y:$Y,SrPersons!$D:$D,O$8,SrPersons!$J:$J,$C23) / COUNTIFS(SrPersons!$D:$D,O$8,SrPersons!$J:$J,$C23),0) -> 0 | P23: =IFERROR(SUMIFS(SrPersons!$R:$R,SrPersons!$D:$D,P$8,SrPersons!$J:$J,$C23) / COUNTIFS(SrPersons!$D:$D,P$8,SrPersons!$J:$J,$C23),0) -> 0 | Q23: =IFERROR(SUMIFS(SrPersons!$Y:$Y,SrPersons!$D:$D,Q$8,SrPersons!$J:$J,$C23) / COUNTIFS(SrPersons!$D:$D,Q$8,SrPersons!$J:$J,$C23),0) -> 0 | R23: =IFERROR(SUMIFS(SrPersons!$R:$R,SrPersons!$D:$D,R$8,SrPersons!$J:$J,$C23) / COUNTIFS(SrPersons!$D:$D,R$8,SrPersons!$J:$J,$C23),0) -> 0 | S23: =IFERROR(SUMIFS(SrPersons!$Y:$Y,SrPersons!$D:$D,S$8,SrPersons!$J:$J,$C23) / COUNTIFS(SrPersons!$D:$D,S$8,SrPersons!$J:$J,$C23),0) -> 0 | T23: =IFERROR(SUMIFS(SrPersons!$R:$R,SrPersons!$D:$D,T$8,SrPersons!$J:$J,$C23) / COUNTIFS(SrPersons!$D:$D,T$8,SrPersons!$J:$J,$C23),0) -> 0 | U23: =IFERROR(SUMIFS(SrPersons!$Y:$Y,SrPersons!$D:$D,U$8,SrPersons!$J:$J,$C23) / COUNTIFS(SrPersons!$D:$D,U$8,SrPersons!$J:$J,$C23),0) -> 0 | V23: =IFERROR(SUMIFS(SrPersons!$R:$R,SrPersons!$D:$D,V$8,SrPersons!$J:$J,$C23) / COUNTIFS(SrPersons!$D:$D,V$8,SrPersons!$J:$J,$C23),0) -> 0 | W23: =IFERROR(SUMIFS(SrPersons!$Y:$Y,SrPersons!$D:$D,W$8,SrPersons!$J:$J,$C23) / COUNTIFS(SrPersons!$D:$D,W$8,SrPersons!$J:$J,$C23),0) -> 0 | X23: =IFERROR(SUMIFS(SrPersons!$R:$R,SrPersons!$D:$D,X$8,SrPersons!$J:$J,$C23) / COUNTIFS(SrPersons!$D:$D,X$8,SrPersons!$J:$J,$C23),0) -> 0 | Y23: =IFERROR(SUMIFS(SrPersons!$Y:$Y,SrPersons!$D:$D,Y$8,SrPersons!$J:$J,$C23) / COUNTIFS(SrPersons!$D:$D,Y$8,SrPersons!$J:$J,$C23),0) -> 0 | Z23: =IFERROR(SUMIFS(SrPersons!$R:$R,SrPersons!$D:$D,Z$8,SrPersons!$J:$J,$C23) / COUNTIFS(SrPersons!$D:$D,Z$8,SrPersons!$J:$J,$C23),0) -> 0 | AA23: =IFERROR(SUMIFS(SrPersons!$Y:$Y,SrPersons!$D:$D,AA$8,SrPersons!$J:$J,$C23) / COUNTIFS(SrPersons!$D:$D,AA$8,SrPersons!$J:$J,$C23),0) -> 0 | AB23: 0 | AC23: 0 | AD23: 0
B24: 10 | D24: =IFERROR(SUMIFS(SrPersons!$AB:$AB,SrPersons!$D:$D,$H$8,SrPersons!$J:$J,$C24) / COUNTIFS(SrPersons!$D:$D,$H$8,SrPersons!$J:$J,$C24),"") ->  | H24: =IFERROR(SUMIFS(SrPersons!$R:$R,SrPersons!$D:$D,H$8,SrPersons!$J:$J,$C24) / COUNTIFS(SrPersons!$D:$D,H$8,SrPersons!$J:$J,$C24),0) -> 0 | I24: =IFERROR(SUMIFS(SrPersons!$Y:$Y,SrPersons!$D:$D,I$8,SrPersons!$J:$J,$C24) / COUNTIFS(SrPersons!$D:$D,I$8,SrPersons!$J:$J,$C24),0) -> 0 | J24: =IFERROR(SUMIFS(SrPersons!$R:$R,SrPersons!$D:$D,J$8,SrPersons!$J:$J,$C24) / COUNTIFS(SrPersons!$D:$D,J$8,SrPersons!$J:$J,$C24),0) -> 0 | K24: =IFERROR(SUMIFS(SrPersons!$Y:$Y,SrPersons!$D:$D,K$8,SrPersons!$J:$J,$C24) / COUNTIFS(SrPersons!$D:$D,K$8,SrPersons!$J:$J,$C24),0) -> 0 | L24: =IFERROR(SUMIFS(SrPersons!$R:$R,SrPersons!$D:$D,L$8,SrPersons!$J:$J,$C24) / COUNTIFS(SrPersons!$D:$D,L$8,SrPersons!$J:$J,$C24),0) -> 0 | M24: =IFERROR(SUMIFS(SrPersons!$Y:$Y,SrPersons!$D:$D,M$8,SrPersons!$J:$J,$C24) / COUNTIFS(SrPersons!$D:$D,M$8,SrPersons!$J:$J,$C24),0) -> 0 | N24: =IFERROR(SUMIFS(SrPersons!$R:$R,SrPersons!$D:$D,N$8,SrPersons!$J:$J,$C24) / COUNTIFS(SrPersons!$D:$D,N$8,SrPersons!$J:$J,$C24),0) -> 0 | O24: =IFERROR(SUMIFS(SrPersons!$Y:$Y,SrPersons!$D:$D,O$8,SrPersons!$J:$J,$C24) / COUNTIFS(SrPersons!$D:$D,O$8,SrPersons!$J:$J,$C24),0) -> 0 | P24: =IFERROR(SUMIFS(SrPersons!$R:$R,SrPersons!$D:$D,P$8,SrPersons!$J:$J,$C24) / COUNTIFS(SrPersons!$D:$D,P$8,SrPersons!$J:$J,$C24),0) -> 0 | Q24: =IFERROR(SUMIFS(SrPersons!$Y:$Y,SrPersons!$D:$D,Q$8,SrPersons!$J:$J,$C24) / COUNTIFS(SrPersons!$D:$D,Q$8,SrPersons!$J:$J,$C24),0) -> 0 | R24: =IFERROR(SUMIFS(SrPersons!$R:$R,SrPersons!$D:$D,R$8,SrPersons!$J:$J,$C24) / COUNTIFS(SrPersons!$D:$D,R$8,SrPersons!$J:$J,$C24),0) -> 0 | S24: =IFERROR(SUMIFS(SrPersons!$Y:$Y,SrPersons!$D:$D,S$8,SrPersons!$J:$J,$C24) / COUNTIFS(SrPersons!$D:$D,S$8,SrPersons!$J:$J,$C24),0) -> 0 | T24: =IFERROR(SUMIFS(SrPersons!$R:$R,SrPersons!$D:$D,T$8,SrPersons!$J:$J,$C24) / COUNTIFS(SrPersons!$D:$D,T$8,SrPersons!$J:$J,$C24),0) -> 0 | U24: =IFERROR(SUMIFS(SrPersons!$Y:$Y,SrPersons!$D:$D,U$8,SrPersons!$J:$J,$C24) / COUNTIFS(SrPersons!$D:$D,U$8,SrPersons!$J:$J,$C24),0) -> 0 | V24: =IFERROR(SUMIFS(SrPersons!$R:$R,SrPersons!$D:$D,V$8,SrPersons!$J:$J,$C24) / COUNTIFS(SrPersons!$D:$D,V$8,SrPersons!$J:$J,$C24),0) -> 0 | W24: =IFERROR(SUMIFS(SrPersons!$Y:$Y,SrPersons!$D:$D,W$8,SrPersons!$J:$J,$C24) / COUNTIFS(SrPersons!$D:$D,W$8,SrPersons!$J:$J,$C24),0) -> 0 | X24: =IFERROR(SUMIFS(SrPersons!$R:$R,SrPersons!$D:$D,X$8,SrPersons!$J:$J,$C24) / COUNTIFS(SrPersons!$D:$D,X$8,SrPersons!$J:$J,$C24),0) -> 0 | Y24: =IFERROR(SUMIFS(SrPersons!$Y:$Y,SrPersons!$D:$D,Y$8,SrPersons!$J:$J,$C24) / COUNTIFS(SrPersons!$D:$D,Y$8,SrPersons!$J:$J,$C24),0) -> 0 | Z24: =IFERROR(SUMIFS(SrPersons!$R:$R,SrPersons!$D:$D,Z$8,SrPersons!$J:$J,$C24) / COUNTIFS(SrPersons!$D:$D,Z$8,SrPersons!$J:$J,$C24),0) -> 0 | AA24: =IFERROR(SUMIFS(SrPersons!$Y:$Y,SrPersons!$D:$D,AA$8,SrPersons!$J:$J,$C24) / COUNTIFS(SrPersons!$D:$D,AA$8,SrPersons!$J:$J,$C24),0) -> 0 | AB24: 0 | AC24: 0 | AD24: =SUM(AB24+AC24) -> 0
B25: 11 | D25: =IFERROR(SUMIFS(SrPersons!$AB:$AB,SrPersons!$D:$D,$H$8,SrPersons!$J:$J,$C25) / COUNTIFS(SrPersons!$D:$D,$H$8,SrPersons!$J:$J,$C25),"") ->  | H25: =IFERROR(SUMIFS(SrPersons!$R:$R,SrPersons!$D:$D,H$8,SrPersons!$J:$J,$C25) / COUNTIFS(SrPersons!$D:$D,H$8,SrPersons!$J:$J,$C25),0) -> 0 | I25: =IFERROR(SUMIFS(SrPersons!$Y:$Y,SrPersons!$D:$D,I$8,SrPersons!$J:$J,$C25) / COUNTIFS(SrPersons!$D:$D,I$8,SrPersons!$J:$J,$C25),0) -> 0 | J25: =IFERROR(SUMIFS(SrPersons!$R:$R,SrPersons!$D:$D,J$8,SrPersons!$J:$J,$C25) / COUNTIFS(SrPersons!$D:$D,J$8,SrPersons!$J:$J,$C25),0) -> 0 | K25: =IFERROR(SUMIFS(SrPersons!$Y:$Y,SrPersons!$D:$D,K$8,SrPersons!$J:$J,$C25) / COUNTIFS(SrPersons!$D:$D,K$8,SrPersons!$J:$J,$C25),0) -> 0 | L25: =IFERROR(SUMIFS(SrPersons!$R:$R,SrPersons!$D:$D,L$8,SrPersons!$J:$J,$C25) / COUNTIFS(SrPersons!$D:$D,L$8,SrPersons!$J:$J,$C25),0) -> 0 | M25: =IFERROR(SUMIFS(SrPersons!$Y:$Y,SrPersons!$D:$D,M$8,SrPersons!$J:$J,$C25) / COUNTIFS(SrPersons!$D:$D,M$8,SrPersons!$J:$J,$C25),0) -> 0 | N25: =IFERROR(SUMIFS(SrPersons!$R:$R,SrPersons!$D:$D,N$8,SrPersons!$J:$J,$C25) / COUNTIFS(SrPersons!$D:$D,N$8,SrPersons!$J:$J,$C25),0) -> 0 | O25: =IFERROR(SUMIFS(SrPersons!$Y:$Y,SrPersons!$D:$D,O$8,SrPersons!$J:$J,$C25) / COUNTIFS(SrPersons!$D:$D,O$8,SrPersons!$J:$J,$C25),0) -> 0 | P25: =IFERROR(SUMIFS(SrPersons!$R:$R,SrPersons!$D:$D,P$8,SrPersons!$J:$J,$C25) / COUNTIFS(SrPersons!$D:$D,P$8,SrPersons!$J:$J,$C25),0) -> 0 | Q25: =IFERROR(SUMIFS(SrPersons!$Y:$Y,SrPersons!$D:$D,Q$8,SrPersons!$J:$J,$C25) / COUNTIFS(SrPersons!$D:$D,Q$8,SrPersons!$J:$J,$C25),0) -> 0 | R25: =IFERROR(SUMIFS(SrPersons!$R:$R,SrPersons!$D:$D,R$8,SrPersons!$J:$J,$C25) / COUNTIFS(SrPersons!$D:$D,R$8,SrPersons!$J:$J,$C25),0) -> 0 | S25: =IFERROR(SUMIFS(SrPersons!$Y:$Y,SrPersons!$D:$D,S$8,SrPersons!$J:$J,$C25) / COUNTIFS(SrPersons!$D:$D,S$8,SrPersons!$J:$J,$C25),0) -> 0 | T25: =IFERROR(SUMIFS(SrPersons!$R:$R,SrPersons!$D:$D,T$8,SrPersons!$J:$J,$C25) / COUNTIFS(SrPersons!$D:$D,T$8,SrPersons!$J:$J,$C25),0) -> 0 | U25: =IFERROR(SUMIFS(SrPersons!$Y:$Y,SrPersons!$D:$D,U$8,SrPersons!$J:$J,$C25) / COUNTIFS(SrPersons!$D:$D,U$8,SrPersons!$J:$J,$C25),0) -> 0 | V25: =IFERROR(SUMIFS(SrPersons!$R:$R,SrPersons!$D:$D,V$8,SrPersons!$J:$J,$C25) / COUNTIFS(SrPersons!$D:$D,V$8,SrPersons!$J:$J,$C25),0) -> 0 | W25: =IFERROR(SUMIFS(SrPersons!$Y:$Y,SrPersons!$D:$D,W$8,SrPersons!$J:$J,$C25) / COUNTIFS(SrPersons!$D:$D,W$8,SrPersons!$J:$J,$C25),0) -> 0 | X25: =IFERROR(SUMIFS(SrPersons!$R:$R,SrPersons!$D:$D,X$8,SrPersons!$J:$J,$C25) / COUNTIFS(SrPersons!$D:$D,X$8,SrPersons!$J:$J,$C25),0) -> 0 | Y25: =IFERROR(SUMIFS(SrPersons!$Y:$Y,SrPersons!$D:$D,Y$8,SrPersons!$J:$J,$C25) / COUNTIFS(SrPersons!$D:$D,Y$8,SrPersons!$J:$J,$C25),0) -> 0 | Z25: =IFERROR(SUMIFS(SrPersons!$R:$R,SrPersons!$D:$D,Z$8,SrPersons!$J:$J,$C25) / COUNTIFS(SrPersons!$D:$D,Z$8,SrPersons!$J:$J,$C25),0) -> 0 | AA25: =IFERROR(SUMIFS(SrPersons!$Y:$Y,SrPersons!$D:$D,AA$8,SrPersons!$J:$J,$C25) / COUNTIFS(SrPersons!$D:$D,AA$8,SrPersons!$J:$J,$C25),0) -> 0 | AB25: 0 | AC25: 0 | AD25: 0
B26: 12 | D26: =IFERROR(SUMIFS(SrPersons!$AB:$AB,SrPersons!$D:$D,$H$8,SrPersons!$J:$J,$C26) / COUNTIFS(SrPersons!$D:$D,$H$8,SrPersons!$J:$J,$C26),"") ->  | H26: =IFERROR(SUMIFS(SrPersons!$R:$R,SrPersons!$D:$D,H$8,SrPersons!$J:$J,$C26) / COUNTIFS(SrPersons!$D:$D,H$8,SrPersons!$J:$J,$C26),0) -> 0 | I26: =IFERROR(SUMIFS(SrPersons!$Y:$Y,SrPersons!$D:$D,I$8,SrPersons!$J:$J,$C26) / COUNTIFS(SrPersons!$D:$D,I$8,SrPersons!$J:$J,$C26),0) -> 0 | J26: =IFERROR(SUMIFS(SrPersons!$R:$R,SrPersons!$D:$D,J$8,SrPersons!$J:$J,$C26) / COUNTIFS(SrPersons!$D:$D,J$8,SrPersons!$J:$J,$C26),0) -> 0 | K26: =IFERROR(SUMIFS(SrPersons!$Y:$Y,SrPersons!$D:$D,K$8,SrPersons!$J:$J,$C26) / COUNTIFS(SrPersons!$D:$D,K$8,SrPersons!$J:$J,$C26),0) -> 0 | L26: =IFERROR(SUMIFS(SrPersons!$R:$R,SrPersons!$D:$D,L$8,SrPersons!$J:$J,$C26) / COUNTIFS(SrPersons!$D:$D,L$8,SrPersons!$J:$J,$C26),0) -> 0 | M26: =IFERROR(SUMIFS(SrPersons!$Y:$Y,SrPersons!$D:$D,M$8,SrPersons!$J:$J,$C26) / COUNTIFS(SrPersons!$D:$D,M$8,SrPersons!$J:$J,$C26),0) -> 0 | N26: =IFERROR(SUMIFS(SrPersons!$R:$R,SrPersons!$D:$D,N$8,SrPersons!$J:$J,$C26) / COUNTIFS(SrPersons!$D:$D,N$8,SrPersons!$J:$J,$C26),0) -> 0 | O26: =IFERROR(SUMIFS(SrPersons!$Y:$Y,SrPersons!$D:$D,O$8,SrPersons!$J:$J,$C26) / COUNTIFS(SrPersons!$D:$D,O$8,SrPersons!$J:$J,$C26),0) -> 0 | P26: =IFERROR(SUMIFS(SrPersons!$R:$R,SrPersons!$D:$D,P$8,SrPersons!$J:$J,$C26) / COUNTIFS(SrPersons!$D:$D,P$8,SrPersons!$J:$J,$C26),0) -> 0 | Q26: =IFERROR(SUMIFS(SrPersons!$Y:$Y,SrPersons!$D:$D,Q$8,SrPersons!$J:$J,$C26) / COUNTIFS(SrPersons!$D:$D,Q$8,SrPersons!$J:$J,$C26),0) -> 0 | R26: =IFERROR(SUMIFS(SrPersons!$R:$R,SrPersons!$D:$D,R$8,SrPersons!$J:$J,$C26) / COUNTIFS(SrPersons!$D:$D,R$8,SrPersons!$J:$J,$C26),0) -> 0 | S26: =IFERROR(SUMIFS(SrPersons!$Y:$Y,SrPersons!$D:$D,S$8,SrPersons!$J:$J,$C26) / COUNTIFS(SrPersons!$D:$D,S$8,SrPersons!$J:$J,$C26),0) -> 0 | T26: =IFERROR(SUMIFS(SrPersons!$R:$R,SrPersons!$D:$D,T$8,SrPersons!$J:$J,$C26) / COUNTIFS(SrPersons!$D:$D,T$8,SrPersons!$J:$J,$C26),0) -> 0 | U26: =IFERROR(SUMIFS(SrPersons!$Y:$Y,SrPersons!$D:$D,U$8,SrPersons!$J:$J,$C26) / COUNTIFS(SrPersons!$D:$D,U$8,SrPersons!$J:$J,$C26),0) -> 0 | V26: =IFERROR(SUMIFS(SrPersons!$R:$R,SrPersons!$D:$D,V$8,SrPersons!$J:$J,$C26) / COUNTIFS(SrPersons!$D:$D,V$8,SrPersons!$J:$J,$C26),0) -> 0 | W26: =IFERROR(SUMIFS(SrPersons!$Y:$Y,SrPersons!$D:$D,W$8,SrPersons!$J:$J,$C26) / COUNTIFS(SrPersons!$D:$D,W$8,SrPersons!$J:$J,$C26),0) -> 0 | X26: =IFERROR(SUMIFS(SrPersons!$R:$R,SrPersons!$D:$D,X$8,SrPersons!$J:$J,$C26) / COUNTIFS(SrPersons!$D:$D,X$8,SrPersons!$J:$J,$C26),0) -> 0 | Y26: =IFERROR(SUMIFS(SrPersons!$Y:$Y,SrPersons!$D:$D,Y$8,SrPersons!$J:$J,$C26) / COUNTIFS(SrPersons!$D:$D,Y$8,SrPersons!$J:$J,$C26),0) -> 0 | Z26: =IFERROR(SUMIFS(SrPersons!$R:$R,SrPersons!$D:$D,Z$8,SrPersons!$J:$J,$C26) / COUNTIFS(SrPersons!$D:$D,Z$8,SrPersons!$J:$J,$C26),0) -> 0 | AA26: =IFERROR(SUMIFS(SrPersons!$Y:$Y,SrPersons!$D:$D,AA$8,SrPersons!$J:$J,$C26) / COUNTIFS(SrPersons!$D:$D,AA$8,SrPersons!$J:$J,$C26),0) -> 0 | AB26: 0 | AC26: 0 | AD26: 0
B27: 13 | D27: =IFERROR(SUMIFS(SrPersons!$AB:$AB,SrPersons!$D:$D,$H$8,SrPersons!$J:$J,$C27) / COUNTIFS(SrPersons!$D:$D,$H$8,SrPersons!$J:$J,$C27),"") ->  | H27: =IFERROR(SUMIFS(SrPersons!$R:$R,SrPersons!$D:$D,H$8,SrPersons!$J:$J,$C27) / COUNTIFS(SrPersons!$D:$D,H$8,SrPersons!$J:$J,$C27),0) -> 0 | I27: =IFERROR(SUMIFS(SrPersons!$Y:$Y,SrPersons!$D:$D,I$8,SrPersons!$J:$J,$C27) / COUNTIFS(SrPersons!$D:$D,I$8,SrPersons!$J:$J,$C27),0) -> 0 | J27: =IFERROR(SUMIFS(SrPersons!$R:$R,SrPersons!$D:$D,J$8,SrPersons!$J:$J,$C27) / COUNTIFS(SrPersons!$D:$D,J$8,SrPersons!$J:$J,$C27),0) -> 0 | K27: =IFERROR(SUMIFS(SrPersons!$Y:$Y,SrPersons!$D:$D,K$8,SrPersons!$J:$J,$C27) / COUNTIFS(SrPersons!$D:$D,K$8,SrPersons!$J:$J,$C27),0) -> 0 | L27: =IFERROR(SUMIFS(SrPersons!$R:$R,SrPersons!$D:$D,L$8,SrPersons!$J:$J,$C27) / COUNTIFS(SrPersons!$D:$D,L$8,SrPersons!$J:$J,$C27),0) -> 0 | M27: =IFERROR(SUMIFS(SrPersons!$Y:$Y,SrPersons!$D:$D,M$8,SrPersons!$J:$J,$C27) / COUNTIFS(SrPersons!$D:$D,M$8,SrPersons!$J:$J,$C27),0) -> 0 | N27: =IFERROR(SUMIFS(SrPersons!$R:$R,SrPersons!$D:$D,N$8,SrPersons!$J:$J,$C27) / COUNTIFS(SrPersons!$D:$D,N$8,SrPersons!$J:$J,$C27),0) -> 0 | O27: =IFERROR(SUMIFS(SrPersons!$Y:$Y,SrPersons!$D:$D,O$8,SrPersons!$J:$J,$C27) / COUNTIFS(SrPersons!$D:$D,O$8,SrPersons!$J:$J,$C27),0) -> 0 | P27: =IFERROR(SUMIFS(SrPersons!$R:$R,SrPersons!$D:$D,P$8,SrPersons!$J:$J,$C27) / COUNTIFS(SrPersons!$D:$D,P$8,SrPersons!$J:$J,$C27),0) -> 0 | Q27: =IFERROR(SUMIFS(SrPersons!$Y:$Y,SrPersons!$D:$D,Q$8,SrPersons!$J:$J,$C27) / COUNTIFS(SrPersons!$D:$D,Q$8,SrPersons!$J:$J,$C27),0) -> 0 | R27: =IFERROR(SUMIFS(SrPersons!$R:$R,SrPersons!$D:$D,R$8,SrPersons!$J:$J,$C27) / COUNTIFS(SrPersons!$D:$D,R$8,SrPersons!$J:$J,$C27),0) -> 0 | S27: =IFERROR(SUMIFS(SrPersons!$Y:$Y,SrPersons!$D:$D,S$8,SrPersons!$J:$J,$C27) / COUNTIFS(SrPersons!$D:$D,S$8,SrPersons!$J:$J,$C27),0) -> 0 | T27: =IFERROR(SUMIFS(SrPersons!$R:$R,SrPersons!$D:$D,T$8,SrPersons!$J:$J,$C27) / COUNTIFS(SrPersons!$D:$D,T$8,SrPersons!$J:$J,$C27),0) -> 0 | U27: =IFERROR(SUMIFS(SrPersons!$Y:$Y,SrPersons!$D:$D,U$8,SrPersons!$J:$J,$C27) / COUNTIFS(SrPersons!$D:$D,U$8,SrPersons!$J:$J,$C27),0) -> 0 | V27: =IFERROR(SUMIFS(SrPersons!$R:$R,SrPersons!$D:$D,V$8,SrPersons!$J:$J,$C27) / COUNTIFS(SrPersons!$D:$D,V$8,SrPersons!$J:$J,$C27),0) -> 0 | W27: =IFERROR(SUMIFS(SrPersons!$Y:$Y,SrPersons!$D:$D,W$8,SrPersons!$J:$J,$C27) / COUNTIFS(SrPersons!$D:$D,W$8,SrPersons!$J:$J,$C27),0) -> 0 | X27: =IFERROR(SUMIFS(SrPersons!$R:$R,SrPersons!$D:$D,X$8,SrPersons!$J:$J,$C27) / COUNTIFS(SrPersons!$D:$D,X$8,SrPersons!$J:$J,$C27),0) -> 0 | Y27: =IFERROR(SUMIFS(SrPersons!$Y:$Y,SrPersons!$D:$D,Y$8,SrPersons!$J:$J,$C27) / COUNTIFS(SrPersons!$D:$D,Y$8,SrPersons!$J:$J,$C27),0) -> 0 | Z27: =IFERROR(SUMIFS(SrPersons!$R:$R,SrPersons!$D:$D,Z$8,SrPersons!$J:$J,$C27) / COUNTIFS(SrPersons!$D:$D,Z$8,SrPersons!$J:$J,$C27),0) -> 0 | AA27: =IFERROR(SUMIFS(SrPersons!$Y:$Y,SrPersons!$D:$D,AA$8,SrPersons!$J:$J,$C27) / COUNTIFS(SrPersons!$D:$D,AA$8,SrPersons!$J:$J,$C27),0) -> 0 | AB27: 0 | AC27: 0 | AD27: 0
B28: 14 | D28: =IFERROR(SUMIFS(SrPersons!$AB:$AB,SrPersons!$D:$D,$H$8,SrPersons!$J:$J,$C28) / COUNTIFS(SrPersons!$D:$D,$H$8,SrPersons!$J:$J,$C28),"") ->  | H28: =IFERROR(SUMIFS(SrPersons!$R:$R,SrPersons!$D:$D,H$8,SrPersons!$J:$J,$C28) / COUNTIFS(SrPersons!$D:$D,H$8,SrPersons!$J:$J,$C28),0) -> 0 | I28: =IFERROR(SUMIFS(SrPersons!$Y:$Y,SrPersons!$D:$D,I$8,SrPersons!$J:$J,$C28) / COUNTIFS(SrPersons!$D:$D,I$8,SrPersons!$J:$J,$C28),0) -> 0 | J28: =IFERROR(SUMIFS(SrPersons!$R:$R,SrPersons!$D:$D,J$8,SrPersons!$J:$J,$C28) / COUNTIFS(SrPersons!$D:$D,J$8,SrPersons!$J:$J,$C28),0) -> 0 | K28: =IFERROR(SUMIFS(SrPersons!$Y:$Y,SrPersons!$D:$D,K$8,SrPersons!$J:$J,$C28) / COUNTIFS(SrPersons!$D:$D,K$8,SrPersons!$J:$J,$C28),0) -> 0 | L28: =IFERROR(SUMIFS(SrPersons!$R:$R,SrPersons!$D:$D,L$8,SrPersons!$J:$J,$C28) / COUNTIFS(SrPersons!$D:$D,L$8,SrPersons!$J:$J,$C28),0) -> 0 | M28: =IFERROR(SUMIFS(SrPersons!$Y:$Y,SrPersons!$D:$D,M$8,SrPersons!$J:$J,$C28) / COUNTIFS(SrPersons!$D:$D,M$8,SrPersons!$J:$J,$C28),0) -> 0 | N28: =IFERROR(SUMIFS(SrPersons!$R:$R,SrPersons!$D:$D,N$8,SrPersons!$J:$J,$C28) / COUNTIFS(SrPersons!$D:$D,N$8,SrPersons!$J:$J,$C28),0) -> 0 | O28: =IFERROR(SUMIFS(SrPersons!$Y:$Y,SrPersons!$D:$D,O$8,SrPersons!$J:$J,$C28) / COUNTIFS(SrPersons!$D:$D,O$8,SrPersons!$J:$J,$C28),0) -> 0 | P28: =IFERROR(SUMIFS(SrPersons!$R:$R,SrPersons!$D:$D,P$8,SrPersons!$J:$J,$C28) / COUNTIFS(SrPersons!$D:$D,P$8,SrPersons!$J:$J,$C28),0) -> 0 | Q28: =IFERROR(SUMIFS(SrPersons!$Y:$Y,SrPersons!$D:$D,Q$8,SrPersons!$J:$J,$C28) / COUNTIFS(SrPersons!$D:$D,Q$8,SrPersons!$J:$J,$C28),0) -> 0 | R28: =IFERROR(SUMIFS(SrPersons!$R:$R,SrPersons!$D:$D,R$8,SrPersons!$J:$J,$C28) / COUNTIFS(SrPersons!$D:$D,R$8,SrPersons!$J:$J,$C28),0) -> 0 | S28: =IFERROR(SUMIFS(SrPersons!$Y:$Y,SrPersons!$D:$D,S$8,SrPersons!$J:$J,$C28) / COUNTIFS(SrPersons!$D:$D,S$8,SrPersons!$J:$J,$C28),0) -> 0 | T28: =IFERROR(SUMIFS(SrPersons!$R:$R,SrPersons!$D:$D,T$8,SrPersons!$J:$J,$C28) / COUNTIFS(SrPersons!$D:$D,T$8,SrPersons!$J:$J,$C28),0) -> 0 | U28: =IFERROR(SUMIFS(SrPersons!$Y:$Y,SrPersons!$D:$D,U$8,SrPersons!$J:$J,$C28) / COUNTIFS(SrPersons!$D:$D,U$8,SrPersons!$J:$J,$C28),0) -> 0 | V28: =IFERROR(SUMIFS(SrPersons!$R:$R,SrPersons!$D:$D,V$8,SrPersons!$J:$J,$C28) / COUNTIFS(SrPersons!$D:$D,V$8,SrPersons!$J:$J,$C28),0) -> 0 | W28: =IFERROR(SUMIFS(SrPersons!$Y:$Y,SrPersons!$D:$D,W$8,SrPersons!$J:$J,$C28) / COUNTIFS(SrPersons!$D:$D,W$8,SrPersons!$J:$J,$C28),0) -> 0 | X28: =IFERROR(SUMIFS(SrPersons!$R:$R,SrPersons!$D:$D,X$8,SrPersons!$J:$J,$C28) / COUNTIFS(SrPersons!$D:$D,X$8,SrPersons!$J:$J,$C28),0) -> 0 | Y28: =IFERROR(SUMIFS(SrPersons!$Y:$Y,SrPersons!$D:$D,Y$8,SrPersons!$J:$J,$C28) / COUNTIFS(SrPersons!$D:$D,Y$8,SrPersons!$J:$J,$C28),0) -> 0 | Z28: =IFERROR(SUMIFS(SrPersons!$R:$R,SrPersons!$D:$D,Z$8,SrPersons!$J:$J,$C28) / COUNTIFS(SrPersons!$D:$D,Z$8,SrPersons!$J:$J,$C28),0) -> 0 | AA28: =IFERROR(SUMIFS(SrPersons!$Y:$Y,SrPersons!$D:$D,AA$8,SrPersons!$J:$J,$C28) / COUNTIFS(SrPersons!$D:$D,AA$8,SrPersons!$J:$J,$C28),0) -> 0 | AB28: 0 | AC28: 0 | AD28: 0
B29: 15 | D29: =IFERROR(SUMIFS(SrPersons!$AB:$AB,SrPersons!$D:$D,$H$8,SrPersons!$J:$J,$C29) / COUNTIFS(SrPersons!$D:$D,$H$8,SrPersons!$J:$J,$C29),"") ->  | H29: =IFERROR(SUMIFS(SrPersons!$R:$R,SrPersons!$D:$D,H$8,SrPersons!$J:$J,$C29) / COUNTIFS(SrPersons!$D:$D,H$8,SrPersons!$J:$J,$C29),0) -> 0 | I29: =IFERROR(SUMIFS(SrPersons!$Y:$Y,SrPersons!$D:$D,I$8,SrPersons!$J:$J,$C29) / COUNTIFS(SrPersons!$D:$D,I$8,SrPersons!$J:$J,$C29),0) -> 0 | J29: =IFERROR(SUMIFS(SrPersons!$R:$R,SrPersons!$D:$D,J$8,SrPersons!$J:$J,$C29) / COUNTIFS(SrPersons!$D:$D,J$8,SrPersons!$J:$J,$C29),0) -> 0 | K29: =IFERROR(SUMIFS(SrPersons!$Y:$Y,SrPersons!$D:$D,K$8,SrPersons!$J:$J,$C29) / COUNTIFS(SrPersons!$D:$D,K$8,SrPersons!$J:$J,$C29),0) -> 0 | L29: =IFERROR(SUMIFS(SrPersons!$R:$R,SrPersons!$D:$D,L$8,SrPersons!$J:$J,$C29) / COUNTIFS(SrPersons!$D:$D,L$8,SrPersons!$J:$J,$C29),0) -> 0 | M29: =IFERROR(SUMIFS(SrPersons!$Y:$Y,SrPersons!$D:$D,M$8,SrPersons!$J:$J,$C29) / COUNTIFS(SrPersons!$D:$D,M$8,SrPersons!$J:$J,$C29),0) -> 0 | N29: =IFERROR(SUMIFS(SrPersons!$R:$R,SrPersons!$D:$D,N$8,SrPersons!$J:$J,$C29) / COUNTIFS(SrPersons!$D:$D,N$8,SrPersons!$J:$J,$C29),0) -> 0 | O29: =IFERROR(SUMIFS(SrPersons!$Y:$Y,SrPersons!$D:$D,O$8,SrPersons!$J:$J,$C29) / COUNTIFS(SrPersons!$D:$D,O$8,SrPersons!$J:$J,$C29),0) -> 0 | P29: =IFERROR(SUMIFS(SrPersons!$R:$R,SrPersons!$D:$D,P$8,SrPersons!$J:$J,$C29) / COUNTIFS(SrPersons!$D:$D,P$8,SrPersons!$J:$J,$C29),0) -> 0 | Q29: =IFERROR(SUMIFS(SrPersons!$Y:$Y,SrPersons!$D:$D,Q$8,SrPersons!$J:$J,$C29) / COUNTIFS(SrPersons!$D:$D,Q$8,SrPersons!$J:$J,$C29),0) -> 0 | R29: =IFERROR(SUMIFS(SrPersons!$R:$R,SrPersons!$D:$D,R$8,SrPersons!$J:$J,$C29) / COUNTIFS(SrPersons!$D:$D,R$8,SrPersons!$J:$J,$C29),0) -> 0 | S29: =IFERROR(SUMIFS(SrPersons!$Y:$Y,SrPersons!$D:$D,S$8,SrPersons!$J:$J,$C29) / COUNTIFS(SrPersons!$D:$D,S$8,SrPersons!$J:$J,$C29),0) -> 0 | T29: =IFERROR(SUMIFS(SrPersons!$R:$R,SrPersons!$D:$D,T$8,SrPersons!$J:$J,$C29) / COUNTIFS(SrPersons!$D:$D,T$8,SrPersons!$J:$J,$C29),0) -> 0 | U29: =IFERROR(SUMIFS(SrPersons!$Y:$Y,SrPersons!$D:$D,U$8,SrPersons!$J:$J,$C29) / COUNTIFS(SrPersons!$D:$D,U$8,SrPersons!$J:$J,$C29),0) -> 0 | V29: =IFERROR(SUMIFS(SrPersons!$R:$R,SrPersons!$D:$D,V$8,SrPersons!$J:$J,$C29) / COUNTIFS(SrPersons!$D:$D,V$8,SrPersons!$J:$J,$C29),0) -> 0 | W29: =IFERROR(SUMIFS(SrPersons!$Y:$Y,SrPersons!$D:$D,W$8,SrPersons!$J:$J,$C29) / COUNTIFS(SrPersons!$D:$D,W$8,SrPersons!$J:$J,$C29),0) -> 0 | X29: =IFERROR(SUMIFS(SrPersons!$R:$R,SrPersons!$D:$D,X$8,SrPersons!$J:$J,$C29) / COUNTIFS(SrPersons!$D:$D,X$8,SrPersons!$J:$J,$C29),0) -> 0 | Y29: =IFERROR(SUMIFS(SrPersons!$Y:$Y,SrPersons!$D:$D,Y$8,SrPersons!$J:$J,$C29) / COUNTIFS(SrPersons!$D:$D,Y$8,SrPersons!$J:$J,$C29),0) -> 0 | Z29: =IFERROR(SUMIFS(SrPersons!$R:$R,SrPersons!$D:$D,Z$8,SrPersons!$J:$J,$C29) / COUNTIFS(SrPersons!$D:$D,Z$8,SrPersons!$J:$J,$C29),0) -> 0 | AA29: =IFERROR(SUMIFS(SrPersons!$Y:$Y,SrPersons!$D:$D,AA$8,SrPersons!$J:$J,$C29) / COUNTIFS(SrPersons!$D:$D,AA$8,SrPersons!$J:$J,$C29),0) -> 0 | AB29: 0 | AC29: 0 | AD29: 0
B30: 16 | D30: =IFERROR(SUMIFS(SrPersons!$AB:$AB,SrPersons!$D:$D,$H$8,SrPersons!$J:$J,$C30) / COUNTIFS(SrPersons!$D:$D,$H$8,SrPersons!$J:$J,$C30),"") ->  | H30: =IFERROR(SUMIFS(SrPersons!$R:$R,SrPersons!$D:$D,H$8,SrPersons!$J:$J,$C30) / COUNTIFS(SrPersons!$D:$D,H$8,SrPersons!$J:$J,$C30),0) -> 0 | I30: =IFERROR(SUMIFS(SrPersons!$Y:$Y,SrPersons!$D:$D,I$8,SrPersons!$J:$J,$C30) / COUNTIFS(SrPersons!$D:$D,I$8,SrPersons!$J:$J,$C30),0) -> 0 | J30: =IFERROR(SUMIFS(SrPersons!$R:$R,SrPersons!$D:$D,J$8,SrPersons!$J:$J,$C30) / COUNTIFS(SrPersons!$D:$D,J$8,SrPersons!$J:$J,$C30),0) -> 0 | K30: =IFERROR(SUMIFS(SrPersons!$Y:$Y,SrPersons!$D:$D,K$8,SrPersons!$J:$J,$C30) / COUNTIFS(SrPersons!$D:$D,K$8,SrPersons!$J:$J,$C30),0) -> 0 | L30: =IFERROR(SUMIFS(SrPersons!$R:$R,SrPersons!$D:$D,L$8,SrPersons!$J:$J,$C30) / COUNTIFS(SrPersons!$D:$D,L$8,SrPersons!$J:$J,$C30),0) -> 0 | M30: =IFERROR(SUMIFS(SrPersons!$Y:$Y,SrPersons!$D:$D,M$8,SrPersons!$J:$J,$C30) / COUNTIFS(SrPersons!$D:$D,M$8,SrPersons!$J:$J,$C30),0) -> 0 | N30: =IFERROR(SUMIFS(SrPersons!$R:$R,SrPersons!$D:$D,N$8,SrPersons!$J:$J,$C30) / COUNTIFS(SrPersons!$D:$D,N$8,SrPersons!$J:$J,$C30),0) -> 0 | O30: =IFERROR(SUMIFS(SrPersons!$Y:$Y,SrPersons!$D:$D,O$8,SrPersons!$J:$J,$C30) / COUNTIFS(SrPersons!$D:$D,O$8,SrPersons!$J:$J,$C30),0) -> 0 | P30: =IFERROR(SUMIFS(SrPersons!$R:$R,SrPersons!$D:$D,P$8,SrPersons!$J:$J,$C30) / COUNTIFS(SrPersons!$D:$D,P$8,SrPersons!$J:$J,$C30),0) -> 0 | Q30: =IFERROR(SUMIFS(SrPersons!$Y:$Y,SrPersons!$D:$D,Q$8,SrPersons!$J:$J,$C30) / COUNTIFS(SrPersons!$D:$D,Q$8,SrPersons!$J:$J,$C30),0) -> 0 | R30: =IFERROR(SUMIFS(SrPersons!$R:$R,SrPersons!$D:$D,R$8,SrPersons!$J:$J,$C30) / COUNTIFS(SrPersons!$D:$D,R$8,SrPersons!$J:$J,$C30),0) -> 0 | S30: =IFERROR(SUMIFS(SrPersons!$Y:$Y,SrPersons!$D:$D,S$8,SrPersons!$J:$J,$C30) / COUNTIFS(SrPersons!$D:$D,S$8,SrPersons!$J:$J,$C30),0) -> 0 | T30: =IFERROR(SUMIFS(SrPersons!$R:$R,SrPersons!$D:$D,T$8,SrPersons!$J:$J,$C30) / COUNTIFS(SrPersons!$D:$D,T$8,SrPersons!$J:$J,$C30),0) -> 0 | U30: =IFERROR(SUMIFS(SrPersons!$Y:$Y,SrPersons!$D:$D,U$8,SrPersons!$J:$J,$C30) / COUNTIFS(SrPersons!$D:$D,U$8,SrPersons!$J:$J,$C30),0) -> 0 | V30: =IFERROR(SUMIFS(SrPersons!$R:$R,SrPersons!$D:$D,V$8,SrPersons!$J:$J,$C30) / COUNTIFS(SrPersons!$D:$D,V$8,SrPersons!$J:$J,$C30),0) -> 0 | W30: =IFERROR(SUMIFS(SrPersons!$Y:$Y,SrPersons!$D:$D,W$8,SrPersons!$J:$J,$C30) / COUNTIFS(SrPersons!$D:$D,W$8,SrPersons!$J:$J,$C30),0) -> 0 | X30: =IFERROR(SUMIFS(SrPersons!$R:$R,SrPersons!$D:$D,X$8,SrPersons!$J:$J,$C30) / COUNTIFS(SrPersons!$D:$D,X$8,SrPersons!$J:$J,$C30),0) -> 0 | Y30: =IFERROR(SUMIFS(SrPersons!$Y:$Y,SrPersons!$D:$D,Y$8,SrPersons!$J:$J,$C30) / COUNTIFS(SrPersons!$D:$D,Y$8,SrPersons!$J:$J,$C30),0) -> 0 | Z30: =IFERROR(SUMIFS(SrPersons!$R:$R,SrPersons!$D:$D,Z$8,SrPersons!$J:$J,$C30) / COUNTIFS(SrPersons!$D:$D,Z$8,SrPersons!$J:$J,$C30),0) -> 0 | AA30: =IFERROR(SUMIFS(SrPersons!$Y:$Y,SrPersons!$D:$D,AA$8,SrPersons!$J:$J,$C30) / COUNTIFS(SrPersons!$D:$D,AA$8,SrPersons!$J:$J,$C30),0) -> 0 | AB30: 0 | AC30: 0 | AD30: 0
B31: 17 | D31: =IFERROR(SUMIFS(SrPersons!$AB:$AB,SrPersons!$D:$D,$H$8,SrPersons!$J:$J,$C31) / COUNTIFS(SrPersons!$D:$D,$H$8,SrPersons!$J:$J,$C31),"") ->  | H31: =IFERROR(SUMIFS(SrPersons!$R:$R,SrPersons!$D:$D,H$8,SrPersons!$J:$J,$C31) / COUNTIFS(SrPersons!$D:$D,H$8,SrPersons!$J:$J,$C31),0) -> 0 | I31: =IFERROR(SUMIFS(SrPersons!$Y:$Y,SrPersons!$D:$D,I$8,SrPersons!$J:$J,$C31) / COUNTIFS(SrPersons!$D:$D,I$8,SrPersons!$J:$J,$C31),0) -> 0 | J31: =IFERROR(SUMIFS(SrPersons!$R:$R,SrPersons!$D:$D,J$8,SrPersons!$J:$J,$C31) / COUNTIFS(SrPersons!$D:$D,J$8,SrPersons!$J:$J,$C31),0) -> 0 | K31: =IFERROR(SUMIFS(SrPersons!$Y:$Y,SrPersons!$D:$D,K$8,SrPersons!$J:$J,$C31) / COUNTIFS(SrPersons!$D:$D,K$8,SrPersons!$J:$J,$C31),0) -> 0 | L31: =IFERROR(SUMIFS(SrPersons!$R:$R,SrPersons!$D:$D,L$8,SrPersons!$J:$J,$C31) / COUNTIFS(SrPersons!$D:$D,L$8,SrPersons!$J:$J,$C31),0) -> 0 | M31: =IFERROR(SUMIFS(SrPersons!$Y:$Y,SrPersons!$D:$D,M$8,SrPersons!$J:$J,$C31) / COUNTIFS(SrPersons!$D:$D,M$8,SrPersons!$J:$J,$C31),0) -> 0 | N31: =IFERROR(SUMIFS(SrPersons!$R:$R,SrPersons!$D:$D,N$8,SrPersons!$J:$J,$C31) / COUNTIFS(SrPersons!$D:$D,N$8,SrPersons!$J:$J,$C31),0) -> 0 | O31: =IFERROR(SUMIFS(SrPersons!$Y:$Y,SrPersons!$D:$D,O$8,SrPersons!$J:$J,$C31) / COUNTIFS(SrPersons!$D:$D,O$8,SrPersons!$J:$J,$C31),0) -> 0 | P31: =IFERROR(SUMIFS(SrPersons!$R:$R,SrPersons!$D:$D,P$8,SrPersons!$J:$J,$C31) / COUNTIFS(SrPersons!$D:$D,P$8,SrPersons!$J:$J,$C31),0) -> 0 | Q31: =IFERROR(SUMIFS(SrPersons!$Y:$Y,SrPersons!$D:$D,Q$8,SrPersons!$J:$J,$C31) / COUNTIFS(SrPersons!$D:$D,Q$8,SrPersons!$J:$J,$C31),0) -> 0 | R31: =IFERROR(SUMIFS(SrPersons!$R:$R,SrPersons!$D:$D,R$8,SrPersons!$J:$J,$C31) / COUNTIFS(SrPersons!$D:$D,R$8,SrPersons!$J:$J,$C31),0) -> 0 | S31: =IFERROR(SUMIFS(SrPersons!$Y:$Y,SrPersons!$D:$D,S$8,SrPersons!$J:$J,$C31) / COUNTIFS(SrPersons!$D:$D,S$8,SrPersons!$J:$J,$C31),0) -> 0 | T31: =IFERROR(SUMIFS(SrPersons!$R:$R,SrPersons!$D:$D,T$8,SrPersons!$J:$J,$C31) / COUNTIFS(SrPersons!$D:$D,T$8,SrPersons!$J:$J,$C31),0) -> 0 | U31: =IFERROR(SUMIFS(SrPersons!$Y:$Y,SrPersons!$D:$D,U$8,SrPersons!$J:$J,$C31) / COUNTIFS(SrPersons!$D:$D,U$8,SrPersons!$J:$J,$C31),0) -> 0 | V31: =IFERROR(SUMIFS(SrPersons!$R:$R,SrPersons!$D:$D,V$8,SrPersons!$J:$J,$C31) / COUNTIFS(SrPersons!$D:$D,V$8,SrPersons!$J:$J,$C31),0) -> 0 | W31: =IFERROR(SUMIFS(SrPersons!$Y:$Y,SrPersons!$D:$D,W$8,SrPersons!$J:$J,$C31) / COUNTIFS(SrPersons!$D:$D,W$8,SrPersons!$J:$J,$C31),0) -> 0 | X31: =IFERROR(SUMIFS(SrPersons!$R:$R,SrPersons!$D:$D,X$8,SrPersons!$J:$J,$C31) / COUNTIFS(SrPersons!$D:$D,X$8,SrPersons!$J:$J,$C31),0) -> 0 | Y31: =IFERROR(SUMIFS(SrPersons!$Y:$Y,SrPersons!$D:$D,Y$8,SrPersons!$J:$J,$C31) / COUNTIFS(SrPersons!$D:$D,Y$8,SrPersons!$J:$J,$C31),0) -> 0 | Z31: =IFERROR(SUMIFS(SrPersons!$R:$R,SrPersons!$D:$D,Z$8,SrPersons!$J:$J,$C31) / COUNTIFS(SrPersons!$D:$D,Z$8,SrPersons!$J:$J,$C31),0) -> 0 | AA31: =IFERROR(SUMIFS(SrPersons!$Y:$Y,SrPersons!$D:$D,AA$8,SrPersons!$J:$J,$C31) / COUNTIFS(SrPersons!$D:$D,AA$8,SrPersons!$J:$J,$C31),0) -> 0 | AB31: 0 | AC31: 0 | AD31: =SUM(AB31+AC31) -> 0
B32: 18 | D32: =IFERROR(SUMIFS(SrPersons!$AB:$AB,SrPersons!$D:$D,$H$8,SrPersons!$J:$J,$C32) / COUNTIFS(SrPersons!$D:$D,$H$8,SrPersons!$J:$J,$C32),"") ->  | H32: =IFERROR(SUMIFS(SrPersons!$R:$R,SrPersons!$D:$D,H$8,SrPersons!$J:$J,$C32) / COUNTIFS(SrPersons!$D:$D,H$8,SrPersons!$J:$J,$C32),0) -> 0 | I32: =IFERROR(SUMIFS(SrPersons!$Y:$Y,SrPersons!$D:$D,I$8,SrPersons!$J:$J,$C32) / COUNTIFS(SrPersons!$D:$D,I$8,SrPersons!$J:$J,$C32),0) -> 0 | J32: =IFERROR(SUMIFS(SrPersons!$R:$R,SrPersons!$D:$D,J$8,SrPersons!$J:$J,$C32) / COUNTIFS(SrPersons!$D:$D,J$8,SrPersons!$J:$J,$C32),0) -> 0 | K32: =IFERROR(SUMIFS(SrPersons!$Y:$Y,SrPersons!$D:$D,K$8,SrPersons!$J:$J,$C32) / COUNTIFS(SrPersons!$D:$D,K$8,SrPersons!$J:$J,$C32),0) -> 0 | L32: =IFERROR(SUMIFS(SrPersons!$R:$R,SrPersons!$D:$D,L$8,SrPersons!$J:$J,$C32) / COUNTIFS(SrPersons!$D:$D,L$8,SrPersons!$J:$J,$C32),0) -> 0 | M32: =IFERROR(SUMIFS(SrPersons!$Y:$Y,SrPersons!$D:$D,M$8,SrPersons!$J:$J,$C32) / COUNTIFS(SrPersons!$D:$D,M$8,SrPersons!$J:$J,$C32),0) -> 0 | N32: =IFERROR(SUMIFS(SrPersons!$R:$R,SrPersons!$D:$D,N$8,SrPersons!$J:$J,$C32) / COUNTIFS(SrPersons!$D:$D,N$8,SrPersons!$J:$J,$C32),0) -> 0 | O32: =IFERROR(SUMIFS(SrPersons!$Y:$Y,SrPersons!$D:$D,O$8,SrPersons!$J:$J,$C32) / COUNTIFS(SrPersons!$D:$D,O$8,SrPersons!$J:$J,$C32),0) -> 0 | P32: =IFERROR(SUMIFS(SrPersons!$R:$R,SrPersons!$D:$D,P$8,SrPersons!$J:$J,$C32) / COUNTIFS(SrPersons!$D:$D,P$8,SrPersons!$J:$J,$C32),0) -> 0 | Q32: =IFERROR(SUMIFS(SrPersons!$Y:$Y,SrPersons!$D:$D,Q$8,SrPersons!$J:$J,$C32) / COUNTIFS(SrPersons!$D:$D,Q$8,SrPersons!$J:$J,$C32),0) -> 0 | R32: =IFERROR(SUMIFS(SrPersons!$R:$R,SrPersons!$D:$D,R$8,SrPersons!$J:$J,$C32) / COUNTIFS(SrPersons!$D:$D,R$8,SrPersons!$J:$J,$C32),0) -> 0 | S32: =IFERROR(SUMIFS(SrPersons!$Y:$Y,SrPersons!$D:$D,S$8,SrPersons!$J:$J,$C32) / COUNTIFS(SrPersons!$D:$D,S$8,SrPersons!$J:$J,$C32),0) -> 0 | T32: =IFERROR(SUMIFS(SrPersons!$R:$R,SrPersons!$D:$D,T$8,SrPersons!$J:$J,$C32) / COUNTIFS(SrPersons!$D:$D,T$8,SrPersons!$J:$J,$C32),0) -> 0 | U32: =IFERROR(SUMIFS(SrPersons!$Y:$Y,SrPersons!$D:$D,U$8,SrPersons!$J:$J,$C32) / COUNTIFS(SrPersons!$D:$D,U$8,SrPersons!$J:$J,$C32),0) -> 0 | V32: =IFERROR(SUMIFS(SrPersons!$R:$R,SrPersons!$D:$D,V$8,SrPersons!$J:$J,$C32) / COUNTIFS(SrPersons!$D:$D,V$8,SrPersons!$J:$J,$C32),0) -> 0 | W32: =IFERROR(SUMIFS(SrPersons!$Y:$Y,SrPersons!$D:$D,W$8,SrPersons!$J:$J,$C32) / COUNTIFS(SrPersons!$D:$D,W$8,SrPersons!$J:$J,$C32),0) -> 0 | X32: =IFERROR(SUMIFS(SrPersons!$R:$R,SrPersons!$D:$D,X$8,SrPersons!$J:$J,$C32) / COUNTIFS(SrPersons!$D:$D,X$8,SrPersons!$J:$J,$C32),0) -> 0 | Y32: =IFERROR(SUMIFS(SrPersons!$Y:$Y,SrPersons!$D:$D,Y$8,SrPersons!$J:$J,$C32) / COUNTIFS(SrPersons!$D:$D,Y$8,SrPersons!$J:$J,$C32),0) -> 0 | Z32: =IFERROR(SUMIFS(SrPersons!$R:$R,SrPersons!$D:$D,Z$8,SrPersons!$J:$J,$C32) / COUNTIFS(SrPersons!$D:$D,Z$8,SrPersons!$J:$J,$C32),0) -> 0 | AA32: =IFERROR(SUMIFS(SrPersons!$Y:$Y,SrPersons!$D:$D,AA$8,SrPersons!$J:$J,$C32) / COUNTIFS(SrPersons!$D:$D,AA$8,SrPersons!$J:$J,$C32),0) -> 0 | AB32: 0 | AC32: 0 | AD32: 0
B33: 19 | D33: =IFERROR(SUMIFS(SrPersons!$AB:$AB,SrPersons!$D:$D,$H$8,SrPersons!$J:$J,$C33) / COUNTIFS(SrPersons!$D:$D,$H$8,SrPersons!$J:$J,$C33),"") ->  | H33: =IFERROR(SUMIFS(SrPersons!$R:$R,SrPersons!$D:$D,H$8,SrPersons!$J:$J,$C33) / COUNTIFS(SrPersons!$D:$D,H$8,SrPersons!$J:$J,$C33),0) -> 0 | I33: =IFERROR(SUMIFS(SrPersons!$Y:$Y,SrPersons!$D:$D,I$8,SrPersons!$J:$J,$C33) / COUNTIFS(SrPersons!$D:$D,I$8,SrPersons!$J:$J,$C33),0) -> 0 | J33: =IFERROR(SUMIFS(SrPersons!$R:$R,SrPersons!$D:$D,J$8,SrPersons!$J:$J,$C33) / COUNTIFS(SrPersons!$D:$D,J$8,SrPersons!$J:$J,$C33),0) -> 0 | K33: =IFERROR(SUMIFS(SrPersons!$Y:$Y,SrPersons!$D:$D,K$8,SrPersons!$J:$J,$C33) / COUNTIFS(SrPersons!$D:$D,K$8,SrPersons!$J:$J,$C33),0) -> 0 | L33: =IFERROR(SUMIFS(SrPersons!$R:$R,SrPersons!$D:$D,L$8,SrPersons!$J:$J,$C33) / COUNTIFS(SrPersons!$D:$D,L$8,SrPersons!$J:$J,$C33),0) -> 0 | M33: =IFERROR(SUMIFS(SrPersons!$Y:$Y,SrPersons!$D:$D,M$8,SrPersons!$J:$J,$C33) / COUNTIFS(SrPersons!$D:$D,M$8,SrPersons!$J:$J,$C33),0) -> 0 | N33: =IFERROR(SUMIFS(SrPersons!$R:$R,SrPersons!$D:$D,N$8,SrPersons!$J:$J,$C33) / COUNTIFS(SrPersons!$D:$D,N$8,SrPersons!$J:$J,$C33),0) -> 0 | O33: =IFERROR(SUMIFS(SrPersons!$Y:$Y,SrPersons!$D:$D,O$8,SrPersons!$J:$J,$C33) / COUNTIFS(SrPersons!$D:$D,O$8,SrPersons!$J:$J,$C33),0) -> 0 | P33: =IFERROR(SUMIFS(SrPersons!$R:$R,SrPersons!$D:$D,P$8,SrPersons!$J:$J,$C33) / COUNTIFS(SrPersons!$D:$D,P$8,SrPersons!$J:$J,$C33),0) -> 0 | Q33: =IFERROR(SUMIFS(SrPersons!$Y:$Y,SrPersons!$D:$D,Q$8,SrPersons!$J:$J,$C33) / COUNTIFS(SrPersons!$D:$D,Q$8,SrPersons!$J:$J,$C33),0) -> 0 | R33: =IFERROR(SUMIFS(SrPersons!$R:$R,SrPersons!$D:$D,R$8,SrPersons!$J:$J,$C33) / COUNTIFS(SrPersons!$D:$D,R$8,SrPersons!$J:$J,$C33),0) -> 0 | S33: =IFERROR(SUMIFS(SrPersons!$Y:$Y,SrPersons!$D:$D,S$8,SrPersons!$J:$J,$C33) / COUNTIFS(SrPersons!$D:$D,S$8,SrPersons!$J:$J,$C33),0) -> 0 | T33: =IFERROR(SUMIFS(SrPersons!$R:$R,SrPersons!$D:$D,T$8,SrPersons!$J:$J,$C33) / COUNTIFS(SrPersons!$D:$D,T$8,SrPersons!$J:$J,$C33),0) -> 0 | U33: =IFERROR(SUMIFS(SrPersons!$Y:$Y,SrPersons!$D:$D,U$8,SrPersons!$J:$J,$C33) / COUNTIFS(SrPersons!$D:$D,U$8,SrPersons!$J:$J,$C33),0) -> 0 | V33: =IFERROR(SUMIFS(SrPersons!$R:$R,SrPersons!$D:$D,V$8,SrPersons!$J:$J,$C33) / COUNTIFS(SrPersons!$D:$D,V$8,SrPersons!$J:$J,$C33),0) -> 0 | W33: =IFERROR(SUMIFS(SrPersons!$Y:$Y,SrPersons!$D:$D,W$8,SrPersons!$J:$J,$C33) / COUNTIFS(SrPersons!$D:$D,W$8,SrPersons!$J:$J,$C33),0) -> 0 | X33: =IFERROR(SUMIFS(SrPersons!$R:$R,SrPersons!$D:$D,X$8,SrPersons!$J:$J,$C33) / COUNTIFS(SrPersons!$D:$D,X$8,SrPersons!$J:$J,$C33),0) -> 0 | Y33: =IFERROR(SUMIFS(SrPersons!$Y:$Y,SrPersons!$D:$D,Y$8,SrPersons!$J:$J,$C33) / COUNTIFS(SrPersons!$D:$D,Y$8,SrPersons!$J:$J,$C33),0) -> 0 | Z33: =IFERROR(SUMIFS(SrPersons!$R:$R,SrPersons!$D:$D,Z$8,SrPersons!$J:$J,$C33) / COUNTIFS(SrPersons!$D:$D,Z$8,SrPersons!$J:$J,$C33),0) -> 0 | AA33: =IFERROR(SUMIFS(SrPersons!$Y:$Y,SrPersons!$D:$D,AA$8,SrPersons!$J:$J,$C33) / COUNTIFS(SrPersons!$D:$D,AA$8,SrPersons!$J:$J,$C33),0) -> 0 | AB33: 0 | AC33: 0 | AD33: 0
B34: 20 | D34: =IFERROR(SUMIFS(SrPersons!$AB:$AB,SrPersons!$D:$D,$H$8,SrPersons!$J:$J,$C34) / COUNTIFS(SrPersons!$D:$D,$H$8,SrPersons!$J:$J,$C34),"") ->  | H34: =IFERROR(SUMIFS(SrPersons!$R:$R,SrPersons!$D:$D,H$8,SrPersons!$J:$J,$C34) / COUNTIFS(SrPersons!$D:$D,H$8,SrPersons!$J:$J,$C34),0) -> 0 | I34: =IFERROR(SUMIFS(SrPersons!$Y:$Y,SrPersons!$D:$D,I$8,SrPersons!$J:$J,$C34) / COUNTIFS(SrPersons!$D:$D,I$8,SrPersons!$J:$J,$C34),0) -> 0 | J34: =IFERROR(SUMIFS(SrPersons!$R:$R,SrPersons!$D:$D,J$8,SrPersons!$J:$J,$C34) / COUNTIFS(SrPersons!$D:$D,J$8,SrPersons!$J:$J,$C34),0) -> 0 | K34: =IFERROR(SUMIFS(SrPersons!$Y:$Y,SrPersons!$D:$D,K$8,SrPersons!$J:$J,$C34) / COUNTIFS(SrPersons!$D:$D,K$8,SrPersons!$J:$J,$C34),0) -> 0 | L34: =IFERROR(SUMIFS(SrPersons!$R:$R,SrPersons!$D:$D,L$8,SrPersons!$J:$J,$C34) / COUNTIFS(SrPersons!$D:$D,L$8,SrPersons!$J:$J,$C34),0) -> 0 | M34: =IFERROR(SUMIFS(SrPersons!$Y:$Y,SrPersons!$D:$D,M$8,SrPersons!$J:$J,$C34) / COUNTIFS(SrPersons!$D:$D,M$8,SrPersons!$J:$J,$C34),0) -> 0 | N34: =IFERROR(SUMIFS(SrPersons!$R:$R,SrPersons!$D:$D,N$8,SrPersons!$J:$J,$C34) / COUNTIFS(SrPersons!$D:$D,N$8,SrPersons!$J:$J,$C34),0) -> 0 | O34: =IFERROR(SUMIFS(SrPersons!$Y:$Y,SrPersons!$D:$D,O$8,SrPersons!$J:$J,$C34) / COUNTIFS(SrPersons!$D:$D,O$8,SrPersons!$J:$J,$C34),0) -> 0 | P34: =IFERROR(SUMIFS(SrPersons!$R:$R,SrPersons!$D:$D,P$8,SrPersons!$J:$J,$C34) / COUNTIFS(SrPersons!$D:$D,P$8,SrPersons!$J:$J,$C34),0) -> 0 | Q34: =IFERROR(SUMIFS(SrPersons!$Y:$Y,SrPersons!$D:$D,Q$8,SrPersons!$J:$J,$C34) / COUNTIFS(SrPersons!$D:$D,Q$8,SrPersons!$J:$J,$C34),0) -> 0 | R34: =IFERROR(SUMIFS(SrPersons!$R:$R,SrPersons!$D:$D,R$8,SrPersons!$J:$J,$C34) / COUNTIFS(SrPersons!$D:$D,R$8,SrPersons!$J:$J,$C34),0) -> 0 | S34: =IFERROR(SUMIFS(SrPersons!$Y:$Y,SrPersons!$D:$D,S$8,SrPersons!$J:$J,$C34) / COUNTIFS(SrPersons!$D:$D,S$8,SrPersons!$J:$J,$C34),0) -> 0 | T34: =IFERROR(SUMIFS(SrPersons!$R:$R,SrPersons!$D:$D,T$8,SrPersons!$J:$J,$C34) / COUNTIFS(SrPersons!$D:$D,T$8,SrPersons!$J:$J,$C34),0) -> 0 | U34: =IFERROR(SUMIFS(SrPersons!$Y:$Y,SrPersons!$D:$D,U$8,SrPersons!$J:$J,$C34) / COUNTIFS(SrPersons!$D:$D,U$8,SrPersons!$J:$J,$C34),0) -> 0 | V34: =IFERROR(SUMIFS(SrPersons!$R:$R,SrPersons!$D:$D,V$8,SrPersons!$J:$J,$C34) / COUNTIFS(SrPersons!$D:$D,V$8,SrPersons!$J:$J,$C34),0) -> 0 | W34: =IFERROR(SUMIFS(SrPersons!$Y:$Y,SrPersons!$D:$D,W$8,SrPersons!$J:$J,$C34) / COUNTIFS(SrPersons!$D:$D,W$8,SrPersons!$J:$J,$C34),0) -> 0 | X34: =IFERROR(SUMIFS(SrPersons!$R:$R,SrPersons!$D:$D,X$8,SrPersons!$J:$J,$C34) / COUNTIFS(SrPersons!$D:$D,X$8,SrPersons!$J:$J,$C34),0) -> 0 | Y34: =IFERROR(SUMIFS(SrPersons!$Y:$Y,SrPersons!$D:$D,Y$8,SrPersons!$J:$J,$C34) / COUNTIFS(SrPersons!$D:$D,Y$8,SrPersons!$J:$J,$C34),0) -> 0 | Z34: =IFERROR(SUMIFS(SrPersons!$R:$R,SrPersons!$D:$D,Z$8,SrPersons!$J:$J,$C34) / COUNTIFS(SrPersons!$D:$D,Z$8,SrPersons!$J:$J,$C34),0) -> 0 | AA34: =IFERROR(SUMIFS(SrPersons!$Y:$Y,SrPersons!$D:$D,AA$8,SrPersons!$J:$J,$C34) / COUNTIFS(SrPersons!$D:$D,AA$8,SrPersons!$J:$J,$C34),0) -> 0 | AB34: 0 | AC34: 0 | AD34: 0
G35: Number of
A36: B | C36: Other Personnel | D36: Person Months | G36: persons | H36: =SUM(H37:H56) -> 0 | I36: 0 | J36: 0 | K36: 0 | L36: 0 | M36: 0 | N36: 0 | O36: 0 | P36: =SUM(P37:P56) -> 0 | Q36: 0 | R36: 0 | S36: 0 | T36: 0 | U36: 0 | V36: 0 | W36: 0 | X36: 0 | Y36: 0 | Z36: 0 | AA36: 0 | AB36: =SUM(H36+J36+L36+N36+P36+R36+T36+V36+X36+Z36) -> 0 | AC36: =SUM(I36+K36+M36+O36+Q36+S36+U36+W36+Y36+AA36) -> 0 | AD36: =SUM(AB36+AC36) -> 0
B37: 1 | C37: =INDIRECT("OtherPersons!A2:A"&OtherPersons!C1) -> 0 | D37: =IFERROR(SUMIFS(OtherPersons!$AC:$AC,OtherPersons!$E:$E,$H$8,OtherPersons!$J:$J,$C37) / COUNTIFS(OtherPersons!$E:$E,$H$8,OtherPersons!$J:$J,$C37)*INDEX(OtherPersonsCalc!$J$1:$S$17,MATCH($C37,OtherPersonsCalc!$I:$I,0),$H$8),"") ->  | G37: =IFERROR(INDEX(OtherPersonsCalc!$J$1:$S$17,MATCH($C37,OtherPersonsCalc!$I:$I,0),H$8),"") -> 0 | H37: =IFERROR(SUMIFS(OtherPersons!$S:$S,OtherPersons!$E:$E,H$8,OtherPersons!$J:$J,$C37) / COUNTIFS(OtherPersons!$E:$E,H$8,OtherPersons!$J:$J,$C37)*INDEX(OtherPersonsCalc!$J$1:$S$17,MATCH($C37,OtherPersonsCalc!$I:$I,0),H$8),0) -> 0 | I37: =IFERROR(SUMIFS(OtherPersons!$Z:$Z,OtherPersons!$E:$E,I$8,OtherPersons!$J:$J,$C37) / COUNTIFS(OtherPersons!$E:$E,I$8,OtherPersons!$J:$J,$C37)*INDEX(OtherPersonsCalc!$J$1:$S$17,MATCH($C37,OtherPersonsCalc!$I:$I,0),I$8),0) -> 0 | J37: =IFERROR(SUMIFS(OtherPersons!$S:$S,OtherPersons!$E:$E,J$8,OtherPersons!$J:$J,$C37) / COUNTIFS(OtherPersons!$E:$E,J$8,OtherPersons!$J:$J,$C37)*INDEX(OtherPersonsCalc!$J$1:$S$17,MATCH($C37,OtherPersonsCalc!$I:$I,0),J$8),0) -> 0 | K37: =IFERROR(SUMIFS(OtherPersons!$Z:$Z,OtherPersons!$E:$E,K$8,OtherPersons!$J:$J,$C37) / COUNTIFS(OtherPersons!$E:$E,K$8,OtherPersons!$J:$J,$C37)*INDEX(OtherPersonsCalc!$J$1:$S$17,MATCH($C37,OtherPersonsCalc!$I:$I,0),K$8),0) -> 0 | L37: =IFERROR(SUMIFS(OtherPersons!$S:$S,OtherPersons!$E:$E,L$8,OtherPersons!$J:$J,$C37) / COUNTIFS(OtherPersons!$E:$E,L$8,OtherPersons!$J:$J,$C37)*INDEX(OtherPersonsCalc!$J$1:$S$17,MATCH($C37,OtherPersonsCalc!$I:$I,0),L$8),0) -> 0 | M37: =IFERROR(SUMIFS(OtherPersons!$Z:$Z,OtherPersons!$E:$E,M$8,OtherPersons!$J:$J,$C37) / COUNTIFS(OtherPersons!$E:$E,M$8,OtherPersons!$J:$J,$C37)*INDEX(OtherPersonsCalc!$J$1:$S$17,MATCH($C37,OtherPersonsCalc!$I:$I,0),M$8),0) -> 0 | N37: =IFERROR(SUMIFS(OtherPersons!$S:$S,OtherPersons!$E:$E,N$8,OtherPersons!$J:$J,$C37) / COUNTIFS(OtherPersons!$E:$E,N$8,OtherPersons!$J:$J,$C37)*INDEX(OtherPersonsCalc!$J$1:$S$17,MATCH($C37,OtherPersonsCalc!$I:$I,0),N$8),0) -> 0 | O37: =IFERROR(SUMIFS(OtherPersons!$Z:$Z,OtherPersons!$E:$E,O$8,OtherPersons!$J:$J,$C37) / COUNTIFS(OtherPersons!$E:$E,O$8,OtherPersons!$J:$J,$C37)*INDEX(OtherPersonsCalc!$J$1:$S$17,MATCH($C37,OtherPersonsCalc!$I:$I,0),O$8),0) -> 0 | P37: =IFERROR(SUMIFS(OtherPersons!$S:$S,OtherPersons!$E:$E,P$8,OtherPersons!$J:$J,$C37) / COUNTIFS(OtherPersons!$E:$E,P$8,OtherPersons!$J:$J,$C37)*INDEX(OtherPersonsCalc!$J$1:$S$17,MATCH($C37,OtherPersonsCalc!$I:$I,0),P$8),0) -> 0 | Q37: =IFERROR(SUMIFS(OtherPersons!$Z:$Z,OtherPersons!$E:$E,Q$8,OtherPersons!$J:$J,$C37) / COUNTIFS(OtherPersons!$E:$E,Q$8,OtherPersons!$J:$J,$C37)*INDEX(OtherPersonsCalc!$J$1:$S$17,MATCH($C37,OtherPersonsCalc!$I:$I,0),Q$8),0) -> 0 | R37: =IFERROR(SUMIFS(OtherPersons!$S:$S,OtherPersons!$E:$E,R$8,OtherPersons!$J:$J,$C37) / COUNTIFS(OtherPersons!$E:$E,R$8,OtherPersons!$J:$J,$C37)*INDEX(OtherPersonsCalc!$J$1:$S$17,MATCH($C37,OtherPersonsCalc!$I:$I,0),R$8),0) -> 0 | S37: =IFERROR(SUMIFS(OtherPersons!$Z:$Z,OtherPersons!$E:$E,S$8,OtherPersons!$J:$J,$C37) / COUNTIFS(OtherPersons!$E:$E,S$8,OtherPersons!$J:$J,$C37)*INDEX(OtherPersonsCalc!$J$1:$S$17,MATCH($C37,OtherPersonsCalc!$I:$I,0),S$8),0) -> 0 | T37: =IFERROR(SUMIFS(OtherPersons!$S:$S,OtherPersons!$E:$E,T$8,OtherPersons!$J:$J,$C37) / COUNTIFS(OtherPersons!$E:$E,T$8,OtherPersons!$J:$J,$C37)*INDEX(OtherPersonsCalc!$J$1:$S$17,MATCH($C37,OtherPersonsCalc!$I:$I,0),T$8),0) -> 0 | U37: =IFERROR(SUMIFS(OtherPersons!$Z:$Z,OtherPersons!$E:$E,U$8,OtherPersons!$J:$J,$C37) / COUNTIFS(OtherPersons!$E:$E,U$8,OtherPersons!$J:$J,$C37)*INDEX(OtherPersonsCalc!$J$1:$S$17,MATCH($C37,OtherPersonsCalc!$I:$I,0),U$8),0) -> 0 | V37: =IFERROR(SUMIFS(OtherPersons!$S:$S,OtherPersons!$E:$E,V$8,OtherPersons!$J:$J,$C37) / COUNTIFS(OtherPersons!$E:$E,V$8,OtherPersons!$J:$J,$C37)*INDEX(OtherPersonsCalc!$J$1:$S$17,MATCH($C37,OtherPersonsCalc!$I:$I,0),V$8),0) -> 0 | W37: =IFERROR(SUMIFS(OtherPersons!$Z:$Z,OtherPersons!$E:$E,W$8,OtherPersons!$J:$J,$C37) / COUNTIFS(OtherPersons!$E:$E,W$8,OtherPersons!$J:$J,$C37)*INDEX(OtherPersonsCalc!$J$1:$S$17,MATCH($C37,OtherPersonsCalc!$I:$I,0),W$8),0) -> 0 | X37: =IFERROR(SUMIFS(OtherPersons!$S:$S,OtherPersons!$E:$E,X$8,OtherPersons!$J:$J,$C37) / COUNTIFS(OtherPersons!$E:$E,X$8,OtherPersons!$J:$J,$C37)*INDEX(OtherPersonsCalc!$J$1:$S$17,MATCH($C37,OtherPersonsCalc!$I:$I,0),X$8),0) -> 0 | Y37: =IFERROR(SUMIFS(OtherPersons!$Z:$Z,OtherPersons!$E:$E,Y$8,OtherPersons!$J:$J,$C37) / COUNTIFS(OtherPersons!$E:$E,Y$8,OtherPersons!$J:$J,$C37)*INDEX(OtherPersonsCalc!$J$1:$S$17,MATCH($C37,OtherPersonsCalc!$I:$I,0),Y$8),0) -> 0 | Z37: =IFERROR(SUMIFS(OtherPersons!$S:$S,OtherPersons!$E:$E,Z$8,OtherPersons!$J:$J,$C37) / COUNTIFS(OtherPersons!$E:$E,Z$8,OtherPersons!$J:$J,$C37)*INDEX(OtherPersonsCalc!$J$1:$S$17,MATCH($C37,OtherPersonsCalc!$I:$I,0),Z$8),0) -> 0 | AA37: =IFERROR(SUMIFS(OtherPersons!$Z:$Z,OtherPersons!$E:$E,AA$8,OtherPersons!$J:$J,$C37) / COUNTIFS(OtherPersons!$E:$E,AA$8,OtherPersons!$J:$J,$C37)*INDEX(OtherPersonsCalc!$J$1:$S$17,MATCH($C37,OtherPersonsCalc!$I:$I,0),AA$8),0) -> 0 | AB37: 0 | AC37: 0 | AD37: =SUM(AB37+AC37) -> 0
B38: 2 | D38: =IFERROR(SUMIFS(OtherPersons!$AC:$AC,OtherPersons!$E:$E,$H$8,OtherPersons!$J:$J,$C38) / COUNTIFS(OtherPersons!$E:$E,$H$8,OtherPersons!$J:$J,$C38)*INDEX(OtherPersonsCalc!$J$1:$S$17,MATCH($C38,OtherPersonsCalc!$I:$I,0),$H$8),"") ->  | G38: =IFERROR(INDEX(OtherPersonsCalc!$J$1:$S$17,MATCH($C38,OtherPersonsCalc!$I:$I,0),H$8),"") -> 0 | H38: =IFERROR(SUMIFS(OtherPersons!$S:$S,OtherPersons!$E:$E,H$8,OtherPersons!$J:$J,$C38) / COUNTIFS(OtherPersons!$E:$E,H$8,OtherPersons!$J:$J,$C38)*INDEX(OtherPersonsCalc!$J$1:$S$17,MATCH($C38,OtherPersonsCalc!$I:$I,0),H$8),0) -> 0 | I38: =IFERROR(SUMIFS(OtherPersons!$Z:$Z,OtherPersons!$E:$E,I$8,OtherPersons!$J:$J,$C38) / COUNTIFS(OtherPersons!$E:$E,I$8,OtherPersons!$J:$J,$C38)*INDEX(OtherPersonsCalc!$J$1:$S$17,MATCH($C38,OtherPersonsCalc!$I:$I,0),I$8),0) -> 0 | J38: =IFERROR(SUMIFS(OtherPersons!$S:$S,OtherPersons!$E:$E,J$8,OtherPersons!$J:$J,$C38) / COUNTIFS(OtherPersons!$E:$E,J$8,OtherPersons!$J:$J,$C38)*INDEX(OtherPersonsCalc!$J$1:$S$17,MATCH($C38,OtherPersonsCalc!$I:$I,0),J$8),0) -> 0 | K38: =IFERROR(SUMIFS(OtherPersons!$Z:$Z,OtherPersons!$E:$E,K$8,OtherPersons!$J:$J,$C38) / COUNTIFS(OtherPersons!$E:$E,K$8,OtherPersons!$J:$J,$C38)*INDEX(OtherPersonsCalc!$J$1:$S$17,MATCH($C38,OtherPersonsCalc!$I:$I,0),K$8),0) -> 0 | L38: =IFERROR(SUMIFS(OtherPersons!$S:$S,OtherPersons!$E:$E,L$8,OtherPersons!$J:$J,$C38) / COUNTIFS(OtherPersons!$E:$E,L$8,OtherPersons!$J:$J,$C38)*INDEX(OtherPersonsCalc!$J$1:$S$17,MATCH($C38,OtherPersonsCalc!$I:$I,0),L$8),0) -> 0 | M38: =IFERROR(SUMIFS(OtherPersons!$Z:$Z,OtherPersons!$E:$E,M$8,OtherPersons!$J:$J,$C38) / COUNTIFS(OtherPersons!$E:$E,M$8,OtherPersons!$J:$J,$C38)*INDEX(OtherPersonsCalc!$J$1:$S$17,MATCH($C38,OtherPersonsCalc!$I:$I,0),M$8),0) -> 0 | N38: =IFERROR(SUMIFS(OtherPersons!$S:$S,OtherPersons!$E:$E,N$8,OtherPersons!$J:$J,$C38) / COUNTIFS(OtherPersons!$E:$E,N$8,OtherPersons!$J:$J,$C38)*INDEX(OtherPersonsCalc!$J$1:$S$17,MATCH($C38,OtherPersonsCalc!$I:$I,0),N$8),0) -> 0 | O38: =IFERROR(SUMIFS(OtherPersons!$Z:$Z,OtherPersons!$E:$E,O$8,OtherPersons!$J:$J,$C38) / COUNTIFS(OtherPersons!$E:$E,O$8,OtherPersons!$J:$J,$C38)*INDEX(OtherPersonsCalc!$J$1:$S$17,MATCH($C38,OtherPersonsCalc!$I:$I,0),O$8),0) -> 0 | P38: =IFERROR(SUMIFS(OtherPersons!$S:$S,OtherPersons!$E:$E,P$8,OtherPersons!$J:$J,$C38) / COUNTIFS(OtherPersons!$E:$E,P$8,OtherPersons!$J:$J,$C38)*INDEX(OtherPersonsCalc!$J$1:$S$17,MATCH($C38,OtherPersonsCalc!$I:$I,0),P$8),0) -> 0 | Q38: =IFERROR(SUMIFS(OtherPersons!$Z:$Z,OtherPersons!$E:$E,Q$8,OtherPersons!$J:$J,$C38) / COUNTIFS(OtherPersons!$E:$E,Q$8,OtherPersons!$J:$J,$C38)*INDEX(OtherPersonsCalc!$J$1:$S$17,MATCH($C38,OtherPersonsCalc!$I:$I,0),Q$8),0) -> 0 | R38: =IFERROR(SUMIFS(OtherPersons!$S:$S,OtherPersons!$E:$E,R$8,OtherPersons!$J:$J,$C38) / COUNTIFS(OtherPersons!$E:$E,R$8,OtherPersons!$J:$J,$C38)*INDEX(OtherPersonsCalc!$J$1:$S$17,MATCH($C38,OtherPersonsCalc!$I:$I,0),R$8),0) -> 0 | S38: =IFERROR(SUMIFS(OtherPersons!$Z:$Z,OtherPersons!$E:$E,S$8,OtherPersons!$J:$J,$C38) / COUNTIFS(OtherPersons!$E:$E,S$8,OtherPersons!$J:$J,$C38)*INDEX(OtherPersonsCalc!$J$1:$S$17,MATCH($C38,OtherPersonsCalc!$I:$I,0),S$8),0) -> 0 | T38: =IFERROR(SUMIFS(OtherPersons!$S:$S,OtherPersons!$E:$E,T$8,OtherPersons!$J:$J,$C38) / COUNTIFS(OtherPersons!$E:$E,T$8,OtherPersons!$J:$J,$C38)*INDEX(OtherPersonsCalc!$J$1:$S$17,MATCH($C38,OtherPersonsCalc!$I:$I,0),T$8),0) -> 0 | U38: =IFERROR(SUMIFS(OtherPersons!$Z:$Z,OtherPersons!$E:$E,U$8,OtherPersons!$J:$J,$C38) / COUNTIFS(OtherPersons!$E:$E,U$8,OtherPersons!$J:$J,$C38)*INDEX(OtherPersonsCalc!$J$1:$S$17,MATCH($C38,OtherPersonsCalc!$I:$I,0),U$8),0) -> 0 | V38: =IFERROR(SUMIFS(OtherPersons!$S:$S,OtherPersons!$E:$E,V$8,OtherPersons!$J:$J,$C38) / COUNTIFS(OtherPersons!$E:$E,V$8,OtherPersons!$J:$J,$C38)*INDEX(OtherPersonsCalc!$J$1:$S$17,MATCH($C38,OtherPersonsCalc!$I:$I,0),V$8),0) -> 0 | W38: =IFERROR(SUMIFS(OtherPersons!$Z:$Z,OtherPersons!$E:$E,W$8,OtherPersons!$J:$J,$C38) / COUNTIFS(OtherPersons!$E:$E,W$8,OtherPersons!$J:$J,$C38)*INDEX(OtherPersonsCalc!$J$1:$S$17,MATCH($C38,OtherPersonsCalc!$I:$I,0),W$8),0) -> 0 | X38: =IFERROR(SUMIFS(OtherPersons!$S:$S,OtherPersons!$E:$E,X$8,OtherPersons!$J:$J,$C38) / COUNTIFS(OtherPersons!$E:$E,X$8,OtherPersons!$J:$J,$C38)*INDEX(OtherPersonsCalc!$J$1:$S$17,MATCH($C38,OtherPersonsCalc!$I:$I,0),X$8),0) -> 0 | Y38: =IFERROR(SUMIFS(OtherPersons!$Z:$Z,OtherPersons!$E:$E,Y$8,OtherPersons!$J:$J,$C38) / COUNTIFS(OtherPersons!$E:$E,Y$8,OtherPersons!$J:$J,$C38)*INDEX(OtherPersonsCalc!$J$1:$S$17,MATCH($C38,OtherPersonsCalc!$I:$I,0),Y$8),0) -> 0 | Z38: =IFERROR(SUMIFS(OtherPersons!$S:$S,OtherPersons!$E:$E,Z$8,OtherPersons!$J:$J,$C38) / COUNTIFS(OtherPersons!$E:$E,Z$8,OtherPersons!$J:$J,$C38)*INDEX(OtherPersonsCalc!$J$1:$S$17,MATCH($C38,OtherPersonsCalc!$I:$I,0),Z$8),0) -> 0 | AA38: =IFERROR(SUMIFS(OtherPersons!$Z:$Z,OtherPersons!$E:$E,AA$8,OtherPersons!$J:$J,$C38) / COUNTIFS(OtherPersons!$E:$E,AA$8,OtherPersons!$J:$J,$C38)*INDEX(OtherPersonsCalc!$J$1:$S$17,MATCH($C38,OtherPersonsCalc!$I:$I,0),AA$8),0) -> 0 | AB38: 0 | AC38: 0 | AD38: 0
B39: 3 | D39: =IFERROR(SUMIFS(OtherPersons!$AC:$AC,OtherPersons!$E:$E,$H$8,OtherPersons!$J:$J,$C39) / COUNTIFS(OtherPersons!$E:$E,$H$8,OtherPersons!$J:$J,$C39)*INDEX(OtherPersonsCalc!$J$1:$S$17,MATCH($C39,OtherPersonsCalc!$I:$I,0),$H$8),"") ->  | G39: =IFERROR(INDEX(OtherPersonsCalc!$J$1:$S$17,MATCH($C39,OtherPersonsCalc!$I:$I,0),H$8),"") -> 0 | H39: =IFERROR(SUMIFS(OtherPersons!$S:$S,OtherPersons!$E:$E,H$8,OtherPersons!$J:$J,$C39) / COUNTIFS(OtherPersons!$E:$E,H$8,OtherPersons!$J:$J,$C39)*INDEX(OtherPersonsCalc!$J$1:$S$17,MATCH($C39,OtherPersonsCalc!$I:$I,0),H$8),0) -> 0 | I39: =IFERROR(SUMIFS(OtherPersons!$Z:$Z,OtherPersons!$E:$E,I$8,OtherPersons!$J:$J,$C39) / COUNTIFS(OtherPersons!$E:$E,I$8,OtherPersons!$J:$J,$C39)*INDEX(OtherPersonsCalc!$J$1:$S$17,MATCH($C39,OtherPersonsCalc!$I:$I,0),I$8),0) -> 0 | J39: =IFERROR(SUMIFS(OtherPersons!$S:$S,OtherPersons!$E:$E,J$8,OtherPersons!$J:$J,$C39) / COUNTIFS(OtherPersons!$E:$E,J$8,OtherPersons!$J:$J,$C39)*INDEX(OtherPersonsCalc!$J$1:$S$17,MATCH($C39,OtherPersonsCalc!$I:$I,0),J$8),0) -> 0 | K39: =IFERROR(SUMIFS(OtherPersons!$Z:$Z,OtherPersons!$E:$E,K$8,OtherPersons!$J:$J,$C39) / COUNTIFS(OtherPersons!$E:$E,K$8,OtherPersons!$J:$J,$C39)*INDEX(OtherPersonsCalc!$J$1:$S$17,MATCH($C39,OtherPersonsCalc!$I:$I,0),K$8),0) -> 0 | L39: =IFERROR(SUMIFS(OtherPersons!$S:$S,OtherPersons!$E:$E,L$8,OtherPersons!$J:$J,$C39) / COUNTIFS(OtherPersons!$E:$E,L$8,OtherPersons!$J:$J,$C39)*INDEX(OtherPersonsCalc!$J$1:$S$17,MATCH($C39,OtherPersonsCalc!$I:$I,0),L$8),0) -> 0 | M39: =IFERROR(SUMIFS(OtherPersons!$Z:$Z,OtherPersons!$E:$E,M$8,OtherPersons!$J:$J,$C39) / COUNTIFS(OtherPersons!$E:$E,M$8,OtherPersons!$J:$J,$C39)*INDEX(OtherPersonsCalc!$J$1:$S$17,MATCH($C39,OtherPersonsCalc!$I:$I,0),M$8),0) -> 0 | N39: =IFERROR(SUMIFS(OtherPersons!$S:$S,OtherPersons!$E:$E,N$8,OtherPersons!$J:$J,$C39) / COUNTIFS(OtherPersons!$E:$E,N$8,OtherPersons!$J:$J,$C39)*INDEX(OtherPersonsCalc!$J$1:$S$17,MATCH($C39,OtherPersonsCalc!$I:$I,0),N$8),0) -> 0 | O39: =IFERROR(SUMIFS(OtherPersons!$Z:$Z,OtherPersons!$E:$E,O$8,OtherPersons!$J:$J,$C39) / COUNTIFS(OtherPersons!$E:$E,O$8,OtherPersons!$J:$J,$C39)*INDEX(OtherPersonsCalc!$J$1:$S$17,MATCH($C39,OtherPersonsCalc!$I:$I,0),O$8),0) -> 0 | P39: =IFERROR(SUMIFS(OtherPersons!$S:$S,OtherPersons!$E:$E,P$8,OtherPersons!$J:$J,$C39) / COUNTIFS(OtherPersons!$E:$E,P$8,OtherPersons!$J:$J,$C39)*INDEX(OtherPersonsCalc!$J$1:$S$17,MATCH($C39,OtherPersonsCalc!$I:$I,0),P$8),0) -> 0 | Q39: =IFERROR(SUMIFS(OtherPersons!$Z:$Z,OtherPersons!$E:$E,Q$8,OtherPersons!$J:$J,$C39) / COUNTIFS(OtherPersons!$E:$E,Q$8,OtherPersons!$J:$J,$C39)*INDEX(OtherPersonsCalc!$J$1:$S$17,MATCH($C39,OtherPersonsCalc!$I:$I,0),Q$8),0) -> 0 | R39: =IFERROR(SUMIFS(OtherPersons!$S:$S,OtherPersons!$E:$E,R$8,OtherPersons!$J:$J,$C39) / COUNTIFS(OtherPersons!$E:$E,R$8,OtherPersons!$J:$J,$C39)*INDEX(OtherPersonsCalc!$J$1:$S$17,MATCH($C39,OtherPersonsCalc!$I:$I,0),R$8),0) -> 0 | S39: =IFERROR(SUMIFS(OtherPersons!$Z:$Z,OtherPersons!$E:$E,S$8,OtherPersons!$J:$J,$C39) / COUNTIFS(OtherPersons!$E:$E,S$8,OtherPersons!$J:$J,$C39)*INDEX(OtherPersonsCalc!$J$1:$S$17,MATCH($C39,OtherPersonsCalc!$I:$I,0),S$8),0) -> 0 | T39: =IFERROR(SUMIFS(OtherPersons!$S:$S,OtherPersons!$E:$E,T$8,OtherPersons!$J:$J,$C39) / COUNTIFS(OtherPersons!$E:$E,T$8,OtherPersons!$J:$J,$C39)*INDEX(OtherPersonsCalc!$J$1:$S$17,MATCH($C39,OtherPersonsCalc!$I:$I,0),T$8),0) -> 0 | U39: =IFERROR(SUMIFS(OtherPersons!$Z:$Z,OtherPersons!$E:$E,U$8,OtherPersons!$J:$J,$C39) / COUNTIFS(OtherPersons!$E:$E,U$8,OtherPersons!$J:$J,$C39)*INDEX(OtherPersonsCalc!$J$1:$S$17,MATCH($C39,OtherPersonsCalc!$I:$I,0),U$8),0) -> 0 | V39: =IFERROR(SUMIFS(OtherPersons!$S:$S,OtherPersons!$E:$E,V$8,OtherPersons!$J:$J,$C39) / COUNTIFS(OtherPersons!$E:$E,V$8,OtherPersons!$J:$J,$C39)*INDEX(OtherPersonsCalc!$J$1:$S$17,MATCH($C39,OtherPersonsCalc!$I:$I,0),V$8),0) -> 0 | W39: =IFERROR(SUMIFS(OtherPersons!$Z:$Z,OtherPersons!$E:$E,W$8,OtherPersons!$J:$J,$C39) / COUNTIFS(OtherPersons!$E:$E,W$8,OtherPersons!$J:$J,$C39)*INDEX(OtherPersonsCalc!$J$1:$S$17,MATCH($C39,OtherPersonsCalc!$I:$I,0),W$8),0) -> 0 | X39: =IFERROR(SUMIFS(OtherPersons!$S:$S,OtherPersons!$E:$E,X$8,OtherPersons!$J:$J,$C39) / COUNTIFS(OtherPersons!$E:$E,X$8,OtherPersons!$J:$J,$C39)*INDEX(OtherPersonsCalc!$J$1:$S$17,MATCH($C39,OtherPersonsCalc!$I:$I,0),X$8),0) -> 0 | Y39: =IFERROR(SUMIFS(OtherPersons!$Z:$Z,OtherPersons!$E:$E,Y$8,OtherPersons!$J:$J,$C39) / COUNTIFS(OtherPersons!$E:$E,Y$8,OtherPersons!$J:$J,$C39)*INDEX(OtherPersonsCalc!$J$1:$S$17,MATCH($C39,OtherPersonsCalc!$I:$I,0),Y$8),0) -> 0 | Z39: =IFERROR(SUMIFS(OtherPersons!$S:$S,OtherPersons!$E:$E,Z$8,OtherPersons!$J:$J,$C39) / COUNTIFS(OtherPersons!$E:$E,Z$8,OtherPersons!$J:$J,$C39)*INDEX(OtherPersonsCalc!$J$1:$S$17,MATCH($C39,OtherPersonsCalc!$I:$I,0),Z$8),0) -> 0 | AA39: =IFERROR(SUMIFS(OtherPersons!$Z:$Z,OtherPersons!$E:$E,AA$8,OtherPersons!$J:$J,$C39) / COUNTIFS(OtherPersons!$E:$E,AA$8,OtherPersons!$J:$J,$C39)*INDEX(OtherPersonsCalc!$J$1:$S$17,MATCH($C39,OtherPersonsCalc!$I:$I,0),AA$8),0) -> 0 | AB39: 0 | AC39: 0 | AD39: 0
B40: 4 | D40: =IFERROR(SUMIFS(OtherPersons!$AC:$AC,OtherPersons!$E:$E,$H$8,OtherPersons!$J:$J,$C40) / COUNTIFS(OtherPersons!$E:$E,$H$8,OtherPersons!$J:$J,$C40)*INDEX(OtherPersonsCalc!$J$1:$S$17,MATCH($C40,OtherPersonsCalc!$I:$I,0),$H$8),"") ->  | G40: =IFERROR(INDEX(OtherPersonsCalc!$J$1:$S$17,MATCH($C40,OtherPersonsCalc!$I:$I,0),H$8),"") -> 0 | H40: =IFERROR(SUMIFS(OtherPersons!$S:$S,OtherPersons!$E:$E,H$8,OtherPersons!$J:$J,$C40) / COUNTIFS(OtherPersons!$E:$E,H$8,OtherPersons!$J:$J,$C40)*INDEX(OtherPersonsCalc!$J$1:$S$17,MATCH($C40,OtherPersonsCalc!$I:$I,0),H$8),0) -> 0 | I40: =IFERROR(SUMIFS(OtherPersons!$Z:$Z,OtherPersons!$E:$E,I$8,OtherPersons!$J:$J,$C40) / COUNTIFS(OtherPersons!$E:$E,I$8,OtherPersons!$J:$J,$C40)*INDEX(OtherPersonsCalc!$J$1:$S$17,MATCH($C40,OtherPersonsCalc!$I:$I,0),I$8),0) -> 0 | J40: =IFERROR(SUMIFS(OtherPersons!$S:$S,OtherPersons!$E:$E,J$8,OtherPersons!$J:$J,$C40) / COUNTIFS(OtherPersons!$E:$E,J$8,OtherPersons!$J:$J,$C40)*INDEX(OtherPersonsCalc!$J$1:$S$17,MATCH($C40,OtherPersonsCalc!$I:$I,0),J$8),0) -> 0 | K40: =IFERROR(SUMIFS(OtherPersons!$Z:$Z,OtherPersons!$E:$E,K$8,OtherPersons!$J:$J,$C40) / COUNTIFS(OtherPersons!$E:$E,K$8,OtherPersons!$J:$J,$C40)*INDEX(OtherPersonsCalc!$J$1:$S$17,MATCH($C40,OtherPersonsCalc!$I:$I,0),K$8),0) -> 0 | L40: =IFERROR(SUMIFS(OtherPersons!$S:$S,OtherPersons!$E:$E,L$8,OtherPersons!$J:$J,$C40) / COUNTIFS(OtherPersons!$E:$E,L$8,OtherPersons!$J:$J,$C40)*INDEX(OtherPersonsCalc!$J$1:$S$17,MATCH($C40,OtherPersonsCalc!$I:$I,0),L$8),0) -> 0 | M40: =IFERROR(SUMIFS(OtherPersons!$Z:$Z,OtherPersons!$E:$E,M$8,OtherPersons!$J:$J,$C40) / COUNTIFS(OtherPersons!$E:$E,M$8,OtherPersons!$J:$J,$C40)*INDEX(OtherPersonsCalc!$J$1:$S$17,MATCH($C40,OtherPersonsCalc!$I:$I,0),M$8),0) -> 0 | N40: =IFERROR(SUMIFS(OtherPersons!$S:$S,OtherPersons!$E:$E,N$8,OtherPersons!$J:$J,$C40) / COUNTIFS(OtherPersons!$E:$E,N$8,OtherPersons!$J:$J,$C40)*INDEX(OtherPersonsCalc!$J$1:$S$17,MATCH($C40,OtherPersonsCalc!$I:$I,0),N$8),0) -> 0 | O40: =IFERROR(SUMIFS(OtherPersons!$Z:$Z,OtherPersons!$E:$E,O$8,OtherPersons!$J:$J,$C40) / COUNTIFS(OtherPersons!$E:$E,O$8,OtherPersons!$J:$J,$C40)*INDEX(OtherPersonsCalc!$J$1:$S$17,MATCH($C40,OtherPersonsCalc!$I:$I,0),O$8),0) -> 0 | P40: =IFERROR(SUMIFS(OtherPersons!$S:$S,OtherPersons!$E:$E,P$8,OtherPersons!$J:$J,$C40) / COUNTIFS(OtherPersons!$E:$E,P$8,OtherPersons!$J:$J,$C40)*INDEX(OtherPersonsCalc!$J$1:$S$17,MATCH($C40,OtherPersonsCalc!$I:$I,0),P$8),0) -> 0 | Q40: =IFERROR(SUMIFS(OtherPersons!$Z:$Z,OtherPersons!$E:$E,Q$8,OtherPersons!$J:$J,$C40) / COUNTIFS(OtherPersons!$E:$E,Q$8,OtherPersons!$J:$J,$C40)*INDEX(OtherPersonsCalc!$J$1:$S$17,MATCH($C40,OtherPersonsCalc!$I:$I,0),Q$8),0) -> 0 | R40: =IFERROR(SUMIFS(OtherPersons!$S:$S,OtherPersons!$E:$E,R$8,OtherPersons!$J:$J,$C40) / COUNTIFS(OtherPersons!$E:$E,R$8,OtherPersons!$J:$J,$C40)*INDEX(OtherPersonsCalc!$J$1:$S$17,MATCH($C40,OtherPersonsCalc!$I:$I,0),R$8),0) -> 0 | S40: =IFERROR(SUMIFS(OtherPersons!$Z:$Z,OtherPersons!$E:$E,S$8,OtherPersons!$J:$J,$C40) / COUNTIFS(OtherPersons!$E:$E,S$8,OtherPersons!$J:$J,$C40)*INDEX(OtherPersonsCalc!$J$1:$S$17,MATCH($C40,OtherPersonsCalc!$I:$I,0),S$8),0) -> 0 | T40: =IFERROR(SUMIFS(OtherPersons!$S:$S,OtherPersons!$E:$E,T$8,OtherPersons!$J:$J,$C40) / COUNTIFS(OtherPersons!$E:$E,T$8,OtherPersons!$J:$J,$C40)*INDEX(OtherPersonsCalc!$J$1:$S$17,MATCH($C40,OtherPersonsCalc!$I:$I,0),T$8),0) -> 0 | U40: =IFERROR(SUMIFS(OtherPersons!$Z:$Z,OtherPersons!$E:$E,U$8,OtherPersons!$J:$J,$C40) / COUNTIFS(OtherPersons!$E:$E,U$8,OtherPersons!$J:$J,$C40)*INDEX(OtherPersonsCalc!$J$1:$S$17,MATCH($C40,OtherPersonsCalc!$I:$I,0),U$8),0) -> 0 | V40: =IFERROR(SUMIFS(OtherPersons!$S:$S,OtherPersons!$E:$E,V$8,OtherPersons!$J:$J,$C40) / COUNTIFS(OtherPersons!$E:$E,V$8,OtherPersons!$J:$J,$C40)*INDEX(OtherPersonsCalc!$J$1:$S$17,MATCH($C40,OtherPersonsCalc!$I:$I,0),V$8),0) -> 0 | W40: =IFERROR(SUMIFS(OtherPersons!$Z:$Z,OtherPersons!$E:$E,W$8,OtherPersons!$J:$J,$C40) / COUNTIFS(OtherPersons!$E:$E,W$8,OtherPersons!$J:$J,$C40)*INDEX(OtherPersonsCalc!$J$1:$S$17,MATCH($C40,OtherPersonsCalc!$I:$I,0),W$8),0) -> 0 | X40: =IFERROR(SUMIFS(OtherPersons!$S:$S,OtherPersons!$E:$E,X$8,OtherPersons!$J:$J,$C40) / COUNTIFS(OtherPersons!$E:$E,X$8,OtherPersons!$J:$J,$C40)*INDEX(OtherPersonsCalc!$J$1:$S$17,MATCH($C40,OtherPersonsCalc!$I:$I,0),X$8),0) -> 0 | Y40: =IFERROR(SUMIFS(OtherPersons!$Z:$Z,OtherPersons!$E:$E,Y$8,OtherPersons!$J:$J,$C40) / COUNTIFS(OtherPersons!$E:$E,Y$8,OtherPersons!$J:$J,$C40)*INDEX(OtherPersonsCalc!$J$1:$S$17,MATCH($C40,OtherPersonsCalc!$I:$I,0),Y$8),0) -> 0 | Z40: =IFERROR(SUMIFS(OtherPersons!$S:$S,OtherPersons!$E:$E,Z$8,OtherPersons!$J:$J,$C40) / COUNTIFS(OtherPersons!$E:$E,Z$8,OtherPersons!$J:$J,$C40)*INDEX(OtherPersonsCalc!$J$1:$S$17,MATCH($C40,OtherPersonsCalc!$I:$I,0),Z$8),0) -> 0 | AA40: =IFERROR(SUMIFS(OtherPersons!$Z:$Z,OtherPersons!$E:$E,AA$8,OtherPersons!$J:$J,$C40) / COUNTIFS(OtherPersons!$E:$E,AA$8,OtherPersons!$J:$J,$C40)*INDEX(OtherPersonsCalc!$J$1:$S$17,MATCH($C40,OtherPersonsCalc!$I:$I,0),AA$8),0) -> 0 | AB40: 0 | AC40: 0 | AD40: 0
B41: 5 | D41: =IFERROR(SUMIFS(OtherPersons!$AC:$AC,OtherPersons!$E:$E,$H$8,OtherPersons!$J:$J,$C41) / COUNTIFS(OtherPersons!$E:$E,$H$8,OtherPersons!$J:$J,$C41)*INDEX(OtherPersonsCalc!$J$1:$S$17,MATCH($C41,OtherPersonsCalc!$I:$I,0),$H$8),"") ->  | G41: =IFERROR(INDEX(OtherPersonsCalc!$J$1:$S$17,MATCH($C41,OtherPersonsCalc!$I:$I,0),H$8),"") -> 0 | H41: =IFERROR(SUMIFS(OtherPersons!$S:$S,OtherPersons!$E:$E,H$8,OtherPersons!$J:$J,$C41) / COUNTIFS(OtherPersons!$E:$E,H$8,OtherPersons!$J:$J,$C41)*INDEX(OtherPersonsCalc!$J$1:$S$17,MATCH($C41,OtherPersonsCalc!$I:$I,0),H$8),0) -> 0 | I41: =IFERROR(SUMIFS(OtherPersons!$Z:$Z,OtherPersons!$E:$E,I$8,OtherPersons!$J:$J,$C41) / COUNTIFS(OtherPersons!$E:$E,I$8,OtherPersons!$J:$J,$C41)*INDEX(OtherPersonsCalc!$J$1:$S$17,MATCH($C41,OtherPersonsCalc!$I:$I,0),I$8),0) -> 0 | J41: =IFERROR(SUMIFS(OtherPersons!$S:$S,OtherPersons!$E:$E,J$8,OtherPersons!$J:$J,$C41) / COUNTIFS(OtherPersons!$E:$E,J$8,OtherPersons!$J:$J,$C41)*INDEX(OtherPersonsCalc!$J$1:$S$17,MATCH($C41,OtherPersonsCalc!$I:$I,0),J$8),0) -> 0 | K41: =IFERROR(SUMIFS(OtherPersons!$Z:$Z,OtherPersons!$E:$E,K$8,OtherPersons!$J:$J,$C41) / COUNTIFS(OtherPersons!$E:$E,K$8,OtherPersons!$J:$J,$C41)*INDEX(OtherPersonsCalc!$J$1:$S$17,MATCH($C41,OtherPersonsCalc!$I:$I,0),K$8),0) -> 0 | L41: =IFERROR(SUMIFS(OtherPersons!$S:$S,OtherPersons!$E:$E,L$8,OtherPersons!$J:$J,$C41) / COUNTIFS(OtherPersons!$E:$E,L$8,OtherPersons!$J:$J,$C41)*INDEX(OtherPersonsCalc!$J$1:$S$17,MATCH($C41,OtherPersonsCalc!$I:$I,0),L$8),0) -> 0 | M41: =IFERROR(SUMIFS(OtherPersons!$Z:$Z,OtherPersons!$E:$E,M$8,OtherPersons!$J:$J,$C41) / COUNTIFS(OtherPersons!$E:$E,M$8,OtherPersons!$J:$J,$C41)*INDEX(OtherPersonsCalc!$J$1:$S$17,MATCH($C41,OtherPersonsCalc!$I:$I,0),M$8),0) -> 0 | N41: =IFERROR(SUMIFS(OtherPersons!$S:$S,OtherPersons!$E:$E,N$8,OtherPersons!$J:$J,$C41) / COUNTIFS(OtherPersons!$E:$E,N$8,OtherPersons!$J:$J,$C41)*INDEX(OtherPersonsCalc!$J$1:$S$17,MATCH($C41,OtherPersonsCalc!$I:$I,0),N$8),0) -> 0 | O41: =IFERROR(SUMIFS(OtherPersons!$Z:$Z,OtherPersons!$E:$E,O$8,OtherPersons!$J:$J,$C41) / COUNTIFS(OtherPersons!$E:$E,O$8,OtherPersons!$J:$J,$C41)*INDEX(OtherPersonsCalc!$J$1:$S$17,MATCH($C41,OtherPersonsCalc!$I:$I,0),O$8),0) -> 0 | P41: =IFERROR(SUMIFS(OtherPersons!$S:$S,OtherPersons!$E:$E,P$8,OtherPersons!$J:$J,$C41) / COUNTIFS(OtherPersons!$E:$E,P$8,OtherPersons!$J:$J,$C41)*INDEX(OtherPersonsCalc!$J$1:$S$17,MATCH($C41,OtherPersonsCalc!$I:$I,0),P$8),0) -> 0 | Q41: =IFERROR(SUMIFS(OtherPersons!$Z:$Z,OtherPersons!$E:$E,Q$8,OtherPersons!$J:$J,$C41) / COUNTIFS(OtherPersons!$E:$E,Q$8,OtherPersons!$J:$J,$C41)*INDEX(OtherPersonsCalc!$J$1:$S$17,MATCH($C41,OtherPersonsCalc!$I:$I,0),Q$8),0) -> 0 | R41: =IFERROR(SUMIFS(OtherPersons!$S:$S,OtherPersons!$E:$E,R$8,OtherPersons!$J:$J,$C41) / COUNTIFS(OtherPersons!$E:$E,R$8,OtherPersons!$J:$J,$C41)*INDEX(OtherPersonsCalc!$J$1:$S$17,MATCH($C41,OtherPersonsCalc!$I:$I,0),R$8),0) -> 0 | S41: =IFERROR(SUMIFS(OtherPersons!$Z:$Z,OtherPersons!$E:$E,S$8,OtherPersons!$J:$J,$C41) / COUNTIFS(OtherPersons!$E:$E,S$8,OtherPersons!$J:$J,$C41)*INDEX(OtherPersonsCalc!$J$1:$S$17,MATCH($C41,OtherPersonsCalc!$I:$I,0),S$8),0) -> 0 | T41: =IFERROR(SUMIFS(OtherPersons!$S:$S,OtherPersons!$E:$E,T$8,OtherPersons!$J:$J,$C41) / COUNTIFS(OtherPersons!$E:$E,T$8,OtherPersons!$J:$J,$C41)*INDEX(OtherPersonsCalc!$J$1:$S$17,MATCH($C41,OtherPersonsCalc!$I:$I,0),T$8),0) -> 0 | U41: =IFERROR(SUMIFS(OtherPersons!$Z:$Z,OtherPersons!$E:$E,U$8,OtherPersons!$J:$J,$C41) / COUNTIFS(OtherPersons!$E:$E,U$8,OtherPersons!$J:$J,$C41)*INDEX(OtherPersonsCalc!$J$1:$S$17,MATCH($C41,OtherPersonsCalc!$I:$I,0),U$8),0) -> 0 | V41: =IFERROR(SUMIFS(OtherPersons!$S:$S,OtherPersons!$E:$E,V$8,OtherPersons!$J:$J,$C41) / COUNTIFS(OtherPersons!$E:$E,V$8,OtherPersons!$J:$J,$C41)*INDEX(OtherPersonsCalc!$J$1:$S$17,MATCH($C41,OtherPersonsCalc!$I:$I,0),V$8),0) -> 0 | W41: =IFERROR(SUMIFS(OtherPersons!$Z:$Z,OtherPersons!$E:$E,W$8,OtherPersons!$J:$J,$C41) / COUNTIFS(OtherPersons!$E:$E,W$8,OtherPersons!$J:$J,$C41)*INDEX(OtherPersonsCalc!$J$1:$S$17,MATCH($C41,OtherPersonsCalc!$I:$I,0),W$8),0) -> 0 | X41: =IFERROR(SUMIFS(OtherPersons!$S:$S,OtherPersons!$E:$E,X$8,OtherPersons!$J:$J,$C41) / COUNTIFS(OtherPersons!$E:$E,X$8,OtherPersons!$J:$J,$C41)*INDEX(OtherPersonsCalc!$J$1:$S$17,MATCH($C41,OtherPersonsCalc!$I:$I,0),X$8),0) -> 0 | Y41: =IFERROR(SUMIFS(OtherPersons!$Z:$Z,OtherPersons!$E:$E,Y$8,OtherPersons!$J:$J,$C41) / COUNTIFS(OtherPersons!$E:$E,Y$8,OtherPersons!$J:$J,$C41)*INDEX(OtherPersonsCalc!$J$1:$S$17,MATCH($C41,OtherPersonsCalc!$I:$I,0),Y$8),0) -> 0 | Z41: =IFERROR(SUMIFS(OtherPersons!$S:$S,OtherPersons!$E:$E,Z$8,OtherPersons!$J:$J,$C41) / COUNTIFS(OtherPersons!$E:$E,Z$8,OtherPersons!$J:$J,$C41)*INDEX(OtherPersonsCalc!$J$1:$S$17,MATCH($C41,OtherPersonsCalc!$I:$I,0),Z$8),0) -> 0 | AA41: =IFERROR(SUMIFS(OtherPersons!$Z:$Z,OtherPersons!$E:$E,AA$8,OtherPersons!$J:$J,$C41) / COUNTIFS(OtherPersons!$E:$E,AA$8,OtherPersons!$J:$J,$C41)*INDEX(OtherPersonsCalc!$J$1:$S$17,MATCH($C41,OtherPersonsCalc!$I:$I,0),AA$8),0) -> 0 | AB41: 0 | AC41: 0 | AD41: =SUM(AB41+AC41) -> 0
B42: 6 | D42: =IFERROR(SUMIFS(OtherPersons!$AC:$AC,OtherPersons!$E:$E,$H$8,OtherPersons!$J:$J,$C42) / COUNTIFS(OtherPersons!$E:$E,$H$8,OtherPersons!$J:$J,$C42)*INDEX(OtherPersonsCalc!$J$1:$S$17,MATCH($C42,OtherPersonsCalc!$I:$I,0),$H$8),"") ->  | G42: =IFERROR(INDEX(OtherPersonsCalc!$J$1:$S$17,MATCH($C42,OtherPersonsCalc!$I:$I,0),H$8),"") -> 0 | H42: =IFERROR(SUMIFS(OtherPersons!$S:$S,OtherPersons!$E:$E,H$8,OtherPersons!$J:$J,$C42) / COUNTIFS(OtherPersons!$E:$E,H$8,OtherPersons!$J:$J,$C42)*INDEX(OtherPersonsCalc!$J$1:$S$17,MATCH($C42,OtherPersonsCalc!$I:$I,0),H$8),0) -> 0 | I42: =IFERROR(SUMIFS(OtherPersons!$Z:$Z,OtherPersons!$E:$E,I$8,OtherPersons!$J:$J,$C42) / COUNTIFS(OtherPersons!$E:$E,I$8,OtherPersons!$J:$J,$C42)*INDEX(OtherPersonsCalc!$J$1:$S$17,MATCH($C42,OtherPersonsCalc!$I:$I,0),I$8),0) -> 0 | J42: =IFERROR(SUMIFS(OtherPersons!$S:$S,OtherPersons!$E:$E,J$8,OtherPersons!$J:$J,$C42) / COUNTIFS(OtherPersons!$E:$E,J$8,OtherPersons!$J:$J,$C42)*INDEX(OtherPersonsCalc!$J$1:$S$17,MATCH($C42,OtherPersonsCalc!$I:$I,0),J$8),0) -> 0 | K42: =IFERROR(SUMIFS(OtherPersons!$Z:$Z,OtherPersons!$E:$E,K$8,OtherPersons!$J:$J,$C42) / COUNTIFS(OtherPersons!$E:$E,K$8,OtherPersons!$J:$J,$C42)*INDEX(OtherPersonsCalc!$J$1:$S$17,MATCH($C42,OtherPersonsCalc!$I:$I,0),K$8),0) -> 0 | L42: =IFERROR(SUMIFS(OtherPersons!$S:$S,OtherPersons!$E:$E,L$8,OtherPersons!$J:$J,$C42) / COUNTIFS(OtherPersons!$E:$E,L$8,OtherPersons!$J:$J,$C42)*INDEX(OtherPersonsCalc!$J$1:$S$17,MATCH($C42,OtherPersonsCalc!$I:$I,0),L$8),0) -> 0 | M42: =IFERROR(SUMIFS(OtherPersons!$Z:$Z,OtherPersons!$E:$E,M$8,OtherPersons!$J:$J,$C42) / COUNTIFS(OtherPersons!$E:$E,M$8,OtherPersons!$J:$J,$C42)*INDEX(OtherPersonsCalc!$J$1:$S$17,MATCH($C42,OtherPersonsCalc!$I:$I,0),M$8),0) -> 0 | N42: =IFERROR(SUMIFS(OtherPersons!$S:$S,OtherPersons!$E:$E,N$8,OtherPersons!$J:$J,$C42) / COUNTIFS(OtherPersons!$E:$E,N$8,OtherPersons!$J:$J,$C42)*INDEX(OtherPersonsCalc!$J$1:$S$17,MATCH($C42,OtherPersonsCalc!$I:$I,0),N$8),0) -> 0 | O42: =IFERROR(SUMIFS(OtherPersons!$Z:$Z,OtherPersons!$E:$E,O$8,OtherPersons!$J:$J,$C42) / COUNTIFS(OtherPersons!$E:$E,O$8,OtherPersons!$J:$J,$C42)*INDEX(OtherPersonsCalc!$J$1:$S$17,MATCH($C42,OtherPersonsCalc!$I:$I,0),O$8),0) -> 0 | P42: =IFERROR(SUMIFS(OtherPersons!$S:$S,OtherPersons!$E:$E,P$8,OtherPersons!$J:$J,$C42) / COUNTIFS(OtherPersons!$E:$E,P$8,OtherPersons!$J:$J,$C42)*INDEX(OtherPersonsCalc!$J$1:$S$17,MATCH($C42,OtherPersonsCalc!$I:$I,0),P$8),0) -> 0 | Q42: =IFERROR(SUMIFS(OtherPersons!$Z:$Z,OtherPersons!$E:$E,Q$8,OtherPersons!$J:$J,$C42) / COUNTIFS(OtherPersons!$E:$E,Q$8,OtherPersons!$J:$J,$C42)*INDEX(OtherPersonsCalc!$J$1:$S$17,MATCH($C42,OtherPersonsCalc!$I:$I,0),Q$8),0) -> 0 | R42: =IFERROR(SUMIFS(OtherPersons!$S:$S,OtherPersons!$E:$E,R$8,OtherPersons!$J:$J,$C42) / COUNTIFS(OtherPersons!$E:$E,R$8,OtherPersons!$J:$J,$C42)*INDEX(OtherPersonsCalc!$J$1:$S$17,MATCH($C42,OtherPersonsCalc!$I:$I,0),R$8),0) -> 0 | S42: =IFERROR(SUMIFS(OtherPersons!$Z:$Z,OtherPersons!$E:$E,S$8,OtherPersons!$J:$J,$C42) / COUNTIFS(OtherPersons!$E:$E,S$8,OtherPersons!$J:$J,$C42)*INDEX(OtherPersonsCalc!$J$1:$S$17,MATCH($C42,OtherPersonsCalc!$I:$I,0),S$8),0) -> 0 | T42: =IFERROR(SUMIFS(OtherPersons!$S:$S,OtherPersons!$E:$E,T$8,OtherPersons!$J:$J,$C42) / COUNTIFS(OtherPersons!$E:$E,T$8,OtherPersons!$J:$J,$C42)*INDEX(OtherPersonsCalc!$J$1:$S$17,MATCH($C42,OtherPersonsCalc!$I:$I,0),T$8),0) -> 0 | U42: =IFERROR(SUMIFS(OtherPersons!$Z:$Z,OtherPersons!$E:$E,U$8,OtherPersons!$J:$J,$C42) / COUNTIFS(OtherPersons!$E:$E,U$8,OtherPersons!$J:$J,$C42)*INDEX(OtherPersonsCalc!$J$1:$S$17,MATCH($C42,OtherPersonsCalc!$I:$I,0),U$8),0) -> 0 | V42: =IFERROR(SUMIFS(OtherPersons!$S:$S,OtherPersons!$E:$E,V$8,OtherPersons!$J:$J,$C42) / COUNTIFS(OtherPersons!$E:$E,V$8,OtherPersons!$J:$J,$C42)*INDEX(OtherPersonsCalc!$J$1:$S$17,MATCH($C42,OtherPersonsCalc!$I:$I,0),V$8),0) -> 0 | W42: =IFERROR(SUMIFS(OtherPersons!$Z:$Z,OtherPersons!$E:$E,W$8,OtherPersons!$J:$J,$C42) / COUNTIFS(OtherPersons!$E:$E,W$8,OtherPersons!$J:$J,$C42)*INDEX(OtherPersonsCalc!$J$1:$S$17,MATCH($C42,OtherPersonsCalc!$I:$I,0),W$8),0) -> 0 | X42: =IFERROR(SUMIFS(OtherPersons!$S:$S,OtherPersons!$E:$E,X$8,OtherPersons!$J:$J,$C42) / COUNTIFS(OtherPersons!$E:$E,X$8,OtherPersons!$J:$J,$C42)*INDEX(OtherPersonsCalc!$J$1:$S$17,MATCH($C42,OtherPersonsCalc!$I:$I,0),X$8),0) -> 0 | Y42: =IFERROR(SUMIFS(OtherPersons!$Z:$Z,OtherPersons!$E:$E,Y$8,OtherPersons!$J:$J,$C42) / COUNTIFS(OtherPersons!$E:$E,Y$8,OtherPersons!$J:$J,$C42)*INDEX(OtherPersonsCalc!$J$1:$S$17,MATCH($C42,OtherPersonsCalc!$I:$I,0),Y$8),0) -> 0 | Z42: =IFERROR(SUMIFS(OtherPersons!$S:$S,OtherPersons!$E:$E,Z$8,OtherPersons!$J:$J,$C42) / COUNTIFS(OtherPersons!$E:$E,Z$8,OtherPersons!$J:$J,$C42)*INDEX(OtherPersonsCalc!$J$1:$S$17,MATCH($C42,OtherPersonsCalc!$I:$I,0),Z$8),0) -> 0 | AA42: =IFERROR(SUMIFS(OtherPersons!$Z:$Z,OtherPersons!$E:$E,AA$8,OtherPersons!$J:$J,$C42) / COUNTIFS(OtherPersons!$E:$E,AA$8,OtherPersons!$J:$J,$C42)*INDEX(OtherPersonsCalc!$J$1:$S$17,MATCH($C42,OtherPersonsCalc!$I:$I,0),AA$8),0) -> 0 | AB42: 0 | AC42: 0 | AD42: 0
B43: 7 | D43: =IFERROR(SUMIFS(OtherPersons!$AC:$AC,OtherPersons!$E:$E,$H$8,OtherPersons!$J:$J,$C43) / COUNTIFS(OtherPersons!$E:$E,$H$8,OtherPersons!$J:$J,$C43)*INDEX(OtherPersonsCalc!$J$1:$S$17,MATCH($C43,OtherPersonsCalc!$I:$I,0),$H$8),"") ->  | G43: =IFERROR(INDEX(OtherPersonsCalc!$J$1:$S$17,MATCH($C43,OtherPersonsCalc!$I:$I,0),H$8),"") -> 0 | H43: =IFERROR(SUMIFS(OtherPersons!$S:$S,OtherPersons!$E:$E,H$8,OtherPersons!$J:$J,$C43) / COUNTIFS(OtherPersons!$E:$E,H$8,OtherPersons!$J:$J,$C43)*INDEX(OtherPersonsCalc!$J$1:$S$17,MATCH($C43,OtherPersonsCalc!$I:$I,0),H$8),0) -> 0 | I43: =IFERROR(SUMIFS(OtherPersons!$Z:$Z,OtherPersons!$E:$E,I$8,OtherPersons!$J:$J,$C43) / COUNTIFS(OtherPersons!$E:$E,I$8,OtherPersons!$J:$J,$C43)*INDEX(OtherPersonsCalc!$J$1:$S$17,MATCH($C43,OtherPersonsCalc!$I:$I,0),I$8),0) -> 0 | J43: =IFERROR(SUMIFS(OtherPersons!$S:$S,OtherPersons!$E:$E,J$8,OtherPersons!$J:$J,$C43) / COUNTIFS(OtherPersons!$E:$E,J$8,OtherPersons!$J:$J,$C43)*INDEX(OtherPersonsCalc!$J$1:$S$17,MATCH($C43,OtherPersonsCalc!$I:$I,0),J$8),0) -> 0 | K43: =IFERROR(SUMIFS(OtherPersons!$Z:$Z,OtherPersons!$E:$E,K$8,OtherPersons!$J:$J,$C43) / COUNTIFS(OtherPersons!$E:$E,K$8,OtherPersons!$J:$J,$C43)*INDEX(OtherPersonsCalc!$J$1:$S$17,MATCH($C43,OtherPersonsCalc!$I:$I,0),K$8),0) -> 0 | L43: =IFERROR(SUMIFS(OtherPersons!$S:$S,OtherPersons!$E:$E,L$8,OtherPersons!$J:$J,$C43) / COUNTIFS(OtherPersons!$E:$E,L$8,OtherPersons!$J:$J,$C43)*INDEX(OtherPersonsCalc!$J$1:$S$17,MATCH($C43,OtherPersonsCalc!$I:$I,0),L$8),0) -> 0 | M43: =IFERROR(SUMIFS(OtherPersons!$Z:$Z,OtherPersons!$E:$E,M$8,OtherPersons!$J:$J,$C43) / COUNTIFS(OtherPersons!$E:$E,M$8,OtherPersons!$J:$J,$C43)*INDEX(OtherPersonsCalc!$J$1:$S$17,MATCH($C43,OtherPersonsCalc!$I:$I,0),M$8),0) -> 0 | N43: =IFERROR(SUMIFS(OtherPersons!$S:$S,OtherPersons!$E:$E,N$8,OtherPersons!$J:$J,$C43) / COUNTIFS(OtherPersons!$E:$E,N$8,OtherPersons!$J:$J,$C43)*INDEX(OtherPersonsCalc!$J$1:$S$17,MATCH($C43,OtherPersonsCalc!$I:$I,0),N$8),0) -> 0 | O43: =IFERROR(SUMIFS(OtherPersons!$Z:$Z,OtherPersons!$E:$E,O$8,OtherPersons!$J:$J,$C43) / COUNTIFS(OtherPersons!$E:$E,O$8,OtherPersons!$J:$J,$C43)*INDEX(OtherPersonsCalc!$J$1:$S$17,MATCH($C43,OtherPersonsCalc!$I:$I,0),O$8),0) -> 0 | P43: =IFERROR(SUMIFS(OtherPersons!$S:$S,OtherPersons!$E:$E,P$8,OtherPersons!$J:$J,$C43) / COUNTIFS(OtherPersons!$E:$E,P$8,OtherPersons!$J:$J,$C43)*INDEX(OtherPersonsCalc!$J$1:$S$17,MATCH($C43,OtherPersonsCalc!$I:$I,0),P$8),0) -> 0 | Q43: =IFERROR(SUMIFS(OtherPersons!$Z:$Z,OtherPersons!$E:$E,Q$8,OtherPersons!$J:$J,$C43) / COUNTIFS(OtherPersons!$E:$E,Q$8,OtherPersons!$J:$J,$C43)*INDEX(OtherPersonsCalc!$J$1:$S$17,MATCH($C43,OtherPersonsCalc!$I:$I,0),Q$8),0) -> 0 | R43: =IFERROR(SUMIFS(OtherPersons!$S:$S,OtherPersons!$E:$E,R$8,OtherPersons!$J:$J,$C43) / COUNTIFS(OtherPersons!$E:$E,R$8,OtherPersons!$J:$J,$C43)*INDEX(OtherPersonsCalc!$J$1:$S$17,MATCH($C43,OtherPersonsCalc!$I:$I,0),R$8),0) -> 0 | S43: =IFERROR(SUMIFS(OtherPersons!$Z:$Z,OtherPersons!$E:$E,S$8,OtherPersons!$J:$J,$C43) / COUNTIFS(OtherPersons!$E:$E,S$8,OtherPersons!$J:$J,$C43)*INDEX(OtherPersonsCalc!$J$1:$S$17,MATCH($C43,OtherPersonsCalc!$I:$I,0),S$8),0) -> 0 | T43: =IFERROR(SUMIFS(OtherPersons!$S:$S,OtherPersons!$E:$E,T$8,OtherPersons!$J:$J,$C43) / COUNTIFS(OtherPersons!$E:$E,T$8,OtherPersons!$J:$J,$C43)*INDEX(OtherPersonsCalc!$J$1:$S$17,MATCH($C43,OtherPersonsCalc!$I:$I,0),T$8),0) -> 0 | U43: =IFERROR(SUMIFS(OtherPersons!$Z:$Z,OtherPersons!$E:$E,U$8,OtherPersons!$J:$J,$C43) / COUNTIFS(OtherPersons!$E:$E,U$8,OtherPersons!$J:$J,$C43)*INDEX(OtherPersonsCalc!$J$1:$S$17,MATCH($C43,OtherPersonsCalc!$I:$I,0),U$8),0) -> 0 | V43: =IFERROR(SUMIFS(OtherPersons!$S:$S,OtherPersons!$E:$E,V$8,OtherPersons!$J:$J,$C43) / COUNTIFS(OtherPersons!$E:$E,V$8,OtherPersons!$J:$J,$C43)*INDEX(OtherPersonsCalc!$J$1:$S$17,MATCH($C43,OtherPersonsCalc!$I:$I,0),V$8),0) -> 0 | W43: =IFERROR(SUMIFS(OtherPersons!$Z:$Z,OtherPersons!$E:$E,W$8,OtherPersons!$J:$J,$C43) / COUNTIFS(OtherPersons!$E:$E,W$8,OtherPersons!$J:$J,$C43)*INDEX(OtherPersonsCalc!$J$1:$S$17,MATCH($C43,OtherPersonsCalc!$I:$I,0),W$8),0) -> 0 | X43: =IFERROR(SUMIFS(OtherPersons!$S:$S,OtherPersons!$E:$E,X$8,OtherPersons!$J:$J,$C43) / COUNTIFS(OtherPersons!$E:$E,X$8,OtherPersons!$J:$J,$C43)*INDEX(OtherPersonsCalc!$J$1:$S$17,MATCH($C43,OtherPersonsCalc!$I:$I,0),X$8),0) -> 0 | Y43: =IFERROR(SUMIFS(OtherPersons!$Z:$Z,OtherPersons!$E:$E,Y$8,OtherPersons!$J:$J,$C43) / COUNTIFS(OtherPersons!$E:$E,Y$8,OtherPersons!$J:$J,$C43)*INDEX(OtherPersonsCalc!$J$1:$S$17,MATCH($C43,OtherPersonsCalc!$I:$I,0),Y$8),0) -> 0 | Z43: =IFERROR(SUMIFS(OtherPersons!$S:$S,OtherPersons!$E:$E,Z$8,OtherPersons!$J:$J,$C43) / COUNTIFS(OtherPersons!$E:$E,Z$8,OtherPersons!$J:$J,$C43)*INDEX(OtherPersonsCalc!$J$1:$S$17,MATCH($C43,OtherPersonsCalc!$I:$I,0),Z$8),0) -> 0 | AA43: =IFERROR(SUMIFS(OtherPersons!$Z:$Z,OtherPersons!$E:$E,AA$8,OtherPersons!$J:$J,$C43) / COUNTIFS(OtherPersons!$E:$E,AA$8,OtherPersons!$J:$J,$C43)*INDEX(OtherPersonsCalc!$J$1:$S$17,MATCH($C43,OtherPersonsCalc!$I:$I,0),AA$8),0) -> 0 | AB43: 0 | AC43: 0 | AD43: 0
B44: 8 | D44: =IFERROR(SUMIFS(OtherPersons!$AC:$AC,OtherPersons!$E:$E,$H$8,OtherPersons!$J:$J,$C44) / COUNTIFS(OtherPersons!$E:$E,$H$8,OtherPersons!$J:$J,$C44)*INDEX(OtherPersonsCalc!$J$1:$S$17,MATCH($C44,OtherPersonsCalc!$I:$I,0),$H$8),"") ->  | G44: =IFERROR(INDEX(OtherPersonsCalc!$J$1:$S$17,MATCH($C44,OtherPersonsCalc!$I:$I,0),H$8),"") -> 0 | H44: =IFERROR(SUMIFS(OtherPersons!$S:$S,OtherPersons!$E:$E,H$8,OtherPersons!$J:$J,$C44) / COUNTIFS(OtherPersons!$E:$E,H$8,OtherPersons!$J:$J,$C44)*INDEX(OtherPersonsCalc!$J$1:$S$17,MATCH($C44,OtherPersonsCalc!$I:$I,0),H$8),0) -> 0 | I44: =IFERROR(SUMIFS(OtherPersons!$Z:$Z,OtherPersons!$E:$E,I$8,OtherPersons!$J:$J,$C44) / COUNTIFS(OtherPersons!$E:$E,I$8,OtherPersons!$J:$J,$C44)*INDEX(OtherPersonsCalc!$J$1:$S$17,MATCH($C44,OtherPersonsCalc!$I:$I,0),I$8),0) -> 0 | J44: =IFERROR(SUMIFS(OtherPersons!$S:$S,OtherPersons!$E:$E,J$8,OtherPersons!$J:$J,$C44) / COUNTIFS(OtherPersons!$E:$E,J$8,OtherPersons!$J:$J,$C44)*INDEX(OtherPersonsCalc!$J$1:$S$17,MATCH($C44,OtherPersonsCalc!$I:$I,0),J$8),0) -> 0 | K44: =IFERROR(SUMIFS(OtherPersons!$Z:$Z,OtherPersons!$E:$E,K$8,OtherPersons!$J:$J,$C44) / COUNTIFS(OtherPersons!$E:$E,K$8,OtherPersons!$J:$J,$C44)*INDEX(OtherPersonsCalc!$J$1:$S$17,MATCH($C44,OtherPersonsCalc!$I:$I,0),K$8),0) -> 0 | L44: =IFERROR(SUMIFS(OtherPersons!$S:$S,OtherPersons!$E:$E,L$8,OtherPersons!$J:$J,$C44) / COUNTIFS(OtherPersons!$E:$E,L$8,OtherPersons!$J:$J,$C44)*INDEX(OtherPersonsCalc!$J$1:$S$17,MATCH($C44,OtherPersonsCalc!$I:$I,0),L$8),0) -> 0 | M44: =IFERROR(SUMIFS(OtherPersons!$Z:$Z,OtherPersons!$E:$E,M$8,OtherPersons!$J:$J,$C44) / COUNTIFS(OtherPersons!$E:$E,M$8,OtherPersons!$J:$J,$C44)*INDEX(OtherPersonsCalc!$J$1:$S$17,MATCH($C44,OtherPersonsCalc!$I:$I,0),M$8),0) -> 0 | N44: =IFERROR(SUMIFS(OtherPersons!$S:$S,OtherPersons!$E:$E,N$8,OtherPersons!$J:$J,$C44) / COUNTIFS(OtherPersons!$E:$E,N$8,OtherPersons!$J:$J,$C44)*INDEX(OtherPersonsCalc!$J$1:$S$17,MATCH($C44,OtherPersonsCalc!$I:$I,0),N$8),0) -> 0 | O44: =IFERROR(SUMIFS(OtherPersons!$Z:$Z,OtherPersons!$E:$E,O$8,OtherPersons!$J:$J,$C44) / COUNTIFS(OtherPersons!$E:$E,O$8,OtherPersons!$J:$J,$C44)*INDEX(OtherPersonsCalc!$J$1:$S$17,MATCH($C44,OtherPersonsCalc!$I:$I,0),O$8),0) -> 0 | P44: =IFERROR(SUMIFS(OtherPersons!$S:$S,OtherPersons!$E:$E,P$8,OtherPersons!$J:$J,$C44) / COUNTIFS(OtherPersons!$E:$E,P$8,OtherPersons!$J:$J,$C44)*INDEX(OtherPersonsCalc!$J$1:$S$17,MATCH($C44,OtherPersonsCalc!$I:$I,0),P$8),0) -> 0 | Q44: =IFERROR(SUMIFS(OtherPersons!$Z:$Z,OtherPersons!$E:$E,Q$8,OtherPersons!$J:$J,$C44) / COUNTIFS(OtherPersons!$E:$E,Q$8,OtherPersons!$J:$J,$C44)*INDEX(OtherPersonsCalc!$J$1:$S$17,MATCH($C44,OtherPersonsCalc!$I:$I,0),Q$8),0) -> 0 | R44: =IFERROR(SUMIFS(OtherPersons!$S:$S,OtherPersons!$E:$E,R$8,OtherPersons!$J:$J,$C44) / COUNTIFS(OtherPersons!$E:$E,R$8,OtherPersons!$J:$J,$C44)*INDEX(OtherPersonsCalc!$J$1:$S$17,MATCH($C44,OtherPersonsCalc!$I:$I,0),R$8),0) -> 0 | S44: =IFERROR(SUMIFS(OtherPersons!$Z:$Z,OtherPersons!$E:$E,S$8,OtherPersons!$J:$J,$C44) / COUNTIFS(OtherPersons!$E:$E,S$8,OtherPersons!$J:$J,$C44)*INDEX(OtherPersonsCalc!$J$1:$S$17,MATCH($C44,OtherPersonsCalc!$I:$I,0),S$8),0) -> 0 | T44: =IFERROR(SUMIFS(OtherPersons!$S:$S,OtherPersons!$E:$E,T$8,OtherPersons!$J:$J,$C44) / COUNTIFS(OtherPersons!$E:$E,T$8,OtherPersons!$J:$J,$C44)*INDEX(OtherPersonsCalc!$J$1:$S$17,MATCH($C44,OtherPersonsCalc!$I:$I,0),T$8),0) -> 0 | U44: =IFERROR(SUMIFS(OtherPersons!$Z:$Z,OtherPersons!$E:$E,U$8,OtherPersons!$J:$J,$C44) / COUNTIFS(OtherPersons!$E:$E,U$8,OtherPersons!$J:$J,$C44)*INDEX(OtherPersonsCalc!$J$1:$S$17,MATCH($C44,OtherPersonsCalc!$I:$I,0),U$8),0) -> 0 | V44: =IFERROR(SUMIFS(OtherPersons!$S:$S,OtherPersons!$E:$E,V$8,OtherPersons!$J:$J,$C44) / COUNTIFS(OtherPersons!$E:$E,V$8,OtherPersons!$J:$J,$C44)*INDEX(OtherPersonsCalc!$J$1:$S$17,MATCH($C44,OtherPersonsCalc!$I:$I,0),V$8),0) -> 0 | W44: =IFERROR(SUMIFS(OtherPersons!$Z:$Z,OtherPersons!$E:$E,W$8,OtherPersons!$J:$J,$C44) / COUNTIFS(OtherPersons!$E:$E,W$8,OtherPersons!$J:$J,$C44)*INDEX(OtherPersonsCalc!$J$1:$S$17,MATCH($C44,OtherPersonsCalc!$I:$I,0),W$8),0) -> 0 | X44: =IFERROR(SUMIFS(OtherPersons!$S:$S,OtherPersons!$E:$E,X$8,OtherPersons!$J:$J,$C44) / COUNTIFS(OtherPersons!$E:$E,X$8,OtherPersons!$J:$J,$C44)*INDEX(OtherPersonsCalc!$J$1:$S$17,MATCH($C44,OtherPersonsCalc!$I:$I,0),X$8),0) -> 0 | Y44: =IFERROR(SUMIFS(OtherPersons!$Z:$Z,OtherPersons!$E:$E,Y$8,OtherPersons!$J:$J,$C44) / COUNTIFS(OtherPersons!$E:$E,Y$8,OtherPersons!$J:$J,$C44)*INDEX(OtherPersonsCalc!$J$1:$S$17,MATCH($C44,OtherPersonsCalc!$I:$I,0),Y$8),0) -> 0 | Z44: =IFERROR(SUMIFS(OtherPersons!$S:$S,OtherPersons!$E:$E,Z$8,OtherPersons!$J:$J,$C44) / COUNTIFS(OtherPersons!$E:$E,Z$8,OtherPersons!$J:$J,$C44)*INDEX(OtherPersonsCalc!$J$1:$S$17,MATCH($C44,OtherPersonsCalc!$I:$I,0),Z$8),0) -> 0 | AA44: =IFERROR(SUMIFS(OtherPersons!$Z:$Z,OtherPersons!$E:$E,AA$8,OtherPersons!$J:$J,$C44) / COUNTIFS(OtherPersons!$E:$E,AA$8,OtherPersons!$J:$J,$C44)*INDEX(OtherPersonsCalc!$J$1:$S$17,MATCH($C44,OtherPersonsCalc!$I:$I,0),AA$8),0) -> 0 | AB44: 0 | AC44: 0 | AD44: 0
B45: 9 | D45: =IFERROR(SUMIFS(OtherPersons!$AC:$AC,OtherPersons!$E:$E,$H$8,OtherPersons!$J:$J,$C45) / COUNTIFS(OtherPersons!$E:$E,$H$8,OtherPersons!$J:$J,$C45)*INDEX(OtherPersonsCalc!$J$1:$S$17,MATCH($C45,OtherPersonsCalc!$I:$I,0),$H$8),"") ->  | G45: =IFERROR(INDEX(OtherPersonsCalc!$J$1:$S$17,MATCH($C45,OtherPersonsCalc!$I:$I,0),H$8),"") -> 0 | H45: =IFERROR(SUMIFS(OtherPersons!$S:$S,OtherPersons!$E:$E,H$8,OtherPersons!$J:$J,$C45) / COUNTIFS(OtherPersons!$E:$E,H$8,OtherPersons!$J:$J,$C45)*INDEX(OtherPersonsCalc!$J$1:$S$17,MATCH($C45,OtherPersonsCalc!$I:$I,0),H$8),0) -> 0 | I45: =IFERROR(SUMIFS(OtherPersons!$Z:$Z,OtherPersons!$E:$E,I$8,OtherPersons!$J:$J,$C45) / COUNTIFS(OtherPersons!$E:$E,I$8,OtherPersons!$J:$J,$C45)*INDEX(OtherPersonsCalc!$J$1:$S$17,MATCH($C45,OtherPersonsCalc!$I:$I,0),I$8),0) -> 0 | J45: =IFERROR(SUMIFS(OtherPersons!$S:$S,OtherPersons!$E:$E,J$8,OtherPersons!$J:$J,$C45) / COUNTIFS(OtherPersons!$E:$E,J$8,OtherPersons!$J:$J,$C45)*INDEX(OtherPersonsCalc!$J$1:$S$17,MATCH($C45,OtherPersonsCalc!$I:$I,0),J$8),0) -> 0 | K45: =IFERROR(SUMIFS(OtherPersons!$Z:$Z,OtherPersons!$E:$E,K$8,OtherPersons!$J:$J,$C45) / COUNTIFS(OtherPersons!$E:$E,K$8,OtherPersons!$J:$J,$C45)*INDEX(OtherPersonsCalc!$J$1:$S$17,MATCH($C45,OtherPersonsCalc!$I:$I,0),K$8),0) -> 0 | L45: =IFERROR(SUMIFS(OtherPersons!$S:$S,OtherPersons!$E:$E,L$8,OtherPersons!$J:$J,$C45) / COUNTIFS(OtherPersons!$E:$E,L$8,OtherPersons!$J:$J,$C45)*INDEX(OtherPersonsCalc!$J$1:$S$17,MATCH($C45,OtherPersonsCalc!$I:$I,0),L$8),0) -> 0 | M45: =IFERROR(SUMIFS(OtherPersons!$Z:$Z,OtherPersons!$E:$E,M$8,OtherPersons!$J:$J,$C45) / COUNTIFS(OtherPersons!$E:$E,M$8,OtherPersons!$J:$J,$C45)*INDEX(OtherPersonsCalc!$J$1:$S$17,MATCH($C45,OtherPersonsCalc!$I:$I,0),M$8),0) -> 0 | N45: =IFERROR(SUMIFS(OtherPersons!$S:$S,OtherPersons!$E:$E,N$8,OtherPersons!$J:$J,$C45) / COUNTIFS(OtherPersons!$E:$E,N$8,OtherPersons!$J:$J,$C45)*INDEX(OtherPersonsCalc!$J$1:$S$17,MATCH($C45,OtherPersonsCalc!$I:$I,0),N$8),0) -> 0 | O45: =IFERROR(SUMIFS(OtherPersons!$Z:$Z,OtherPersons!$E:$E,O$8,OtherPersons!$J:$J,$C45) / COUNTIFS(OtherPersons!$E:$E,O$8,OtherPersons!$J:$J,$C45)*INDEX(OtherPersonsCalc!$J$1:$S$17,MATCH($C45,OtherPersonsCalc!$I:$I,0),O$8),0) -> 0 | P45: =IFERROR(SUMIFS(OtherPersons!$S:$S,OtherPersons!$E:$E,P$8,OtherPersons!$J:$J,$C45) / COUNTIFS(OtherPersons!$E:$E,P$8,OtherPersons!$J:$J,$C45)*INDEX(OtherPersonsCalc!$J$1:$S$17,MATCH($C45,OtherPersonsCalc!$I:$I,0),P$8),0) -> 0 | Q45: =IFERROR(SUMIFS(OtherPersons!$Z:$Z,OtherPersons!$E:$E,Q$8,OtherPersons!$J:$J,$C45) / COUNTIFS(OtherPersons!$E:$E,Q$8,OtherPersons!$J:$J,$C45)*INDEX(OtherPersonsCalc!$J$1:$S$17,MATCH($C45,OtherPersonsCalc!$I:$I,0),Q$8),0) -> 0 | R45: =IFERROR(SUMIFS(OtherPersons!$S:$S,OtherPersons!$E:$E,R$8,OtherPersons!$J:$J,$C45) / COUNTIFS(OtherPersons!$E:$E,R$8,OtherPersons!$J:$J,$C45)*INDEX(OtherPersonsCalc!$J$1:$S$17,MATCH($C45,OtherPersonsCalc!$I:$I,0),R$8),0) -> 0 | S45: =IFERROR(SUMIFS(OtherPersons!$Z:$Z,OtherPersons!$E:$E,S$8,OtherPersons!$J:$J,$C45) / COUNTIFS(OtherPersons!$E:$E,S$8,OtherPersons!$J:$J,$C45)*INDEX(OtherPersonsCalc!$J$1:$S$17,MATCH($C45,OtherPersonsCalc!$I:$I,0),S$8),0) -> 0 | T45: =IFERROR(SUMIFS(OtherPersons!$S:$S,OtherPersons!$E:$E,T$8,OtherPersons!$J:$J,$C45) / COUNTIFS(OtherPersons!$E:$E,T$8,OtherPersons!$J:$J,$C45)*INDEX(OtherPersonsCalc!$J$1:$S$17,MATCH($C45,OtherPersonsCalc!$I:$I,0),T$8),0) -> 0 | U45: =IFERROR(SUMIFS(OtherPersons!$Z:$Z,OtherPersons!$E:$E,U$8,OtherPersons!$J:$J,$C45) / COUNTIFS(OtherPersons!$E:$E,U$8,OtherPersons!$J:$J,$C45)*INDEX(OtherPersonsCalc!$J$1:$S$17,MATCH($C45,OtherPersonsCalc!$I:$I,0),U$8),0) -> 0 | V45: =IFERROR(SUMIFS(OtherPersons!$S:$S,OtherPersons!$E:$E,V$8,OtherPersons!$J:$J,$C45) / COUNTIFS(OtherPersons!$E:$E,V$8,OtherPersons!$J:$J,$C45)*INDEX(OtherPersonsCalc!$J$1:$S$17,MATCH($C45,OtherPersonsCalc!$I:$I,0),V$8),0) -> 0 | W45: =IFERROR(SUMIFS(OtherPersons!$Z:$Z,OtherPersons!$E:$E,W$8,OtherPersons!$J:$J,$C45) / COUNTIFS(OtherPersons!$E:$E,W$8,OtherPersons!$J:$J,$C45)*INDEX(OtherPersonsCalc!$J$1:$S$17,MATCH($C45,OtherPersonsCalc!$I:$I,0),W$8),0) -> 0 | X45: =IFERROR(SUMIFS(OtherPersons!$S:$S,OtherPersons!$E:$E,X$8,OtherPersons!$J:$J,$C45) / COUNTIFS(OtherPersons!$E:$E,X$8,OtherPersons!$J:$J,$C45)*INDEX(OtherPersonsCalc!$J$1:$S$17,MATCH($C45,OtherPersonsCalc!$I:$I,0),X$8),0) -> 0 | Y45: =IFERROR(SUMIFS(OtherPersons!$Z:$Z,OtherPersons!$E:$E,Y$8,OtherPersons!$J:$J,$C45) / COUNTIFS(OtherPersons!$E:$E,Y$8,OtherPersons!$J:$J,$C45)*INDEX(OtherPersonsCalc!$J$1:$S$17,MATCH($C45,OtherPersonsCalc!$I:$I,0),Y$8),0) -> 0 | Z45: =IFERROR(SUMIFS(OtherPersons!$S:$S,OtherPersons!$E:$E,Z$8,OtherPersons!$J:$J,$C45) / COUNTIFS(OtherPersons!$E:$E,Z$8,OtherPersons!$J:$J,$C45)*INDEX(OtherPersonsCalc!$J$1:$S$17,MATCH($C45,OtherPersonsCalc!$I:$I,0),Z$8),0) -> 0 | AA45: =IFERROR(SUMIFS(OtherPersons!$Z:$Z,OtherPersons!$E:$E,AA$8,OtherPersons!$J:$J,$C45) / COUNTIFS(OtherPersons!$E:$E,AA$8,OtherPersons!$J:$J,$C45)*INDEX(OtherPersonsCalc!$J$1:$S$17,MATCH($C45,OtherPersonsCalc!$I:$I,0),AA$8),0) -> 0 | AB45: 0 | AC45: 0 | AD45: 0
B46: 10 | D46: =IFERROR(SUMIFS(OtherPersons!$AC:$AC,OtherPersons!$E:$E,$H$8,OtherPersons!$J:$J,$C46) / COUNTIFS(OtherPersons!$E:$E,$H$8,OtherPersons!$J:$J,$C46)*INDEX(OtherPersonsCalc!$J$1:$S$17,MATCH($C46,OtherPersonsCalc!$I:$I,0),$H$8),"") ->  | G46: =IFERROR(INDEX(OtherPersonsCalc!$J$1:$S$17,MATCH($C46,OtherPersonsCalc!$I:$I,0),H$8),"") -> 0 | H46: =IFERROR(SUMIFS(OtherPersons!$S:$S,OtherPersons!$E:$E,H$8,OtherPersons!$J:$J,$C46) / COUNTIFS(OtherPersons!$E:$E,H$8,OtherPersons!$J:$J,$C46)*INDEX(OtherPersonsCalc!$J$1:$S$17,MATCH($C46,OtherPersonsCalc!$I:$I,0),H$8),0) -> 0 | I46: =IFERROR(SUMIFS(OtherPersons!$Z:$Z,OtherPersons!$E:$E,I$8,OtherPersons!$J:$J,$C46) / COUNTIFS(OtherPersons!$E:$E,I$8,OtherPersons!$J:$J,$C46)*INDEX(OtherPersonsCalc!$J$1:$S$17,MATCH($C46,OtherPersonsCalc!$I:$I,0),I$8),0) -> 0 | J46: =IFERROR(SUMIFS(OtherPersons!$S:$S,OtherPersons!$E:$E,J$8,OtherPersons!$J:$J,$C46) / COUNTIFS(OtherPersons!$E:$E,J$8,OtherPersons!$J:$J,$C46)*INDEX(OtherPersonsCalc!$J$1:$S$17,MATCH($C46,OtherPersonsCalc!$I:$I,0),J$8),0) -> 0 | K46: =IFERROR(SUMIFS(OtherPersons!$Z:$Z,OtherPersons!$E:$E,K$8,OtherPersons!$J:$J,$C46) / COUNTIFS(OtherPersons!$E:$E,K$8,OtherPersons!$J:$J,$C46)*INDEX(OtherPersonsCalc!$J$1:$S$17,MATCH($C46,OtherPersonsCalc!$I:$I,0),K$8),0) -> 0 | L46: =IFERROR(SUMIFS(OtherPersons!$S:$S,OtherPersons!$E:$E,L$8,OtherPersons!$J:$J,$C46) / COUNTIFS(OtherPersons!$E:$E,L$8,OtherPersons!$J:$J,$C46)*INDEX(OtherPersonsCalc!$J$1:$S$17,MATCH($C46,OtherPersonsCalc!$I:$I,0),L$8),0) -> 0 | M46: =IFERROR(SUMIFS(OtherPersons!$Z:$Z,OtherPersons!$E:$E,M$8,OtherPersons!$J:$J,$C46) / COUNTIFS(OtherPersons!$E:$E,M$8,OtherPersons!$J:$J,$C46)*INDEX(OtherPersonsCalc!$J$1:$S$17,MATCH($C46,OtherPersonsCalc!$I:$I,0),M$8),0) -> 0 | N46: =IFERROR(SUMIFS(OtherPersons!$S:$S,OtherPersons!$E:$E,N$8,OtherPersons!$J:$J,$C46) / COUNTIFS(OtherPersons!$E:$E,N$8,OtherPersons!$J:$J,$C46)*INDEX(OtherPersonsCalc!$J$1:$S$17,MATCH($C46,OtherPersonsCalc!$I:$I,0),N$8),0) -> 0 | O46: =IFERROR(SUMIFS(OtherPersons!$Z:$Z,OtherPersons!$E:$E,O$8,OtherPersons!$J:$J,$C46) / COUNTIFS(OtherPersons!$E:$E,O$8,OtherPersons!$J:$J,$C46)*INDEX(OtherPersonsCalc!$J$1:$S$17,MATCH($C46,OtherPersonsCalc!$I:$I,0),O$8),0) -> 0 | P46: =IFERROR(SUMIFS(OtherPersons!$S:$S,OtherPersons!$E:$E,P$8,OtherPersons!$J:$J,$C46) / COUNTIFS(OtherPersons!$E:$E,P$8,OtherPersons!$J:$J,$C46)*INDEX(OtherPersonsCalc!$J$1:$S$17,MATCH($C46,OtherPersonsCalc!$I:$I,0),P$8),0) -> 0 | Q46: =IFERROR(SUMIFS(OtherPersons!$Z:$Z,OtherPersons!$E:$E,Q$8,OtherPersons!$J:$J,$C46) / COUNTIFS(OtherPersons!$E:$E,Q$8,OtherPersons!$J:$J,$C46)*INDEX(OtherPersonsCalc!$J$1:$S$17,MATCH($C46,OtherPersonsCalc!$I:$I,0),Q$8),0) -> 0 | R46: =IFERROR(SUMIFS(OtherPersons!$S:$S,OtherPersons!$E:$E,R$8,OtherPersons!$J:$J,$C46) / COUNTIFS(OtherPersons!$E:$E,R$8,OtherPersons!$J:$J,$C46)*INDEX(OtherPersonsCalc!$J$1:$S$17,MATCH($C46,OtherPersonsCalc!$I:$I,0),R$8),0) -> 0 | S46: =IFERROR(SUMIFS(OtherPersons!$Z:$Z,OtherPersons!$E:$E,S$8,OtherPersons!$J:$J,$C46) / COUNTIFS(OtherPersons!$E:$E,S$8,OtherPersons!$J:$J,$C46)*INDEX(OtherPersonsCalc!$J$1:$S$17,MATCH($C46,OtherPersonsCalc!$I:$I,0),S$8),0) -> 0 | T46: =IFERROR(SUMIFS(OtherPersons!$S:$S,OtherPersons!$E:$E,T$8,OtherPersons!$J:$J,$C46) / COUNTIFS(OtherPersons!$E:$E,T$8,OtherPersons!$J:$J,$C46)*INDEX(OtherPersonsCalc!$J$1:$S$17,MATCH($C46,OtherPersonsCalc!$I:$I,0),T$8),0) -> 0 | U46: =IFERROR(SUMIFS(OtherPersons!$Z:$Z,OtherPersons!$E:$E,U$8,OtherPersons!$J:$J,$C46) / COUNTIFS(OtherPersons!$E:$E,U$8,OtherPersons!$J:$J,$C46)*INDEX(OtherPersonsCalc!$J$1:$S$17,MATCH($C46,OtherPersonsCalc!$I:$I,0),U$8),0) -> 0 | V46: =IFERROR(SUMIFS(OtherPersons!$S:$S,OtherPersons!$E:$E,V$8,OtherPersons!$J:$J,$C46) / COUNTIFS(OtherPersons!$E:$E,V$8,OtherPersons!$J:$J,$C46)*INDEX(OtherPersonsCalc!$J$1:$S$17,MATCH($C46,OtherPersonsCalc!$I:$I,0),V$8),0) -> 0 | W46: =IFERROR(SUMIFS(OtherPersons!$Z:$Z,OtherPersons!$E:$E,W$8,OtherPersons!$J:$J,$C46) / COUNTIFS(OtherPersons!$E:$E,W$8,OtherPersons!$J:$J,$C46)*INDEX(OtherPersonsCalc!$J$1:$S$17,MATCH($C46,OtherPersonsCalc!$I:$I,0),W$8),0) -> 0 | X46: =IFERROR(SUMIFS(OtherPersons!$S:$S,OtherPersons!$E:$E,X$8,OtherPersons!$J:$J,$C46) / COUNTIFS(OtherPersons!$E:$E,X$8,OtherPersons!$J:$J,$C46)*INDEX(OtherPersonsCalc!$J$1:$S$17,MATCH($C46,OtherPersonsCalc!$I:$I,0),X$8),0) -> 0 | Y46: =IFERROR(SUMIFS(OtherPersons!$Z:$Z,OtherPersons!$E:$E,Y$8,OtherPersons!$J:$J,$C46) / COUNTIFS(OtherPersons!$E:$E,Y$8,OtherPersons!$J:$J,$C46)*INDEX(OtherPersonsCalc!$J$1:$S$17,MATCH($C46,OtherPersonsCalc!$I:$I,0),Y$8),0) -> 0 | Z46: =IFERROR(SUMIFS(OtherPersons!$S:$S,OtherPersons!$E:$E,Z$8,OtherPersons!$J:$J,$C46) / COUNTIFS(OtherPersons!$E:$E,Z$8,OtherPersons!$J:$J,$C46)*INDEX(OtherPersonsCalc!$J$1:$S$17,MATCH($C46,OtherPersonsCalc!$I:$I,0),Z$8),0) -> 0 | AA46: =IFERROR(SUMIFS(OtherPersons!$Z:$Z,OtherPersons!$E:$E,AA$8,OtherPersons!$J:$J,$C46) / COUNTIFS(OtherPersons!$E:$E,AA$8,OtherPersons!$J:$J,$C46)*INDEX(OtherPersonsCalc!$J$1:$S$17,MATCH($C46,OtherPersonsCalc!$I:$I,0),AA$8),0) -> 0 | AB46: 0 | AC46: 0 | AD46: 0
B47: 11 | D47: =IFERROR(SUMIFS(OtherPersons!$AC:$AC,OtherPersons!$E:$E,$H$8,OtherPersons!$J:$J,$C47) / COUNTIFS(OtherPersons!$E:$E,$H$8,OtherPersons!$J:$J,$C47)*INDEX(OtherPersonsCalc!$J$1:$S$17,MATCH($C47,OtherPersonsCalc!$I:$I,0),$H$8),"") ->  | G47: =IFERROR(INDEX(OtherPersonsCalc!$J$1:$S$17,MATCH($C47,OtherPersonsCalc!$I:$I,0),H$8),"") -> 0 | H47: =IFERROR(SUMIFS(OtherPersons!$S:$S,OtherPersons!$E:$E,H$8,OtherPersons!$J:$J,$C47) / COUNTIFS(OtherPersons!$E:$E,H$8,OtherPersons!$J:$J,$C47)*INDEX(OtherPersonsCalc!$J$1:$S$17,MATCH($C47,OtherPersonsCalc!$I:$I,0),H$8),0) -> 0 | I47: =IFERROR(SUMIFS(OtherPersons!$Z:$Z,OtherPersons!$E:$E,I$8,OtherPersons!$J:$J,$C47) / COUNTIFS(OtherPersons!$E:$E,I$8,OtherPersons!$J:$J,$C47)*INDEX(OtherPersonsCalc!$J$1:$S$17,MATCH($C47,OtherPersonsCalc!$I:$I,0),I$8),0) -> 0 | J47: =IFERROR(SUMIFS(OtherPersons!$S:$S,OtherPersons!$E:$E,J$8,OtherPersons!$J:$J,$C47) / COUNTIFS(OtherPersons!$E:$E,J$8,OtherPersons!$J:$J,$C47)*INDEX(OtherPersonsCalc!$J$1:$S$17,MATCH($C47,OtherPersonsCalc!$I:$I,0),J$8),0) -> 0 | K47: =IFERROR(SUMIFS(OtherPersons!$Z:$Z,OtherPersons!$E:$E,K$8,OtherPersons!$J:$J,$C47) / COUNTIFS(OtherPersons!$E:$E,K$8,OtherPersons!$J:$J,$C47)*INDEX(OtherPersonsCalc!$J$1:$S$17,MATCH($C47,OtherPersonsCalc!$I:$I,0),K$8),0) -> 0 | L47: =IFERROR(SUMIFS(OtherPersons!$S:$S,OtherPersons!$E:$E,L$8,OtherPersons!$J:$J,$C47) / COUNTIFS(OtherPersons!$E:$E,L$8,OtherPersons!$J:$J,$C47)*INDEX(OtherPersonsCalc!$J$1:$S$17,MATCH($C47,OtherPersonsCalc!$I:$I,0),L$8),0) -> 0 | M47: =IFERROR(SUMIFS(OtherPersons!$Z:$Z,OtherPersons!$E:$E,M$8,OtherPersons!$J:$J,$C47) / COUNTIFS(OtherPersons!$E:$E,M$8,OtherPersons!$J:$J,$C47)*INDEX(OtherPersonsCalc!$J$1:$S$17,MATCH($C47,OtherPersonsCalc!$I:$I,0),M$8),0) -> 0 | N47: =IFERROR(SUMIFS(OtherPersons!$S:$S,OtherPersons!$E:$E,N$8,OtherPersons!$J:$J,$C47) / COUNTIFS(OtherPersons!$E:$E,N$8,OtherPersons!$J:$J,$C47)*INDEX(OtherPersonsCalc!$J$1:$S$17,MATCH($C47,OtherPersonsCalc!$I:$I,0),N$8),0) -> 0 | O47: =IFERROR(SUMIFS(OtherPersons!$Z:$Z,OtherPersons!$E:$E,O$8,OtherPersons!$J:$J,$C47) / COUNTIFS(OtherPersons!$E:$E,O$8,OtherPersons!$J:$J,$C47)*INDEX(OtherPersonsCalc!$J$1:$S$17,MATCH($C47,OtherPersonsCalc!$I:$I,0),O$8),0) -> 0 | P47: =IFERROR(SUMIFS(OtherPersons!$S:$S,OtherPersons!$E:$E,P$8,OtherPersons!$J:$J,$C47) / COUNTIFS(OtherPersons!$E:$E,P$8,OtherPersons!$J:$J,$C47)*INDEX(OtherPersonsCalc!$J$1:$S$17,MATCH($C47,OtherPersonsCalc!$I:$I,0),P$8),0) -> 0 | Q47: =IFERROR(SUMIFS(OtherPersons!$Z:$Z,OtherPersons!$E:$E,Q$8,OtherPersons!$J:$J,$C47) / COUNTIFS(OtherPersons!$E:$E,Q$8,OtherPersons!$J:$J,$C47)*INDEX(OtherPersonsCalc!$J$1:$S$17,MATCH($C47,OtherPersonsCalc!$I:$I,0),Q$8),0) -> 0 | R47: =IFERROR(SUMIFS(OtherPersons!$S:$S,OtherPersons!$E:$E,R$8,OtherPersons!$J:$J,$C47) / COUNTIFS(OtherPersons!$E:$E,R$8,OtherPersons!$J:$J,$C47)*INDEX(OtherPersonsCalc!$J$1:$S$17,MATCH($C47,OtherPersonsCalc!$I:$I,0),R$8),0) -> 0 | S47: =IFERROR(SUMIFS(OtherPersons!$Z:$Z,OtherPersons!$E:$E,S$8,OtherPersons!$J:$J,$C47) / COUNTIFS(OtherPersons!$E:$E,S$8,OtherPersons!$J:$J,$C47)*INDEX(OtherPersonsCalc!$J$1:$S$17,MATCH($C47,OtherPersonsCalc!$I:$I,0),S$8),0) -> 0 | T47: =IFERROR(SUMIFS(OtherPersons!$S:$S,OtherPersons!$E:$E,T$8,OtherPersons!$J:$J,$C47) / COUNTIFS(OtherPersons!$E:$E,T$8,OtherPersons!$J:$J,$C47)*INDEX(OtherPersonsCalc!$J$1:$S$17,MATCH($C47,OtherPersonsCalc!$I:$I,0),T$8),0) -> 0 | U47: =IFERROR(SUMIFS(OtherPersons!$Z:$Z,OtherPersons!$E:$E,U$8,OtherPersons!$J:$J,$C47) / COUNTIFS(OtherPersons!$E:$E,U$8,OtherPersons!$J:$J,$C47)*INDEX(OtherPersonsCalc!$J$1:$S$17,MATCH($C47,OtherPersonsCalc!$I:$I,0),U$8),0) -> 0 | V47: =IFERROR(SUMIFS(OtherPersons!$S:$S,OtherPersons!$E:$E,V$8,OtherPersons!$J:$J,$C47) / COUNTIFS(OtherPersons!$E:$E,V$8,OtherPersons!$J:$J,$C47)*INDEX(OtherPersonsCalc!$J$1:$S$17,MATCH($C47,OtherPersonsCalc!$I:$I,0),V$8),0) -> 0 | W47: =IFERROR(SUMIFS(OtherPersons!$Z:$Z,OtherPersons!$E:$E,W$8,OtherPersons!$J:$J,$C47) / COUNTIFS(OtherPersons!$E:$E,W$8,OtherPersons!$J:$J,$C47)*INDEX(OtherPersonsCalc!$J$1:$S$17,MATCH($C47,OtherPersonsCalc!$I:$I,0),W$8),0) -> 0 | X47: =IFERROR(SUMIFS(OtherPersons!$S:$S,OtherPersons!$E:$E,X$8,OtherPersons!$J:$J,$C47) / COUNTIFS(OtherPersons!$E:$E,X$8,OtherPersons!$J:$J,$C47)*INDEX(OtherPersonsCalc!$J$1:$S$17,MATCH($C47,OtherPersonsCalc!$I:$I,0),X$8),0) -> 0 | Y47: =IFERROR(SUMIFS(OtherPersons!$Z:$Z,OtherPersons!$E:$E,Y$8,OtherPersons!$J:$J,$C47) / COUNTIFS(OtherPersons!$E:$E,Y$8,OtherPersons!$J:$J,$C47)*INDEX(OtherPersonsCalc!$J$1:$S$17,MATCH($C47,OtherPersonsCalc!$I:$I,0),Y$8),0) -> 0 | Z47: =IFERROR(SUMIFS(OtherPersons!$S:$S,OtherPersons!$E:$E,Z$8,OtherPersons!$J:$J,$C47) / COUNTIFS(OtherPersons!$E:$E,Z$8,OtherPersons!$J:$J,$C47)*INDEX(OtherPersonsCalc!$J$1:$S$17,MATCH($C47,OtherPersonsCalc!$I:$I,0),Z$8),0) -> 0 | AA47: =IFERROR(SUMIFS(OtherPersons!$Z:$Z,OtherPersons!$E:$E,AA$8,OtherPersons!$J:$J,$C47) / COUNTIFS(OtherPersons!$E:$E,AA$8,OtherPersons!$J:$J,$C47)*INDEX(OtherPersonsCalc!$J$1:$S$17,MATCH($C47,OtherPersonsCalc!$I:$I,0),AA$8),0) -> 0 | AB47: 0 | AC47: 0 | AD47: =SUM(AB47+AC47) -> 0
B48: 12 | D48: =IFERROR(SUMIFS(OtherPersons!$AC:$AC,OtherPersons!$E:$E,$H$8,OtherPersons!$J:$J,$C48) / COUNTIFS(OtherPersons!$E:$E,$H$8,OtherPersons!$J:$J,$C48)*INDEX(OtherPersonsCalc!$J$1:$S$17,MATCH($C48,OtherPersonsCalc!$I:$I,0),$H$8),"") ->  | G48: =IFERROR(INDEX(OtherPersonsCalc!$J$1:$S$17,MATCH($C48,OtherPersonsCalc!$I:$I,0),H$8),"") -> 0 | H48: =IFERROR(SUMIFS(OtherPersons!$S:$S,OtherPersons!$E:$E,H$8,OtherPersons!$J:$J,$C48) / COUNTIFS(OtherPersons!$E:$E,H$8,OtherPersons!$J:$J,$C48)*INDEX(OtherPersonsCalc!$J$1:$S$17,MATCH($C48,OtherPersonsCalc!$I:$I,0),H$8),0) -> 0 | I48: =IFERROR(SUMIFS(OtherPersons!$Z:$Z,OtherPersons!$E:$E,I$8,OtherPersons!$J:$J,$C48) / COUNTIFS(OtherPersons!$E:$E,I$8,OtherPersons!$J:$J,$C48)*INDEX(OtherPersonsCalc!$J$1:$S$17,MATCH($C48,OtherPersonsCalc!$I:$I,0),I$8),0) -> 0 | J48: =IFERROR(SUMIFS(OtherPersons!$S:$S,OtherPersons!$E:$E,J$8,OtherPersons!$J:$J,$C48) / COUNTIFS(OtherPersons!$E:$E,J$8,OtherPersons!$J:$J,$C48)*INDEX(OtherPersonsCalc!$J$1:$S$17,MATCH($C48,OtherPersonsCalc!$I:$I,0),J$8),0) -> 0 | K48: =IFERROR(SUMIFS(OtherPersons!$Z:$Z,OtherPersons!$E:$E,K$8,OtherPersons!$J:$J,$C48) / COUNTIFS(OtherPersons!$E:$E,K$8,OtherPersons!$J:$J,$C48)*INDEX(OtherPersonsCalc!$J$1:$S$17,MATCH($C48,OtherPersonsCalc!$I:$I,0),K$8),0) -> 0 | L48: =IFERROR(SUMIFS(OtherPersons!$S:$S,OtherPersons!$E:$E,L$8,OtherPersons!$J:$J,$C48) / COUNTIFS(OtherPersons!$E:$E,L$8,OtherPersons!$J:$J,$C48)*INDEX(OtherPersonsCalc!$J$1:$S$17,MATCH($C48,OtherPersonsCalc!$I:$I,0),L$8),0) -> 0 | M48: =IFERROR(SUMIFS(OtherPersons!$Z:$Z,OtherPersons!$E:$E,M$8,OtherPersons!$J:$J,$C48) / COUNTIFS(OtherPersons!$E:$E,M$8,OtherPersons!$J:$J,$C48)*INDEX(OtherPersonsCalc!$J$1:$S$17,MATCH($C48,OtherPersonsCalc!$I:$I,0),M$8),0) -> 0 | N48: =IFERROR(SUMIFS(OtherPersons!$S:$S,OtherPersons!$E:$E,N$8,OtherPersons!$J:$J,$C48) / COUNTIFS(OtherPersons!$E:$E,N$8,OtherPersons!$J:$J,$C48)*INDEX(OtherPersonsCalc!$J$1:$S$17,MATCH($C48,OtherPersonsCalc!$I:$I,0),N$8),0) -> 0 | O48: =IFERROR(SUMIFS(OtherPersons!$Z:$Z,OtherPersons!$E:$E,O$8,OtherPersons!$J:$J,$C48) / COUNTIFS(OtherPersons!$E:$E,O$8,OtherPersons!$J:$J,$C48)*INDEX(OtherPersonsCalc!$J$1:$S$17,MATCH($C48,OtherPersonsCalc!$I:$I,0),O$8),0) -> 0 | P48: =IFERROR(SUMIFS(OtherPersons!$S:$S,OtherPersons!$E:$E,P$8,OtherPersons!$J:$J,$C48) / COUNTIFS(OtherPersons!$E:$E,P$8,OtherPersons!$J:$J,$C48)*INDEX(OtherPersonsCalc!$J$1:$S$17,MATCH($C48,OtherPersonsCalc!$I:$I,0),P$8),0) -> 0 | Q48: =IFERROR(SUMIFS(OtherPersons!$Z:$Z,OtherPersons!$E:$E,Q$8,OtherPersons!$J:$J,$C48) / COUNTIFS(OtherPersons!$E:$E,Q$8,OtherPersons!$J:$J,$C48)*INDEX(OtherPersonsCalc!$J$1:$S$17,MATCH($C48,OtherPersonsCalc!$I:$I,0),Q$8),0) -> 0 | R48: =IFERROR(SUMIFS(OtherPersons!$S:$S,OtherPersons!$E:$E,R$8,OtherPersons!$J:$J,$C48) / COUNTIFS(OtherPersons!$E:$E,R$8,OtherPersons!$J:$J,$C48)*INDEX(OtherPersonsCalc!$J$1:$S$17,MATCH($C48,OtherPersonsCalc!$I:$I,0),R$8),0) -> 0 | S48: =IFERROR(SUMIFS(OtherPersons!$Z:$Z,OtherPersons!$E:$E,S$8,OtherPersons!$J:$J,$C48) / COUNTIFS(OtherPersons!$E:$E,S$8,OtherPersons!$J:$J,$C48)*INDEX(OtherPersonsCalc!$J$1:$S$17,MATCH($C48,OtherPersonsCalc!$I:$I,0),S$8),0) -> 0 | T48: =IFERROR(SUMIFS(OtherPersons!$S:$S,OtherPersons!$E:$E,T$8,OtherPersons!$J:$J,$C48) / COUNTIFS(OtherPersons!$E:$E,T$8,OtherPersons!$J:$J,$C48)*INDEX(OtherPersonsCalc!$J$1:$S$17,MATCH($C48,OtherPersonsCalc!$I:$I,0),T$8),0) -> 0 | U48: =IFERROR(SUMIFS(OtherPersons!$Z:$Z,OtherPersons!$E:$E,U$8,OtherPersons!$J:$J,$C48) / COUNTIFS(OtherPersons!$E:$E,U$8,OtherPersons!$J:$J,$C48)*INDEX(OtherPersonsCalc!$J$1:$S$17,MATCH($C48,OtherPersonsCalc!$I:$I,0),U$8),0) -> 0 | V48: =IFERROR(SUMIFS(OtherPersons!$S:$S,OtherPersons!$E:$E,V$8,OtherPersons!$J:$J,$C48) / COUNTIFS(OtherPersons!$E:$E,V$8,OtherPersons!$J:$J,$C48)*INDEX(OtherPersonsCalc!$J$1:$S$17,MATCH($C48,OtherPersonsCalc!$I:$I,0),V$8),0) -> 0 | W48: =IFERROR(SUMIFS(OtherPersons!$Z:$Z,OtherPersons!$E:$E,W$8,OtherPersons!$J:$J,$C48) / COUNTIFS(OtherPersons!$E:$E,W$8,OtherPersons!$J:$J,$C48)*INDEX(OtherPersonsCalc!$J$1:$S$17,MATCH($C48,OtherPersonsCalc!$I:$I,0),W$8),0) -> 0 | X48: =IFERROR(SUMIFS(OtherPersons!$S:$S,OtherPersons!$E:$E,X$8,OtherPersons!$J:$J,$C48) / COUNTIFS(OtherPersons!$E:$E,X$8,OtherPersons!$J:$J,$C48)*INDEX(OtherPersonsCalc!$J$1:$S$17,MATCH($C48,OtherPersonsCalc!$I:$I,0),X$8),0) -> 0 | Y48: =IFERROR(SUMIFS(OtherPersons!$Z:$Z,OtherPersons!$E:$E,Y$8,OtherPersons!$J:$J,$C48) / COUNTIFS(OtherPersons!$E:$E,Y$8,OtherPersons!$J:$J,$C48)*INDEX(OtherPersonsCalc!$J$1:$S$17,MATCH($C48,OtherPersonsCalc!$I:$I,0),Y$8),0) -> 0 | Z48: =IFERROR(SUMIFS(OtherPersons!$S:$S,OtherPersons!$E:$E,Z$8,OtherPersons!$J:$J,$C48) / COUNTIFS(OtherPersons!$E:$E,Z$8,OtherPersons!$J:$J,$C48)*INDEX(OtherPersonsCalc!$J$1:$S$17,MATCH($C48,OtherPersonsCalc!$I:$I,0),Z$8),0) -> 0 | AA48: =IFERROR(SUMIFS(OtherPersons!$Z:$Z,OtherPersons!$E:$E,AA$8,OtherPersons!$J:$J,$C48) / COUNTIFS(OtherPersons!$E:$E,AA$8,OtherPersons!$J:$J,$C48)*INDEX(OtherPersonsCalc!$J$1:$S$17,MATCH($C48,OtherPersonsCalc!$I:$I,0),AA$8),0) -> 0 | AB48: 0 | AC48: 0 | AD48: 0
B49: 13 | D49: =IFERROR(SUMIFS(OtherPersons!$AC:$AC,OtherPersons!$E:$E,$H$8,OtherPersons!$J:$J,$C49) / COUNTIFS(OtherPersons!$E:$E,$H$8,OtherPersons!$J:$J,$C49)*INDEX(OtherPersonsCalc!$J$1:$S$17,MATCH($C49,OtherPersonsCalc!$I:$I,0),$H$8),"") ->  | G49: =IFERROR(INDEX(OtherPersonsCalc!$J$1:$S$17,MATCH($C49,OtherPersonsCalc!$I:$I,0),H$8),"") -> 0 | H49: =IFERROR(SUMIFS(OtherPersons!$S:$S,OtherPersons!$E:$E,H$8,OtherPersons!$J:$J,$C49) / COUNTIFS(OtherPersons!$E:$E,H$8,OtherPersons!$J:$J,$C49)*INDEX(OtherPersonsCalc!$J$1:$S$17,MATCH($C49,OtherPersonsCalc!$I:$I,0),H$8),0) -> 0 | I49: =IFERROR(SUMIFS(OtherPersons!$Z:$Z,OtherPersons!$E:$E,I$8,OtherPersons!$J:$J,$C49) / COUNTIFS(OtherPersons!$E:$E,I$8,OtherPersons!$J:$J,$C49)*INDEX(OtherPersonsCalc!$J$1:$S$17,MATCH($C49,OtherPersonsCalc!$I:$I,0),I$8),0) -> 0 | J49: =IFERROR(SUMIFS(OtherPersons!$S:$S,OtherPersons!$E:$E,J$8,OtherPersons!$J:$J,$C49) / COUNTIFS(OtherPersons!$E:$E,J$8,OtherPersons!$J:$J,$C49)*INDEX(OtherPersonsCalc!$J$1:$S$17,MATCH($C49,OtherPersonsCalc!$I:$I,0),J$8),0) -> 0 | K49: =IFERROR(SUMIFS(OtherPersons!$Z:$Z,OtherPersons!$E:$E,K$8,OtherPersons!$J:$J,$C49) / COUNTIFS(OtherPersons!$E:$E,K$8,OtherPersons!$J:$J,$C49)*INDEX(OtherPersonsCalc!$J$1:$S$17,MATCH($C49,OtherPersonsCalc!$I:$I,0),K$8),0) -> 0 | L49: =IFERROR(SUMIFS(OtherPersons!$S:$S,OtherPersons!$E:$E,L$8,OtherPersons!$J:$J,$C49) / COUNTIFS(OtherPersons!$E:$E,L$8,OtherPersons!$J:$J,$C49)*INDEX(OtherPersonsCalc!$J$1:$S$17,MATCH($C49,OtherPersonsCalc!$I:$I,0),L$8),0) -> 0 | M49: =IFERROR(SUMIFS(OtherPersons!$Z:$Z,OtherPersons!$E:$E,M$8,OtherPersons!$J:$J,$C49) / COUNTIFS(OtherPersons!$E:$E,M$8,OtherPersons!$J:$J,$C49)*INDEX(OtherPersonsCalc!$J$1:$S$17,MATCH($C49,OtherPersonsCalc!$I:$I,0),M$8),0) -> 0 | N49: =IFERROR(SUMIFS(OtherPersons!$S:$S,OtherPersons!$E:$E,N$8,OtherPersons!$J:$J,$C49) / COUNTIFS(OtherPersons!$E:$E,N$8,OtherPersons!$J:$J,$C49)*INDEX(OtherPersonsCalc!$J$1:$S$17,MATCH($C49,OtherPersonsCalc!$I:$I,0),N$8),0) -> 0 | O49: =IFERROR(SUMIFS(OtherPersons!$Z:$Z,OtherPersons!$E:$E,O$8,OtherPersons!$J:$J,$C49) / COUNTIFS(OtherPersons!$E:$E,O$8,OtherPersons!$J:$J,$C49)*INDEX(OtherPersonsCalc!$J$1:$S$17,MATCH($C49,OtherPersonsCalc!$I:$I,0),O$8),0) -> 0 | P49: =IFERROR(SUMIFS(OtherPersons!$S:$S,OtherPersons!$E:$E,P$8,OtherPersons!$J:$J,$C49) / COUNTIFS(OtherPersons!$E:$E,P$8,OtherPersons!$J:$J,$C49)*INDEX(OtherPersonsCalc!$J$1:$S$17,MATCH($C49,OtherPersonsCalc!$I:$I,0),P$8),0) -> 0 | Q49: =IFERROR(SUMIFS(OtherPersons!$Z:$Z,OtherPersons!$E:$E,Q$8,OtherPersons!$J:$J,$C49) / COUNTIFS(OtherPersons!$E:$E,Q$8,OtherPersons!$J:$J,$C49)*INDEX(OtherPersonsCalc!$J$1:$S$17,MATCH($C49,OtherPersonsCalc!$I:$I,0),Q$8),0) -> 0 | R49: =IFERROR(SUMIFS(OtherPersons!$S:$S,OtherPersons!$E:$E,R$8,OtherPersons!$J:$J,$C49) / COUNTIFS(OtherPersons!$E:$E,R$8,OtherPersons!$J:$J,$C49)*INDEX(OtherPersonsCalc!$J$1:$S$17,MATCH($C49,OtherPersonsCalc!$I:$I,0),R$8),0) -> 0 | S49: =IFERROR(SUMIFS(OtherPersons!$Z:$Z,OtherPersons!$E:$E,S$8,OtherPersons!$J:$J,$C49) / COUNTIFS(OtherPersons!$E:$E,S$8,OtherPersons!$J:$J,$C49)*INDEX(OtherPersonsCalc!$J$1:$S$17,MATCH($C49,OtherPersonsCalc!$I:$I,0),S$8),0) -> 0 | T49: =IFERROR(SUMIFS(OtherPersons!$S:$S,OtherPersons!$E:$E,T$8,OtherPersons!$J:$J,$C49) / COUNTIFS(OtherPersons!$E:$E,T$8,OtherPersons!$J:$J,$C49)*INDEX(OtherPersonsCalc!$J$1:$S$17,MATCH($C49,OtherPersonsCalc!$I:$I,0),T$8),0) -> 0 | U49: =IFERROR(SUMIFS(OtherPersons!$Z:$Z,OtherPersons!$E:$E,U$8,OtherPersons!$J:$J,$C49) / COUNTIFS(OtherPersons!$E:$E,U$8,OtherPersons!$J:$J,$C49)*INDEX(OtherPersonsCalc!$J$1:$S$17,MATCH($C49,OtherPersonsCalc!$I:$I,0),U$8),0) -> 0 | V49: =IFERROR(SUMIFS(OtherPersons!$S:$S,OtherPersons!$E:$E,V$8,OtherPersons!$J:$J,$C49) / COUNTIFS(OtherPersons!$E:$E,V$8,OtherPersons!$J:$J,$C49)*INDEX(OtherPersonsCalc!$J$1:$S$17,MATCH($C49,OtherPersonsCalc!$I:$I,0),V$8),0) -> 0 | W49: =IFERROR(SUMIFS(OtherPersons!$Z:$Z,OtherPersons!$E:$E,W$8,OtherPersons!$J:$J,$C49) / COUNTIFS(OtherPersons!$E:$E,W$8,OtherPersons!$J:$J,$C49)*INDEX(OtherPersonsCalc!$J$1:$S$17,MATCH($C49,OtherPersonsCalc!$I:$I,0),W$8),0) -> 0 | X49: =IFERROR(SUMIFS(OtherPersons!$S:$S,OtherPersons!$E:$E,X$8,OtherPersons!$J:$J,$C49) / COUNTIFS(OtherPersons!$E:$E,X$8,OtherPersons!$J:$J,$C49)*INDEX(OtherPersonsCalc!$J$1:$S$17,MATCH($C49,OtherPersonsCalc!$I:$I,0),X$8),0) -> 0 | Y49: =IFERROR(SUMIFS(OtherPersons!$Z:$Z,OtherPersons!$E:$E,Y$8,OtherPersons!$J:$J,$C49) / COUNTIFS(OtherPersons!$E:$E,Y$8,OtherPersons!$J:$J,$C49)*INDEX(OtherPersonsCalc!$J$1:$S$17,MATCH($C49,OtherPersonsCalc!$I:$I,0),Y$8),0) -> 0 | Z49: =IFERROR(SUMIFS(OtherPersons!$S:$S,OtherPersons!$E:$E,Z$8,OtherPersons!$J:$J,$C49) / COUNTIFS(OtherPersons!$E:$E,Z$8,OtherPersons!$J:$J,$C49)*INDEX(OtherPersonsCalc!$J$1:$S$17,MATCH($C49,OtherPersonsCalc!$I:$I,0),Z$8),0) -> 0 | AA49: =IFERROR(SUMIFS(OtherPersons!$Z:$Z,OtherPersons!$E:$E,AA$8,OtherPersons!$J:$J,$C49) / COUNTIFS(OtherPersons!$E:$E,AA$8,OtherPersons!$J:$J,$C49)*INDEX(OtherPersonsCalc!$J$1:$S$17,MATCH($C49,OtherPersonsCalc!$I:$I,0),AA$8),0) -> 0 | AB49: 0 | AC49: 0 | AD49: 0
B50: 14 | D50: =IFERROR(SUMIFS(OtherPersons!$AC:$AC,OtherPersons!$E:$E,$H$8,OtherPersons!$J:$J,$C50) / COUNTIFS(OtherPersons!$E:$E,$H$8,OtherPersons!$J:$J,$C50)*INDEX(OtherPersonsCalc!$J$1:$S$17,MATCH($C50,OtherPersonsCalc!$I:$I,0),$H$8),"") ->  | G50: =IFERROR(INDEX(OtherPersonsCalc!$J$1:$S$17,MATCH($C50,OtherPersonsCalc!$I:$I,0),H$8),"") -> 0 | H50: =IFERROR(SUMIFS(OtherPersons!$S:$S,OtherPersons!$E:$E,H$8,OtherPersons!$J:$J,$C50) / COUNTIFS(OtherPersons!$E:$E,H$8,OtherPersons!$J:$J,$C50)*INDEX(OtherPersonsCalc!$J$1:$S$17,MATCH($C50,OtherPersonsCalc!$I:$I,0),H$8),0) -> 0 | I50: =IFERROR(SUMIFS(OtherPersons!$Z:$Z,OtherPersons!$E:$E,I$8,OtherPersons!$J:$J,$C50) / COUNTIFS(OtherPersons!$E:$E,I$8,OtherPersons!$J:$J,$C50)*INDEX(OtherPersonsCalc!$J$1:$S$17,MATCH($C50,OtherPersonsCalc!$I:$I,0),I$8),0) -> 0 | J50: =IFERROR(SUMIFS(OtherPersons!$S:$S,OtherPersons!$E:$E,J$8,OtherPersons!$J:$J,$C50) / COUNTIFS(OtherPersons!$E:$E,J$8,OtherPersons!$J:$J,$C50)*INDEX(OtherPersonsCalc!$J$1:$S$17,MATCH($C50,OtherPersonsCalc!$I:$I,0),J$8),0) -> 0 | K50: =IFERROR(SUMIFS(OtherPersons!$Z:$Z,OtherPersons!$E:$E,K$8,OtherPersons!$J:$J,$C50) / COUNTIFS(OtherPersons!$E:$E,K$8,OtherPersons!$J:$J,$C50)*INDEX(OtherPersonsCalc!$J$1:$S$17,MATCH($C50,OtherPersonsCalc!$I:$I,0),K$8),0) -> 0 | L50: =IFERROR(SUMIFS(OtherPersons!$S:$S,OtherPersons!$E:$E,L$8,OtherPersons!$J:$J,$C50) / COUNTIFS(OtherPersons!$E:$E,L$8,OtherPersons!$J:$J,$C50)*INDEX(OtherPersonsCalc!$J$1:$S$17,MATCH($C50,OtherPersonsCalc!$I:$I,0),L$8),0) -> 0 | M50: =IFERROR(SUMIFS(OtherPersons!$Z:$Z,OtherPersons!$E:$E,M$8,OtherPersons!$J:$J,$C50) / COUNTIFS(OtherPersons!$E:$E,M$8,OtherPersons!$J:$J,$C50)*INDEX(OtherPersonsCalc!$J$1:$S$17,MATCH($C50,OtherPersonsCalc!$I:$I,0),M$8),0) -> 0 | N50: =IFERROR(SUMIFS(OtherPersons!$S:$S,OtherPersons!$E:$E,N$8,OtherPersons!$J:$J,$C50) / COUNTIFS(OtherPersons!$E:$E,N$8,OtherPersons!$J:$J,$C50)*INDEX(OtherPersonsCalc!$J$1:$S$17,MATCH($C50,OtherPersonsCalc!$I:$I,0),N$8),0) -> 0 | O50: =IFERROR(SUMIFS(OtherPersons!$Z:$Z,OtherPersons!$E:$E,O$8,OtherPersons!$J:$J,$C50) / COUNTIFS(OtherPersons!$E:$E,O$8,OtherPersons!$J:$J,$C50)*INDEX(OtherPersonsCalc!$J$1:$S$17,MATCH($C50,OtherPersonsCalc!$I:$I,0),O$8),0) -> 0 | P50: =IFERROR(SUMIFS(OtherPersons!$S:$S,OtherPersons!$E:$E,P$8,OtherPersons!$J:$J,$C50) / COUNTIFS(OtherPersons!$E:$E,P$8,OtherPersons!$J:$J,$C50)*INDEX(OtherPersonsCalc!$J$1:$S$17,MATCH($C50,OtherPersonsCalc!$I:$I,0),P$8),0) -> 0 | Q50: =IFERROR(SUMIFS(OtherPersons!$Z:$Z,OtherPersons!$E:$E,Q$8,OtherPersons!$J:$J,$C50) / COUNTIFS(OtherPersons!$E:$E,Q$8,OtherPersons!$J:$J,$C50)*INDEX(OtherPersonsCalc!$J$1:$S$17,MATCH($C50,OtherPersonsCalc!$I:$I,0),Q$8),0) -> 0 | R50: =IFERROR(SUMIFS(OtherPersons!$S:$S,OtherPersons!$E:$E,R$8,OtherPersons!$J:$J,$C50) / COUNTIFS(OtherPersons!$E:$E,R$8,OtherPersons!$J:$J,$C50)*INDEX(OtherPersonsCalc!$J$1:$S$17,MATCH($C50,OtherPersonsCalc!$I:$I,0),R$8),0) -> 0 | S50: =IFERROR(SUMIFS(OtherPersons!$Z:$Z,OtherPersons!$E:$E,S$8,OtherPersons!$J:$J,$C50) / COUNTIFS(OtherPersons!$E:$E,S$8,OtherPersons!$J:$J,$C50)*INDEX(OtherPersonsCalc!$J$1:$S$17,MATCH($C50,OtherPersonsCalc!$I:$I,0),S$8),0) -> 0 | T50: =IFERROR(SUMIFS(OtherPersons!$S:$S,OtherPersons!$E:$E,T$8,OtherPersons!$J:$J,$C50) / COUNTIFS(OtherPersons!$E:$E,T$8,OtherPersons!$J:$J,$C50)*INDEX(OtherPersonsCalc!$J$1:$S$17,MATCH($C50,OtherPersonsCalc!$I:$I,0),T$8),0) -> 0 | U50: =IFERROR(SUMIFS(OtherPersons!$Z:$Z,OtherPersons!$E:$E,U$8,OtherPersons!$J:$J,$C50) / COUNTIFS(OtherPersons!$E:$E,U$8,OtherPersons!$J:$J,$C50)*INDEX(OtherPersonsCalc!$J$1:$S$17,MATCH($C50,OtherPersonsCalc!$I:$I,0),U$8),0) -> 0 | V50: =IFERROR(SUMIFS(OtherPersons!$S:$S,OtherPersons!$E:$E,V$8,OtherPersons!$J:$J,$C50) / COUNTIFS(OtherPersons!$E:$E,V$8,OtherPersons!$J:$J,$C50)*INDEX(OtherPersonsCalc!$J$1:$S$17,MATCH($C50,OtherPersonsCalc!$I:$I,0),V$8),0) -> 0 | W50: =IFERROR(SUMIFS(OtherPersons!$Z:$Z,OtherPersons!$E:$E,W$8,OtherPersons!$J:$J,$C50) / COUNTIFS(OtherPersons!$E:$E,W$8,OtherPersons!$J:$J,$C50)*INDEX(OtherPersonsCalc!$J$1:$S$17,MATCH($C50,OtherPersonsCalc!$I:$I,0),W$8),0) -> 0 | X50: =IFERROR(SUMIFS(OtherPersons!$S:$S,OtherPersons!$E:$E,X$8,OtherPersons!$J:$J,$C50) / COUNTIFS(OtherPersons!$E:$E,X$8,OtherPersons!$J:$J,$C50)*INDEX(OtherPersonsCalc!$J$1:$S$17,MATCH($C50,OtherPersonsCalc!$I:$I,0),X$8),0) -> 0 | Y50: =IFERROR(SUMIFS(OtherPersons!$Z:$Z,OtherPersons!$E:$E,Y$8,OtherPersons!$J:$J,$C50) / COUNTIFS(OtherPersons!$E:$E,Y$8,OtherPersons!$J:$J,$C50)*INDEX(OtherPersonsCalc!$J$1:$S$17,MATCH($C50,OtherPersonsCalc!$I:$I,0),Y$8),0) -> 0 | Z50: =IFERROR(SUMIFS(OtherPersons!$S:$S,OtherPersons!$E:$E,Z$8,OtherPersons!$J:$J,$C50) / COUNTIFS(OtherPersons!$E:$E,Z$8,OtherPersons!$J:$J,$C50)*INDEX(OtherPersonsCalc!$J$1:$S$17,MATCH($C50,OtherPersonsCalc!$I:$I,0),Z$8),0) -> 0 | AA50: =IFERROR(SUMIFS(OtherPersons!$Z:$Z,OtherPersons!$E:$E,AA$8,OtherPersons!$J:$J,$C50) / COUNTIFS(OtherPersons!$E:$E,AA$8,OtherPersons!$J:$J,$C50)*INDEX(OtherPersonsCalc!$J$1:$S$17,MATCH($C50,OtherPersonsCalc!$I:$I,0),AA$8),0) -> 0 | AB50: 0 | AC50: 0 | AD50: 0
B51: 15 | D51: =IFERROR(SUMIFS(OtherPersons!$AC:$AC,OtherPersons!$E:$E,$H$8,OtherPersons!$J:$J,$C51) / COUNTIFS(OtherPersons!$E:$E,$H$8,OtherPersons!$J:$J,$C51)*INDEX(OtherPersonsCalc!$J$1:$S$17,MATCH($C51,OtherPersonsCalc!$I:$I,0),$H$8),"") ->  | G51: =IFERROR(INDEX(OtherPersonsCalc!$J$1:$S$17,MATCH($C51,OtherPersonsCalc!$I:$I,0),H$8),"") -> 0 | H51: =IFERROR(SUMIFS(OtherPersons!$S:$S,OtherPersons!$E:$E,H$8,OtherPersons!$J:$J,$C51) / COUNTIFS(OtherPersons!$E:$E,H$8,OtherPersons!$J:$J,$C51)*INDEX(OtherPersonsCalc!$J$1:$S$17,MATCH($C51,OtherPersonsCalc!$I:$I,0),H$8),0) -> 0 | I51: =IFERROR(SUMIFS(OtherPersons!$Z:$Z,OtherPersons!$E:$E,I$8,OtherPersons!$J:$J,$C51) / COUNTIFS(OtherPersons!$E:$E,I$8,OtherPersons!$J:$J,$C51)*INDEX(OtherPersonsCalc!$J$1:$S$17,MATCH($C51,OtherPersonsCalc!$I:$I,0),I$8),0) -> 0 | J51: =IFERROR(SUMIFS(OtherPersons!$S:$S,OtherPersons!$E:$E,J$8,OtherPersons!$J:$J,$C51) / COUNTIFS(OtherPersons!$E:$E,J$8,OtherPersons!$J:$J,$C51)*INDEX(OtherPersonsCalc!$J$1:$S$17,MATCH($C51,OtherPersonsCalc!$I:$I,0),J$8),0) -> 0 | K51: =IFERROR(SUMIFS(OtherPersons!$Z:$Z,OtherPersons!$E:$E,K$8,OtherPersons!$J:$J,$C51) / COUNTIFS(OtherPersons!$E:$E,K$8,OtherPersons!$J:$J,$C51)*INDEX(OtherPersonsCalc!$J$1:$S$17,MATCH($C51,OtherPersonsCalc!$I:$I,0),K$8),0) -> 0 | L51: =IFERROR(SUMIFS(OtherPersons!$S:$S,OtherPersons!$E:$E,L$8,OtherPersons!$J:$J,$C51) / COUNTIFS(OtherPersons!$E:$E,L$8,OtherPersons!$J:$J,$C51)*INDEX(OtherPersonsCalc!$J$1:$S$17,MATCH($C51,OtherPersonsCalc!$I:$I,0),L$8),0) -> 0 | M51: =IFERROR(SUMIFS(OtherPersons!$Z:$Z,OtherPersons!$E:$E,M$8,OtherPersons!$J:$J,$C51) / COUNTIFS(OtherPersons!$E:$E,M$8,OtherPersons!$J:$J,$C51)*INDEX(OtherPersonsCalc!$J$1:$S$17,MATCH($C51,OtherPersonsCalc!$I:$I,0),M$8),0) -> 0 | N51: =IFERROR(SUMIFS(OtherPersons!$S:$S,OtherPersons!$E:$E,N$8,OtherPersons!$J:$J,$C51) / COUNTIFS(OtherPersons!$E:$E,N$8,OtherPersons!$J:$J,$C51)*INDEX(OtherPersonsCalc!$J$1:$S$17,MATCH($C51,OtherPersonsCalc!$I:$I,0),N$8),0) -> 0 | O51: =IFERROR(SUMIFS(OtherPersons!$Z:$Z,OtherPersons!$E:$E,O$8,OtherPersons!$J:$J,$C51) / COUNTIFS(OtherPersons!$E:$E,O$8,OtherPersons!$J:$J,$C51)*INDEX(OtherPersonsCalc!$J$1:$S$17,MATCH($C51,OtherPersonsCalc!$I:$I,0),O$8),0) -> 0 | P51: =IFERROR(SUMIFS(OtherPersons!$S:$S,OtherPersons!$E:$E,P$8,OtherPersons!$J:$J,$C51) / COUNTIFS(OtherPersons!$E:$E,P$8,OtherPersons!$J:$J,$C51)*INDEX(OtherPersonsCalc!$J$1:$S$17,MATCH($C51,OtherPersonsCalc!$I:$I,0),P$8),0) -> 0 | Q51: =IFERROR(SUMIFS(OtherPersons!$Z:$Z,OtherPersons!$E:$E,Q$8,OtherPersons!$J:$J,$C51) / COUNTIFS(OtherPersons!$E:$E,Q$8,OtherPersons!$J:$J,$C51)*INDEX(OtherPersonsCalc!$J$1:$S$17,MATCH($C51,OtherPersonsCalc!$I:$I,0),Q$8),0) -> 0 | R51: =IFERROR(SUMIFS(OtherPersons!$S:$S,OtherPersons!$E:$E,R$8,OtherPersons!$J:$J,$C51) / COUNTIFS(OtherPersons!$E:$E,R$8,OtherPersons!$J:$J,$C51)*INDEX(OtherPersonsCalc!$J$1:$S$17,MATCH($C51,OtherPersonsCalc!$I:$I,0),R$8),0) -> 0 | S51: =IFERROR(SUMIFS(OtherPersons!$Z:$Z,OtherPersons!$E:$E,S$8,OtherPersons!$J:$J,$C51) / COUNTIFS(OtherPersons!$E:$E,S$8,OtherPersons!$J:$J,$C51)*INDEX(OtherPersonsCalc!$J$1:$S$17,MATCH($C51,OtherPersonsCalc!$I:$I,0),S$8),0) -> 0 | T51: =IFERROR(SUMIFS(OtherPersons!$S:$S,OtherPersons!$E:$E,T$8,OtherPersons!$J:$J,$C51) / COUNTIFS(OtherPersons!$E:$E,T$8,OtherPersons!$J:$J,$C51)*INDEX(OtherPersonsCalc!$J$1:$S$17,MATCH($C51,OtherPersonsCalc!$I:$I,0),T$8),0) -> 0 | U51: =IFERROR(SUMIFS(OtherPersons!$Z:$Z,OtherPersons!$E:$E,U$8,OtherPersons!$J:$J,$C51) / COUNTIFS(OtherPersons!$E:$E,U$8,OtherPersons!$J:$J,$C51)*INDEX(OtherPersonsCalc!$J$1:$S$17,MATCH($C51,OtherPersonsCalc!$I:$I,0),U$8),0) -> 0 | V51: =IFERROR(SUMIFS(OtherPersons!$S:$S,OtherPersons!$E:$E,V$8,OtherPersons!$J:$J,$C51) / COUNTIFS(OtherPersons!$E:$E,V$8,OtherPersons!$J:$J,$C51)*INDEX(OtherPersonsCalc!$J$1:$S$17,MATCH($C51,OtherPersonsCalc!$I:$I,0),V$8),0) -> 0 | W51: =IFERROR(SUMIFS(OtherPersons!$Z:$Z,OtherPersons!$E:$E,W$8,OtherPersons!$J:$J,$C51) / COUNTIFS(OtherPersons!$E:$E,W$8,OtherPersons!$J:$J,$C51)*INDEX(OtherPersonsCalc!$J$1:$S$17,MATCH($C51,OtherPersonsCalc!$I:$I,0),W$8),0) -> 0 | X51: =IFERROR(SUMIFS(OtherPersons!$S:$S,OtherPersons!$E:$E,X$8,OtherPersons!$J:$J,$C51) / COUNTIFS(OtherPersons!$E:$E,X$8,OtherPersons!$J:$J,$C51)*INDEX(OtherPersonsCalc!$J$1:$S$17,MATCH($C51,OtherPersonsCalc!$I:$I,0),X$8),0) -> 0 | Y51: =IFERROR(SUMIFS(OtherPersons!$Z:$Z,OtherPersons!$E:$E,Y$8,OtherPersons!$J:$J,$C51) / COUNTIFS(OtherPersons!$E:$E,Y$8,OtherPersons!$J:$J,$C51)*INDEX(OtherPersonsCalc!$J$1:$S$17,MATCH($C51,OtherPersonsCalc!$I:$I,0),Y$8),0) -> 0 | Z51: =IFERROR(SUMIFS(OtherPersons!$S:$S,OtherPersons!$E:$E,Z$8,OtherPersons!$J:$J,$C51) / COUNTIFS(OtherPersons!$E:$E,Z$8,OtherPersons!$J:$J,$C51)*INDEX(OtherPersonsCalc!$J$1:$S$17,MATCH($C51,OtherPersonsCalc!$I:$I,0),Z$8),0) -> 0 | AA51: =IFERROR(SUMIFS(OtherPersons!$Z:$Z,OtherPersons!$E:$E,AA$8,OtherPersons!$J:$J,$C51) / COUNTIFS(OtherPersons!$E:$E,AA$8,OtherPersons!$J:$J,$C51)*INDEX(OtherPersonsCalc!$J$1:$S$17,MATCH($C51,OtherPersonsCalc!$I:$I,0),AA$8),0) -> 0 | AB51: 0 | AC51: 0 | AD51: 0
B52: 16 | D52: =IFERROR(SUMIFS(OtherPersons!$AC:$AC,OtherPersons!$E:$E,$H$8,OtherPersons!$J:$J,$C52) / COUNTIFS(OtherPersons!$E:$E,$H$8,OtherPersons!$J:$J,$C52)*INDEX(OtherPersonsCalc!$J$1:$S$17,MATCH($C52,OtherPersonsCalc!$I:$I,0),$H$8),"") ->  | G52: =IFERROR(INDEX(OtherPersonsCalc!$J$1:$S$17,MATCH($C52,OtherPersonsCalc!$I:$I,0),H$8),"") -> 0 | H52: =IFERROR(SUMIFS(OtherPersons!$S:$S,OtherPersons!$E:$E,H$8,OtherPersons!$J:$J,$C52) / COUNTIFS(OtherPersons!$E:$E,H$8,OtherPersons!$J:$J,$C52)*INDEX(OtherPersonsCalc!$J$1:$S$17,MATCH($C52,OtherPersonsCalc!$I:$I,0),H$8),0) -> 0 | I52: =IFERROR(SUMIFS(OtherPersons!$Z:$Z,OtherPersons!$E:$E,I$8,OtherPersons!$J:$J,$C52) / COUNTIFS(OtherPersons!$E:$E,I$8,OtherPersons!$J:$J,$C52)*INDEX(OtherPersonsCalc!$J$1:$S$17,MATCH($C52,OtherPersonsCalc!$I:$I,0),I$8),0) -> 0 | J52: =IFERROR(SUMIFS(OtherPersons!$S:$S,OtherPersons!$E:$E,J$8,OtherPersons!$J:$J,$C52) / COUNTIFS(OtherPersons!$E:$E,J$8,OtherPersons!$J:$J,$C52)*INDEX(OtherPersonsCalc!$J$1:$S$17,MATCH($C52,OtherPersonsCalc!$I:$I,0),J$8),0) -> 0 | K52: =IFERROR(SUMIFS(OtherPersons!$Z:$Z,OtherPersons!$E:$E,K$8,OtherPersons!$J:$J,$C52) / COUNTIFS(OtherPersons!$E:$E,K$8,OtherPersons!$J:$J,$C52)*INDEX(OtherPersonsCalc!$J$1:$S$17,MATCH($C52,OtherPersonsCalc!$I:$I,0),K$8),0) -> 0 | L52: =IFERROR(SUMIFS(OtherPersons!$S:$S,OtherPersons!$E:$E,L$8,OtherPersons!$J:$J,$C52) / COUNTIFS(OtherPersons!$E:$E,L$8,OtherPersons!$J:$J,$C52)*INDEX(OtherPersonsCalc!$J$1:$S$17,MATCH($C52,OtherPersonsCalc!$I:$I,0),L$8),0) -> 0 | M52: =IFERROR(SUMIFS(OtherPersons!$Z:$Z,OtherPersons!$E:$E,M$8,OtherPersons!$J:$J,$C52) / COUNTIFS(OtherPersons!$E:$E,M$8,OtherPersons!$J:$J,$C52)*INDEX(OtherPersonsCalc!$J$1:$S$17,MATCH($C52,OtherPersonsCalc!$I:$I,0),M$8),0) -> 0 | N52: =IFERROR(SUMIFS(OtherPersons!$S:$S,OtherPersons!$E:$E,N$8,OtherPersons!$J:$J,$C52) / COUNTIFS(OtherPersons!$E:$E,N$8,OtherPersons!$J:$J,$C52)*INDEX(OtherPersonsCalc!$J$1:$S$17,MATCH($C52,OtherPersonsCalc!$I:$I,0),N$8),0) -> 0 | O52: =IFERROR(SUMIFS(OtherPersons!$Z:$Z,OtherPersons!$E:$E,O$8,OtherPersons!$J:$J,$C52) / COUNTIFS(OtherPersons!$E:$E,O$8,OtherPersons!$J:$J,$C52)*INDEX(OtherPersonsCalc!$J$1:$S$17,MATCH($C52,OtherPersonsCalc!$I:$I,0),O$8),0) -> 0 | P52: =IFERROR(SUMIFS(OtherPersons!$S:$S,OtherPersons!$E:$E,P$8,OtherPersons!$J:$J,$C52) / COUNTIFS(OtherPersons!$E:$E,P$8,OtherPersons!$J:$J,$C52)*INDEX(OtherPersonsCalc!$J$1:$S$17,MATCH($C52,OtherPersonsCalc!$I:$I,0),P$8),0) -> 0 | Q52: =IFERROR(SUMIFS(OtherPersons!$Z:$Z,OtherPersons!$E:$E,Q$8,OtherPersons!$J:$J,$C52) / COUNTIFS(OtherPersons!$E:$E,Q$8,OtherPersons!$J:$J,$C52)*INDEX(OtherPersonsCalc!$J$1:$S$17,MATCH($C52,OtherPersonsCalc!$I:$I,0),Q$8),0) -> 0 | R52: =IFERROR(SUMIFS(OtherPersons!$S:$S,OtherPersons!$E:$E,R$8,OtherPersons!$J:$J,$C52) / COUNTIFS(OtherPersons!$E:$E,R$8,OtherPersons!$J:$J,$C52)*INDEX(OtherPersonsCalc!$J$1:$S$17,MATCH($C52,OtherPersonsCalc!$I:$I,0),R$8),0) -> 0 | S52: =IFERROR(SUMIFS(OtherPersons!$Z:$Z,OtherPersons!$E:$E,S$8,OtherPersons!$J:$J,$C52) / COUNTIFS(OtherPersons!$E:$E,S$8,OtherPersons!$J:$J,$C52)*INDEX(OtherPersonsCalc!$J$1:$S$17,MATCH($C52,OtherPersonsCalc!$I:$I,0),S$8),0) -> 0 | T52: =IFERROR(SUMIFS(OtherPersons!$S:$S,OtherPersons!$E:$E,T$8,OtherPersons!$J:$J,$C52) / COUNTIFS(OtherPersons!$E:$E,T$8,OtherPersons!$J:$J,$C52)*INDEX(OtherPersonsCalc!$J$1:$S$17,MATCH($C52,OtherPersonsCalc!$I:$I,0),T$8),0) -> 0 | U52: =IFERROR(SUMIFS(OtherPersons!$Z:$Z,OtherPersons!$E:$E,U$8,OtherPersons!$J:$J,$C52) / COUNTIFS(OtherPersons!$E:$E,U$8,OtherPersons!$J:$J,$C52)*INDEX(OtherPersonsCalc!$J$1:$S$17,MATCH($C52,OtherPersonsCalc!$I:$I,0),U$8),0) -> 0 | V52: =IFERROR(SUMIFS(OtherPersons!$S:$S,OtherPersons!$E:$E,V$8,OtherPersons!$J:$J,$C52) / COUNTIFS(OtherPersons!$E:$E,V$8,OtherPersons!$J:$J,$C52)*INDEX(OtherPersonsCalc!$J$1:$S$17,MATCH($C52,OtherPersonsCalc!$I:$I,0),V$8),0) -> 0 | W52: =IFERROR(SUMIFS(OtherPersons!$Z:$Z,OtherPersons!$E:$E,W$8,OtherPersons!$J:$J,$C52) / COUNTIFS(OtherPersons!$E:$E,W$8,OtherPersons!$J:$J,$C52)*INDEX(OtherPersonsCalc!$J$1:$S$17,MATCH($C52,OtherPersonsCalc!$I:$I,0),W$8),0) -> 0 | X52: =IFERROR(SUMIFS(OtherPersons!$S:$S,OtherPersons!$E:$E,X$8,OtherPersons!$J:$J,$C52) / COUNTIFS(OtherPersons!$E:$E,X$8,OtherPersons!$J:$J,$C52)*INDEX(OtherPersonsCalc!$J$1:$S$17,MATCH($C52,OtherPersonsCalc!$I:$I,0),X$8),0) -> 0 | Y52: =IFERROR(SUMIFS(OtherPersons!$Z:$Z,OtherPersons!$E:$E,Y$8,OtherPersons!$J:$J,$C52) / COUNTIFS(OtherPersons!$E:$E,Y$8,OtherPersons!$J:$J,$C52)*INDEX(OtherPersonsCalc!$J$1:$S$17,MATCH($C52,OtherPersonsCalc!$I:$I,0),Y$8),0) -> 0 | Z52: =IFERROR(SUMIFS(OtherPersons!$S:$S,OtherPersons!$E:$E,Z$8,OtherPersons!$J:$J,$C52) / COUNTIFS(OtherPersons!$E:$E,Z$8,OtherPersons!$J:$J,$C52)*INDEX(OtherPersonsCalc!$J$1:$S$17,MATCH($C52,OtherPersonsCalc!$I:$I,0),Z$8),0) -> 0 | AA52: =IFERROR(SUMIFS(OtherPersons!$Z:$Z,OtherPersons!$E:$E,AA$8,OtherPersons!$J:$J,$C52) / COUNTIFS(OtherPersons!$E:$E,AA$8,OtherPersons!$J:$J,$C52)*INDEX(OtherPersonsCalc!$J$1:$S$17,MATCH($C52,OtherPersonsCalc!$I:$I,0),AA$8),0) -> 0 | AB52: 0 | AC52: 0 | AD52: 0
B53: 17 | D53: =IFERROR(SUMIFS(OtherPersons!$AC:$AC,OtherPersons!$E:$E,$H$8,OtherPersons!$J:$J,$C53) / COUNTIFS(OtherPersons!$E:$E,$H$8,OtherPersons!$J:$J,$C53)*INDEX(OtherPersonsCalc!$J$1:$S$17,MATCH($C53,OtherPersonsCalc!$I:$I,0),$H$8),"") ->  | G53: =IFERROR(INDEX(OtherPersonsCalc!$J$1:$S$17,MATCH($C53,OtherPersonsCalc!$I:$I,0),H$8),"") -> 0 | H53: =IFERROR(SUMIFS(OtherPersons!$S:$S,OtherPersons!$E:$E,H$8,OtherPersons!$J:$J,$C53) / COUNTIFS(OtherPersons!$E:$E,H$8,OtherPersons!$J:$J,$C53)*INDEX(OtherPersonsCalc!$J$1:$S$17,MATCH($C53,OtherPersonsCalc!$I:$I,0),H$8),0) -> 0 | I53: =IFERROR(SUMIFS(OtherPersons!$Z:$Z,OtherPersons!$E:$E,I$8,OtherPersons!$J:$J,$C53) / COUNTIFS(OtherPersons!$E:$E,I$8,OtherPersons!$J:$J,$C53)*INDEX(OtherPersonsCalc!$J$1:$S$17,MATCH($C53,OtherPersonsCalc!$I:$I,0),I$8),0) -> 0 | J53: =IFERROR(SUMIFS(OtherPersons!$S:$S,OtherPersons!$E:$E,J$8,OtherPersons!$J:$J,$C53) / COUNTIFS(OtherPersons!$E:$E,J$8,OtherPersons!$J:$J,$C53)*INDEX(OtherPersonsCalc!$J$1:$S$17,MATCH($C53,OtherPersonsCalc!$I:$I,0),J$8),0) -> 0 | K53: =IFERROR(SUMIFS(OtherPersons!$Z:$Z,OtherPersons!$E:$E,K$8,OtherPersons!$J:$J,$C53) / COUNTIFS(OtherPersons!$E:$E,K$8,OtherPersons!$J:$J,$C53)*INDEX(OtherPersonsCalc!$J$1:$S$17,MATCH($C53,OtherPersonsCalc!$I:$I,0),K$8),0) -> 0 | L53: =IFERROR(SUMIFS(OtherPersons!$S:$S,OtherPersons!$E:$E,L$8,OtherPersons!$J:$J,$C53) / COUNTIFS(OtherPersons!$E:$E,L$8,OtherPersons!$J:$J,$C53)*INDEX(OtherPersonsCalc!$J$1:$S$17,MATCH($C53,OtherPersonsCalc!$I:$I,0),L$8),0) -> 0 | M53: =IFERROR(SUMIFS(OtherPersons!$Z:$Z,OtherPersons!$E:$E,M$8,OtherPersons!$J:$J,$C53) / COUNTIFS(OtherPersons!$E:$E,M$8,OtherPersons!$J:$J,$C53)*INDEX(OtherPersonsCalc!$J$1:$S$17,MATCH($C53,OtherPersonsCalc!$I:$I,0),M$8),0) -> 0 | N53: =IFERROR(SUMIFS(OtherPersons!$S:$S,OtherPersons!$E:$E,N$8,OtherPersons!$J:$J,$C53) / COUNTIFS(OtherPersons!$E:$E,N$8,OtherPersons!$J:$J,$C53)*INDEX(OtherPersonsCalc!$J$1:$S$17,MATCH($C53,OtherPersonsCalc!$I:$I,0),N$8),0) -> 0 | O53: =IFERROR(SUMIFS(OtherPersons!$Z:$Z,OtherPersons!$E:$E,O$8,OtherPersons!$J:$J,$C53) / COUNTIFS(OtherPersons!$E:$E,O$8,OtherPersons!$J:$J,$C53)*INDEX(OtherPersonsCalc!$J$1:$S$17,MATCH($C53,OtherPersonsCalc!$I:$I,0),O$8),0) -> 0 | P53: =IFERROR(SUMIFS(OtherPersons!$S:$S,OtherPersons!$E:$E,P$8,OtherPersons!$J:$J,$C53) / COUNTIFS(OtherPersons!$E:$E,P$8,OtherPersons!$J:$J,$C53)*INDEX(OtherPersonsCalc!$J$1:$S$17,MATCH($C53,OtherPersonsCalc!$I:$I,0),P$8),0) -> 0 | Q53: =IFERROR(SUMIFS(OtherPersons!$Z:$Z,OtherPersons!$E:$E,Q$8,OtherPersons!$J:$J,$C53) / COUNTIFS(OtherPersons!$E:$E,Q$8,OtherPersons!$J:$J,$C53)*INDEX(OtherPersonsCalc!$J$1:$S$17,MATCH($C53,OtherPersonsCalc!$I:$I,0),Q$8),0) -> 0 | R53: =IFERROR(SUMIFS(OtherPersons!$S:$S,OtherPersons!$E:$E,R$8,OtherPersons!$J:$J,$C53) / COUNTIFS(OtherPersons!$E:$E,R$8,OtherPersons!$J:$J,$C53)*INDEX(OtherPersonsCalc!$J$1:$S$17,MATCH($C53,OtherPersonsCalc!$I:$I,0),R$8),0) -> 0 | S53: =IFERROR(SUMIFS(OtherPersons!$Z:$Z,OtherPersons!$E:$E,S$8,OtherPersons!$J:$J,$C53) / COUNTIFS(OtherPersons!$E:$E,S$8,OtherPersons!$J:$J,$C53)*INDEX(OtherPersonsCalc!$J$1:$S$17,MATCH($C53,OtherPersonsCalc!$I:$I,0),S$8),0) -> 0 | T53: =IFERROR(SUMIFS(OtherPersons!$S:$S,OtherPersons!$E:$E,T$8,OtherPersons!$J:$J,$C53) / COUNTIFS(OtherPersons!$E:$E,T$8,OtherPersons!$J:$J,$C53)*INDEX(OtherPersonsCalc!$J$1:$S$17,MATCH($C53,OtherPersonsCalc!$I:$I,0),T$8),0) -> 0 | U53: =IFERROR(SUMIFS(OtherPersons!$Z:$Z,OtherPersons!$E:$E,U$8,OtherPersons!$J:$J,$C53) / COUNTIFS(OtherPersons!$E:$E,U$8,OtherPersons!$J:$J,$C53)*INDEX(OtherPersonsCalc!$J$1:$S$17,MATCH($C53,OtherPersonsCalc!$I:$I,0),U$8),0) -> 0 | V53: =IFERROR(SUMIFS(OtherPersons!$S:$S,OtherPersons!$E:$E,V$8,OtherPersons!$J:$J,$C53) / COUNTIFS(OtherPersons!$E:$E,V$8,OtherPersons!$J:$J,$C53)*INDEX(OtherPersonsCalc!$J$1:$S$17,MATCH($C53,OtherPersonsCalc!$I:$I,0),V$8),0) -> 0 | W53: =IFERROR(SUMIFS(OtherPersons!$Z:$Z,OtherPersons!$E:$E,W$8,OtherPersons!$J:$J,$C53) / COUNTIFS(OtherPersons!$E:$E,W$8,OtherPersons!$J:$J,$C53)*INDEX(OtherPersonsCalc!$J$1:$S$17,MATCH($C53,OtherPersonsCalc!$I:$I,0),W$8),0) -> 0 | X53: =IFERROR(SUMIFS(OtherPersons!$S:$S,OtherPersons!$E:$E,X$8,OtherPersons!$J:$J,$C53) / COUNTIFS(OtherPersons!$E:$E,X$8,OtherPersons!$J:$J,$C53)*INDEX(OtherPersonsCalc!$J$1:$S$17,MATCH($C53,OtherPersonsCalc!$I:$I,0),X$8),0) -> 0 | Y53: =IFERROR(SUMIFS(OtherPersons!$Z:$Z,OtherPersons!$E:$E,Y$8,OtherPersons!$J:$J,$C53) / COUNTIFS(OtherPersons!$E:$E,Y$8,OtherPersons!$J:$J,$C53)*INDEX(OtherPersonsCalc!$J$1:$S$17,MATCH($C53,OtherPersonsCalc!$I:$I,0),Y$8),0) -> 0 | Z53: =IFERROR(SUMIFS(OtherPersons!$S:$S,OtherPersons!$E:$E,Z$8,OtherPersons!$J:$J,$C53) / COUNTIFS(OtherPersons!$E:$E,Z$8,OtherPersons!$J:$J,$C53)*INDEX(OtherPersonsCalc!$J$1:$S$17,MATCH($C53,OtherPersonsCalc!$I:$I,0),Z$8),0) -> 0 | AA53: =IFERROR(SUMIFS(OtherPersons!$Z:$Z,OtherPersons!$E:$E,AA$8,OtherPersons!$J:$J,$C53) / COUNTIFS(OtherPersons!$E:$E,AA$8,OtherPersons!$J:$J,$C53)*INDEX(OtherPersonsCalc!$J$1:$S$17,MATCH($C53,OtherPersonsCalc!$I:$I,0),AA$8),0) -> 0 | AB53: 0 | AC53: 0 | AD53: 0
B54: 18 | D54: =IFERROR(SUMIFS(OtherPersons!$AC:$AC,OtherPersons!$E:$E,$H$8,OtherPersons!$J:$J,$C54) / COUNTIFS(OtherPersons!$E:$E,$H$8,OtherPersons!$J:$J,$C54)*INDEX(OtherPersonsCalc!$J$1:$S$17,MATCH($C54,OtherPersonsCalc!$I:$I,0),$H$8),"") ->  | G54: =IFERROR(INDEX(OtherPersonsCalc!$J$1:$S$17,MATCH($C54,OtherPersonsCalc!$I:$I,0),H$8),"") -> 0 | H54: =IFERROR(SUMIFS(OtherPersons!$S:$S,OtherPersons!$E:$E,H$8,OtherPersons!$J:$J,$C54) / COUNTIFS(OtherPersons!$E:$E,H$8,OtherPersons!$J:$J,$C54)*INDEX(OtherPersonsCalc!$J$1:$S$17,MATCH($C54,OtherPersonsCalc!$I:$I,0),H$8),0) -> 0 | I54: =IFERROR(SUMIFS(OtherPersons!$Z:$Z,OtherPersons!$E:$E,I$8,OtherPersons!$J:$J,$C54) / COUNTIFS(OtherPersons!$E:$E,I$8,OtherPersons!$J:$J,$C54)*INDEX(OtherPersonsCalc!$J$1:$S$17,MATCH($C54,OtherPersonsCalc!$I:$I,0),I$8),0) -> 0 | J54: =IFERROR(SUMIFS(OtherPersons!$S:$S,OtherPersons!$E:$E,J$8,OtherPersons!$J:$J,$C54) / COUNTIFS(OtherPersons!$E:$E,J$8,OtherPersons!$J:$J,$C54)*INDEX(OtherPersonsCalc!$J$1:$S$17,MATCH($C54,OtherPersonsCalc!$I:$I,0),J$8),0) -> 0 | K54: =IFERROR(SUMIFS(OtherPersons!$Z:$Z,OtherPersons!$E:$E,K$8,OtherPersons!$J:$J,$C54) / COUNTIFS(OtherPersons!$E:$E,K$8,OtherPersons!$J:$J,$C54)*INDEX(OtherPersonsCalc!$J$1:$S$17,MATCH($C54,OtherPersonsCalc!$I:$I,0),K$8),0) -> 0 | L54: =IFERROR(SUMIFS(OtherPersons!$S:$S,OtherPersons!$E:$E,L$8,OtherPersons!$J:$J,$C54) / COUNTIFS(OtherPersons!$E:$E,L$8,OtherPersons!$J:$J,$C54)*INDEX(OtherPersonsCalc!$J$1:$S$17,MATCH($C54,OtherPersonsCalc!$I:$I,0),L$8),0) -> 0 | M54: =IFERROR(SUMIFS(OtherPersons!$Z:$Z,OtherPersons!$E:$E,M$8,OtherPersons!$J:$J,$C54) / COUNTIFS(OtherPersons!$E:$E,M$8,OtherPersons!$J:$J,$C54)*INDEX(OtherPersonsCalc!$J$1:$S$17,MATCH($C54,OtherPersonsCalc!$I:$I,0),M$8),0) -> 0 | N54: =IFERROR(SUMIFS(OtherPersons!$S:$S,OtherPersons!$E:$E,N$8,OtherPersons!$J:$J,$C54) / COUNTIFS(OtherPersons!$E:$E,N$8,OtherPersons!$J:$J,$C54)*INDEX(OtherPersonsCalc!$J$1:$S$17,MATCH($C54,OtherPersonsCalc!$I:$I,0),N$8),0) -> 0 | O54: =IFERROR(SUMIFS(OtherPersons!$Z:$Z,OtherPersons!$E:$E,O$8,OtherPersons!$J:$J,$C54) / COUNTIFS(OtherPersons!$E:$E,O$8,OtherPersons!$J:$J,$C54)*INDEX(OtherPersonsCalc!$J$1:$S$17,MATCH($C54,OtherPersonsCalc!$I:$I,0),O$8),0) -> 0 | P54: =IFERROR(SUMIFS(OtherPersons!$S:$S,OtherPersons!$E:$E,P$8,OtherPersons!$J:$J,$C54) / COUNTIFS(OtherPersons!$E:$E,P$8,OtherPersons!$J:$J,$C54)*INDEX(OtherPersonsCalc!$J$1:$S$17,MATCH($C54,OtherPersonsCalc!$I:$I,0),P$8),0) -> 0 | Q54: =IFERROR(SUMIFS(OtherPersons!$Z:$Z,OtherPersons!$E:$E,Q$8,OtherPersons!$J:$J,$C54) / COUNTIFS(OtherPersons!$E:$E,Q$8,OtherPersons!$J:$J,$C54)*INDEX(OtherPersonsCalc!$J$1:$S$17,MATCH($C54,OtherPersonsCalc!$I:$I,0),Q$8),0) -> 0 | R54: =IFERROR(SUMIFS(OtherPersons!$S:$S,OtherPersons!$E:$E,R$8,OtherPersons!$J:$J,$C54) / COUNTIFS(OtherPersons!$E:$E,R$8,OtherPersons!$J:$J,$C54)*INDEX(OtherPersonsCalc!$J$1:$S$17,MATCH($C54,OtherPersonsCalc!$I:$I,0),R$8),0) -> 0 | S54: =IFERROR(SUMIFS(OtherPersons!$Z:$Z,OtherPersons!$E:$E,S$8,OtherPersons!$J:$J,$C54) / COUNTIFS(OtherPersons!$E:$E,S$8,OtherPersons!$J:$J,$C54)*INDEX(OtherPersonsCalc!$J$1:$S$17,MATCH($C54,OtherPersonsCalc!$I:$I,0),S$8),0) -> 0 | T54: =IFERROR(SUMIFS(OtherPersons!$S:$S,OtherPersons!$E:$E,T$8,OtherPersons!$J:$J,$C54) / COUNTIFS(OtherPersons!$E:$E,T$8,OtherPersons!$J:$J,$C54)*INDEX(OtherPersonsCalc!$J$1:$S$17,MATCH($C54,OtherPersonsCalc!$I:$I,0),T$8),0) -> 0 | U54: =IFERROR(SUMIFS(OtherPersons!$Z:$Z,OtherPersons!$E:$E,U$8,OtherPersons!$J:$J,$C54) / COUNTIFS(OtherPersons!$E:$E,U$8,OtherPersons!$J:$J,$C54)*INDEX(OtherPersonsCalc!$J$1:$S$17,MATCH($C54,OtherPersonsCalc!$I:$I,0),U$8),0) -> 0 | V54: =IFERROR(SUMIFS(OtherPersons!$S:$S,OtherPersons!$E:$E,V$8,OtherPersons!$J:$J,$C54) / COUNTIFS(OtherPersons!$E:$E,V$8,OtherPersons!$J:$J,$C54)*INDEX(OtherPersonsCalc!$J$1:$S$17,MATCH($C54,OtherPersonsCalc!$I:$I,0),V$8),0) -> 0 | W54: =IFERROR(SUMIFS(OtherPersons!$Z:$Z,OtherPersons!$E:$E,W$8,OtherPersons!$J:$J,$C54) / COUNTIFS(OtherPersons!$E:$E,W$8,OtherPersons!$J:$J,$C54)*INDEX(OtherPersonsCalc!$J$1:$S$17,MATCH($C54,OtherPersonsCalc!$I:$I,0),W$8),0) -> 0 | X54: =IFERROR(SUMIFS(OtherPersons!$S:$S,OtherPersons!$E:$E,X$8,OtherPersons!$J:$J,$C54) / COUNTIFS(OtherPersons!$E:$E,X$8,OtherPersons!$J:$J,$C54)*INDEX(OtherPersonsCalc!$J$1:$S$17,MATCH($C54,OtherPersonsCalc!$I:$I,0),X$8),0) -> 0 | Y54: =IFERROR(SUMIFS(OtherPersons!$Z:$Z,OtherPersons!$E:$E,Y$8,OtherPersons!$J:$J,$C54) / COUNTIFS(OtherPersons!$E:$E,Y$8,OtherPersons!$J:$J,$C54)*INDEX(OtherPersonsCalc!$J$1:$S$17,MATCH($C54,OtherPersonsCalc!$I:$I,0),Y$8),0) -> 0 | Z54: =IFERROR(SUMIFS(OtherPersons!$S:$S,OtherPersons!$E:$E,Z$8,OtherPersons!$J:$J,$C54) / COUNTIFS(OtherPersons!$E:$E,Z$8,OtherPersons!$J:$J,$C54)*INDEX(OtherPersonsCalc!$J$1:$S$17,MATCH($C54,OtherPersonsCalc!$I:$I,0),Z$8),0) -> 0 | AA54: =IFERROR(SUMIFS(OtherPersons!$Z:$Z,OtherPersons!$E:$E,AA$8,OtherPersons!$J:$J,$C54) / COUNTIFS(OtherPersons!$E:$E,AA$8,OtherPersons!$J:$J,$C54)*INDEX(OtherPersonsCalc!$J$1:$S$17,MATCH($C54,OtherPersonsCalc!$I:$I,0),AA$8),0) -> 0 | AB54: 0 | AC54: 0 | AD54: 0
B55: 19 | D55: =IFERROR(SUMIFS(OtherPersons!$AC:$AC,OtherPersons!$E:$E,$H$8,OtherPersons!$J:$J,$C55) / COUNTIFS(OtherPersons!$E:$E,$H$8,OtherPersons!$J:$J,$C55)*INDEX(OtherPersonsCalc!$J$1:$S$17,MATCH($C55,OtherPersonsCalc!$I:$I,0),$H$8),"") ->  | G55: =IFERROR(INDEX(OtherPersonsCalc!$J$1:$S$17,MATCH($C55,OtherPersonsCalc!$I:$I,0),H$8),"") -> 0 | H55: =IFERROR(SUMIFS(OtherPersons!$S:$S,OtherPersons!$E:$E,H$8,OtherPersons!$J:$J,$C55) / COUNTIFS(OtherPersons!$E:$E,H$8,OtherPersons!$J:$J,$C55)*INDEX(OtherPersonsCalc!$J$1:$S$17,MATCH($C55,OtherPersonsCalc!$I:$I,0),H$8),0) -> 0 | I55: =IFERROR(SUMIFS(OtherPersons!$Z:$Z,OtherPersons!$E:$E,I$8,OtherPersons!$J:$J,$C55) / COUNTIFS(OtherPersons!$E:$E,I$8,OtherPersons!$J:$J,$C55)*INDEX(OtherPersonsCalc!$J$1:$S$17,MATCH($C55,OtherPersonsCalc!$I:$I,0),I$8),0) -> 0 | J55: =IFERROR(SUMIFS(OtherPersons!$S:$S,OtherPersons!$E:$E,J$8,OtherPersons!$J:$J,$C55) / COUNTIFS(OtherPersons!$E:$E,J$8,OtherPersons!$J:$J,$C55)*INDEX(OtherPersonsCalc!$J$1:$S$17,MATCH($C55,OtherPersonsCalc!$I:$I,0),J$8),0) -> 0 | K55: =IFERROR(SUMIFS(OtherPersons!$Z:$Z,OtherPersons!$E:$E,K$8,OtherPersons!$J:$J,$C55) / COUNTIFS(OtherPersons!$E:$E,K$8,OtherPersons!$J:$J,$C55)*INDEX(OtherPersonsCalc!$J$1:$S$17,MATCH($C55,OtherPersonsCalc!$I:$I,0),K$8),0) -> 0 | L55: =IFERROR(SUMIFS(OtherPersons!$S:$S,OtherPersons!$E:$E,L$8,OtherPersons!$J:$J,$C55) / COUNTIFS(OtherPersons!$E:$E,L$8,OtherPersons!$J:$J,$C55)*INDEX(OtherPersonsCalc!$J$1:$S$17,MATCH($C55,OtherPersonsCalc!$I:$I,0),L$8),0) -> 0 | M55: =IFERROR(SUMIFS(OtherPersons!$Z:$Z,OtherPersons!$E:$E,M$8,OtherPersons!$J:$J,$C55) / COUNTIFS(OtherPersons!$E:$E,M$8,OtherPersons!$J:$J,$C55)*INDEX(OtherPersonsCalc!$J$1:$S$17,MATCH($C55,OtherPersonsCalc!$I:$I,0),M$8),0) -> 0 | N55: =IFERROR(SUMIFS(OtherPersons!$S:$S,OtherPersons!$E:$E,N$8,OtherPersons!$J:$J,$C55) / COUNTIFS(OtherPersons!$E:$E,N$8,OtherPersons!$J:$J,$C55)*INDEX(OtherPersonsCalc!$J$1:$S$17,MATCH($C55,OtherPersonsCalc!$I:$I,0),N$8),0) -> 0 | O55: =IFERROR(SUMIFS(OtherPersons!$Z:$Z,OtherPersons!$E:$E,O$8,OtherPersons!$J:$J,$C55) / COUNTIFS(OtherPersons!$E:$E,O$8,OtherPersons!$J:$J,$C55)*INDEX(OtherPersonsCalc!$J$1:$S$17,MATCH($C55,OtherPersonsCalc!$I:$I,0),O$8),0) -> 0 | P55: =IFERROR(SUMIFS(OtherPersons!$S:$S,OtherPersons!$E:$E,P$8,OtherPersons!$J:$J,$C55) / COUNTIFS(OtherPersons!$E:$E,P$8,OtherPersons!$J:$J,$C55)*INDEX(OtherPersonsCalc!$J$1:$S$17,MATCH($C55,OtherPersonsCalc!$I:$I,0),P$8),0) -> 0 | Q55: =IFERROR(SUMIFS(OtherPersons!$Z:$Z,OtherPersons!$E:$E,Q$8,OtherPersons!$J:$J,$C55) / COUNTIFS(OtherPersons!$E:$E,Q$8,OtherPersons!$J:$J,$C55)*INDEX(OtherPersonsCalc!$J$1:$S$17,MATCH($C55,OtherPersonsCalc!$I:$I,0),Q$8),0) -> 0 | R55: =IFERROR(SUMIFS(OtherPersons!$S:$S,OtherPersons!$E:$E,R$8,OtherPersons!$J:$J,$C55) / COUNTIFS(OtherPersons!$E:$E,R$8,OtherPersons!$J:$J,$C55)*INDEX(OtherPersonsCalc!$J$1:$S$17,MATCH($C55,OtherPersonsCalc!$I:$I,0),R$8),0) -> 0 | S55: =IFERROR(SUMIFS(OtherPersons!$Z:$Z,OtherPersons!$E:$E,S$8,OtherPersons!$J:$J,$C55) / COUNTIFS(OtherPersons!$E:$E,S$8,OtherPersons!$J:$J,$C55)*INDEX(OtherPersonsCalc!$J$1:$S$17,MATCH($C55,OtherPersonsCalc!$I:$I,0),S$8),0) -> 0 | T55: =IFERROR(SUMIFS(OtherPersons!$S:$S,OtherPersons!$E:$E,T$8,OtherPersons!$J:$J,$C55) / COUNTIFS(OtherPersons!$E:$E,T$8,OtherPersons!$J:$J,$C55)*INDEX(OtherPersonsCalc!$J$1:$S$17,MATCH($C55,OtherPersonsCalc!$I:$I,0),T$8),0) -> 0 | U55: =IFERROR(SUMIFS(OtherPersons!$Z:$Z,OtherPersons!$E:$E,U$8,OtherPersons!$J:$J,$C55) / COUNTIFS(OtherPersons!$E:$E,U$8,OtherPersons!$J:$J,$C55)*INDEX(OtherPersonsCalc!$J$1:$S$17,MATCH($C55,OtherPersonsCalc!$I:$I,0),U$8),0) -> 0 | V55: =IFERROR(SUMIFS(OtherPersons!$S:$S,OtherPersons!$E:$E,V$8,OtherPersons!$J:$J,$C55) / COUNTIFS(OtherPersons!$E:$E,V$8,OtherPersons!$J:$J,$C55)*INDEX(OtherPersonsCalc!$J$1:$S$17,MATCH($C55,OtherPersonsCalc!$I:$I,0),V$8),0) -> 0 | W55: =IFERROR(SUMIFS(OtherPersons!$Z:$Z,OtherPersons!$E:$E,W$8,OtherPersons!$J:$J,$C55) / COUNTIFS(OtherPersons!$E:$E,W$8,OtherPersons!$J:$J,$C55)*INDEX(OtherPersonsCalc!$J$1:$S$17,MATCH($C55,OtherPersonsCalc!$I:$I,0),W$8),0) -> 0 | X55: =IFERROR(SUMIFS(OtherPersons!$S:$S,OtherPersons!$E:$E,X$8,OtherPersons!$J:$J,$C55) / COUNTIFS(OtherPersons!$E:$E,X$8,OtherPersons!$J:$J,$C55)*INDEX(OtherPersonsCalc!$J$1:$S$17,MATCH($C55,OtherPersonsCalc!$I:$I,0),X$8),0) -> 0 | Y55: =IFERROR(SUMIFS(OtherPersons!$Z:$Z,OtherPersons!$E:$E,Y$8,OtherPersons!$J:$J,$C55) / COUNTIFS(OtherPersons!$E:$E,Y$8,OtherPersons!$J:$J,$C55)*INDEX(OtherPersonsCalc!$J$1:$S$17,MATCH($C55,OtherPersonsCalc!$I:$I,0),Y$8),0) -> 0 | Z55: =IFERROR(SUMIFS(OtherPersons!$S:$S,OtherPersons!$E:$E,Z$8,OtherPersons!$J:$J,$C55) / COUNTIFS(OtherPersons!$E:$E,Z$8,OtherPersons!$J:$J,$C55)*INDEX(OtherPersonsCalc!$J$1:$S$17,MATCH($C55,OtherPersonsCalc!$I:$I,0),Z$8),0) -> 0 | AA55: =IFERROR(SUMIFS(OtherPersons!$Z:$Z,OtherPersons!$E:$E,AA$8,OtherPersons!$J:$J,$C55) / COUNTIFS(OtherPersons!$E:$E,AA$8,OtherPersons!$J:$J,$C55)*INDEX(OtherPersonsCalc!$J$1:$S$17,MATCH($C55,OtherPersonsCalc!$I:$I,0),AA$8),0) -> 0 | AB55: 0 | AC55: 0 | AD55: 0
B56: 20 | D56: =IFERROR(SUMIFS(OtherPersons!$AC:$AC,OtherPersons!$E:$E,$H$8,OtherPersons!$J:$J,$C56) / COUNTIFS(OtherPersons!$E:$E,$H$8,OtherPersons!$J:$J,$C56)*INDEX(OtherPersonsCalc!$J$1:$S$17,MATCH($C56,OtherPersonsCalc!$I:$I,0),$H$8),"") ->  | G56: =IFERROR(INDEX(OtherPersonsCalc!$J$1:$S$17,MATCH($C56,OtherPersonsCalc!$I:$I,0),H$8),"") -> 0 | H56: =IFERROR(SUMIFS(OtherPersons!$S:$S,OtherPersons!$E:$E,H$8,OtherPersons!$J:$J,$C56) / COUNTIFS(OtherPersons!$E:$E,H$8,OtherPersons!$J:$J,$C56)*INDEX(OtherPersonsCalc!$J$1:$S$17,MATCH($C56,OtherPersonsCalc!$I:$I,0),H$8),0) -> 0 | I56: =IFERROR(SUMIFS(OtherPersons!$Z:$Z,OtherPersons!$E:$E,I$8,OtherPersons!$J:$J,$C56) / COUNTIFS(OtherPersons!$E:$E,I$8,OtherPersons!$J:$J,$C56)*INDEX(OtherPersonsCalc!$J$1:$S$17,MATCH($C56,OtherPersonsCalc!$I:$I,0),I$8),0) -> 0 | J56: =IFERROR(SUMIFS(OtherPersons!$S:$S,OtherPersons!$E:$E,J$8,OtherPersons!$J:$J,$C56) / COUNTIFS(OtherPersons!$E:$E,J$8,OtherPersons!$J:$J,$C56)*INDEX(OtherPersonsCalc!$J$1:$S$17,MATCH($C56,OtherPersonsCalc!$I:$I,0),J$8),0) -> 0 | K56: =IFERROR(SUMIFS(OtherPersons!$Z:$Z,OtherPersons!$E:$E,K$8,OtherPersons!$J:$J,$C56) / COUNTIFS(OtherPersons!$E:$E,K$8,OtherPersons!$J:$J,$C56)*INDEX(OtherPersonsCalc!$J$1:$S$17,MATCH($C56,OtherPersonsCalc!$I:$I,0),K$8),0) -> 0 | L56: =IFERROR(SUMIFS(OtherPersons!$S:$S,OtherPersons!$E:$E,L$8,OtherPersons!$J:$J,$C56) / COUNTIFS(OtherPersons!$E:$E,L$8,OtherPersons!$J:$J,$C56)*INDEX(OtherPersonsCalc!$J$1:$S$17,MATCH($C56,OtherPersonsCalc!$I:$I,0),L$8),0) -> 0 | M56: =IFERROR(SUMIFS(OtherPersons!$Z:$Z,OtherPersons!$E:$E,M$8,OtherPersons!$J:$J,$C56) / COUNTIFS(OtherPersons!$E:$E,M$8,OtherPersons!$J:$J,$C56)*INDEX(OtherPersonsCalc!$J$1:$S$17,MATCH($C56,OtherPersonsCalc!$I:$I,0),M$8),0) -> 0 | N56: =IFERROR(SUMIFS(OtherPersons!$S:$S,OtherPersons!$E:$E,N$8,OtherPersons!$J:$J,$C56) / COUNTIFS(OtherPersons!$E:$E,N$8,OtherPersons!$J:$J,$C56)*INDEX(OtherPersonsCalc!$J$1:$S$17,MATCH($C56,OtherPersonsCalc!$I:$I,0),N$8),0) -> 0 | O56: =IFERROR(SUMIFS(OtherPersons!$Z:$Z,OtherPersons!$E:$E,O$8,OtherPersons!$J:$J,$C56) / COUNTIFS(OtherPersons!$E:$E,O$8,OtherPersons!$J:$J,$C56)*INDEX(OtherPersonsCalc!$J$1:$S$17,MATCH($C56,OtherPersonsCalc!$I:$I,0),O$8),0) -> 0 | P56: =IFERROR(SUMIFS(OtherPersons!$S:$S,OtherPersons!$E:$E,P$8,OtherPersons!$J:$J,$C56) / COUNTIFS(OtherPersons!$E:$E,P$8,OtherPersons!$J:$J,$C56)*INDEX(OtherPersonsCalc!$J$1:$S$17,MATCH($C56,OtherPersonsCalc!$I:$I,0),P$8),0) -> 0 | Q56: =IFERROR(SUMIFS(OtherPersons!$Z:$Z,OtherPersons!$E:$E,Q$8,OtherPersons!$J:$J,$C56) / COUNTIFS(OtherPersons!$E:$E,Q$8,OtherPersons!$J:$J,$C56)*INDEX(OtherPersonsCalc!$J$1:$S$17,MATCH($C56,OtherPersonsCalc!$I:$I,0),Q$8),0) -> 0 | R56: =IFERROR(SUMIFS(OtherPersons!$S:$S,OtherPersons!$E:$E,R$8,OtherPersons!$J:$J,$C56) / COUNTIFS(OtherPersons!$E:$E,R$8,OtherPersons!$J:$J,$C56)*INDEX(OtherPersonsCalc!$J$1:$S$17,MATCH($C56,OtherPersonsCalc!$I:$I,0),R$8),0) -> 0 | S56: =IFERROR(SUMIFS(OtherPersons!$Z:$Z,OtherPersons!$E:$E,S$8,OtherPersons!$J:$J,$C56) / COUNTIFS(OtherPersons!$E:$E,S$8,OtherPersons!$J:$J,$C56)*INDEX(OtherPersonsCalc!$J$1:$S$17,MATCH($C56,OtherPersonsCalc!$I:$I,0),S$8),0) -> 0 | T56: =IFERROR(SUMIFS(OtherPersons!$S:$S,OtherPersons!$E:$E,T$8,OtherPersons!$J:$J,$C56) / COUNTIFS(OtherPersons!$E:$E,T$8,OtherPersons!$J:$J,$C56)*INDEX(OtherPersonsCalc!$J$1:$S$17,MATCH($C56,OtherPersonsCalc!$I:$I,0),T$8),0) -> 0 | U56: =IFERROR(SUMIFS(OtherPersons!$Z:$Z,OtherPersons!$E:$E,U$8,OtherPersons!$J:$J,$C56) / COUNTIFS(OtherPersons!$E:$E,U$8,OtherPersons!$J:$J,$C56)*INDEX(OtherPersonsCalc!$J$1:$S$17,MATCH($C56,OtherPersonsCalc!$I:$I,0),U$8),0) -> 0 | V56: =IFERROR(SUMIFS(OtherPersons!$S:$S,OtherPersons!$E:$E,V$8,OtherPersons!$J:$J,$C56) / COUNTIFS(OtherPersons!$E:$E,V$8,OtherPersons!$J:$J,$C56)*INDEX(OtherPersonsCalc!$J$1:$S$17,MATCH($C56,OtherPersonsCalc!$I:$I,0),V$8),0) -> 0 | W56: =IFERROR(SUMIFS(OtherPersons!$Z:$Z,OtherPersons!$E:$E,W$8,OtherPersons!$J:$J,$C56) / COUNTIFS(OtherPersons!$E:$E,W$8,OtherPersons!$J:$J,$C56)*INDEX(OtherPersonsCalc!$J$1:$S$17,MATCH($C56,OtherPersonsCalc!$I:$I,0),W$8),0) -> 0 | X56: =IFERROR(SUMIFS(OtherPersons!$S:$S,OtherPersons!$E:$E,X$8,OtherPersons!$J:$J,$C56) / COUNTIFS(OtherPersons!$E:$E,X$8,OtherPersons!$J:$J,$C56)*INDEX(OtherPersonsCalc!$J$1:$S$17,MATCH($C56,OtherPersonsCalc!$I:$I,0),X$8),0) -> 0 | Y56: =IFERROR(SUMIFS(OtherPersons!$Z:$Z,OtherPersons!$E:$E,Y$8,OtherPersons!$J:$J,$C56) / COUNTIFS(OtherPersons!$E:$E,Y$8,OtherPersons!$J:$J,$C56)*INDEX(OtherPersonsCalc!$J$1:$S$17,MATCH($C56,OtherPersonsCalc!$I:$I,0),Y$8),0) -> 0 | Z56: =IFERROR(SUMIFS(OtherPersons!$S:$S,OtherPersons!$E:$E,Z$8,OtherPersons!$J:$J,$C56) / COUNTIFS(OtherPersons!$E:$E,Z$8,OtherPersons!$J:$J,$C56)*INDEX(OtherPersonsCalc!$J$1:$S$17,MATCH($C56,OtherPersonsCalc!$I:$I,0),Z$8),0) -> 0 | AA56: =IFERROR(SUMIFS(OtherPersons!$Z:$Z,OtherPersons!$E:$E,AA$8,OtherPersons!$J:$J,$C56) / COUNTIFS(OtherPersons!$E:$E,AA$8,OtherPersons!$J:$J,$C56)*INDEX(OtherPersonsCalc!$J$1:$S$17,MATCH($C56,OtherPersonsCalc!$I:$I,0),AA$8),0) -> 0 | AB56: 0 | AC56: 0 | AD56: 0
C58: Subtotal: Salaries and Wages | H58: =+H14+H36 -> 0 | I58: 0 | J58: 0 | K58: 0 | L58: 0 | M58: 0 | N58: 0 | O58: 0 | P58: =+P14+P36 -> 0 | Q58: 0 | R58: 0 | S58: 0 | T58: 0 | U58: 0 | V58: 0 | W58: 0 | X58: 0 | Y58: 0 | Z58: 0 | AA58: 0 | AB58: =SUM(H58+J58+L58+N58+P58+R58+T58+V58+X58+Z58) -> 0 | AC58: =SUM(I58+K58+M58+O58+Q58+S58+U58+W58+Y58+AA58) -> 0 | AD58: =SUM(AB58+AC58) -> 0
A60: C | C60: Fringe Benefits | D60: ="Rate ("&BudgetCalcs!F9&" 1)" -> Rate (Period 1) | H60: =SUM(H61:H100) -> 0 | I60: 0 | J60: 0 | K60: 0 | L60: 0 | M60: 0 | N60: 0 | O60: 0 | P60: 0 | Q60: 0 | R60: 0 | S60: 0 | T60: 0 | U60: 0 | V60: 0 | W60: 0 | X60: 0 | Y60: 0 | Z60: 0 | AA60: 0 | AB60: =SUM(H60+J60+L60+N60+P60+R60+T60+V60+X60+Z60) -> 0 | AC60: =SUM(I60+K60+M60+O60+Q60+S60+U60+W60+Y60+AA60) -> 0 | AD60: =SUM(AB60+AC60) -> 0
C61: =C15 -> 0 | D61: =IFERROR(H61/H15,"") ->  | H61: =IFERROR(SUMIFS(SrPersons!$T:$T,SrPersons!$D:$D,H$8,SrPersons!$J:$J,$C61,SrPersons!$U:$U,"E"),0) -> 0 | I61: =IFERROR(SUMIFS(SrPersons!$X:$X,SrPersons!$D:$D,I$8,SrPersons!$J:$J,$C61,SrPersons!$U:$U,"E"),0) -> 0 | J61: =IFERROR(SUMIFS(SrPersons!$T:$T,SrPersons!$D:$D,J$8,SrPersons!$J:$J,$C61,SrPersons!$U:$U,"E"),0) -> 0 | K61: =IFERROR(SUMIFS(SrPersons!$X:$X,SrPersons!$D:$D,K$8,SrPersons!$J:$J,$C61,SrPersons!$U:$U,"E"),0) -> 0 | L61: =IFERROR(SUMIFS(SrPersons!$T:$T,SrPersons!$D:$D,L$8,SrPersons!$J:$J,$C61,SrPersons!$U:$U,"E"),0) -> 0 | M61: =IFERROR(SUMIFS(SrPersons!$X:$X,SrPersons!$D:$D,M$8,SrPersons!$J:$J,$C61,SrPersons!$U:$U,"E"),0) -> 0 | N61: =IFERROR(SUMIFS(SrPersons!$T:$T,SrPersons!$D:$D,N$8,SrPersons!$J:$J,$C61,SrPersons!$U:$U,"E"),0) -> 0 | O61: =IFERROR(SUMIFS(SrPersons!$X:$X,SrPersons!$D:$D,O$8,SrPersons!$J:$J,$C61,SrPersons!$U:$U,"E"),0) -> 0 | P61: =IFERROR(SUMIFS(SrPersons!$T:$T,SrPersons!$D:$D,P$8,SrPersons!$J:$J,$C61,SrPersons!$U:$U,"E"),0) -> 0 | Q61: =IFERROR(SUMIFS(SrPersons!$X:$X,SrPersons!$D:$D,Q$8,SrPersons!$J:$J,$C61,SrPersons!$U:$U,"E"),0) -> 0 | R61: =IFERROR(SUMIFS(SrPersons!$T:$T,SrPersons!$D:$D,R$8,SrPersons!$J:$J,$C61,SrPersons!$U:$U,"E"),0) -> 0 | S61: =IFERROR(SUMIFS(SrPersons!$X:$X,SrPersons!$D:$D,S$8,SrPersons!$J:$J,$C61,SrPersons!$U:$U,"E"),0) -> 0 | T61: =IFERROR(SUMIFS(SrPersons!$T:$T,SrPersons!$D:$D,T$8,SrPersons!$J:$J,$C61,SrPersons!$U:$U,"E"),0) -> 0 | U61: =IFERROR(SUMIFS(SrPersons!$X:$X,SrPersons!$D:$D,U$8,SrPersons!$J:$J,$C61,SrPersons!$U:$U,"E"),0) -> 0 | V61: =IFERROR(SUMIFS(SrPersons!$T:$T,SrPersons!$D:$D,V$8,SrPersons!$J:$J,$C61,SrPersons!$U:$U,"E"),0) -> 0 | W61: =IFERROR(SUMIFS(SrPersons!$X:$X,SrPersons!$D:$D,W$8,SrPersons!$J:$J,$C61,SrPersons!$U:$U,"E"),0) -> 0 | X61: =IFERROR(SUMIFS(SrPersons!$T:$T,SrPersons!$D:$D,X$8,SrPersons!$J:$J,$C61,SrPersons!$U:$U,"E"),0) -> 0 | Y61: =IFERROR(SUMIFS(SrPersons!$X:$X,SrPersons!$D:$D,Y$8,SrPersons!$J:$J,$C61,SrPersons!$U:$U,"E"),0) -> 0 | Z61: =IFERROR(SUMIFS(SrPersons!$T:$T,SrPersons!$D:$D,Z$8,SrPersons!$J:$J,$C61,SrPersons!$U:$U,"E"),0) -> 0 | AA61: =IFERROR(SUMIFS(SrPersons!$X:$X,SrPersons!$D:$D,AA$8,SrPersons!$J:$J,$C61,SrPersons!$U:$U,"E"),0) -> 0 | AB61: 0 | AC61: 0 | AD61: =SUM(AB61+AC61) -> 0
C62: =C16 -> 0 | D62: =IFERROR(H62/H16,"") ->  | H62: =IFERROR(SUMIFS(SrPersons!$T:$T,SrPersons!$D:$D,H$8,SrPersons!$J:$J,$C62,SrPersons!$U:$U,"E"),0) -> 0 | I62: =IFERROR(SUMIFS(SrPersons!$X:$X,SrPersons!$D:$D,I$8,SrPersons!$J:$J,$C62,SrPersons!$U:$U,"E"),0) -> 0 | J62: =IFERROR(SUMIFS(SrPersons!$T:$T,SrPersons!$D:$D,J$8,SrPersons!$J:$J,$C62,SrPersons!$U:$U,"E"),0) -> 0 | K62: =IFERROR(SUMIFS(SrPersons!$X:$X,SrPersons!$D:$D,K$8,SrPersons!$J:$J,$C62,SrPersons!$U:$U,"E"),0) -> 0 | L62: =IFERROR(SUMIFS(SrPersons!$T:$T,SrPersons!$D:$D,L$8,SrPersons!$J:$J,$C62,SrPersons!$U:$U,"E"),0) -> 0 | M62: =IFERROR(SUMIFS(SrPersons!$X:$X,SrPersons!$D:$D,M$8,SrPersons!$J:$J,$C62,SrPersons!$U:$U,"E"),0) -> 0 | N62: =IFERROR(SUMIFS(SrPersons!$T:$T,SrPersons!$D:$D,N$8,SrPersons!$J:$J,$C62,SrPersons!$U:$U,"E"),0) -> 0 | O62: =IFERROR(SUMIFS(SrPersons!$X:$X,SrPersons!$D:$D,O$8,SrPersons!$J:$J,$C62,SrPersons!$U:$U,"E"),0) -> 0 | P62: =IFERROR(SUMIFS(SrPersons!$T:$T,SrPersons!$D:$D,P$8,SrPersons!$J:$J,$C62,SrPersons!$U:$U,"E"),0) -> 0 | Q62: =IFERROR(SUMIFS(SrPersons!$X:$X,SrPersons!$D:$D,Q$8,SrPersons!$J:$J,$C62,SrPersons!$U:$U,"E"),0) -> 0 | R62: =IFERROR(SUMIFS(SrPersons!$T:$T,SrPersons!$D:$D,R$8,SrPersons!$J:$J,$C62,SrPersons!$U:$U,"E"),0) -> 0 | S62: =IFERROR(SUMIFS(SrPersons!$X:$X,SrPersons!$D:$D,S$8,SrPersons!$J:$J,$C62,SrPersons!$U:$U,"E"),0) -> 0 | T62: =IFERROR(SUMIFS(SrPersons!$T:$T,SrPersons!$D:$D,T$8,SrPersons!$J:$J,$C62,SrPersons!$U:$U,"E"),0) -> 0 | U62: =IFERROR(SUMIFS(SrPersons!$X:$X,SrPersons!$D:$D,U$8,SrPersons!$J:$J,$C62,SrPersons!$U:$U,"E"),0) -> 0 | V62: =IFERROR(SUMIFS(SrPersons!$T:$T,SrPersons!$D:$D,V$8,SrPersons!$J:$J,$C62,SrPersons!$U:$U,"E"),0) -> 0 | W62: =IFERROR(SUMIFS(SrPersons!$X:$X,SrPersons!$D:$D,W$8,SrPersons!$J:$J,$C62,SrPersons!$U:$U,"E"),0) -> 0 | X62: =IFERROR(SUMIFS(SrPersons!$T:$T,SrPersons!$D:$D,X$8,SrPersons!$J:$J,$C62,SrPersons!$U:$U,"E"),0) -> 0 | Y62: =IFERROR(SUMIFS(SrPersons!$X:$X,SrPersons!$D:$D,Y$8,SrPersons!$J:$J,$C62,SrPersons!$U:$U,"E"),0) -> 0 | Z62: =IFERROR(SUMIFS(SrPersons!$T:$T,SrPersons!$D:$D,Z$8,SrPersons!$J:$J,$C62,SrPersons!$U:$U,"E"),0) -> 0 | AA62: =IFERROR(SUMIFS(SrPersons!$X:$X,SrPersons!$D:$D,AA$8,SrPersons!$J:$J,$C62,SrPersons!$U:$U,"E"),0) -> 0 | AB62: 0 | AC62: 0 | AD62: 0
C63: =C17 -> 0 | D63: =IFERROR(H63/H17,"") ->  | H63: =IFERROR(SUMIFS(SrPersons!$T:$T,SrPersons!$D:$D,H$8,SrPersons!$J:$J,$C63,SrPersons!$U:$U,"E"),0) -> 0 | I63: =IFERROR(SUMIFS(SrPersons!$X:$X,SrPersons!$D:$D,I$8,SrPersons!$J:$J,$C63,SrPersons!$U:$U,"E"),0) -> 0 | J63: =IFERROR(SUMIFS(SrPersons!$T:$T,SrPersons!$D:$D,J$8,SrPersons!$J:$J,$C63,SrPersons!$U:$U,"E"),0) -> 0 | K63: =IFERROR(SUMIFS(SrPersons!$X:$X,SrPersons!$D:$D,K$8,SrPersons!$J:$J,$C63,SrPersons!$U:$U,"E"),0) -> 0 | L63: =IFERROR(SUMIFS(SrPersons!$T:$T,SrPersons!$D:$D,L$8,SrPersons!$J:$J,$C63,SrPersons!$U:$U,"E"),0) -> 0 | M63: =IFERROR(SUMIFS(SrPersons!$X:$X,SrPersons!$D:$D,M$8,SrPersons!$J:$J,$C63,SrPersons!$U:$U,"E"),0) -> 0 | N63: =IFERROR(SUMIFS(SrPersons!$T:$T,SrPersons!$D:$D,N$8,SrPersons!$J:$J,$C63,SrPersons!$U:$U,"E"),0) -> 0 | O63: =IFERROR(SUMIFS(SrPersons!$X:$X,SrPersons!$D:$D,O$8,SrPersons!$J:$J,$C63,SrPersons!$U:$U,"E"),0) -> 0 | P63: =IFERROR(SUMIFS(SrPersons!$T:$T,SrPersons!$D:$D,P$8,SrPersons!$J:$J,$C63,SrPersons!$U:$U,"E"),0) -> 0 | Q63: =IFERROR(SUMIFS(SrPersons!$X:$X,SrPersons!$D:$D,Q$8,SrPersons!$J:$J,$C63,SrPersons!$U:$U,"E"),0) -> 0 | R63: =IFERROR(SUMIFS(SrPersons!$T:$T,SrPersons!$D:$D,R$8,SrPersons!$J:$J,$C63,SrPersons!$U:$U,"E"),0) -> 0 | S63: =IFERROR(SUMIFS(SrPersons!$X:$X,SrPersons!$D:$D,S$8,SrPersons!$J:$J,$C63,SrPersons!$U:$U,"E"),0) -> 0 | T63: =IFERROR(SUMIFS(SrPersons!$T:$T,SrPersons!$D:$D,T$8,SrPersons!$J:$J,$C63,SrPersons!$U:$U,"E"),0) -> 0 | U63: =IFERROR(SUMIFS(SrPersons!$X:$X,SrPersons!$D:$D,U$8,SrPersons!$J:$J,$C63,SrPersons!$U:$U,"E"),0) -> 0 | V63: =IFERROR(SUMIFS(SrPersons!$T:$T,SrPersons!$D:$D,V$8,SrPersons!$J:$J,$C63,SrPersons!$U:$U,"E"),0) -> 0 | W63: =IFERROR(SUMIFS(SrPersons!$X:$X,SrPersons!$D:$D,W$8,SrPersons!$J:$J,$C63,SrPersons!$U:$U,"E"),0) -> 0 | X63: =IFERROR(SUMIFS(SrPersons!$T:$T,SrPersons!$D:$D,X$8,SrPersons!$J:$J,$C63,SrPersons!$U:$U,"E"),0) -> 0 | Y63: =IFERROR(SUMIFS(SrPersons!$X:$X,SrPersons!$D:$D,Y$8,SrPersons!$J:$J,$C63,SrPersons!$U:$U,"E"),0) -> 0 | Z63: =IFERROR(SUMIFS(SrPersons!$T:$T,SrPersons!$D:$D,Z$8,SrPersons!$J:$J,$C63,SrPersons!$U:$U,"E"),0) -> 0 | AA63: =IFERROR(SUMIFS(SrPersons!$X:$X,SrPersons!$D:$D,AA$8,SrPersons!$J:$J,$C63,SrPersons!$U:$U,"E"),0) -> 0 | AB63: 0 | AC63: 0 | AD63: =SUM(AB63+AC63) -> 0
C64: 0 | H64: =IFERROR(SUMIFS(SrPersons!$T:$T,SrPersons!$D:$D,H$8,SrPersons!$J:$J,$C64,SrPersons!$U:$U,"E"),0) -> 0 | I64: =IFERROR(SUMIFS(SrPersons!$X:$X,SrPersons!$D:$D,I$8,SrPersons!$J:$J,$C64,SrPersons!$U:$U,"E"),0) -> 0 | J64: =IFERROR(SUMIFS(SrPersons!$T:$T,SrPersons!$D:$D,J$8,SrPersons!$J:$J,$C64,SrPersons!$U:$U,"E"),0) -> 0 | K64: =IFERROR(SUMIFS(SrPersons!$X:$X,SrPersons!$D:$D,K$8,SrPersons!$J:$J,$C64,SrPersons!$U:$U,"E"),0) -> 0 | L64: =IFERROR(SUMIFS(SrPersons!$T:$T,SrPersons!$D:$D,L$8,SrPersons!$J:$J,$C64,SrPersons!$U:$U,"E"),0) -> 0 | M64: =IFERROR(SUMIFS(SrPersons!$X:$X,SrPersons!$D:$D,M$8,SrPersons!$J:$J,$C64,SrPersons!$U:$U,"E"),0) -> 0 | N64: =IFERROR(SUMIFS(SrPersons!$T:$T,SrPersons!$D:$D,N$8,SrPersons!$J:$J,$C64,SrPersons!$U:$U,"E"),0) -> 0 | O64: =IFERROR(SUMIFS(SrPersons!$X:$X,SrPersons!$D:$D,O$8,SrPersons!$J:$J,$C64,SrPersons!$U:$U,"E"),0) -> 0 | P64: =IFERROR(SUMIFS(SrPersons!$T:$T,SrPersons!$D:$D,P$8,SrPersons!$J:$J,$C64,SrPersons!$U:$U,"E"),0) -> 0 | Q64: =IFERROR(SUMIFS(SrPersons!$X:$X,SrPersons!$D:$D,Q$8,SrPersons!$J:$J,$C64,SrPersons!$U:$U,"E"),0) -> 0 | R64: =IFERROR(SUMIFS(SrPersons!$T:$T,SrPersons!$D:$D,R$8,SrPersons!$J:$J,$C64,SrPersons!$U:$U,"E"),0) -> 0 | S64: =IFERROR(SUMIFS(SrPersons!$X:$X,SrPersons!$D:$D,S$8,SrPersons!$J:$J,$C64,SrPersons!$U:$U,"E"),0) -> 0 | T64: =IFERROR(SUMIFS(SrPersons!$T:$T,SrPersons!$D:$D,T$8,SrPersons!$J:$J,$C64,SrPersons!$U:$U,"E"),0) -> 0 | U64: =IFERROR(SUMIFS(SrPersons!$X:$X,SrPersons!$D:$D,U$8,SrPersons!$J:$J,$C64,SrPersons!$U:$U,"E"),0) -> 0 | V64: =IFERROR(SUMIFS(SrPersons!$T:$T,SrPersons!$D:$D,V$8,SrPersons!$J:$J,$C64,SrPersons!$U:$U,"E"),0) -> 0 | W64: =IFERROR(SUMIFS(SrPersons!$X:$X,SrPersons!$D:$D,W$8,SrPersons!$J:$J,$C64,SrPersons!$U:$U,"E"),0) -> 0 | X64: =IFERROR(SUMIFS(SrPersons!$T:$T,SrPersons!$D:$D,X$8,SrPersons!$J:$J,$C64,SrPersons!$U:$U,"E"),0) -> 0 | Y64: =IFERROR(SUMIFS(SrPersons!$X:$X,SrPersons!$D:$D,Y$8,SrPersons!$J:$J,$C64,SrPersons!$U:$U,"E"),0) -> 0 | Z64: =IFERROR(SUMIFS(SrPersons!$T:$T,SrPersons!$D:$D,Z$8,SrPersons!$J:$J,$C64,SrPersons!$U:$U,"E"),0) -> 0 | AA64: =IFERROR(SUMIFS(SrPersons!$X:$X,SrPersons!$D:$D,AA$8,SrPersons!$J:$J,$C64,SrPersons!$U:$U,"E"),0) -> 0 | AB64: 0 | AC64: 0 | AD64: 0
C65: 0 | H65: =IFERROR(SUMIFS(SrPersons!$T:$T,SrPersons!$D:$D,H$8,SrPersons!$J:$J,$C65,SrPersons!$U:$U,"E"),0) -> 0 | I65: =IFERROR(SUMIFS(SrPersons!$X:$X,SrPersons!$D:$D,I$8,SrPersons!$J:$J,$C65,SrPersons!$U:$U,"E"),0) -> 0 | J65: =IFERROR(SUMIFS(SrPersons!$T:$T,SrPersons!$D:$D,J$8,SrPersons!$J:$J,$C65,SrPersons!$U:$U,"E"),0) -> 0 | K65: =IFERROR(SUMIFS(SrPersons!$X:$X,SrPersons!$D:$D,K$8,SrPersons!$J:$J,$C65,SrPersons!$U:$U,"E"),0) -> 0 | L65: =IFERROR(SUMIFS(SrPersons!$T:$T,SrPersons!$D:$D,L$8,SrPersons!$J:$J,$C65,SrPersons!$U:$U,"E"),0) -> 0 | M65: =IFERROR(SUMIFS(SrPersons!$X:$X,SrPersons!$D:$D,M$8,SrPersons!$J:$J,$C65,SrPersons!$U:$U,"E"),0) -> 0 | N65: =IFERROR(SUMIFS(SrPersons!$T:$T,SrPersons!$D:$D,N$8,SrPersons!$J:$J,$C65,SrPersons!$U:$U,"E"),0) -> 0 | O65: =IFERROR(SUMIFS(SrPersons!$X:$X,SrPersons!$D:$D,O$8,SrPersons!$J:$J,$C65,SrPersons!$U:$U,"E"),0) -> 0 | P65: =IFERROR(SUMIFS(SrPersons!$T:$T,SrPersons!$D:$D,P$8,SrPersons!$J:$J,$C65,SrPersons!$U:$U,"E"),0) -> 0 | Q65: =IFERROR(SUMIFS(SrPersons!$X:$X,SrPersons!$D:$D,Q$8,SrPersons!$J:$J,$C65,SrPersons!$U:$U,"E"),0) -> 0 | R65: =IFERROR(SUMIFS(SrPersons!$T:$T,SrPersons!$D:$D,R$8,SrPersons!$J:$J,$C65,SrPersons!$U:$U,"E"),0) -> 0 | S65: =IFERROR(SUMIFS(SrPersons!$X:$X,SrPersons!$D:$D,S$8,SrPersons!$J:$J,$C65,SrPersons!$U:$U,"E"),0) -> 0 | T65: =IFERROR(SUMIFS(SrPersons!$T:$T,SrPersons!$D:$D,T$8,SrPersons!$J:$J,$C65,SrPersons!$U:$U,"E"),0) -> 0 | U65: =IFERROR(SUMIFS(SrPersons!$X:$X,SrPersons!$D:$D,U$8,SrPersons!$J:$J,$C65,SrPersons!$U:$U,"E"),0) -> 0 | V65: =IFERROR(SUMIFS(SrPersons!$T:$T,SrPersons!$D:$D,V$8,SrPersons!$J:$J,$C65,SrPersons!$U:$U,"E"),0) -> 0 | W65: =IFERROR(SUMIFS(SrPersons!$X:$X,SrPersons!$D:$D,W$8,SrPersons!$J:$J,$C65,SrPersons!$U:$U,"E"),0) -> 0 | X65: =IFERROR(SUMIFS(SrPersons!$T:$T,SrPersons!$D:$D,X$8,SrPersons!$J:$J,$C65,SrPersons!$U:$U,"E"),0) -> 0 | Y65: =IFERROR(SUMIFS(SrPersons!$X:$X,SrPersons!$D:$D,Y$8,SrPersons!$J:$J,$C65,SrPersons!$U:$U,"E"),0) -> 0 | Z65: =IFERROR(SUMIFS(SrPersons!$T:$T,SrPersons!$D:$D,Z$8,SrPersons!$J:$J,$C65,SrPersons!$U:$U,"E"),0) -> 0 | AA65: =IFERROR(SUMIFS(SrPersons!$X:$X,SrPersons!$D:$D,AA$8,SrPersons!$J:$J,$C65,SrPersons!$U:$U,"E"),0) -> 0 | AB65: 0 | AC65: 0 | AD65: 0
C66: 0 | H66: =IFERROR(SUMIFS(SrPersons!$T:$T,SrPersons!$D:$D,H$8,SrPersons!$J:$J,$C66,SrPersons!$U:$U,"E"),0) -> 0 | I66: =IFERROR(SUMIFS(SrPersons!$X:$X,SrPersons!$D:$D,I$8,SrPersons!$J:$J,$C66,SrPersons!$U:$U,"E"),0) -> 0 | J66: =IFERROR(SUMIFS(SrPersons!$T:$T,SrPersons!$D:$D,J$8,SrPersons!$J:$J,$C66,SrPersons!$U:$U,"E"),0) -> 0 | K66: =IFERROR(SUMIFS(SrPersons!$X:$X,SrPersons!$D:$D,K$8,SrPersons!$J:$J,$C66,SrPersons!$U:$U,"E"),0) -> 0 | L66: =IFERROR(SUMIFS(SrPersons!$T:$T,SrPersons!$D:$D,L$8,SrPersons!$J:$J,$C66,SrPersons!$U:$U,"E"),0) -> 0 | M66: =IFERROR(SUMIFS(SrPersons!$X:$X,SrPersons!$D:$D,M$8,SrPersons!$J:$J,$C66,SrPersons!$U:$U,"E"),0) -> 0 | N66: =IFERROR(SUMIFS(SrPersons!$T:$T,SrPersons!$D:$D,N$8,SrPersons!$J:$J,$C66,SrPersons!$U:$U,"E"),0) -> 0 | O66: =IFERROR(SUMIFS(SrPersons!$X:$X,SrPersons!$D:$D,O$8,SrPersons!$J:$J,$C66,SrPersons!$U:$U,"E"),0) -> 0 | P66: =IFERROR(SUMIFS(SrPersons!$T:$T,SrPersons!$D:$D,P$8,SrPersons!$J:$J,$C66,SrPersons!$U:$U,"E"),0) -> 0 | Q66: =IFERROR(SUMIFS(SrPersons!$X:$X,SrPersons!$D:$D,Q$8,SrPersons!$J:$J,$C66,SrPersons!$U:$U,"E"),0) -> 0 | R66: =IFERROR(SUMIFS(SrPersons!$T:$T,SrPersons!$D:$D,R$8,SrPersons!$J:$J,$C66,SrPersons!$U:$U,"E"),0) -> 0 | S66: =IFERROR(SUMIFS(SrPersons!$X:$X,SrPersons!$D:$D,S$8,SrPersons!$J:$J,$C66,SrPersons!$U:$U,"E"),0) -> 0 | T66: =IFERROR(SUMIFS(SrPersons!$T:$T,SrPersons!$D:$D,T$8,SrPersons!$J:$J,$C66,SrPersons!$U:$U,"E"),0) -> 0 | U66: =IFERROR(SUMIFS(SrPersons!$X:$X,SrPersons!$D:$D,U$8,SrPersons!$J:$J,$C66,SrPersons!$U:$U,"E"),0) -> 0 | V66: =IFERROR(SUMIFS(SrPersons!$T:$T,SrPersons!$D:$D,V$8,SrPersons!$J:$J,$C66,SrPersons!$U:$U,"E"),0) -> 0 | W66: =IFERROR(SUMIFS(SrPersons!$X:$X,SrPersons!$D:$D,W$8,SrPersons!$J:$J,$C66,SrPersons!$U:$U,"E"),0) -> 0 | X66: =IFERROR(SUMIFS(SrPersons!$T:$T,SrPersons!$D:$D,X$8,SrPersons!$J:$J,$C66,SrPersons!$U:$U,"E"),0) -> 0 | Y66: =IFERROR(SUMIFS(SrPersons!$X:$X,SrPersons!$D:$D,Y$8,SrPersons!$J:$J,$C66,SrPersons!$U:$U,"E"),0) -> 0 | Z66: =IFERROR(SUMIFS(SrPersons!$T:$T,SrPersons!$D:$D,Z$8,SrPersons!$J:$J,$C66,SrPersons!$U:$U,"E"),0) -> 0 | AA66: =IFERROR(SUMIFS(SrPersons!$X:$X,SrPersons!$D:$D,AA$8,SrPersons!$J:$J,$C66,SrPersons!$U:$U,"E"),0) -> 0 | AB66: 0 | AC66: 0 | AD66: 0
C67: 0 | H67: =IFERROR(SUMIFS(SrPersons!$T:$T,SrPersons!$D:$D,H$8,SrPersons!$J:$J,$C67,SrPersons!$U:$U,"E"),0) -> 0 | I67: =IFERROR(SUMIFS(SrPersons!$X:$X,SrPersons!$D:$D,I$8,SrPersons!$J:$J,$C67,SrPersons!$U:$U,"E"),0) -> 0 | J67: =IFERROR(SUMIFS(SrPersons!$T:$T,SrPersons!$D:$D,J$8,SrPersons!$J:$J,$C67,SrPersons!$U:$U,"E"),0) -> 0 | K67: =IFERROR(SUMIFS(SrPersons!$X:$X,SrPersons!$D:$D,K$8,SrPersons!$J:$J,$C67,SrPersons!$U:$U,"E"),0) -> 0 | L67: =IFERROR(SUMIFS(SrPersons!$T:$T,SrPersons!$D:$D,L$8,SrPersons!$J:$J,$C67,SrPersons!$U:$U,"E"),0) -> 0 | M67: =IFERROR(SUMIFS(SrPersons!$X:$X,SrPersons!$D:$D,M$8,SrPersons!$J:$J,$C67,SrPersons!$U:$U,"E"),0) -> 0 | N67: =IFERROR(SUMIFS(SrPersons!$T:$T,SrPersons!$D:$D,N$8,SrPersons!$J:$J,$C67,SrPersons!$U:$U,"E"),0) -> 0 | O67: =IFERROR(SUMIFS(SrPersons!$X:$X,SrPersons!$D:$D,O$8,SrPersons!$J:$J,$C67,SrPersons!$U:$U,"E"),0) -> 0 | P67: =IFERROR(SUMIFS(SrPersons!$T:$T,SrPersons!$D:$D,P$8,SrPersons!$J:$J,$C67,SrPersons!$U:$U,"E"),0) -> 0 | Q67: =IFERROR(SUMIFS(SrPersons!$X:$X,SrPersons!$D:$D,Q$8,SrPersons!$J:$J,$C67,SrPersons!$U:$U,"E"),0) -> 0 | R67: =IFERROR(SUMIFS(SrPersons!$T:$T,SrPersons!$D:$D,R$8,SrPersons!$J:$J,$C67,SrPersons!$U:$U,"E"),0) -> 0 | S67: =IFERROR(SUMIFS(SrPersons!$X:$X,SrPersons!$D:$D,S$8,SrPersons!$J:$J,$C67,SrPersons!$U:$U,"E"),0) -> 0 | T67: =IFERROR(SUMIFS(SrPersons!$T:$T,SrPersons!$D:$D,T$8,SrPersons!$J:$J,$C67,SrPersons!$U:$U,"E"),0) -> 0 | U67: =IFERROR(SUMIFS(SrPersons!$X:$X,SrPersons!$D:$D,U$8,SrPersons!$J:$J,$C67,SrPersons!$U:$U,"E"),0) -> 0 | V67: =IFERROR(SUMIFS(SrPersons!$T:$T,SrPersons!$D:$D,V$8,SrPersons!$J:$J,$C67,SrPersons!$U:$U,"E"),0) -> 0 | W67: =IFERROR(SUMIFS(SrPersons!$X:$X,SrPersons!$D:$D,W$8,SrPersons!$J:$J,$C67,SrPersons!$U:$U,"E"),0) -> 0 | X67: =IFERROR(SUMIFS(SrPersons!$T:$T,SrPersons!$D:$D,X$8,SrPersons!$J:$J,$C67,SrPersons!$U:$U,"E"),0) -> 0 | Y67: =IFERROR(SUMIFS(SrPersons!$X:$X,SrPersons!$D:$D,Y$8,SrPersons!$J:$J,$C67,SrPersons!$U:$U,"E"),0) -> 0 | Z67: =IFERROR(SUMIFS(SrPersons!$T:$T,SrPersons!$D:$D,Z$8,SrPersons!$J:$J,$C67,SrPersons!$U:$U,"E"),0) -> 0 | AA67: =IFERROR(SUMIFS(SrPersons!$X:$X,SrPersons!$D:$D,AA$8,SrPersons!$J:$J,$C67,SrPersons!$U:$U,"E"),0) -> 0 | AB67: 0 | AC67: 0 | AD67: 0
C68: 0 | H68: =IFERROR(SUMIFS(SrPersons!$T:$T,SrPersons!$D:$D,H$8,SrPersons!$J:$J,$C68,SrPersons!$U:$U,"E"),0) -> 0 | I68: =IFERROR(SUMIFS(SrPersons!$X:$X,SrPersons!$D:$D,I$8,SrPersons!$J:$J,$C68,SrPersons!$U:$U,"E"),0) -> 0 | J68: =IFERROR(SUMIFS(SrPersons!$T:$T,SrPersons!$D:$D,J$8,SrPersons!$J:$J,$C68,SrPersons!$U:$U,"E"),0) -> 0 | K68: =IFERROR(SUMIFS(SrPersons!$X:$X,SrPersons!$D:$D,K$8,SrPersons!$J:$J,$C68,SrPersons!$U:$U,"E"),0) -> 0 | L68: =IFERROR(SUMIFS(SrPersons!$T:$T,SrPersons!$D:$D,L$8,SrPersons!$J:$J,$C68,SrPersons!$U:$U,"E"),0) -> 0 | M68: =IFERROR(SUMIFS(SrPersons!$X:$X,SrPersons!$D:$D,M$8,SrPersons!$J:$J,$C68,SrPersons!$U:$U,"E"),0) -> 0 | N68: =IFERROR(SUMIFS(SrPersons!$T:$T,SrPersons!$D:$D,N$8,SrPersons!$J:$J,$C68,SrPersons!$U:$U,"E"),0) -> 0 | O68: =IFERROR(SUMIFS(SrPersons!$X:$X,SrPersons!$D:$D,O$8,SrPersons!$J:$J,$C68,SrPersons!$U:$U,"E"),0) -> 0 | P68: =IFERROR(SUMIFS(SrPersons!$T:$T,SrPersons!$D:$D,P$8,SrPersons!$J:$J,$C68,SrPersons!$U:$U,"E"),0) -> 0 | Q68: =IFERROR(SUMIFS(SrPersons!$X:$X,SrPersons!$D:$D,Q$8,SrPersons!$J:$J,$C68,SrPersons!$U:$U,"E"),0) -> 0 | R68: =IFERROR(SUMIFS(SrPersons!$T:$T,SrPersons!$D:$D,R$8,SrPersons!$J:$J,$C68,SrPersons!$U:$U,"E"),0) -> 0 | S68: =IFERROR(SUMIFS(SrPersons!$X:$X,SrPersons!$D:$D,S$8,SrPersons!$J:$J,$C68,SrPersons!$U:$U,"E"),0) -> 0 | T68: =IFERROR(SUMIFS(SrPersons!$T:$T,SrPersons!$D:$D,T$8,SrPersons!$J:$J,$C68,SrPersons!$U:$U,"E"),0) -> 0 | U68: =IFERROR(SUMIFS(SrPersons!$X:$X,SrPersons!$D:$D,U$8,SrPersons!$J:$J,$C68,SrPersons!$U:$U,"E"),0) -> 0 | V68: =IFERROR(SUMIFS(SrPersons!$T:$T,SrPersons!$D:$D,V$8,SrPersons!$J:$J,$C68,SrPersons!$U:$U,"E"),0) -> 0 | W68: =IFERROR(SUMIFS(SrPersons!$X:$X,SrPersons!$D:$D,W$8,SrPersons!$J:$J,$C68,SrPersons!$U:$U,"E"),0) -> 0 | X68: =IFERROR(SUMIFS(SrPersons!$T:$T,SrPersons!$D:$D,X$8,SrPersons!$J:$J,$C68,SrPersons!$U:$U,"E"),0) -> 0 | Y68: =IFERROR(SUMIFS(SrPersons!$X:$X,SrPersons!$D:$D,Y$8,SrPersons!$J:$J,$C68,SrPersons!$U:$U,"E"),0) -> 0 | Z68: =IFERROR(SUMIFS(SrPersons!$T:$T,SrPersons!$D:$D,Z$8,SrPersons!$J:$J,$C68,SrPersons!$U:$U,"E"),0) -> 0 | AA68: =IFERROR(SUMIFS(SrPersons!$X:$X,SrPersons!$D:$D,AA$8,SrPersons!$J:$J,$C68,SrPersons!$U:$U,"E"),0) -> 0 | AB68: 0 | AC68: 0 | AD68: 0
C69: 0 | H69: =IFERROR(SUMIFS(SrPersons!$T:$T,SrPersons!$D:$D,H$8,SrPersons!$J:$J,$C69,SrPersons!$U:$U,"E"),0) -> 0 | I69: =IFERROR(SUMIFS(SrPersons!$X:$X,SrPersons!$D:$D,I$8,SrPersons!$J:$J,$C69,SrPersons!$U:$U,"E"),0) -> 0 | J69: =IFERROR(SUMIFS(SrPersons!$T:$T,SrPersons!$D:$D,J$8,SrPersons!$J:$J,$C69,SrPersons!$U:$U,"E"),0) -> 0 | K69: =IFERROR(SUMIFS(SrPersons!$X:$X,SrPersons!$D:$D,K$8,SrPersons!$J:$J,$C69,SrPersons!$U:$U,"E"),0) -> 0 | L69: =IFERROR(SUMIFS(SrPersons!$T:$T,SrPersons!$D:$D,L$8,SrPersons!$J:$J,$C69,SrPersons!$U:$U,"E"),0) -> 0 | M69: =IFERROR(SUMIFS(SrPersons!$X:$X,SrPersons!$D:$D,M$8,SrPersons!$J:$J,$C69,SrPersons!$U:$U,"E"),0) -> 0 | N69: =IFERROR(SUMIFS(SrPersons!$T:$T,SrPersons!$D:$D,N$8,SrPersons!$J:$J,$C69,SrPersons!$U:$U,"E"),0) -> 0 | O69: =IFERROR(SUMIFS(SrPersons!$X:$X,SrPersons!$D:$D,O$8,SrPersons!$J:$J,$C69,SrPersons!$U:$U,"E"),0) -> 0 | P69: =IFERROR(SUMIFS(SrPersons!$T:$T,SrPersons!$D:$D,P$8,SrPersons!$J:$J,$C69,SrPersons!$U:$U,"E"),0) -> 0 | Q69: =IFERROR(SUMIFS(SrPersons!$X:$X,SrPersons!$D:$D,Q$8,SrPersons!$J:$J,$C69,SrPersons!$U:$U,"E"),0) -> 0 | R69: =IFERROR(SUMIFS(SrPersons!$T:$T,SrPersons!$D:$D,R$8,SrPersons!$J:$J,$C69,SrPersons!$U:$U,"E"),0) -> 0 | S69: =IFERROR(SUMIFS(SrPersons!$X:$X,SrPersons!$D:$D,S$8,SrPersons!$J:$J,$C69,SrPersons!$U:$U,"E"),0) -> 0 | T69: =IFERROR(SUMIFS(SrPersons!$T:$T,SrPersons!$D:$D,T$8,SrPersons!$J:$J,$C69,SrPersons!$U:$U,"E"),0) -> 0 | U69: =IFERROR(SUMIFS(SrPersons!$X:$X,SrPersons!$D:$D,U$8,SrPersons!$J:$J,$C69,SrPersons!$U:$U,"E"),0) -> 0 | V69: =IFERROR(SUMIFS(SrPersons!$T:$T,SrPersons!$D:$D,V$8,SrPersons!$J:$J,$C69,SrPersons!$U:$U,"E"),0) -> 0 | W69: =IFERROR(SUMIFS(SrPersons!$X:$X,SrPersons!$D:$D,W$8,SrPersons!$J:$J,$C69,SrPersons!$U:$U,"E"),0) -> 0 | X69: =IFERROR(SUMIFS(SrPersons!$T:$T,SrPersons!$D:$D,X$8,SrPersons!$J:$J,$C69,SrPersons!$U:$U,"E"),0) -> 0 | Y69: =IFERROR(SUMIFS(SrPersons!$X:$X,SrPersons!$D:$D,Y$8,SrPersons!$J:$J,$C69,SrPersons!$U:$U,"E"),0) -> 0 | Z69: =IFERROR(SUMIFS(SrPersons!$T:$T,SrPersons!$D:$D,Z$8,SrPersons!$J:$J,$C69,SrPersons!$U:$U,"E"),0) -> 0 | AA69: =IFERROR(SUMIFS(SrPersons!$X:$X,SrPersons!$D:$D,AA$8,SrPersons!$J:$J,$C69,SrPersons!$U:$U,"E"),0) -> 0 | AB69: 0 | AC69: 0 | AD69: 0
C70: 0 | H70: =IFERROR(SUMIFS(SrPersons!$T:$T,SrPersons!$D:$D,H$8,SrPersons!$J:$J,$C70,SrPersons!$U:$U,"E"),0) -> 0 | I70: =IFERROR(SUMIFS(SrPersons!$X:$X,SrPersons!$D:$D,I$8,SrPersons!$J:$J,$C70,SrPersons!$U:$U,"E"),0) -> 0 | J70: =IFERROR(SUMIFS(SrPersons!$T:$T,SrPersons!$D:$D,J$8,SrPersons!$J:$J,$C70,SrPersons!$U:$U,"E"),0) -> 0 | K70: =IFERROR(SUMIFS(SrPersons!$X:$X,SrPersons!$D:$D,K$8,SrPersons!$J:$J,$C70,SrPersons!$U:$U,"E"),0) -> 0 | L70: =IFERROR(SUMIFS(SrPersons!$T:$T,SrPersons!$D:$D,L$8,SrPersons!$J:$J,$C70,SrPersons!$U:$U,"E"),0) -> 0 | M70: =IFERROR(SUMIFS(SrPersons!$X:$X,SrPersons!$D:$D,M$8,SrPersons!$J:$J,$C70,SrPersons!$U:$U,"E"),0) -> 0 | N70: =IFERROR(SUMIFS(SrPersons!$T:$T,SrPersons!$D:$D,N$8,SrPersons!$J:$J,$C70,SrPersons!$U:$U,"E"),0) -> 0 | O70: =IFERROR(SUMIFS(SrPersons!$X:$X,SrPersons!$D:$D,O$8,SrPersons!$J:$J,$C70,SrPersons!$U:$U,"E"),0) -> 0 | P70: =IFERROR(SUMIFS(SrPersons!$T:$T,SrPersons!$D:$D,P$8,SrPersons!$J:$J,$C70,SrPersons!$U:$U,"E"),0) -> 0 | Q70: =IFERROR(SUMIFS(SrPersons!$X:$X,SrPersons!$D:$D,Q$8,SrPersons!$J:$J,$C70,SrPersons!$U:$U,"E"),0) -> 0 | R70: =IFERROR(SUMIFS(SrPersons!$T:$T,SrPersons!$D:$D,R$8,SrPersons!$J:$J,$C70,SrPersons!$U:$U,"E"),0) -> 0 | S70: =IFERROR(SUMIFS(SrPersons!$X:$X,SrPersons!$D:$D,S$8,SrPersons!$J:$J,$C70,SrPersons!$U:$U,"E"),0) -> 0 | T70: =IFERROR(SUMIFS(SrPersons!$T:$T,SrPersons!$D:$D,T$8,SrPersons!$J:$J,$C70,SrPersons!$U:$U,"E"),0) -> 0 | U70: =IFERROR(SUMIFS(SrPersons!$X:$X,SrPersons!$D:$D,U$8,SrPersons!$J:$J,$C70,SrPersons!$U:$U,"E"),0) -> 0 | V70: =IFERROR(SUMIFS(SrPersons!$T:$T,SrPersons!$D:$D,V$8,SrPersons!$J:$J,$C70,SrPersons!$U:$U,"E"),0) -> 0 | W70: =IFERROR(SUMIFS(SrPersons!$X:$X,SrPersons!$D:$D,W$8,SrPersons!$J:$J,$C70,SrPersons!$U:$U,"E"),0) -> 0 | X70: =IFERROR(SUMIFS(SrPersons!$T:$T,SrPersons!$D:$D,X$8,SrPersons!$J:$J,$C70,SrPersons!$U:$U,"E"),0) -> 0 | Y70: =IFERROR(SUMIFS(SrPersons!$X:$X,SrPersons!$D:$D,Y$8,SrPersons!$J:$J,$C70,SrPersons!$U:$U,"E"),0) -> 0 | Z70: =IFERROR(SUMIFS(SrPersons!$T:$T,SrPersons!$D:$D,Z$8,SrPersons!$J:$J,$C70,SrPersons!$U:$U,"E"),0) -> 0 | AA70: =IFERROR(SUMIFS(SrPersons!$X:$X,SrPersons!$D:$D,AA$8,SrPersons!$J:$J,$C70,SrPersons!$U:$U,"E"),0) -> 0 | AB70: 0 | AC70: 0 | AD70: 0
C71: 0 | H71: =IFERROR(SUMIFS(SrPersons!$T:$T,SrPersons!$D:$D,H$8,SrPersons!$J:$J,$C71,SrPersons!$U:$U,"E"),0) -> 0 | I71: =IFERROR(SUMIFS(SrPersons!$X:$X,SrPersons!$D:$D,I$8,SrPersons!$J:$J,$C71,SrPersons!$U:$U,"E"),0) -> 0 | J71: =IFERROR(SUMIFS(SrPersons!$T:$T,SrPersons!$D:$D,J$8,SrPersons!$J:$J,$C71,SrPersons!$U:$U,"E"),0) -> 0 | K71: =IFERROR(SUMIFS(SrPersons!$X:$X,SrPersons!$D:$D,K$8,SrPersons!$J:$J,$C71,SrPersons!$U:$U,"E"),0) -> 0 | L71: =IFERROR(SUMIFS(SrPersons!$T:$T,SrPersons!$D:$D,L$8,SrPersons!$J:$J,$C71,SrPersons!$U:$U,"E"),0) -> 0 | M71: =IFERROR(SUMIFS(SrPersons!$X:$X,SrPersons!$D:$D,M$8,SrPersons!$J:$J,$C71,SrPersons!$U:$U,"E"),0) -> 0 | N71: =IFERROR(SUMIFS(SrPersons!$T:$T,SrPersons!$D:$D,N$8,SrPersons!$J:$J,$C71,SrPersons!$U:$U,"E"),0) -> 0 | O71: =IFERROR(SUMIFS(SrPersons!$X:$X,SrPersons!$D:$D,O$8,SrPersons!$J:$J,$C71,SrPersons!$U:$U,"E"),0) -> 0 | P71: =IFERROR(SUMIFS(SrPersons!$T:$T,SrPersons!$D:$D,P$8,SrPersons!$J:$J,$C71,SrPersons!$U:$U,"E"),0) -> 0 | Q71: =IFERROR(SUMIFS(SrPersons!$X:$X,SrPersons!$D:$D,Q$8,SrPersons!$J:$J,$C71,SrPersons!$U:$U,"E"),0) -> 0 | R71: =IFERROR(SUMIFS(SrPersons!$T:$T,SrPersons!$D:$D,R$8,SrPersons!$J:$J,$C71,SrPersons!$U:$U,"E"),0) -> 0 | S71: =IFERROR(SUMIFS(SrPersons!$X:$X,SrPersons!$D:$D,S$8,SrPersons!$J:$J,$C71,SrPersons!$U:$U,"E"),0) -> 0 | T71: =IFERROR(SUMIFS(SrPersons!$T:$T,SrPersons!$D:$D,T$8,SrPersons!$J:$J,$C71,SrPersons!$U:$U,"E"),0) -> 0 | U71: =IFERROR(SUMIFS(SrPersons!$X:$X,SrPersons!$D:$D,U$8,SrPersons!$J:$J,$C71,SrPersons!$U:$U,"E"),0) -> 0 | V71: =IFERROR(SUMIFS(SrPersons!$T:$T,SrPersons!$D:$D,V$8,SrPersons!$J:$J,$C71,SrPersons!$U:$U,"E"),0) -> 0 | W71: =IFERROR(SUMIFS(SrPersons!$X:$X,SrPersons!$D:$D,W$8,SrPersons!$J:$J,$C71,SrPersons!$U:$U,"E"),0) -> 0 | X71: =IFERROR(SUMIFS(SrPersons!$T:$T,SrPersons!$D:$D,X$8,SrPersons!$J:$J,$C71,SrPersons!$U:$U,"E"),0) -> 0 | Y71: =IFERROR(SUMIFS(SrPersons!$X:$X,SrPersons!$D:$D,Y$8,SrPersons!$J:$J,$C71,SrPersons!$U:$U,"E"),0) -> 0 | Z71: =IFERROR(SUMIFS(SrPersons!$T:$T,SrPersons!$D:$D,Z$8,SrPersons!$J:$J,$C71,SrPersons!$U:$U,"E"),0) -> 0 | AA71: =IFERROR(SUMIFS(SrPersons!$X:$X,SrPersons!$D:$D,AA$8,SrPersons!$J:$J,$C71,SrPersons!$U:$U,"E"),0) -> 0 | AB71: 0 | AC71: 0 | AD71: 0
C72: 0 | H72: =IFERROR(SUMIFS(SrPersons!$T:$T,SrPersons!$D:$D,H$8,SrPersons!$J:$J,$C72,SrPersons!$U:$U,"E"),0) -> 0 | I72: =IFERROR(SUMIFS(SrPersons!$X:$X,SrPersons!$D:$D,I$8,SrPersons!$J:$J,$C72,SrPersons!$U:$U,"E"),0) -> 0 | J72: =IFERROR(SUMIFS(SrPersons!$T:$T,SrPersons!$D:$D,J$8,SrPersons!$J:$J,$C72,SrPersons!$U:$U,"E"),0) -> 0 | K72: =IFERROR(SUMIFS(SrPersons!$X:$X,SrPersons!$D:$D,K$8,SrPersons!$J:$J,$C72,SrPersons!$U:$U,"E"),0) -> 0 | L72: =IFERROR(SUMIFS(SrPersons!$T:$T,SrPersons!$D:$D,L$8,SrPersons!$J:$J,$C72,SrPersons!$U:$U,"E"),0) -> 0 | M72: =IFERROR(SUMIFS(SrPersons!$X:$X,SrPersons!$D:$D,M$8,SrPersons!$J:$J,$C72,SrPersons!$U:$U,"E"),0) -> 0 | N72: =IFERROR(SUMIFS(SrPersons!$T:$T,SrPersons!$D:$D,N$8,SrPersons!$J:$J,$C72,SrPersons!$U:$U,"E"),0) -> 0 | O72: =IFERROR(SUMIFS(SrPersons!$X:$X,SrPersons!$D:$D,O$8,SrPersons!$J:$J,$C72,SrPersons!$U:$U,"E"),0) -> 0 | P72: =IFERROR(SUMIFS(SrPersons!$T:$T,SrPersons!$D:$D,P$8,SrPersons!$J:$J,$C72,SrPersons!$U:$U,"E"),0) -> 0 | Q72: =IFERROR(SUMIFS(SrPersons!$X:$X,SrPersons!$D:$D,Q$8,SrPersons!$J:$J,$C72,SrPersons!$U:$U,"E"),0) -> 0 | R72: =IFERROR(SUMIFS(SrPersons!$T:$T,SrPersons!$D:$D,R$8,SrPersons!$J:$J,$C72,SrPersons!$U:$U,"E"),0) -> 0 | S72: =IFERROR(SUMIFS(SrPersons!$X:$X,SrPersons!$D:$D,S$8,SrPersons!$J:$J,$C72,SrPersons!$U:$U,"E"),0) -> 0 | T72: =IFERROR(SUMIFS(SrPersons!$T:$T,SrPersons!$D:$D,T$8,SrPersons!$J:$J,$C72,SrPersons!$U:$U,"E"),0) -> 0 | U72: =IFERROR(SUMIFS(SrPersons!$X:$X,SrPersons!$D:$D,U$8,SrPersons!$J:$J,$C72,SrPersons!$U:$U,"E"),0) -> 0 | V72: =IFERROR(SUMIFS(SrPersons!$T:$T,SrPersons!$D:$D,V$8,SrPersons!$J:$J,$C72,SrPersons!$U:$U,"E"),0) -> 0 | W72: =IFERROR(SUMIFS(SrPersons!$X:$X,SrPersons!$D:$D,W$8,SrPersons!$J:$J,$C72,SrPersons!$U:$U,"E"),0) -> 0 | X72: =IFERROR(SUMIFS(SrPersons!$T:$T,SrPersons!$D:$D,X$8,SrPersons!$J:$J,$C72,SrPersons!$U:$U,"E"),0) -> 0 | Y72: =IFERROR(SUMIFS(SrPersons!$X:$X,SrPersons!$D:$D,Y$8,SrPersons!$J:$J,$C72,SrPersons!$U:$U,"E"),0) -> 0 | Z72: =IFERROR(SUMIFS(SrPersons!$T:$T,SrPersons!$D:$D,Z$8,SrPersons!$J:$J,$C72,SrPersons!$U:$U,"E"),0) -> 0 | AA72: =IFERROR(SUMIFS(SrPersons!$X:$X,SrPersons!$D:$D,AA$8,SrPersons!$J:$J,$C72,SrPersons!$U:$U,"E"),0) -> 0 | AB72: 0 | AC72: 0 | AD72: 0
C73: 0 | H73: =IFERROR(SUMIFS(SrPersons!$T:$T,SrPersons!$D:$D,H$8,SrPersons!$J:$J,$C73,SrPersons!$U:$U,"E"),0) -> 0 | I73: =IFERROR(SUMIFS(SrPersons!$X:$X,SrPersons!$D:$D,I$8,SrPersons!$J:$J,$C73,SrPersons!$U:$U,"E"),0) -> 0 | J73: =IFERROR(SUMIFS(SrPersons!$T:$T,SrPersons!$D:$D,J$8,SrPersons!$J:$J,$C73,SrPersons!$U:$U,"E"),0) -> 0 | K73: =IFERROR(SUMIFS(SrPersons!$X:$X,SrPersons!$D:$D,K$8,SrPersons!$J:$J,$C73,SrPersons!$U:$U,"E"),0) -> 0 | L73: =IFERROR(SUMIFS(SrPersons!$T:$T,SrPersons!$D:$D,L$8,SrPersons!$J:$J,$C73,SrPersons!$U:$U,"E"),0) -> 0 | M73: =IFERROR(SUMIFS(SrPersons!$X:$X,SrPersons!$D:$D,M$8,SrPersons!$J:$J,$C73,SrPersons!$U:$U,"E"),0) -> 0 | N73: =IFERROR(SUMIFS(SrPersons!$T:$T,SrPersons!$D:$D,N$8,SrPersons!$J:$J,$C73,SrPersons!$U:$U,"E"),0) -> 0 | O73: =IFERROR(SUMIFS(SrPersons!$X:$X,SrPersons!$D:$D,O$8,SrPersons!$J:$J,$C73,SrPersons!$U:$U,"E"),0) -> 0 | P73: =IFERROR(SUMIFS(SrPersons!$T:$T,SrPersons!$D:$D,P$8,SrPersons!$J:$J,$C73,SrPersons!$U:$U,"E"),0) -> 0 | Q73: =IFERROR(SUMIFS(SrPersons!$X:$X,SrPersons!$D:$D,Q$8,SrPersons!$J:$J,$C73,SrPersons!$U:$U,"E"),0) -> 0 | R73: =IFERROR(SUMIFS(SrPersons!$T:$T,SrPersons!$D:$D,R$8,SrPersons!$J:$J,$C73,SrPersons!$U:$U,"E"),0) -> 0 | S73: =IFERROR(SUMIFS(SrPersons!$X:$X,SrPersons!$D:$D,S$8,SrPersons!$J:$J,$C73,SrPersons!$U:$U,"E"),0) -> 0 | T73: =IFERROR(SUMIFS(SrPersons!$T:$T,SrPersons!$D:$D,T$8,SrPersons!$J:$J,$C73,SrPersons!$U:$U,"E"),0) -> 0 | U73: =IFERROR(SUMIFS(SrPersons!$X:$X,SrPersons!$D:$D,U$8,SrPersons!$J:$J,$C73,SrPersons!$U:$U,"E"),0) -> 0 | V73: =IFERROR(SUMIFS(SrPersons!$T:$T,SrPersons!$D:$D,V$8,SrPersons!$J:$J,$C73,SrPersons!$U:$U,"E"),0) -> 0 | W73: =IFERROR(SUMIFS(SrPersons!$X:$X,SrPersons!$D:$D,W$8,SrPersons!$J:$J,$C73,SrPersons!$U:$U,"E"),0) -> 0 | X73: =IFERROR(SUMIFS(SrPersons!$T:$T,SrPersons!$D:$D,X$8,SrPersons!$J:$J,$C73,SrPersons!$U:$U,"E"),0) -> 0 | Y73: =IFERROR(SUMIFS(SrPersons!$X:$X,SrPersons!$D:$D,Y$8,SrPersons!$J:$J,$C73,SrPersons!$U:$U,"E"),0) -> 0 | Z73: =IFERROR(SUMIFS(SrPersons!$T:$T,SrPersons!$D:$D,Z$8,SrPersons!$J:$J,$C73,SrPersons!$U:$U,"E"),0) -> 0 | AA73: =IFERROR(SUMIFS(SrPersons!$X:$X,SrPersons!$D:$D,AA$8,SrPersons!$J:$J,$C73,SrPersons!$U:$U,"E"),0) -> 0 | AB73: 0 | AC73: 0 | AD73: 0
C74: 0 | H74: =IFERROR(SUMIFS(SrPersons!$T:$T,SrPersons!$D:$D,H$8,SrPersons!$J:$J,$C74,SrPersons!$U:$U,"E"),0) -> 0 | I74: =IFERROR(SUMIFS(SrPersons!$X:$X,SrPersons!$D:$D,I$8,SrPersons!$J:$J,$C74,SrPersons!$U:$U,"E"),0) -> 0 | J74: =IFERROR(SUMIFS(SrPersons!$T:$T,SrPersons!$D:$D,J$8,SrPersons!$J:$J,$C74,SrPersons!$U:$U,"E"),0) -> 0 | K74: =IFERROR(SUMIFS(SrPersons!$X:$X,SrPersons!$D:$D,K$8,SrPersons!$J:$J,$C74,SrPersons!$U:$U,"E"),0) -> 0 | L74: =IFERROR(SUMIFS(SrPersons!$T:$T,SrPersons!$D:$D,L$8,SrPersons!$J:$J,$C74,SrPersons!$U:$U,"E"),0) -> 0 | M74: =IFERROR(SUMIFS(SrPersons!$X:$X,SrPersons!$D:$D,M$8,SrPersons!$J:$J,$C74,SrPersons!$U:$U,"E"),0) -> 0 | N74: =IFERROR(SUMIFS(SrPersons!$T:$T,SrPersons!$D:$D,N$8,SrPersons!$J:$J,$C74,SrPersons!$U:$U,"E"),0) -> 0 | O74: =IFERROR(SUMIFS(SrPersons!$X:$X,SrPersons!$D:$D,O$8,SrPersons!$J:$J,$C74,SrPersons!$U:$U,"E"),0) -> 0 | P74: =IFERROR(SUMIFS(SrPersons!$T:$T,SrPersons!$D:$D,P$8,SrPersons!$J:$J,$C74,SrPersons!$U:$U,"E"),0) -> 0 | Q74: =IFERROR(SUMIFS(SrPersons!$X:$X,SrPersons!$D:$D,Q$8,SrPersons!$J:$J,$C74,SrPersons!$U:$U,"E"),0) -> 0 | R74: =IFERROR(SUMIFS(SrPersons!$T:$T,SrPersons!$D:$D,R$8,SrPersons!$J:$J,$C74,SrPersons!$U:$U,"E"),0) -> 0 | S74: =IFERROR(SUMIFS(SrPersons!$X:$X,SrPersons!$D:$D,S$8,SrPersons!$J:$J,$C74,SrPersons!$U:$U,"E"),0) -> 0 | T74: =IFERROR(SUMIFS(SrPersons!$T:$T,SrPersons!$D:$D,T$8,SrPersons!$J:$J,$C74,SrPersons!$U:$U,"E"),0) -> 0 | U74: =IFERROR(SUMIFS(SrPersons!$X:$X,SrPersons!$D:$D,U$8,SrPersons!$J:$J,$C74,SrPersons!$U:$U,"E"),0) -> 0 | V74: =IFERROR(SUMIFS(SrPersons!$T:$T,SrPersons!$D:$D,V$8,SrPersons!$J:$J,$C74,SrPersons!$U:$U,"E"),0) -> 0 | W74: =IFERROR(SUMIFS(SrPersons!$X:$X,SrPersons!$D:$D,W$8,SrPersons!$J:$J,$C74,SrPersons!$U:$U,"E"),0) -> 0 | X74: =IFERROR(SUMIFS(SrPersons!$T:$T,SrPersons!$D:$D,X$8,SrPersons!$J:$J,$C74,SrPersons!$U:$U,"E"),0) -> 0 | Y74: =IFERROR(SUMIFS(SrPersons!$X:$X,SrPersons!$D:$D,Y$8,SrPersons!$J:$J,$C74,SrPersons!$U:$U,"E"),0) -> 0 | Z74: =IFERROR(SUMIFS(SrPersons!$T:$T,SrPersons!$D:$D,Z$8,SrPersons!$J:$J,$C74,SrPersons!$U:$U,"E"),0) -> 0 | AA74: =IFERROR(SUMIFS(SrPersons!$X:$X,SrPersons!$D:$D,AA$8,SrPersons!$J:$J,$C74,SrPersons!$U:$U,"E"),0) -> 0 | AB74: 0 | AC74: 0 | AD74: 0
C75: 0 | H75: =IFERROR(SUMIFS(SrPersons!$T:$T,SrPersons!$D:$D,H$8,SrPersons!$J:$J,$C75,SrPersons!$U:$U,"E"),0) -> 0 | I75: =IFERROR(SUMIFS(SrPersons!$X:$X,SrPersons!$D:$D,I$8,SrPersons!$J:$J,$C75,SrPersons!$U:$U,"E"),0) -> 0 | J75: =IFERROR(SUMIFS(SrPersons!$T:$T,SrPersons!$D:$D,J$8,SrPersons!$J:$J,$C75,SrPersons!$U:$U,"E"),0) -> 0 | K75: =IFERROR(SUMIFS(SrPersons!$X:$X,SrPersons!$D:$D,K$8,SrPersons!$J:$J,$C75,SrPersons!$U:$U,"E"),0) -> 0 | L75: =IFERROR(SUMIFS(SrPersons!$T:$T,SrPersons!$D:$D,L$8,SrPersons!$J:$J,$C75,SrPersons!$U:$U,"E"),0) -> 0 | M75: =IFERROR(SUMIFS(SrPersons!$X:$X,SrPersons!$D:$D,M$8,SrPersons!$J:$J,$C75,SrPersons!$U:$U,"E"),0) -> 0 | N75: =IFERROR(SUMIFS(SrPersons!$T:$T,SrPersons!$D:$D,N$8,SrPersons!$J:$J,$C75,SrPersons!$U:$U,"E"),0) -> 0 | O75: =IFERROR(SUMIFS(SrPersons!$X:$X,SrPersons!$D:$D,O$8,SrPersons!$J:$J,$C75,SrPersons!$U:$U,"E"),0) -> 0 | P75: =IFERROR(SUMIFS(SrPersons!$T:$T,SrPersons!$D:$D,P$8,SrPersons!$J:$J,$C75,SrPersons!$U:$U,"E"),0) -> 0 | Q75: =IFERROR(SUMIFS(SrPersons!$X:$X,SrPersons!$D:$D,Q$8,SrPersons!$J:$J,$C75,SrPersons!$U:$U,"E"),0) -> 0 | R75: =IFERROR(SUMIFS(SrPersons!$T:$T,SrPersons!$D:$D,R$8,SrPersons!$J:$J,$C75,SrPersons!$U:$U,"E"),0) -> 0 | S75: =IFERROR(SUMIFS(SrPersons!$X:$X,SrPersons!$D:$D,S$8,SrPersons!$J:$J,$C75,SrPersons!$U:$U,"E"),0) -> 0 | T75: =IFERROR(SUMIFS(SrPersons!$T:$T,SrPersons!$D:$D,T$8,SrPersons!$J:$J,$C75,SrPersons!$U:$U,"E"),0) -> 0 | U75: =IFERROR(SUMIFS(SrPersons!$X:$X,SrPersons!$D:$D,U$8,SrPersons!$J:$J,$C75,SrPersons!$U:$U,"E"),0) -> 0 | V75: =IFERROR(SUMIFS(SrPersons!$T:$T,SrPersons!$D:$D,V$8,SrPersons!$J:$J,$C75,SrPersons!$U:$U,"E"),0) -> 0 | W75: =IFERROR(SUMIFS(SrPersons!$X:$X,SrPersons!$D:$D,W$8,SrPersons!$J:$J,$C75,SrPersons!$U:$U,"E"),0) -> 0 | X75: =IFERROR(SUMIFS(SrPersons!$T:$T,SrPersons!$D:$D,X$8,SrPersons!$J:$J,$C75,SrPersons!$U:$U,"E"),0) -> 0 | Y75: =IFERROR(SUMIFS(SrPersons!$X:$X,SrPersons!$D:$D,Y$8,SrPersons!$J:$J,$C75,SrPersons!$U:$U,"E"),0) -> 0 | Z75: =IFERROR(SUMIFS(SrPersons!$T:$T,SrPersons!$D:$D,Z$8,SrPersons!$J:$J,$C75,SrPersons!$U:$U,"E"),0) -> 0 | AA75: =IFERROR(SUMIFS(SrPersons!$X:$X,SrPersons!$D:$D,AA$8,SrPersons!$J:$J,$C75,SrPersons!$U:$U,"E"),0) -> 0 | AB75: 0 | AC75: 0 | AD75: 0
C76: 0 | H76: =IFERROR(SUMIFS(SrPersons!$T:$T,SrPersons!$D:$D,H$8,SrPersons!$J:$J,$C76,SrPersons!$U:$U,"E"),0) -> 0 | I76: =IFERROR(SUMIFS(SrPersons!$X:$X,SrPersons!$D:$D,I$8,SrPersons!$J:$J,$C76,SrPersons!$U:$U,"E"),0) -> 0 | J76: =IFERROR(SUMIFS(SrPersons!$T:$T,SrPersons!$D:$D,J$8,SrPersons!$J:$J,$C76,SrPersons!$U:$U,"E"),0) -> 0 | K76: =IFERROR(SUMIFS(SrPersons!$X:$X,SrPersons!$D:$D,K$8,SrPersons!$J:$J,$C76,SrPersons!$U:$U,"E"),0) -> 0 | L76: =IFERROR(SUMIFS(SrPersons!$T:$T,SrPersons!$D:$D,L$8,SrPersons!$J:$J,$C76,SrPersons!$U:$U,"E"),0) -> 0 | M76: =IFERROR(SUMIFS(SrPersons!$X:$X,SrPersons!$D:$D,M$8,SrPersons!$J:$J,$C76,SrPersons!$U:$U,"E"),0) -> 0 | N76: =IFERROR(SUMIFS(SrPersons!$T:$T,SrPersons!$D:$D,N$8,SrPersons!$J:$J,$C76,SrPersons!$U:$U,"E"),0) -> 0 | O76: =IFERROR(SUMIFS(SrPersons!$X:$X,SrPersons!$D:$D,O$8,SrPersons!$J:$J,$C76,SrPersons!$U:$U,"E"),0) -> 0 | P76: =IFERROR(SUMIFS(SrPersons!$T:$T,SrPersons!$D:$D,P$8,SrPersons!$J:$J,$C76,SrPersons!$U:$U,"E"),0) -> 0 | Q76: =IFERROR(SUMIFS(SrPersons!$X:$X,SrPersons!$D:$D,Q$8,SrPersons!$J:$J,$C76,SrPersons!$U:$U,"E"),0) -> 0 | R76: =IFERROR(SUMIFS(SrPersons!$T:$T,SrPersons!$D:$D,R$8,SrPersons!$J:$J,$C76,SrPersons!$U:$U,"E"),0) -> 0 | S76: =IFERROR(SUMIFS(SrPersons!$X:$X,SrPersons!$D:$D,S$8,SrPersons!$J:$J,$C76,SrPersons!$U:$U,"E"),0) -> 0 | T76: =IFERROR(SUMIFS(SrPersons!$T:$T,SrPersons!$D:$D,T$8,SrPersons!$J:$J,$C76,SrPersons!$U:$U,"E"),0) -> 0 | U76: =IFERROR(SUMIFS(SrPersons!$X:$X,SrPersons!$D:$D,U$8,SrPersons!$J:$J,$C76,SrPersons!$U:$U,"E"),0) -> 0 | V76: =IFERROR(SUMIFS(SrPersons!$T:$T,SrPersons!$D:$D,V$8,SrPersons!$J:$J,$C76,SrPersons!$U:$U,"E"),0) -> 0 | W76: =IFERROR(SUMIFS(SrPersons!$X:$X,SrPersons!$D:$D,W$8,SrPersons!$J:$J,$C76,SrPersons!$U:$U,"E"),0) -> 0 | X76: =IFERROR(SUMIFS(SrPersons!$T:$T,SrPersons!$D:$D,X$8,SrPersons!$J:$J,$C76,SrPersons!$U:$U,"E"),0) -> 0 | Y76: =IFERROR(SUMIFS(SrPersons!$X:$X,SrPersons!$D:$D,Y$8,SrPersons!$J:$J,$C76,SrPersons!$U:$U,"E"),0) -> 0 | Z76: =IFERROR(SUMIFS(SrPersons!$T:$T,SrPersons!$D:$D,Z$8,SrPersons!$J:$J,$C76,SrPersons!$U:$U,"E"),0) -> 0 | AA76: =IFERROR(SUMIFS(SrPersons!$X:$X,SrPersons!$D:$D,AA$8,SrPersons!$J:$J,$C76,SrPersons!$U:$U,"E"),0) -> 0 | AB76: 0 | AC76: 0 | AD76: 0
C77: 0 | H77: =IFERROR(SUMIFS(SrPersons!$T:$T,SrPersons!$D:$D,H$8,SrPersons!$J:$J,$C77,SrPersons!$U:$U,"E"),0) -> 0 | I77: =IFERROR(SUMIFS(SrPersons!$X:$X,SrPersons!$D:$D,I$8,SrPersons!$J:$J,$C77,SrPersons!$U:$U,"E"),0) -> 0 | J77: =IFERROR(SUMIFS(SrPersons!$T:$T,SrPersons!$D:$D,J$8,SrPersons!$J:$J,$C77,SrPersons!$U:$U,"E"),0) -> 0 | K77: =IFERROR(SUMIFS(SrPersons!$X:$X,SrPersons!$D:$D,K$8,SrPersons!$J:$J,$C77,SrPersons!$U:$U,"E"),0) -> 0 | L77: =IFERROR(SUMIFS(SrPersons!$T:$T,SrPersons!$D:$D,L$8,SrPersons!$J:$J,$C77,SrPersons!$U:$U,"E"),0) -> 0 | M77: =IFERROR(SUMIFS(SrPersons!$X:$X,SrPersons!$D:$D,M$8,SrPersons!$J:$J,$C77,SrPersons!$U:$U,"E"),0) -> 0 | N77: =IFERROR(SUMIFS(SrPersons!$T:$T,SrPersons!$D:$D,N$8,SrPersons!$J:$J,$C77,SrPersons!$U:$U,"E"),0) -> 0 | O77: =IFERROR(SUMIFS(SrPersons!$X:$X,SrPersons!$D:$D,O$8,SrPersons!$J:$J,$C77,SrPersons!$U:$U,"E"),0) -> 0 | P77: =IFERROR(SUMIFS(SrPersons!$T:$T,SrPersons!$D:$D,P$8,SrPersons!$J:$J,$C77,SrPersons!$U:$U,"E"),0) -> 0 | Q77: =IFERROR(SUMIFS(SrPersons!$X:$X,SrPersons!$D:$D,Q$8,SrPersons!$J:$J,$C77,SrPersons!$U:$U,"E"),0) -> 0 | R77: =IFERROR(SUMIFS(SrPersons!$T:$T,SrPersons!$D:$D,R$8,SrPersons!$J:$J,$C77,SrPersons!$U:$U,"E"),0) -> 0 | S77: =IFERROR(SUMIFS(SrPersons!$X:$X,SrPersons!$D:$D,S$8,SrPersons!$J:$J,$C77,SrPersons!$U:$U,"E"),0) -> 0 | T77: =IFERROR(SUMIFS(SrPersons!$T:$T,SrPersons!$D:$D,T$8,SrPersons!$J:$J,$C77,SrPersons!$U:$U,"E"),0) -> 0 | U77: =IFERROR(SUMIFS(SrPersons!$X:$X,SrPersons!$D:$D,U$8,SrPersons!$J:$J,$C77,SrPersons!$U:$U,"E"),0) -> 0 | V77: =IFERROR(SUMIFS(SrPersons!$T:$T,SrPersons!$D:$D,V$8,SrPersons!$J:$J,$C77,SrPersons!$U:$U,"E"),0) -> 0 | W77: =IFERROR(SUMIFS(SrPersons!$X:$X,SrPersons!$D:$D,W$8,SrPersons!$J:$J,$C77,SrPersons!$U:$U,"E"),0) -> 0 | X77: =IFERROR(SUMIFS(SrPersons!$T:$T,SrPersons!$D:$D,X$8,SrPersons!$J:$J,$C77,SrPersons!$U:$U,"E"),0) -> 0 | Y77: =IFERROR(SUMIFS(SrPersons!$X:$X,SrPersons!$D:$D,Y$8,SrPersons!$J:$J,$C77,SrPersons!$U:$U,"E"),0) -> 0 | Z77: =IFERROR(SUMIFS(SrPersons!$T:$T,SrPersons!$D:$D,Z$8,SrPersons!$J:$J,$C77,SrPersons!$U:$U,"E"),0) -> 0 | AA77: =IFERROR(SUMIFS(SrPersons!$X:$X,SrPersons!$D:$D,AA$8,SrPersons!$J:$J,$C77,SrPersons!$U:$U,"E"),0) -> 0 | AB77: 0 | AC77: 0 | AD77: 0
C78: 0 | H78: =IFERROR(SUMIFS(SrPersons!$T:$T,SrPersons!$D:$D,H$8,SrPersons!$J:$J,$C78,SrPersons!$U:$U,"E"),0) -> 0 | I78: =IFERROR(SUMIFS(SrPersons!$X:$X,SrPersons!$D:$D,I$8,SrPersons!$J:$J,$C78,SrPersons!$U:$U,"E"),0) -> 0 | J78: =IFERROR(SUMIFS(SrPersons!$T:$T,SrPersons!$D:$D,J$8,SrPersons!$J:$J,$C78,SrPersons!$U:$U,"E"),0) -> 0 | K78: =IFERROR(SUMIFS(SrPersons!$X:$X,SrPersons!$D:$D,K$8,SrPersons!$J:$J,$C78,SrPersons!$U:$U,"E"),0) -> 0 | L78: =IFERROR(SUMIFS(SrPersons!$T:$T,SrPersons!$D:$D,L$8,SrPersons!$J:$J,$C78,SrPersons!$U:$U,"E"),0) -> 0 | M78: =IFERROR(SUMIFS(SrPersons!$X:$X,SrPersons!$D:$D,M$8,SrPersons!$J:$J,$C78,SrPersons!$U:$U,"E"),0) -> 0 | N78: =IFERROR(SUMIFS(SrPersons!$T:$T,SrPersons!$D:$D,N$8,SrPersons!$J:$J,$C78,SrPersons!$U:$U,"E"),0) -> 0 | O78: =IFERROR(SUMIFS(SrPersons!$X:$X,SrPersons!$D:$D,O$8,SrPersons!$J:$J,$C78,SrPersons!$U:$U,"E"),0) -> 0 | P78: =IFERROR(SUMIFS(SrPersons!$T:$T,SrPersons!$D:$D,P$8,SrPersons!$J:$J,$C78,SrPersons!$U:$U,"E"),0) -> 0 | Q78: =IFERROR(SUMIFS(SrPersons!$X:$X,SrPersons!$D:$D,Q$8,SrPersons!$J:$J,$C78,SrPersons!$U:$U,"E"),0) -> 0 | R78: =IFERROR(SUMIFS(SrPersons!$T:$T,SrPersons!$D:$D,R$8,SrPersons!$J:$J,$C78,SrPersons!$U:$U,"E"),0) -> 0 | S78: =IFERROR(SUMIFS(SrPersons!$X:$X,SrPersons!$D:$D,S$8,SrPersons!$J:$J,$C78,SrPersons!$U:$U,"E"),0) -> 0 | T78: =IFERROR(SUMIFS(SrPersons!$T:$T,SrPersons!$D:$D,T$8,SrPersons!$J:$J,$C78,SrPersons!$U:$U,"E"),0) -> 0 | U78: =IFERROR(SUMIFS(SrPersons!$X:$X,SrPersons!$D:$D,U$8,SrPersons!$J:$J,$C78,SrPersons!$U:$U,"E"),0) -> 0 | V78: =IFERROR(SUMIFS(SrPersons!$T:$T,SrPersons!$D:$D,V$8,SrPersons!$J:$J,$C78,SrPersons!$U:$U,"E"),0) -> 0 | W78: =IFERROR(SUMIFS(SrPersons!$X:$X,SrPersons!$D:$D,W$8,SrPersons!$J:$J,$C78,SrPersons!$U:$U,"E"),0) -> 0 | X78: =IFERROR(SUMIFS(SrPersons!$T:$T,SrPersons!$D:$D,X$8,SrPersons!$J:$J,$C78,SrPersons!$U:$U,"E"),0) -> 0 | Y78: =IFERROR(SUMIFS(SrPersons!$X:$X,SrPersons!$D:$D,Y$8,SrPersons!$J:$J,$C78,SrPersons!$U:$U,"E"),0) -> 0 | Z78: =IFERROR(SUMIFS(SrPersons!$T:$T,SrPersons!$D:$D,Z$8,SrPersons!$J:$J,$C78,SrPersons!$U:$U,"E"),0) -> 0 | AA78: =IFERROR(SUMIFS(SrPersons!$X:$X,SrPersons!$D:$D,AA$8,SrPersons!$J:$J,$C78,SrPersons!$U:$U,"E"),0) -> 0 | AB78: 0 | AC78: 0 | AD78: 0
C79: 0 | H79: =IFERROR(SUMIFS(SrPersons!$T:$T,SrPersons!$D:$D,H$8,SrPersons!$J:$J,$C79,SrPersons!$U:$U,"E"),0) -> 0 | I79: =IFERROR(SUMIFS(SrPersons!$X:$X,SrPersons!$D:$D,I$8,SrPersons!$J:$J,$C79,SrPersons!$U:$U,"E"),0) -> 0 | J79: =IFERROR(SUMIFS(SrPersons!$T:$T,SrPersons!$D:$D,J$8,SrPersons!$J:$J,$C79,SrPersons!$U:$U,"E"),0) -> 0 | K79: =IFERROR(SUMIFS(SrPersons!$X:$X,SrPersons!$D:$D,K$8,SrPersons!$J:$J,$C79,SrPersons!$U:$U,"E"),0) -> 0 | L79: =IFERROR(SUMIFS(SrPersons!$T:$T,SrPersons!$D:$D,L$8,SrPersons!$J:$J,$C79,SrPersons!$U:$U,"E"),0) -> 0 | M79: =IFERROR(SUMIFS(SrPersons!$X:$X,SrPersons!$D:$D,M$8,SrPersons!$J:$J,$C79,SrPersons!$U:$U,"E"),0) -> 0 | N79: =IFERROR(SUMIFS(SrPersons!$T:$T,SrPersons!$D:$D,N$8,SrPersons!$J:$J,$C79,SrPersons!$U:$U,"E"),0) -> 0 | O79: =IFERROR(SUMIFS(SrPersons!$X:$X,SrPersons!$D:$D,O$8,SrPersons!$J:$J,$C79,SrPersons!$U:$U,"E"),0) -> 0 | P79: =IFERROR(SUMIFS(SrPersons!$T:$T,SrPersons!$D:$D,P$8,SrPersons!$J:$J,$C79,SrPersons!$U:$U,"E"),0) -> 0 | Q79: =IFERROR(SUMIFS(SrPersons!$X:$X,SrPersons!$D:$D,Q$8,SrPersons!$J:$J,$C79,SrPersons!$U:$U,"E"),0) -> 0 | R79: =IFERROR(SUMIFS(SrPersons!$T:$T,SrPersons!$D:$D,R$8,SrPersons!$J:$J,$C79,SrPersons!$U:$U,"E"),0) -> 0 | S79: =IFERROR(SUMIFS(SrPersons!$X:$X,SrPersons!$D:$D,S$8,SrPersons!$J:$J,$C79,SrPersons!$U:$U,"E"),0) -> 0 | T79: =IFERROR(SUMIFS(SrPersons!$T:$T,SrPersons!$D:$D,T$8,SrPersons!$J:$J,$C79,SrPersons!$U:$U,"E"),0) -> 0 | U79: =IFERROR(SUMIFS(SrPersons!$X:$X,SrPersons!$D:$D,U$8,SrPersons!$J:$J,$C79,SrPersons!$U:$U,"E"),0) -> 0 | V79: =IFERROR(SUMIFS(SrPersons!$T:$T,SrPersons!$D:$D,V$8,SrPersons!$J:$J,$C79,SrPersons!$U:$U,"E"),0) -> 0 | W79: =IFERROR(SUMIFS(SrPersons!$X:$X,SrPersons!$D:$D,W$8,SrPersons!$J:$J,$C79,SrPersons!$U:$U,"E"),0) -> 0 | X79: =IFERROR(SUMIFS(SrPersons!$T:$T,SrPersons!$D:$D,X$8,SrPersons!$J:$J,$C79,SrPersons!$U:$U,"E"),0) -> 0 | Y79: =IFERROR(SUMIFS(SrPersons!$X:$X,SrPersons!$D:$D,Y$8,SrPersons!$J:$J,$C79,SrPersons!$U:$U,"E"),0) -> 0 | Z79: =IFERROR(SUMIFS(SrPersons!$T:$T,SrPersons!$D:$D,Z$8,SrPersons!$J:$J,$C79,SrPersons!$U:$U,"E"),0) -> 0 | AA79: =IFERROR(SUMIFS(SrPersons!$X:$X,SrPersons!$D:$D,AA$8,SrPersons!$J:$J,$C79,SrPersons!$U:$U,"E"),0) -> 0 | AB79: 0 | AC79: 0 | AD79: 0
C80: 0 | H80: =IFERROR(SUMIFS(SrPersons!$T:$T,SrPersons!$D:$D,H$8,SrPersons!$J:$J,$C80,SrPersons!$U:$U,"E"),0) -> 0 | I80: =IFERROR(SUMIFS(SrPersons!$X:$X,SrPersons!$D:$D,I$8,SrPersons!$J:$J,$C80,SrPersons!$U:$U,"E"),0) -> 0 | J80: =IFERROR(SUMIFS(SrPersons!$T:$T,SrPersons!$D:$D,J$8,SrPersons!$J:$J,$C80,SrPersons!$U:$U,"E"),0) -> 0 | K80: =IFERROR(SUMIFS(SrPersons!$X:$X,SrPersons!$D:$D,K$8,SrPersons!$J:$J,$C80,SrPersons!$U:$U,"E"),0) -> 0 | L80: =IFERROR(SUMIFS(SrPersons!$T:$T,SrPersons!$D:$D,L$8,SrPersons!$J:$J,$C80,SrPersons!$U:$U,"E"),0) -> 0 | M80: =IFERROR(SUMIFS(SrPersons!$X:$X,SrPersons!$D:$D,M$8,SrPersons!$J:$J,$C80,SrPersons!$U:$U,"E"),0) -> 0 | N80: =IFERROR(SUMIFS(SrPersons!$T:$T,SrPersons!$D:$D,N$8,SrPersons!$J:$J,$C80,SrPersons!$U:$U,"E"),0) -> 0 | O80: =IFERROR(SUMIFS(SrPersons!$X:$X,SrPersons!$D:$D,O$8,SrPersons!$J:$J,$C80,SrPersons!$U:$U,"E"),0) -> 0 | P80: =IFERROR(SUMIFS(SrPersons!$T:$T,SrPersons!$D:$D,P$8,SrPersons!$J:$J,$C80,SrPersons!$U:$U,"E"),0) -> 0 | Q80: =IFERROR(SUMIFS(SrPersons!$X:$X,SrPersons!$D:$D,Q$8,SrPersons!$J:$J,$C80,SrPersons!$U:$U,"E"),0) -> 0 | R80: =IFERROR(SUMIFS(SrPersons!$T:$T,SrPersons!$D:$D,R$8,SrPersons!$J:$J,$C80,SrPersons!$U:$U,"E"),0) -> 0 | S80: =IFERROR(SUMIFS(SrPersons!$X:$X,SrPersons!$D:$D,S$8,SrPersons!$J:$J,$C80,SrPersons!$U:$U,"E"),0) -> 0 | T80: =IFERROR(SUMIFS(SrPersons!$T:$T,SrPersons!$D:$D,T$8,SrPersons!$J:$J,$C80,SrPersons!$U:$U,"E"),0) -> 0 | U80: =IFERROR(SUMIFS(SrPersons!$X:$X,SrPersons!$D:$D,U$8,SrPersons!$J:$J,$C80,SrPersons!$U:$U,"E"),0) -> 0 | V80: =IFERROR(SUMIFS(SrPersons!$T:$T,SrPersons!$D:$D,V$8,SrPersons!$J:$J,$C80,SrPersons!$U:$U,"E"),0) -> 0 | W80: =IFERROR(SUMIFS(SrPersons!$X:$X,SrPersons!$D:$D,W$8,SrPersons!$J:$J,$C80,SrPersons!$U:$U,"E"),0) -> 0 | X80: =IFERROR(SUMIFS(SrPersons!$T:$T,SrPersons!$D:$D,X$8,SrPersons!$J:$J,$C80,SrPersons!$U:$U,"E"),0) -> 0 | Y80: =IFERROR(SUMIFS(SrPersons!$X:$X,SrPersons!$D:$D,Y$8,SrPersons!$J:$J,$C80,SrPersons!$U:$U,"E"),0) -> 0 | Z80: =IFERROR(SUMIFS(SrPersons!$T:$T,SrPersons!$D:$D,Z$8,SrPersons!$J:$J,$C80,SrPersons!$U:$U,"E"),0) -> 0 | AA80: =IFERROR(SUMIFS(SrPersons!$X:$X,SrPersons!$D:$D,AA$8,SrPersons!$J:$J,$C80,SrPersons!$U:$U,"E"),0) -> 0 | AB80: 0 | AC80: 0 | AD80: 0
C81: =C37 -> 0 | D81: =IFERROR(H81/H37,"") ->  | H81: =IFERROR(SUMIFS(OtherPersons!$U:$U,OtherPersons!$E:$E,H$8,OtherPersons!$J:$J,$C81,OtherPersons!$V:$V,"E"),0) -> 0 | I81: =IFERROR(SUMIFS(OtherPersons!$Y:$Y,OtherPersons!$E:$E,I$8,OtherPersons!$J:$J,$C81,OtherPersons!$V:$V,"E"),0) -> 0 | J81: =IFERROR(SUMIFS(OtherPersons!$U:$U,OtherPersons!$E:$E,J$8,OtherPersons!$J:$J,$C81,OtherPersons!$V:$V,"E"),0) -> 0 | K81: =IFERROR(SUMIFS(OtherPersons!$Y:$Y,OtherPersons!$E:$E,K$8,OtherPersons!$J:$J,$C81,OtherPersons!$V:$V,"E"),0) -> 0 | L81: =IFERROR(SUMIFS(OtherPersons!$U:$U,OtherPersons!$E:$E,L$8,OtherPersons!$J:$J,$C81,OtherPersons!$V:$V,"E"),0) -> 0 | M81: =IFERROR(SUMIFS(OtherPersons!$Y:$Y,OtherPersons!$E:$E,M$8,OtherPersons!$J:$J,$C81,OtherPersons!$V:$V,"E"),0) -> 0 | N81: =IFERROR(SUMIFS(OtherPersons!$U:$U,OtherPersons!$E:$E,N$8,OtherPersons!$J:$J,$C81,OtherPersons!$V:$V,"E"),0) -> 0 | O81: =IFERROR(SUMIFS(OtherPersons!$Y:$Y,OtherPersons!$E:$E,O$8,OtherPersons!$J:$J,$C81,OtherPersons!$V:$V,"E"),0) -> 0 | P81: =IFERROR(SUMIFS(OtherPersons!$U:$U,OtherPersons!$E:$E,P$8,OtherPersons!$J:$J,$C81,OtherPersons!$V:$V,"E"),0) -> 0 | Q81: =IFERROR(SUMIFS(OtherPersons!$Y:$Y,OtherPersons!$E:$E,Q$8,OtherPersons!$J:$J,$C81,OtherPersons!$V:$V,"E"),0) -> 0 | R81: =IFERROR(SUMIFS(OtherPersons!$U:$U,OtherPersons!$E:$E,R$8,OtherPersons!$J:$J,$C81,OtherPersons!$V:$V,"E"),0) -> 0 | S81: =IFERROR(SUMIFS(OtherPersons!$Y:$Y,OtherPersons!$E:$E,S$8,OtherPersons!$J:$J,$C81,OtherPersons!$V:$V,"E"),0) -> 0 | T81: =IFERROR(SUMIFS(OtherPersons!$U:$U,OtherPersons!$E:$E,T$8,OtherPersons!$J:$J,$C81,OtherPersons!$V:$V,"E"),0) -> 0 | U81: =IFERROR(SUMIFS(OtherPersons!$Y:$Y,OtherPersons!$E:$E,U$8,OtherPersons!$J:$J,$C81,OtherPersons!$V:$V,"E"),0) -> 0 | V81: =IFERROR(SUMIFS(OtherPersons!$U:$U,OtherPersons!$E:$E,V$8,OtherPersons!$J:$J,$C81,OtherPersons!$V:$V,"E"),0) -> 0 | W81: =IFERROR(SUMIFS(OtherPersons!$Y:$Y,OtherPersons!$E:$E,W$8,OtherPersons!$J:$J,$C81,OtherPersons!$V:$V,"E"),0) -> 0 | X81: =IFERROR(SUMIFS(OtherPersons!$U:$U,OtherPersons!$E:$E,X$8,OtherPersons!$J:$J,$C81,OtherPersons!$V:$V,"E"),0) -> 0 | Y81: =IFERROR(SUMIFS(OtherPersons!$Y:$Y,OtherPersons!$E:$E,Y$8,OtherPersons!$J:$J,$C81,OtherPersons!$V:$V,"E"),0) -> 0 | Z81: =IFERROR(SUMIFS(OtherPersons!$U:$U,OtherPersons!$E:$E,Z$8,OtherPersons!$J:$J,$C81,OtherPersons!$V:$V,"E"),0) -> 0 | AA81: =IFERROR(SUMIFS(OtherPersons!$Y:$Y,OtherPersons!$E:$E,AA$8,OtherPersons!$J:$J,$C81,OtherPersons!$V:$V,"E"),0) -> 0 | AB81: 0 | AC81: 0 | AD81: 0
C82: =C38 -> 0 | D82: =IFERROR(H82/H38,"") ->  | H82: =IFERROR(SUMIFS(OtherPersons!$U:$U,OtherPersons!$E:$E,H$8,OtherPersons!$J:$J,$C82,OtherPersons!$V:$V,"E"),0) -> 0 | I82: =IFERROR(SUMIFS(OtherPersons!$Y:$Y,OtherPersons!$E:$E,I$8,OtherPersons!$J:$J,$C82,OtherPersons!$V:$V,"E"),0) -> 0 | J82: =IFERROR(SUMIFS(OtherPersons!$U:$U,OtherPersons!$E:$E,J$8,OtherPersons!$J:$J,$C82,OtherPersons!$V:$V,"E"),0) -> 0 | K82: =IFERROR(SUMIFS(OtherPersons!$Y:$Y,OtherPersons!$E:$E,K$8,OtherPersons!$J:$J,$C82,OtherPersons!$V:$V,"E"),0) -> 0 | L82: =IFERROR(SUMIFS(OtherPersons!$U:$U,OtherPersons!$E:$E,L$8,OtherPersons!$J:$J,$C82,OtherPersons!$V:$V,"E"),0) -> 0 | M82: =IFERROR(SUMIFS(OtherPersons!$Y:$Y,OtherPersons!$E:$E,M$8,OtherPersons!$J:$J,$C82,OtherPersons!$V:$V,"E"),0) -> 0 | N82: =IFERROR(SUMIFS(OtherPersons!$U:$U,OtherPersons!$E:$E,N$8,OtherPersons!$J:$J,$C82,OtherPersons!$V:$V,"E"),0) -> 0 | O82: =IFERROR(SUMIFS(OtherPersons!$Y:$Y,OtherPersons!$E:$E,O$8,OtherPersons!$J:$J,$C82,OtherPersons!$V:$V,"E"),0) -> 0 | P82: =IFERROR(SUMIFS(OtherPersons!$U:$U,OtherPersons!$E:$E,P$8,OtherPersons!$J:$J,$C82,OtherPersons!$V:$V,"E"),0) -> 0 | Q82: =IFERROR(SUMIFS(OtherPersons!$Y:$Y,OtherPersons!$E:$E,Q$8,OtherPersons!$J:$J,$C82,OtherPersons!$V:$V,"E"),0) -> 0 | R82: =IFERROR(SUMIFS(OtherPersons!$U:$U,OtherPersons!$E:$E,R$8,OtherPersons!$J:$J,$C82,OtherPersons!$V:$V,"E"),0) -> 0 | S82: =IFERROR(SUMIFS(OtherPersons!$Y:$Y,OtherPersons!$E:$E,S$8,OtherPersons!$J:$J,$C82,OtherPersons!$V:$V,"E"),0) -> 0 | T82: =IFERROR(SUMIFS(OtherPersons!$U:$U,OtherPersons!$E:$E,T$8,OtherPersons!$J:$J,$C82,OtherPersons!$V:$V,"E"),0) -> 0 | U82: =IFERROR(SUMIFS(OtherPersons!$Y:$Y,OtherPersons!$E:$E,U$8,OtherPersons!$J:$J,$C82,OtherPersons!$V:$V,"E"),0) -> 0 | V82: =IFERROR(SUMIFS(OtherPersons!$U:$U,OtherPersons!$E:$E,V$8,OtherPersons!$J:$J,$C82,OtherPersons!$V:$V,"E"),0) -> 0 | W82: =IFERROR(SUMIFS(OtherPersons!$Y:$Y,OtherPersons!$E:$E,W$8,OtherPersons!$J:$J,$C82,OtherPersons!$V:$V,"E"),0) -> 0 | X82: =IFERROR(SUMIFS(OtherPersons!$U:$U,OtherPersons!$E:$E,X$8,OtherPersons!$J:$J,$C82,OtherPersons!$V:$V,"E"),0) -> 0 | Y82: =IFERROR(SUMIFS(OtherPersons!$Y:$Y,OtherPersons!$E:$E,Y$8,OtherPersons!$J:$J,$C82,OtherPersons!$V:$V,"E"),0) -> 0 | Z82: =IFERROR(SUMIFS(OtherPersons!$U:$U,OtherPersons!$E:$E,Z$8,OtherPersons!$J:$J,$C82,OtherPersons!$V:$V,"E"),0) -> 0 | AA82: =IFERROR(SUMIFS(OtherPersons!$Y:$Y,OtherPersons!$E:$E,AA$8,OtherPersons!$J:$J,$C82,OtherPersons!$V:$V,"E"),0) -> 0 | AB82: 0 | AC82: 0 | AD82: 0
C83: =C39 -> 0 | D83: =IFERROR(H83/H39,"") ->  | H83: =IFERROR(SUMIFS(OtherPersons!$U:$U,OtherPersons!$E:$E,H$8,OtherPersons!$J:$J,$C83,OtherPersons!$V:$V,"E"),0) -> 0 | I83: =IFERROR(SUMIFS(OtherPersons!$Y:$Y,OtherPersons!$E:$E,I$8,OtherPersons!$J:$J,$C83,OtherPersons!$V:$V,"E"),0) -> 0 | J83: =IFERROR(SUMIFS(OtherPersons!$U:$U,OtherPersons!$E:$E,J$8,OtherPersons!$J:$J,$C83,OtherPersons!$V:$V,"E"),0) -> 0 | K83: =IFERROR(SUMIFS(OtherPersons!$Y:$Y,OtherPersons!$E:$E,K$8,OtherPersons!$J:$J,$C83,OtherPersons!$V:$V,"E"),0) -> 0 | L83: =IFERROR(SUMIFS(OtherPersons!$U:$U,OtherPersons!$E:$E,L$8,OtherPersons!$J:$J,$C83,OtherPersons!$V:$V,"E"),0) -> 0 | M83: =IFERROR(SUMIFS(OtherPersons!$Y:$Y,OtherPersons!$E:$E,M$8,OtherPersons!$J:$J,$C83,OtherPersons!$V:$V,"E"),0) -> 0 | N83: =IFERROR(SUMIFS(OtherPersons!$U:$U,OtherPersons!$E:$E,N$8,OtherPersons!$J:$J,$C83,OtherPersons!$V:$V,"E"),0) -> 0 | O83: =IFERROR(SUMIFS(OtherPersons!$Y:$Y,OtherPersons!$E:$E,O$8,OtherPersons!$J:$J,$C83,OtherPersons!$V:$V,"E"),0) -> 0 | P83: =IFERROR(SUMIFS(OtherPersons!$U:$U,OtherPersons!$E:$E,P$8,OtherPersons!$J:$J,$C83,OtherPersons!$V:$V,"E"),0) -> 0 | Q83: =IFERROR(SUMIFS(OtherPersons!$Y:$Y,OtherPersons!$E:$E,Q$8,OtherPersons!$J:$J,$C83,OtherPersons!$V:$V,"E"),0) -> 0 | R83: =IFERROR(SUMIFS(OtherPersons!$U:$U,OtherPersons!$E:$E,R$8,OtherPersons!$J:$J,$C83,OtherPersons!$V:$V,"E"),0) -> 0 | S83: =IFERROR(SUMIFS(OtherPersons!$Y:$Y,OtherPersons!$E:$E,S$8,OtherPersons!$J:$J,$C83,OtherPersons!$V:$V,"E"),0) -> 0 | T83: =IFERROR(SUMIFS(OtherPersons!$U:$U,OtherPersons!$E:$E,T$8,OtherPersons!$J:$J,$C83,OtherPersons!$V:$V,"E"),0) -> 0 | U83: =IFERROR(SUMIFS(OtherPersons!$Y:$Y,OtherPersons!$E:$E,U$8,OtherPersons!$J:$J,$C83,OtherPersons!$V:$V,"E"),0) -> 0 | V83: =IFERROR(SUMIFS(OtherPersons!$U:$U,OtherPersons!$E:$E,V$8,OtherPersons!$J:$J,$C83,OtherPersons!$V:$V,"E"),0) -> 0 | W83: =IFERROR(SUMIFS(OtherPersons!$Y:$Y,OtherPersons!$E:$E,W$8,OtherPersons!$J:$J,$C83,OtherPersons!$V:$V,"E"),0) -> 0 | X83: =IFERROR(SUMIFS(OtherPersons!$U:$U,OtherPersons!$E:$E,X$8,OtherPersons!$J:$J,$C83,OtherPersons!$V:$V,"E"),0) -> 0 | Y83: =IFERROR(SUMIFS(OtherPersons!$Y:$Y,OtherPersons!$E:$E,Y$8,OtherPersons!$J:$J,$C83,OtherPersons!$V:$V,"E"),0) -> 0 | Z83: =IFERROR(SUMIFS(OtherPersons!$U:$U,OtherPersons!$E:$E,Z$8,OtherPersons!$J:$J,$C83,OtherPersons!$V:$V,"E"),0) -> 0 | AA83: =IFERROR(SUMIFS(OtherPersons!$Y:$Y,OtherPersons!$E:$E,AA$8,OtherPersons!$J:$J,$C83,OtherPersons!$V:$V,"E"),0) -> 0 | AB83: 0 | AC83: 0 | AD83: =SUM(AB83+AC83) -> 0
C84: 0 | H84: =IFERROR(SUMIFS(OtherPersons!$U:$U,OtherPersons!$E:$E,H$8,OtherPersons!$J:$J,$C84,OtherPersons!$V:$V,"E"),0) -> 0 | I84: =IFERROR(SUMIFS(OtherPersons!$Y:$Y,OtherPersons!$E:$E,I$8,OtherPersons!$J:$J,$C84,OtherPersons!$V:$V,"E"),0) -> 0 | J84: =IFERROR(SUMIFS(OtherPersons!$U:$U,OtherPersons!$E:$E,J$8,OtherPersons!$J:$J,$C84,OtherPersons!$V:$V,"E"),0) -> 0 | K84: =IFERROR(SUMIFS(OtherPersons!$Y:$Y,OtherPersons!$E:$E,K$8,OtherPersons!$J:$J,$C84,OtherPersons!$V:$V,"E"),0) -> 0 | L84: =IFERROR(SUMIFS(OtherPersons!$U:$U,OtherPersons!$E:$E,L$8,OtherPersons!$J:$J,$C84,OtherPersons!$V:$V,"E"),0) -> 0 | M84: =IFERROR(SUMIFS(OtherPersons!$Y:$Y,OtherPersons!$E:$E,M$8,OtherPersons!$J:$J,$C84,OtherPersons!$V:$V,"E"),0) -> 0 | N84: =IFERROR(SUMIFS(OtherPersons!$U:$U,OtherPersons!$E:$E,N$8,OtherPersons!$J:$J,$C84,OtherPersons!$V:$V,"E"),0) -> 0 | O84: =IFERROR(SUMIFS(OtherPersons!$Y:$Y,OtherPersons!$E:$E,O$8,OtherPersons!$J:$J,$C84,OtherPersons!$V:$V,"E"),0) -> 0 | P84: =IFERROR(SUMIFS(OtherPersons!$U:$U,OtherPersons!$E:$E,P$8,OtherPersons!$J:$J,$C84,OtherPersons!$V:$V,"E"),0) -> 0 | Q84: =IFERROR(SUMIFS(OtherPersons!$Y:$Y,OtherPersons!$E:$E,Q$8,OtherPersons!$J:$J,$C84,OtherPersons!$V:$V,"E"),0) -> 0 | R84: =IFERROR(SUMIFS(OtherPersons!$U:$U,OtherPersons!$E:$E,R$8,OtherPersons!$J:$J,$C84,OtherPersons!$V:$V,"E"),0) -> 0 | S84: =IFERROR(SUMIFS(OtherPersons!$Y:$Y,OtherPersons!$E:$E,S$8,OtherPersons!$J:$J,$C84,OtherPersons!$V:$V,"E"),0) -> 0 | T84: =IFERROR(SUMIFS(OtherPersons!$U:$U,OtherPersons!$E:$E,T$8,OtherPersons!$J:$J,$C84,OtherPersons!$V:$V,"E"),0) -> 0 | U84: =IFERROR(SUMIFS(OtherPersons!$Y:$Y,OtherPersons!$E:$E,U$8,OtherPersons!$J:$J,$C84,OtherPersons!$V:$V,"E"),0) -> 0 | V84: =IFERROR(SUMIFS(OtherPersons!$U:$U,OtherPersons!$E:$E,V$8,OtherPersons!$J:$J,$C84,OtherPersons!$V:$V,"E"),0) -> 0 | W84: =IFERROR(SUMIFS(OtherPersons!$Y:$Y,OtherPersons!$E:$E,W$8,OtherPersons!$J:$J,$C84,OtherPersons!$V:$V,"E"),0) -> 0 | X84: =IFERROR(SUMIFS(OtherPersons!$U:$U,OtherPersons!$E:$E,X$8,OtherPersons!$J:$J,$C84,OtherPersons!$V:$V,"E"),0) -> 0 | Y84: =IFERROR(SUMIFS(OtherPersons!$Y:$Y,OtherPersons!$E:$E,Y$8,OtherPersons!$J:$J,$C84,OtherPersons!$V:$V,"E"),0) -> 0 | Z84: =IFERROR(SUMIFS(OtherPersons!$U:$U,OtherPersons!$E:$E,Z$8,OtherPersons!$J:$J,$C84,OtherPersons!$V:$V,"E"),0) -> 0 | AA84: =IFERROR(SUMIFS(OtherPersons!$Y:$Y,OtherPersons!$E:$E,AA$8,OtherPersons!$J:$J,$C84,OtherPersons!$V:$V,"E"),0) -> 0 | AB84: 0 | AC84: 0 | AD84: 0
C85: 0 | H85: =IFERROR(SUMIFS(OtherPersons!$U:$U,OtherPersons!$E:$E,H$8,OtherPersons!$J:$J,$C85,OtherPersons!$V:$V,"E"),0) -> 0 | I85: =IFERROR(SUMIFS(OtherPersons!$Y:$Y,OtherPersons!$E:$E,I$8,OtherPersons!$J:$J,$C85,OtherPersons!$V:$V,"E"),0) -> 0 | J85: =IFERROR(SUMIFS(OtherPersons!$U:$U,OtherPersons!$E:$E,J$8,OtherPersons!$J:$J,$C85,OtherPersons!$V:$V,"E"),0) -> 0 | K85: =IFERROR(SUMIFS(OtherPersons!$Y:$Y,OtherPersons!$E:$E,K$8,OtherPersons!$J:$J,$C85,OtherPersons!$V:$V,"E"),0) -> 0 | L85: =IFERROR(SUMIFS(OtherPersons!$U:$U,OtherPersons!$E:$E,L$8,OtherPersons!$J:$J,$C85,OtherPersons!$V:$V,"E"),0) -> 0 | M85: =IFERROR(SUMIFS(OtherPersons!$Y:$Y,OtherPersons!$E:$E,M$8,OtherPersons!$J:$J,$C85,OtherPersons!$V:$V,"E"),0) -> 0 | N85: =IFERROR(SUMIFS(OtherPersons!$U:$U,OtherPersons!$E:$E,N$8,OtherPersons!$J:$J,$C85,OtherPersons!$V:$V,"E"),0) -> 0 | O85: =IFERROR(SUMIFS(OtherPersons!$Y:$Y,OtherPersons!$E:$E,O$8,OtherPersons!$J:$J,$C85,OtherPersons!$V:$V,"E"),0) -> 0 | P85: =IFERROR(SUMIFS(OtherPersons!$U:$U,OtherPersons!$E:$E,P$8,OtherPersons!$J:$J,$C85,OtherPersons!$V:$V,"E"),0) -> 0 | Q85: =IFERROR(SUMIFS(OtherPersons!$Y:$Y,OtherPersons!$E:$E,Q$8,OtherPersons!$J:$J,$C85,OtherPersons!$V:$V,"E"),0) -> 0 | R85: =IFERROR(SUMIFS(OtherPersons!$U:$U,OtherPersons!$E:$E,R$8,OtherPersons!$J:$J,$C85,OtherPersons!$V:$V,"E"),0) -> 0 | S85: =IFERROR(SUMIFS(OtherPersons!$Y:$Y,OtherPersons!$E:$E,S$8,OtherPersons!$J:$J,$C85,OtherPersons!$V:$V,"E"),0) -> 0 | T85: =IFERROR(SUMIFS(OtherPersons!$U:$U,OtherPersons!$E:$E,T$8,OtherPersons!$J:$J,$C85,OtherPersons!$V:$V,"E"),0) -> 0 | U85: =IFERROR(SUMIFS(OtherPersons!$Y:$Y,OtherPersons!$E:$E,U$8,OtherPersons!$J:$J,$C85,OtherPersons!$V:$V,"E"),0) -> 0 | V85: =IFERROR(SUMIFS(OtherPersons!$U:$U,OtherPersons!$E:$E,V$8,OtherPersons!$J:$J,$C85,OtherPersons!$V:$V,"E"),0) -> 0 | W85: =IFERROR(SUMIFS(OtherPersons!$Y:$Y,OtherPersons!$E:$E,W$8,OtherPersons!$J:$J,$C85,OtherPersons!$V:$V,"E"),0) -> 0 | X85: =IFERROR(SUMIFS(OtherPersons!$U:$U,OtherPersons!$E:$E,X$8,OtherPersons!$J:$J,$C85,OtherPersons!$V:$V,"E"),0) -> 0 | Y85: =IFERROR(SUMIFS(OtherPersons!$Y:$Y,OtherPersons!$E:$E,Y$8,OtherPersons!$J:$J,$C85,OtherPersons!$V:$V,"E"),0) -> 0 | Z85: =IFERROR(SUMIFS(OtherPersons!$U:$U,OtherPersons!$E:$E,Z$8,OtherPersons!$J:$J,$C85,OtherPersons!$V:$V,"E"),0) -> 0 | AA85: =IFERROR(SUMIFS(OtherPersons!$Y:$Y,OtherPersons!$E:$E,AA$8,OtherPersons!$J:$J,$C85,OtherPersons!$V:$V,"E"),0) -> 0 | AB85: 0 | AC85: 0 | AD85: 0
C86: 0 | H86: =IFERROR(SUMIFS(OtherPersons!$U:$U,OtherPersons!$E:$E,H$8,OtherPersons!$J:$J,$C86,OtherPersons!$V:$V,"E"),0) -> 0 | I86: =IFERROR(SUMIFS(OtherPersons!$Y:$Y,OtherPersons!$E:$E,I$8,OtherPersons!$J:$J,$C86,OtherPersons!$V:$V,"E"),0) -> 0 | J86: =IFERROR(SUMIFS(OtherPersons!$U:$U,OtherPersons!$E:$E,J$8,OtherPersons!$J:$J,$C86,OtherPersons!$V:$V,"E"),0) -> 0 | K86: =IFERROR(SUMIFS(OtherPersons!$Y:$Y,OtherPersons!$E:$E,K$8,OtherPersons!$J:$J,$C86,OtherPersons!$V:$V,"E"),0) -> 0 | L86: =IFERROR(SUMIFS(OtherPersons!$U:$U,OtherPersons!$E:$E,L$8,OtherPersons!$J:$J,$C86,OtherPersons!$V:$V,"E"),0) -> 0 | M86: =IFERROR(SUMIFS(OtherPersons!$Y:$Y,OtherPersons!$E:$E,M$8,OtherPersons!$J:$J,$C86,OtherPersons!$V:$V,"E"),0) -> 0 | N86: =IFERROR(SUMIFS(OtherPersons!$U:$U,OtherPersons!$E:$E,N$8,OtherPersons!$J:$J,$C86,OtherPersons!$V:$V,"E"),0) -> 0 | O86: =IFERROR(SUMIFS(OtherPersons!$Y:$Y,OtherPersons!$E:$E,O$8,OtherPersons!$J:$J,$C86,OtherPersons!$V:$V,"E"),0) -> 0 | P86: =IFERROR(SUMIFS(OtherPersons!$U:$U,OtherPersons!$E:$E,P$8,OtherPersons!$J:$J,$C86,OtherPersons!$V:$V,"E"),0) -> 0 | Q86: =IFERROR(SUMIFS(OtherPersons!$Y:$Y,OtherPersons!$E:$E,Q$8,OtherPersons!$J:$J,$C86,OtherPersons!$V:$V,"E"),0) -> 0 | R86: =IFERROR(SUMIFS(OtherPersons!$U:$U,OtherPersons!$E:$E,R$8,OtherPersons!$J:$J,$C86,OtherPersons!$V:$V,"E"),0) -> 0 | S86: =IFERROR(SUMIFS(OtherPersons!$Y:$Y,OtherPersons!$E:$E,S$8,OtherPersons!$J:$J,$C86,OtherPersons!$V:$V,"E"),0) -> 0 | T86: =IFERROR(SUMIFS(OtherPersons!$U:$U,OtherPersons!$E:$E,T$8,OtherPersons!$J:$J,$C86,OtherPersons!$V:$V,"E"),0) -> 0 | U86: =IFERROR(SUMIFS(OtherPersons!$Y:$Y,OtherPersons!$E:$E,U$8,OtherPersons!$J:$J,$C86,OtherPersons!$V:$V,"E"),0) -> 0 | V86: =IFERROR(SUMIFS(OtherPersons!$U:$U,OtherPersons!$E:$E,V$8,OtherPersons!$J:$J,$C86,OtherPersons!$V:$V,"E"),0) -> 0 | W86: =IFERROR(SUMIFS(OtherPersons!$Y:$Y,OtherPersons!$E:$E,W$8,OtherPersons!$J:$J,$C86,OtherPersons!$V:$V,"E"),0) -> 0 | X86: =IFERROR(SUMIFS(OtherPersons!$U:$U,OtherPersons!$E:$E,X$8,OtherPersons!$J:$J,$C86,OtherPersons!$V:$V,"E"),0) -> 0 | Y86: =IFERROR(SUMIFS(OtherPersons!$Y:$Y,OtherPersons!$E:$E,Y$8,OtherPersons!$J:$J,$C86,OtherPersons!$V:$V,"E"),0) -> 0 | Z86: =IFERROR(SUMIFS(OtherPersons!$U:$U,OtherPersons!$E:$E,Z$8,OtherPersons!$J:$J,$C86,OtherPersons!$V:$V,"E"),0) -> 0 | AA86: =IFERROR(SUMIFS(OtherPersons!$Y:$Y,OtherPersons!$E:$E,AA$8,OtherPersons!$J:$J,$C86,OtherPersons!$V:$V,"E"),0) -> 0 | AB86: 0 | AC86: 0 | AD86: 0
C87: 0 | H87: =IFERROR(SUMIFS(OtherPersons!$U:$U,OtherPersons!$E:$E,H$8,OtherPersons!$J:$J,$C87,OtherPersons!$V:$V,"E"),0) -> 0 | I87: =IFERROR(SUMIFS(OtherPersons!$Y:$Y,OtherPersons!$E:$E,I$8,OtherPersons!$J:$J,$C87,OtherPersons!$V:$V,"E"),0) -> 0 | J87: =IFERROR(SUMIFS(OtherPersons!$U:$U,OtherPersons!$E:$E,J$8,OtherPersons!$J:$J,$C87,OtherPersons!$V:$V,"E"),0) -> 0 | K87: =IFERROR(SUMIFS(OtherPersons!$Y:$Y,OtherPersons!$E:$E,K$8,OtherPersons!$J:$J,$C87,OtherPersons!$V:$V,"E"),0) -> 0 | L87: =IFERROR(SUMIFS(OtherPersons!$U:$U,OtherPersons!$E:$E,L$8,OtherPersons!$J:$J,$C87,OtherPersons!$V:$V,"E"),0) -> 0 | M87: =IFERROR(SUMIFS(OtherPersons!$Y:$Y,OtherPersons!$E:$E,M$8,OtherPersons!$J:$J,$C87,OtherPersons!$V:$V,"E"),0) -> 0 | N87: =IFERROR(SUMIFS(OtherPersons!$U:$U,OtherPersons!$E:$E,N$8,OtherPersons!$J:$J,$C87,OtherPersons!$V:$V,"E"),0) -> 0 | O87: =IFERROR(SUMIFS(OtherPersons!$Y:$Y,OtherPersons!$E:$E,O$8,OtherPersons!$J:$J,$C87,OtherPersons!$V:$V,"E"),0) -> 0 | P87: =IFERROR(SUMIFS(OtherPersons!$U:$U,OtherPersons!$E:$E,P$8,OtherPersons!$J:$J,$C87,OtherPersons!$V:$V,"E"),0) -> 0 | Q87: =IFERROR(SUMIFS(OtherPersons!$Y:$Y,OtherPersons!$E:$E,Q$8,OtherPersons!$J:$J,$C87,OtherPersons!$V:$V,"E"),0) -> 0 | R87: =IFERROR(SUMIFS(OtherPersons!$U:$U,OtherPersons!$E:$E,R$8,OtherPersons!$J:$J,$C87,OtherPersons!$V:$V,"E"),0) -> 0 | S87: =IFERROR(SUMIFS(OtherPersons!$Y:$Y,OtherPersons!$E:$E,S$8,OtherPersons!$J:$J,$C87,OtherPersons!$V:$V,"E"),0) -> 0 | T87: =IFERROR(SUMIFS(OtherPersons!$U:$U,OtherPersons!$E:$E,T$8,OtherPersons!$J:$J,$C87,OtherPersons!$V:$V,"E"),0) -> 0 | U87: =IFERROR(SUMIFS(OtherPersons!$Y:$Y,OtherPersons!$E:$E,U$8,OtherPersons!$J:$J,$C87,OtherPersons!$V:$V,"E"),0) -> 0 | V87: =IFERROR(SUMIFS(OtherPersons!$U:$U,OtherPersons!$E:$E,V$8,OtherPersons!$J:$J,$C87,OtherPersons!$V:$V,"E"),0) -> 0 | W87: =IFERROR(SUMIFS(OtherPersons!$Y:$Y,OtherPersons!$E:$E,W$8,OtherPersons!$J:$J,$C87,OtherPersons!$V:$V,"E"),0) -> 0 | X87: =IFERROR(SUMIFS(OtherPersons!$U:$U,OtherPersons!$E:$E,X$8,OtherPersons!$J:$J,$C87,OtherPersons!$V:$V,"E"),0) -> 0 | Y87: =IFERROR(SUMIFS(OtherPersons!$Y:$Y,OtherPersons!$E:$E,Y$8,OtherPersons!$J:$J,$C87,OtherPersons!$V:$V,"E"),0) -> 0 | Z87: =IFERROR(SUMIFS(OtherPersons!$U:$U,OtherPersons!$E:$E,Z$8,OtherPersons!$J:$J,$C87,OtherPersons!$V:$V,"E"),0) -> 0 | AA87: =IFERROR(SUMIFS(OtherPersons!$Y:$Y,OtherPersons!$E:$E,AA$8,OtherPersons!$J:$J,$C87,OtherPersons!$V:$V,"E"),0) -> 0 | AB87: 0 | AC87: 0 | AD87: 0
C88: 0 | H88: =IFERROR(SUMIFS(OtherPersons!$U:$U,OtherPersons!$E:$E,H$8,OtherPersons!$J:$J,$C88,OtherPersons!$V:$V,"E"),0) -> 0 | I88: =IFERROR(SUMIFS(OtherPersons!$Y:$Y,OtherPersons!$E:$E,I$8,OtherPersons!$J:$J,$C88,OtherPersons!$V:$V,"E"),0) -> 0 | J88: =IFERROR(SUMIFS(OtherPersons!$U:$U,OtherPersons!$E:$E,J$8,OtherPersons!$J:$J,$C88,OtherPersons!$V:$V,"E"),0) -> 0 | K88: =IFERROR(SUMIFS(OtherPersons!$Y:$Y,OtherPersons!$E:$E,K$8,OtherPersons!$J:$J,$C88,OtherPersons!$V:$V,"E"),0) -> 0 | L88: =IFERROR(SUMIFS(OtherPersons!$U:$U,OtherPersons!$E:$E,L$8,OtherPersons!$J:$J,$C88,OtherPersons!$V:$V,"E"),0) -> 0 | M88: =IFERROR(SUMIFS(OtherPersons!$Y:$Y,OtherPersons!$E:$E,M$8,OtherPersons!$J:$J,$C88,OtherPersons!$V:$V,"E"),0) -> 0 | N88: =IFERROR(SUMIFS(OtherPersons!$U:$U,OtherPersons!$E:$E,N$8,OtherPersons!$J:$J,$C88,OtherPersons!$V:$V,"E"),0) -> 0 | O88: =IFERROR(SUMIFS(OtherPersons!$Y:$Y,OtherPersons!$E:$E,O$8,OtherPersons!$J:$J,$C88,OtherPersons!$V:$V,"E"),0) -> 0 | P88: =IFERROR(SUMIFS(OtherPersons!$U:$U,OtherPersons!$E:$E,P$8,OtherPersons!$J:$J,$C88,OtherPersons!$V:$V,"E"),0) -> 0 | Q88: =IFERROR(SUMIFS(OtherPersons!$Y:$Y,OtherPersons!$E:$E,Q$8,OtherPersons!$J:$J,$C88,OtherPersons!$V:$V,"E"),0) -> 0 | R88: =IFERROR(SUMIFS(OtherPersons!$U:$U,OtherPersons!$E:$E,R$8,OtherPersons!$J:$J,$C88,OtherPersons!$V:$V,"E"),0) -> 0 | S88: =IFERROR(SUMIFS(OtherPersons!$Y:$Y,OtherPersons!$E:$E,S$8,OtherPersons!$J:$J,$C88,OtherPersons!$V:$V,"E"),0) -> 0 | T88: =IFERROR(SUMIFS(OtherPersons!$U:$U,OtherPersons!$E:$E,T$8,OtherPersons!$J:$J,$C88,OtherPersons!$V:$V,"E"),0) -> 0 | U88: =IFERROR(SUMIFS(OtherPersons!$Y:$Y,OtherPersons!$E:$E,U$8,OtherPersons!$J:$J,$C88,OtherPersons!$V:$V,"E"),0) -> 0 | V88: =IFERROR(SUMIFS(OtherPersons!$U:$U,OtherPersons!$E:$E,V$8,OtherPersons!$J:$J,$C88,OtherPersons!$V:$V,"E"),0) -> 0 | W88: =IFERROR(SUMIFS(OtherPersons!$Y:$Y,OtherPersons!$E:$E,W$8,OtherPersons!$J:$J,$C88,OtherPersons!$V:$V,"E"),0) -> 0 | X88: =IFERROR(SUMIFS(OtherPersons!$U:$U,OtherPersons!$E:$E,X$8,OtherPersons!$J:$J,$C88,OtherPersons!$V:$V,"E"),0) -> 0 | Y88: =IFERROR(SUMIFS(OtherPersons!$Y:$Y,OtherPersons!$E:$E,Y$8,OtherPersons!$J:$J,$C88,OtherPersons!$V:$V,"E"),0) -> 0 | Z88: =IFERROR(SUMIFS(OtherPersons!$U:$U,OtherPersons!$E:$E,Z$8,OtherPersons!$J:$J,$C88,OtherPersons!$V:$V,"E"),0) -> 0 | AA88: =IFERROR(SUMIFS(OtherPersons!$Y:$Y,OtherPersons!$E:$E,AA$8,OtherPersons!$J:$J,$C88,OtherPersons!$V:$V,"E"),0) -> 0 | AB88: 0 | AC88: 0 | AD88: 0
C89: 0 | H89: =IFERROR(SUMIFS(OtherPersons!$U:$U,OtherPersons!$E:$E,H$8,OtherPersons!$J:$J,$C89,OtherPersons!$V:$V,"E"),0) -> 0 | I89: =IFERROR(SUMIFS(OtherPersons!$Y:$Y,OtherPersons!$E:$E,I$8,OtherPersons!$J:$J,$C89,OtherPersons!$V:$V,"E"),0) -> 0 | J89: =IFERROR(SUMIFS(OtherPersons!$U:$U,OtherPersons!$E:$E,J$8,OtherPersons!$J:$J,$C89,OtherPersons!$V:$V,"E"),0) -> 0 | K89: =IFERROR(SUMIFS(OtherPersons!$Y:$Y,OtherPersons!$E:$E,K$8,OtherPersons!$J:$J,$C89,OtherPersons!$V:$V,"E"),0) -> 0 | L89: =IFERROR(SUMIFS(OtherPersons!$U:$U,OtherPersons!$E:$E,L$8,OtherPersons!$J:$J,$C89,OtherPersons!$V:$V,"E"),0) -> 0 | M89: =IFERROR(SUMIFS(OtherPersons!$Y:$Y,OtherPersons!$E:$E,M$8,OtherPersons!$J:$J,$C89,OtherPersons!$V:$V,"E"),0) -> 0 | N89: =IFERROR(SUMIFS(OtherPersons!$U:$U,OtherPersons!$E:$E,N$8,OtherPersons!$J:$J,$C89,OtherPersons!$V:$V,"E"),0) -> 0 | O89: =IFERROR(SUMIFS(OtherPersons!$Y:$Y,OtherPersons!$E:$E,O$8,OtherPersons!$J:$J,$C89,OtherPersons!$V:$V,"E"),0) -> 0 | P89: =IFERROR(SUMIFS(OtherPersons!$U:$U,OtherPersons!$E:$E,P$8,OtherPersons!$J:$J,$C89,OtherPersons!$V:$V,"E"),0) -> 0 | Q89: =IFERROR(SUMIFS(OtherPersons!$Y:$Y,OtherPersons!$E:$E,Q$8,OtherPersons!$J:$J,$C89,OtherPersons!$V:$V,"E"),0) -> 0 | R89: =IFERROR(SUMIFS(OtherPersons!$U:$U,OtherPersons!$E:$E,R$8,OtherPersons!$J:$J,$C89,OtherPersons!$V:$V,"E"),0) -> 0 | S89: =IFERROR(SUMIFS(OtherPersons!$Y:$Y,OtherPersons!$E:$E,S$8,OtherPersons!$J:$J,$C89,OtherPersons!$V:$V,"E"),0) -> 0 | T89: =IFERROR(SUMIFS(OtherPersons!$U:$U,OtherPersons!$E:$E,T$8,OtherPersons!$J:$J,$C89,OtherPersons!$V:$V,"E"),0) -> 0 | U89: =IFERROR(SUMIFS(OtherPersons!$Y:$Y,OtherPersons!$E:$E,U$8,OtherPersons!$J:$J,$C89,OtherPersons!$V:$V,"E"),0) -> 0 | V89: =IFERROR(SUMIFS(OtherPersons!$U:$U,OtherPersons!$E:$E,V$8,OtherPersons!$J:$J,$C89,OtherPersons!$V:$V,"E"),0) -> 0 | W89: =IFERROR(SUMIFS(OtherPersons!$Y:$Y,OtherPersons!$E:$E,W$8,OtherPersons!$J:$J,$C89,OtherPersons!$V:$V,"E"),0) -> 0 | X89: =IFERROR(SUMIFS(OtherPersons!$U:$U,OtherPersons!$E:$E,X$8,OtherPersons!$J:$J,$C89,OtherPersons!$V:$V,"E"),0) -> 0 | Y89: =IFERROR(SUMIFS(OtherPersons!$Y:$Y,OtherPersons!$E:$E,Y$8,OtherPersons!$J:$J,$C89,OtherPersons!$V:$V,"E"),0) -> 0 | Z89: =IFERROR(SUMIFS(OtherPersons!$U:$U,OtherPersons!$E:$E,Z$8,OtherPersons!$J:$J,$C89,OtherPersons!$V:$V,"E"),0) -> 0 | AA89: =IFERROR(SUMIFS(OtherPersons!$Y:$Y,OtherPersons!$E:$E,AA$8,OtherPersons!$J:$J,$C89,OtherPersons!$V:$V,"E"),0) -> 0 | AB89: 0 | AC89: 0 | AD89: 0
C90: 0 | H90: =IFERROR(SUMIFS(OtherPersons!$U:$U,OtherPersons!$E:$E,H$8,OtherPersons!$J:$J,$C90,OtherPersons!$V:$V,"E"),0) -> 0 | I90: =IFERROR(SUMIFS(OtherPersons!$Y:$Y,OtherPersons!$E:$E,I$8,OtherPersons!$J:$J,$C90,OtherPersons!$V:$V,"E"),0) -> 0 | J90: =IFERROR(SUMIFS(OtherPersons!$U:$U,OtherPersons!$E:$E,J$8,OtherPersons!$J:$J,$C90,OtherPersons!$V:$V,"E"),0) -> 0 | K90: =IFERROR(SUMIFS(OtherPersons!$Y:$Y,OtherPersons!$E:$E,K$8,OtherPersons!$J:$J,$C90,OtherPersons!$V:$V,"E"),0) -> 0 | L90: =IFERROR(SUMIFS(OtherPersons!$U:$U,OtherPersons!$E:$E,L$8,OtherPersons!$J:$J,$C90,OtherPersons!$V:$V,"E"),0) -> 0 | M90: =IFERROR(SUMIFS(OtherPersons!$Y:$Y,OtherPersons!$E:$E,M$8,OtherPersons!$J:$J,$C90,OtherPersons!$V:$V,"E"),0) -> 0 | N90: =IFERROR(SUMIFS(OtherPersons!$U:$U,OtherPersons!$E:$E,N$8,OtherPersons!$J:$J,$C90,OtherPersons!$V:$V,"E"),0) -> 0 | O90: =IFERROR(SUMIFS(OtherPersons!$Y:$Y,OtherPersons!$E:$E,O$8,OtherPersons!$J:$J,$C90,OtherPersons!$V:$V,"E"),0) -> 0 | P90: =IFERROR(SUMIFS(OtherPersons!$U:$U,OtherPersons!$E:$E,P$8,OtherPersons!$J:$J,$C90,OtherPersons!$V:$V,"E"),0) -> 0 | Q90: =IFERROR(SUMIFS(OtherPersons!$Y:$Y,OtherPersons!$E:$E,Q$8,OtherPersons!$J:$J,$C90,OtherPersons!$V:$V,"E"),0) -> 0 | R90: =IFERROR(SUMIFS(OtherPersons!$U:$U,OtherPersons!$E:$E,R$8,OtherPersons!$J:$J,$C90,OtherPersons!$V:$V,"E"),0) -> 0 | S90: =IFERROR(SUMIFS(OtherPersons!$Y:$Y,OtherPersons!$E:$E,S$8,OtherPersons!$J:$J,$C90,OtherPersons!$V:$V,"E"),0) -> 0 | T90: =IFERROR(SUMIFS(OtherPersons!$U:$U,OtherPersons!$E:$E,T$8,OtherPersons!$J:$J,$C90,OtherPersons!$V:$V,"E"),0) -> 0 | U90: =IFERROR(SUMIFS(OtherPersons!$Y:$Y,OtherPersons!$E:$E,U$8,OtherPersons!$J:$J,$C90,OtherPersons!$V:$V,"E"),0) -> 0 | V90: =IFERROR(SUMIFS(OtherPersons!$U:$U,OtherPersons!$E:$E,V$8,OtherPersons!$J:$J,$C90,OtherPersons!$V:$V,"E"),0) -> 0 | W90: =IFERROR(SUMIFS(OtherPersons!$Y:$Y,OtherPersons!$E:$E,W$8,OtherPersons!$J:$J,$C90,OtherPersons!$V:$V,"E"),0) -> 0 | X90: =IFERROR(SUMIFS(OtherPersons!$U:$U,OtherPersons!$E:$E,X$8,OtherPersons!$J:$J,$C90,OtherPersons!$V:$V,"E"),0) -> 0 | Y90: =IFERROR(SUMIFS(OtherPersons!$Y:$Y,OtherPersons!$E:$E,Y$8,OtherPersons!$J:$J,$C90,OtherPersons!$V:$V,"E"),0) -> 0 | Z90: =IFERROR(SUMIFS(OtherPersons!$U:$U,OtherPersons!$E:$E,Z$8,OtherPersons!$J:$J,$C90,OtherPersons!$V:$V,"E"),0) -> 0 | AA90: =IFERROR(SUMIFS(OtherPersons!$Y:$Y,OtherPersons!$E:$E,AA$8,OtherPersons!$J:$J,$C90,OtherPersons!$V:$V,"E"),0) -> 0 | AB90: 0 | AC90: 0 | AD90: 0
C91: 0 | H91: =IFERROR(SUMIFS(OtherPersons!$U:$U,OtherPersons!$E:$E,H$8,OtherPersons!$J:$J,$C91,OtherPersons!$V:$V,"E"),0) -> 0 | I91: =IFERROR(SUMIFS(OtherPersons!$Y:$Y,OtherPersons!$E:$E,I$8,OtherPersons!$J:$J,$C91,OtherPersons!$V:$V,"E"),0) -> 0 | J91: =IFERROR(SUMIFS(OtherPersons!$U:$U,OtherPersons!$E:$E,J$8,OtherPersons!$J:$J,$C91,OtherPersons!$V:$V,"E"),0) -> 0 | K91: =IFERROR(SUMIFS(OtherPersons!$Y:$Y,OtherPersons!$E:$E,K$8,OtherPersons!$J:$J,$C91,OtherPersons!$V:$V,"E"),0) -> 0 | L91: =IFERROR(SUMIFS(OtherPersons!$U:$U,OtherPersons!$E:$E,L$8,OtherPersons!$J:$J,$C91,OtherPersons!$V:$V,"E"),0) -> 0 | M91: =IFERROR(SUMIFS(OtherPersons!$Y:$Y,OtherPersons!$E:$E,M$8,OtherPersons!$J:$J,$C91,OtherPersons!$V:$V,"E"),0) -> 0 | N91: =IFERROR(SUMIFS(OtherPersons!$U:$U,OtherPersons!$E:$E,N$8,OtherPersons!$J:$J,$C91,OtherPersons!$V:$V,"E"),0) -> 0 | O91: =IFERROR(SUMIFS(OtherPersons!$Y:$Y,OtherPersons!$E:$E,O$8,OtherPersons!$J:$J,$C91,OtherPersons!$V:$V,"E"),0) -> 0 | P91: =IFERROR(SUMIFS(OtherPersons!$U:$U,OtherPersons!$E:$E,P$8,OtherPersons!$J:$J,$C91,OtherPersons!$V:$V,"E"),0) -> 0 | Q91: =IFERROR(SUMIFS(OtherPersons!$Y:$Y,OtherPersons!$E:$E,Q$8,OtherPersons!$J:$J,$C91,OtherPersons!$V:$V,"E"),0) -> 0 | R91: =IFERROR(SUMIFS(OtherPersons!$U:$U,OtherPersons!$E:$E,R$8,OtherPersons!$J:$J,$C91,OtherPersons!$V:$V,"E"),0) -> 0 | S91: =IFERROR(SUMIFS(OtherPersons!$Y:$Y,OtherPersons!$E:$E,S$8,OtherPersons!$J:$J,$C91,OtherPersons!$V:$V,"E"),0) -> 0 | T91: =IFERROR(SUMIFS(OtherPersons!$U:$U,OtherPersons!$E:$E,T$8,OtherPersons!$J:$J,$C91,OtherPersons!$V:$V,"E"),0) -> 0 | U91: =IFERROR(SUMIFS(OtherPersons!$Y:$Y,OtherPersons!$E:$E,U$8,OtherPersons!$J:$J,$C91,OtherPersons!$V:$V,"E"),0) -> 0 | V91: =IFERROR(SUMIFS(OtherPersons!$U:$U,OtherPersons!$E:$E,V$8,OtherPersons!$J:$J,$C91,OtherPersons!$V:$V,"E"),0) -> 0 | W91: =IFERROR(SUMIFS(OtherPersons!$Y:$Y,OtherPersons!$E:$E,W$8,OtherPersons!$J:$J,$C91,OtherPersons!$V:$V,"E"),0) -> 0 | X91: =IFERROR(SUMIFS(OtherPersons!$U:$U,OtherPersons!$E:$E,X$8,OtherPersons!$J:$J,$C91,OtherPersons!$V:$V,"E"),0) -> 0 | Y91: =IFERROR(SUMIFS(OtherPersons!$Y:$Y,OtherPersons!$E:$E,Y$8,OtherPersons!$J:$J,$C91,OtherPersons!$V:$V,"E"),0) -> 0 | Z91: =IFERROR(SUMIFS(OtherPersons!$U:$U,OtherPersons!$E:$E,Z$8,OtherPersons!$J:$J,$C91,OtherPersons!$V:$V,"E"),0) -> 0 | AA91: =IFERROR(SUMIFS(OtherPersons!$Y:$Y,OtherPersons!$E:$E,AA$8,OtherPersons!$J:$J,$C91,OtherPersons!$V:$V,"E"),0) -> 0 | AB91: 0 | AC91: 0 | AD91: 0
C92: 0 | H92: =IFERROR(SUMIFS(OtherPersons!$U:$U,OtherPersons!$E:$E,H$8,OtherPersons!$J:$J,$C92,OtherPersons!$V:$V,"E"),0) -> 0 | I92: =IFERROR(SUMIFS(OtherPersons!$Y:$Y,OtherPersons!$E:$E,I$8,OtherPersons!$J:$J,$C92,OtherPersons!$V:$V,"E"),0) -> 0 | J92: =IFERROR(SUMIFS(OtherPersons!$U:$U,OtherPersons!$E:$E,J$8,OtherPersons!$J:$J,$C92,OtherPersons!$V:$V,"E"),0) -> 0 | K92: =IFERROR(SUMIFS(OtherPersons!$Y:$Y,OtherPersons!$E:$E,K$8,OtherPersons!$J:$J,$C92,OtherPersons!$V:$V,"E"),0) -> 0 | L92: =IFERROR(SUMIFS(OtherPersons!$U:$U,OtherPersons!$E:$E,L$8,OtherPersons!$J:$J,$C92,OtherPersons!$V:$V,"E"),0) -> 0 | M92: =IFERROR(SUMIFS(OtherPersons!$Y:$Y,OtherPersons!$E:$E,M$8,OtherPersons!$J:$J,$C92,OtherPersons!$V:$V,"E"),0) -> 0 | N92: =IFERROR(SUMIFS(OtherPersons!$U:$U,OtherPersons!$E:$E,N$8,OtherPersons!$J:$J,$C92,OtherPersons!$V:$V,"E"),0) -> 0 | O92: =IFERROR(SUMIFS(OtherPersons!$Y:$Y,OtherPersons!$E:$E,O$8,OtherPersons!$J:$J,$C92,OtherPersons!$V:$V,"E"),0) -> 0 | P92: =IFERROR(SUMIFS(OtherPersons!$U:$U,OtherPersons!$E:$E,P$8,OtherPersons!$J:$J,$C92,OtherPersons!$V:$V,"E"),0) -> 0 | Q92: =IFERROR(SUMIFS(OtherPersons!$Y:$Y,OtherPersons!$E:$E,Q$8,OtherPersons!$J:$J,$C92,OtherPersons!$V:$V,"E"),0) -> 0 | R92: =IFERROR(SUMIFS(OtherPersons!$U:$U,OtherPersons!$E:$E,R$8,OtherPersons!$J:$J,$C92,OtherPersons!$V:$V,"E"),0) -> 0 | S92: =IFERROR(SUMIFS(OtherPersons!$Y:$Y,OtherPersons!$E:$E,S$8,OtherPersons!$J:$J,$C92,OtherPersons!$V:$V,"E"),0) -> 0 | T92: =IFERROR(SUMIFS(OtherPersons!$U:$U,OtherPersons!$E:$E,T$8,OtherPersons!$J:$J,$C92,OtherPersons!$V:$V,"E"),0) -> 0 | U92: =IFERROR(SUMIFS(OtherPersons!$Y:$Y,OtherPersons!$E:$E,U$8,OtherPersons!$J:$J,$C92,OtherPersons!$V:$V,"E"),0) -> 0 | V92: =IFERROR(SUMIFS(OtherPersons!$U:$U,OtherPersons!$E:$E,V$8,OtherPersons!$J:$J,$C92,OtherPersons!$V:$V,"E"),0) -> 0 | W92: =IFERROR(SUMIFS(OtherPersons!$Y:$Y,OtherPersons!$E:$E,W$8,OtherPersons!$J:$J,$C92,OtherPersons!$V:$V,"E"),0) -> 0 | X92: =IFERROR(SUMIFS(OtherPersons!$U:$U,OtherPersons!$E:$E,X$8,OtherPersons!$J:$J,$C92,OtherPersons!$V:$V,"E"),0) -> 0 | Y92: =IFERROR(SUMIFS(OtherPersons!$Y:$Y,OtherPersons!$E:$E,Y$8,OtherPersons!$J:$J,$C92,OtherPersons!$V:$V,"E"),0) -> 0 | Z92: =IFERROR(SUMIFS(OtherPersons!$U:$U,OtherPersons!$E:$E,Z$8,OtherPersons!$J:$J,$C92,OtherPersons!$V:$V,"E"),0) -> 0 | AA92: =IFERROR(SUMIFS(OtherPersons!$Y:$Y,OtherPersons!$E:$E,AA$8,OtherPersons!$J:$J,$C92,OtherPersons!$V:$V,"E"),0) -> 0 | AB92: 0 | AC92: 0 | AD92: 0
C93: 0 | H93: =IFERROR(SUMIFS(OtherPersons!$U:$U,OtherPersons!$E:$E,H$8,OtherPersons!$J:$J,$C93,OtherPersons!$V:$V,"E"),0) -> 0 | I93: =IFERROR(SUMIFS(OtherPersons!$Y:$Y,OtherPersons!$E:$E,I$8,OtherPersons!$J:$J,$C93,OtherPersons!$V:$V,"E"),0) -> 0 | J93: =IFERROR(SUMIFS(OtherPersons!$U:$U,OtherPersons!$E:$E,J$8,OtherPersons!$J:$J,$C93,OtherPersons!$V:$V,"E"),0) -> 0 | K93: =IFERROR(SUMIFS(OtherPersons!$Y:$Y,OtherPersons!$E:$E,K$8,OtherPersons!$J:$J,$C93,OtherPersons!$V:$V,"E"),0) -> 0 | L93: =IFERROR(SUMIFS(OtherPersons!$U:$U,OtherPersons!$E:$E,L$8,OtherPersons!$J:$J,$C93,OtherPersons!$V:$V,"E"),0) -> 0 | M93: =IFERROR(SUMIFS(OtherPersons!$Y:$Y,OtherPersons!$E:$E,M$8,OtherPersons!$J:$J,$C93,OtherPersons!$V:$V,"E"),0) -> 0 | N93: =IFERROR(SUMIFS(OtherPersons!$U:$U,OtherPersons!$E:$E,N$8,OtherPersons!$J:$J,$C93,OtherPersons!$V:$V,"E"),0) -> 0 | O93: =IFERROR(SUMIFS(OtherPersons!$Y:$Y,OtherPersons!$E:$E,O$8,OtherPersons!$J:$J,$C93,OtherPersons!$V:$V,"E"),0) -> 0 | P93: =IFERROR(SUMIFS(OtherPersons!$U:$U,OtherPersons!$E:$E,P$8,OtherPersons!$J:$J,$C93,OtherPersons!$V:$V,"E"),0) -> 0 | Q93: =IFERROR(SUMIFS(OtherPersons!$Y:$Y,OtherPersons!$E:$E,Q$8,OtherPersons!$J:$J,$C93,OtherPersons!$V:$V,"E"),0) -> 0 | R93: =IFERROR(SUMIFS(OtherPersons!$U:$U,OtherPersons!$E:$E,R$8,OtherPersons!$J:$J,$C93,OtherPersons!$V:$V,"E"),0) -> 0 | S93: =IFERROR(SUMIFS(OtherPersons!$Y:$Y,OtherPersons!$E:$E,S$8,OtherPersons!$J:$J,$C93,OtherPersons!$V:$V,"E"),0) -> 0 | T93: =IFERROR(SUMIFS(OtherPersons!$U:$U,OtherPersons!$E:$E,T$8,OtherPersons!$J:$J,$C93,OtherPersons!$V:$V,"E"),0) -> 0 | U93: =IFERROR(SUMIFS(OtherPersons!$Y:$Y,OtherPersons!$E:$E,U$8,OtherPersons!$J:$J,$C93,OtherPersons!$V:$V,"E"),0) -> 0 | V93: =IFERROR(SUMIFS(OtherPersons!$U:$U,OtherPersons!$E:$E,V$8,OtherPersons!$J:$J,$C93,OtherPersons!$V:$V,"E"),0) -> 0 | W93: =IFERROR(SUMIFS(OtherPersons!$Y:$Y,OtherPersons!$E:$E,W$8,OtherPersons!$J:$J,$C93,OtherPersons!$V:$V,"E"),0) -> 0 | X93: =IFERROR(SUMIFS(OtherPersons!$U:$U,OtherPersons!$E:$E,X$8,OtherPersons!$J:$J,$C93,OtherPersons!$V:$V,"E"),0) -> 0 | Y93: =IFERROR(SUMIFS(OtherPersons!$Y:$Y,OtherPersons!$E:$E,Y$8,OtherPersons!$J:$J,$C93,OtherPersons!$V:$V,"E"),0) -> 0 | Z93: =IFERROR(SUMIFS(OtherPersons!$U:$U,OtherPersons!$E:$E,Z$8,OtherPersons!$J:$J,$C93,OtherPersons!$V:$V,"E"),0) -> 0 | AA93: =IFERROR(SUMIFS(OtherPersons!$Y:$Y,OtherPersons!$E:$E,AA$8,OtherPersons!$J:$J,$C93,OtherPersons!$V:$V,"E"),0) -> 0 | AB93: 0 | AC93: 0 | AD93: 0
C94: 0 | D94: =IFERROR(H94/H50,"") ->  | H94: =IFERROR(SUMIFS(OtherPersons!$U:$U,OtherPersons!$E:$E,H$8,OtherPersons!$J:$J,$C94,OtherPersons!$V:$V,"E"),0) -> 0 | I94: =IFERROR(SUMIFS(OtherPersons!$Y:$Y,OtherPersons!$E:$E,I$8,OtherPersons!$J:$J,$C94,OtherPersons!$V:$V,"E"),0) -> 0 | J94: =IFERROR(SUMIFS(OtherPersons!$U:$U,OtherPersons!$E:$E,J$8,OtherPersons!$J:$J,$C94,OtherPersons!$V:$V,"E"),0) -> 0 | K94: =IFERROR(SUMIFS(OtherPersons!$Y:$Y,OtherPersons!$E:$E,K$8,OtherPersons!$J:$J,$C94,OtherPersons!$V:$V,"E"),0) -> 0 | L94: =IFERROR(SUMIFS(OtherPersons!$U:$U,OtherPersons!$E:$E,L$8,OtherPersons!$J:$J,$C94,OtherPersons!$V:$V,"E"),0) -> 0 | M94: =IFERROR(SUMIFS(OtherPersons!$Y:$Y,OtherPersons!$E:$E,M$8,OtherPersons!$J:$J,$C94,OtherPersons!$V:$V,"E"),0) -> 0 | N94: =IFERROR(SUMIFS(OtherPersons!$U:$U,OtherPersons!$E:$E,N$8,OtherPersons!$J:$J,$C94,OtherPersons!$V:$V,"E"),0) -> 0 | O94: =IFERROR(SUMIFS(OtherPersons!$Y:$Y,OtherPersons!$E:$E,O$8,OtherPersons!$J:$J,$C94,OtherPersons!$V:$V,"E"),0) -> 0 | P94: =IFERROR(SUMIFS(OtherPersons!$U:$U,OtherPersons!$E:$E,P$8,OtherPersons!$J:$J,$C94,OtherPersons!$V:$V,"E"),0) -> 0 | Q94: =IFERROR(SUMIFS(OtherPersons!$Y:$Y,OtherPersons!$E:$E,Q$8,OtherPersons!$J:$J,$C94,OtherPersons!$V:$V,"E"),0) -> 0 | R94: =IFERROR(SUMIFS(OtherPersons!$U:$U,OtherPersons!$E:$E,R$8,OtherPersons!$J:$J,$C94,OtherPersons!$V:$V,"E"),0) -> 0 | S94: =IFERROR(SUMIFS(OtherPersons!$Y:$Y,OtherPersons!$E:$E,S$8,OtherPersons!$J:$J,$C94,OtherPersons!$V:$V,"E"),0) -> 0 | T94: =IFERROR(SUMIFS(OtherPersons!$U:$U,OtherPersons!$E:$E,T$8,OtherPersons!$J:$J,$C94,OtherPersons!$V:$V,"E"),0) -> 0 | U94: =IFERROR(SUMIFS(OtherPersons!$Y:$Y,OtherPersons!$E:$E,U$8,OtherPersons!$J:$J,$C94,OtherPersons!$V:$V,"E"),0) -> 0 | V94: =IFERROR(SUMIFS(OtherPersons!$U:$U,OtherPersons!$E:$E,V$8,OtherPersons!$J:$J,$C94,OtherPersons!$V:$V,"E"),0) -> 0 | W94: =IFERROR(SUMIFS(OtherPersons!$Y:$Y,OtherPersons!$E:$E,W$8,OtherPersons!$J:$J,$C94,OtherPersons!$V:$V,"E"),0) -> 0 | X94: =IFERROR(SUMIFS(OtherPersons!$U:$U,OtherPersons!$E:$E,X$8,OtherPersons!$J:$J,$C94,OtherPersons!$V:$V,"E"),0) -> 0 | Y94: =IFERROR(SUMIFS(OtherPersons!$Y:$Y,OtherPersons!$E:$E,Y$8,OtherPersons!$J:$J,$C94,OtherPersons!$V:$V,"E"),0) -> 0 | Z94: =IFERROR(SUMIFS(OtherPersons!$U:$U,OtherPersons!$E:$E,Z$8,OtherPersons!$J:$J,$C94,OtherPersons!$V:$V,"E"),0) -> 0 | AA94: =IFERROR(SUMIFS(OtherPersons!$Y:$Y,OtherPersons!$E:$E,AA$8,OtherPersons!$J:$J,$C94,OtherPersons!$V:$V,"E"),0) -> 0 | AB94: 0 | AC94: 0 | AD94: 0
C95: 0 | H95: =IFERROR(SUMIFS(OtherPersons!$U:$U,OtherPersons!$E:$E,H$8,OtherPersons!$J:$J,$C95,OtherPersons!$V:$V,"E"),0) -> 0 | I95: =IFERROR(SUMIFS(OtherPersons!$Y:$Y,OtherPersons!$E:$E,I$8,OtherPersons!$J:$J,$C95,OtherPersons!$V:$V,"E"),0) -> 0 | J95: =IFERROR(SUMIFS(OtherPersons!$U:$U,OtherPersons!$E:$E,J$8,OtherPersons!$J:$J,$C95,OtherPersons!$V:$V,"E"),0) -> 0 | K95: =IFERROR(SUMIFS(OtherPersons!$Y:$Y,OtherPersons!$E:$E,K$8,OtherPersons!$J:$J,$C95,OtherPersons!$V:$V,"E"),0) -> 0 | L95: =IFERROR(SUMIFS(OtherPersons!$U:$U,OtherPersons!$E:$E,L$8,OtherPersons!$J:$J,$C95,OtherPersons!$V:$V,"E"),0) -> 0 | M95: =IFERROR(SUMIFS(OtherPersons!$Y:$Y,OtherPersons!$E:$E,M$8,OtherPersons!$J:$J,$C95,OtherPersons!$V:$V,"E"),0) -> 0 | N95: =IFERROR(SUMIFS(OtherPersons!$U:$U,OtherPersons!$E:$E,N$8,OtherPersons!$J:$J,$C95,OtherPersons!$V:$V,"E"),0) -> 0 | O95: =IFERROR(SUMIFS(OtherPersons!$Y:$Y,OtherPersons!$E:$E,O$8,OtherPersons!$J:$J,$C95,OtherPersons!$V:$V,"E"),0) -> 0 | P95: =IFERROR(SUMIFS(OtherPersons!$U:$U,OtherPersons!$E:$E,P$8,OtherPersons!$J:$J,$C95,OtherPersons!$V:$V,"E"),0) -> 0 | Q95: =IFERROR(SUMIFS(OtherPersons!$Y:$Y,OtherPersons!$E:$E,Q$8,OtherPersons!$J:$J,$C95,OtherPersons!$V:$V,"E"),0) -> 0 | R95: =IFERROR(SUMIFS(OtherPersons!$U:$U,OtherPersons!$E:$E,R$8,OtherPersons!$J:$J,$C95,OtherPersons!$V:$V,"E"),0) -> 0 | S95: =IFERROR(SUMIFS(OtherPersons!$Y:$Y,OtherPersons!$E:$E,S$8,OtherPersons!$J:$J,$C95,OtherPersons!$V:$V,"E"),0) -> 0 | T95: =IFERROR(SUMIFS(OtherPersons!$U:$U,OtherPersons!$E:$E,T$8,OtherPersons!$J:$J,$C95,OtherPersons!$V:$V,"E"),0) -> 0 | U95: =IFERROR(SUMIFS(OtherPersons!$Y:$Y,OtherPersons!$E:$E,U$8,OtherPersons!$J:$J,$C95,OtherPersons!$V:$V,"E"),0) -> 0 | V95: =IFERROR(SUMIFS(OtherPersons!$U:$U,OtherPersons!$E:$E,V$8,OtherPersons!$J:$J,$C95,OtherPersons!$V:$V,"E"),0) -> 0 | W95: =IFERROR(SUMIFS(OtherPersons!$Y:$Y,OtherPersons!$E:$E,W$8,OtherPersons!$J:$J,$C95,OtherPersons!$V:$V,"E"),0) -> 0 | X95: =IFERROR(SUMIFS(OtherPersons!$U:$U,OtherPersons!$E:$E,X$8,OtherPersons!$J:$J,$C95,OtherPersons!$V:$V,"E"),0) -> 0 | Y95: =IFERROR(SUMIFS(OtherPersons!$Y:$Y,OtherPersons!$E:$E,Y$8,OtherPersons!$J:$J,$C95,OtherPersons!$V:$V,"E"),0) -> 0 | Z95: =IFERROR(SUMIFS(OtherPersons!$U:$U,OtherPersons!$E:$E,Z$8,OtherPersons!$J:$J,$C95,OtherPersons!$V:$V,"E"),0) -> 0 | AA95: =IFERROR(SUMIFS(OtherPersons!$Y:$Y,OtherPersons!$E:$E,AA$8,OtherPersons!$J:$J,$C95,OtherPersons!$V:$V,"E"),0) -> 0 | AB95: 0 | AC95: 0 | AD95: 0
C96: 0 | H96: =IFERROR(SUMIFS(OtherPersons!$U:$U,OtherPersons!$E:$E,H$8,OtherPersons!$J:$J,$C96,OtherPersons!$V:$V,"E"),0) -> 0 | I96: =IFERROR(SUMIFS(OtherPersons!$Y:$Y,OtherPersons!$E:$E,I$8,OtherPersons!$J:$J,$C96,OtherPersons!$V:$V,"E"),0) -> 0 | J96: =IFERROR(SUMIFS(OtherPersons!$U:$U,OtherPersons!$E:$E,J$8,OtherPersons!$J:$J,$C96,OtherPersons!$V:$V,"E"),0) -> 0 | K96: =IFERROR(SUMIFS(OtherPersons!$Y:$Y,OtherPersons!$E:$E,K$8,OtherPersons!$J:$J,$C96,OtherPersons!$V:$V,"E"),0) -> 0 | L96: =IFERROR(SUMIFS(OtherPersons!$U:$U,OtherPersons!$E:$E,L$8,OtherPersons!$J:$J,$C96,OtherPersons!$V:$V,"E"),0) -> 0 | M96: =IFERROR(SUMIFS(OtherPersons!$Y:$Y,OtherPersons!$E:$E,M$8,OtherPersons!$J:$J,$C96,OtherPersons!$V:$V,"E"),0) -> 0 | N96: =IFERROR(SUMIFS(OtherPersons!$U:$U,OtherPersons!$E:$E,N$8,OtherPersons!$J:$J,$C96,OtherPersons!$V:$V,"E"),0) -> 0 | O96: =IFERROR(SUMIFS(OtherPersons!$Y:$Y,OtherPersons!$E:$E,O$8,OtherPersons!$J:$J,$C96,OtherPersons!$V:$V,"E"),0) -> 0 | P96: =IFERROR(SUMIFS(OtherPersons!$U:$U,OtherPersons!$E:$E,P$8,OtherPersons!$J:$J,$C96,OtherPersons!$V:$V,"E"),0) -> 0 | Q96: =IFERROR(SUMIFS(OtherPersons!$Y:$Y,OtherPersons!$E:$E,Q$8,OtherPersons!$J:$J,$C96,OtherPersons!$V:$V,"E"),0) -> 0 | R96: =IFERROR(SUMIFS(OtherPersons!$U:$U,OtherPersons!$E:$E,R$8,OtherPersons!$J:$J,$C96,OtherPersons!$V:$V,"E"),0) -> 0 | S96: =IFERROR(SUMIFS(OtherPersons!$Y:$Y,OtherPersons!$E:$E,S$8,OtherPersons!$J:$J,$C96,OtherPersons!$V:$V,"E"),0) -> 0 | T96: =IFERROR(SUMIFS(OtherPersons!$U:$U,OtherPersons!$E:$E,T$8,OtherPersons!$J:$J,$C96,OtherPersons!$V:$V,"E"),0) -> 0 | U96: =IFERROR(SUMIFS(OtherPersons!$Y:$Y,OtherPersons!$E:$E,U$8,OtherPersons!$J:$J,$C96,OtherPersons!$V:$V,"E"),0) -> 0 | V96: =IFERROR(SUMIFS(OtherPersons!$U:$U,OtherPersons!$E:$E,V$8,OtherPersons!$J:$J,$C96,OtherPersons!$V:$V,"E"),0) -> 0 | W96: =IFERROR(SUMIFS(OtherPersons!$Y:$Y,OtherPersons!$E:$E,W$8,OtherPersons!$J:$J,$C96,OtherPersons!$V:$V,"E"),0) -> 0 | X96: =IFERROR(SUMIFS(OtherPersons!$U:$U,OtherPersons!$E:$E,X$8,OtherPersons!$J:$J,$C96,OtherPersons!$V:$V,"E"),0) -> 0 | Y96: =IFERROR(SUMIFS(OtherPersons!$Y:$Y,OtherPersons!$E:$E,Y$8,OtherPersons!$J:$J,$C96,OtherPersons!$V:$V,"E"),0) -> 0 | Z96: =IFERROR(SUMIFS(OtherPersons!$U:$U,OtherPersons!$E:$E,Z$8,OtherPersons!$J:$J,$C96,OtherPersons!$V:$V,"E"),0) -> 0 | AA96: =IFERROR(SUMIFS(OtherPersons!$Y:$Y,OtherPersons!$E:$E,AA$8,OtherPersons!$J:$J,$C96,OtherPersons!$V:$V,"E"),0) -> 0 | AB96: 0 | AC96: 0 | AD96: 0
C97: 0 | H97: =IFERROR(SUMIFS(OtherPersons!$U:$U,OtherPersons!$E:$E,H$8,OtherPersons!$J:$J,$C97,OtherPersons!$V:$V,"E"),0) -> 0 | I97: =IFERROR(SUMIFS(OtherPersons!$Y:$Y,OtherPersons!$E:$E,I$8,OtherPersons!$J:$J,$C97,OtherPersons!$V:$V,"E"),0) -> 0 | J97: =IFERROR(SUMIFS(OtherPersons!$U:$U,OtherPersons!$E:$E,J$8,OtherPersons!$J:$J,$C97,OtherPersons!$V:$V,"E"),0) -> 0 | K97: =IFERROR(SUMIFS(OtherPersons!$Y:$Y,OtherPersons!$E:$E,K$8,OtherPersons!$J:$J,$C97,OtherPersons!$V:$V,"E"),0) -> 0 | L97: =IFERROR(SUMIFS(OtherPersons!$U:$U,OtherPersons!$E:$E,L$8,OtherPersons!$J:$J,$C97,OtherPersons!$V:$V,"E"),0) -> 0 | M97: =IFERROR(SUMIFS(OtherPersons!$Y:$Y,OtherPersons!$E:$E,M$8,OtherPersons!$J:$J,$C97,OtherPersons!$V:$V,"E"),0) -> 0 | N97: =IFERROR(SUMIFS(OtherPersons!$U:$U,OtherPersons!$E:$E,N$8,OtherPersons!$J:$J,$C97,OtherPersons!$V:$V,"E"),0) -> 0 | O97: =IFERROR(SUMIFS(OtherPersons!$Y:$Y,OtherPersons!$E:$E,O$8,OtherPersons!$J:$J,$C97,OtherPersons!$V:$V,"E"),0) -> 0 | P97: =IFERROR(SUMIFS(OtherPersons!$U:$U,OtherPersons!$E:$E,P$8,OtherPersons!$J:$J,$C97,OtherPersons!$V:$V,"E"),0) -> 0 | Q97: =IFERROR(SUMIFS(OtherPersons!$Y:$Y,OtherPersons!$E:$E,Q$8,OtherPersons!$J:$J,$C97,OtherPersons!$V:$V,"E"),0) -> 0 | R97: =IFERROR(SUMIFS(OtherPersons!$U:$U,OtherPersons!$E:$E,R$8,OtherPersons!$J:$J,$C97,OtherPersons!$V:$V,"E"),0) -> 0 | S97: =IFERROR(SUMIFS(OtherPersons!$Y:$Y,OtherPersons!$E:$E,S$8,OtherPersons!$J:$J,$C97,OtherPersons!$V:$V,"E"),0) -> 0 | T97: =IFERROR(SUMIFS(OtherPersons!$U:$U,OtherPersons!$E:$E,T$8,OtherPersons!$J:$J,$C97,OtherPersons!$V:$V,"E"),0) -> 0 | U97: =IFERROR(SUMIFS(OtherPersons!$Y:$Y,OtherPersons!$E:$E,U$8,OtherPersons!$J:$J,$C97,OtherPersons!$V:$V,"E"),0) -> 0 | V97: =IFERROR(SUMIFS(OtherPersons!$U:$U,OtherPersons!$E:$E,V$8,OtherPersons!$J:$J,$C97,OtherPersons!$V:$V,"E"),0) -> 0 | W97: =IFERROR(SUMIFS(OtherPersons!$Y:$Y,OtherPersons!$E:$E,W$8,OtherPersons!$J:$J,$C97,OtherPersons!$V:$V,"E"),0) -> 0 | X97: =IFERROR(SUMIFS(OtherPersons!$U:$U,OtherPersons!$E:$E,X$8,OtherPersons!$J:$J,$C97,OtherPersons!$V:$V,"E"),0) -> 0 | Y97: =IFERROR(SUMIFS(OtherPersons!$Y:$Y,OtherPersons!$E:$E,Y$8,OtherPersons!$J:$J,$C97,OtherPersons!$V:$V,"E"),0) -> 0 | Z97: =IFERROR(SUMIFS(OtherPersons!$U:$U,OtherPersons!$E:$E,Z$8,OtherPersons!$J:$J,$C97,OtherPersons!$V:$V,"E"),0) -> 0 | AA97: =IFERROR(SUMIFS(OtherPersons!$Y:$Y,OtherPersons!$E:$E,AA$8,OtherPersons!$J:$J,$C97,OtherPersons!$V:$V,"E"),0) -> 0 | AB97: 0 | AC97: 0 | AD97: 0
C98: 0 | H98: =IFERROR(SUMIFS(OtherPersons!$U:$U,OtherPersons!$E:$E,H$8,OtherPersons!$J:$J,$C98,OtherPersons!$V:$V,"E"),0) -> 0 | I98: =IFERROR(SUMIFS(OtherPersons!$Y:$Y,OtherPersons!$E:$E,I$8,OtherPersons!$J:$J,$C98,OtherPersons!$V:$V,"E"),0) -> 0 | J98: =IFERROR(SUMIFS(OtherPersons!$U:$U,OtherPersons!$E:$E,J$8,OtherPersons!$J:$J,$C98,OtherPersons!$V:$V,"E"),0) -> 0 | K98: =IFERROR(SUMIFS(OtherPersons!$Y:$Y,OtherPersons!$E:$E,K$8,OtherPersons!$J:$J,$C98,OtherPersons!$V:$V,"E"),0) -> 0 | L98: =IFERROR(SUMIFS(OtherPersons!$U:$U,OtherPersons!$E:$E,L$8,OtherPersons!$J:$J,$C98,OtherPersons!$V:$V,"E"),0) -> 0 | M98: =IFERROR(SUMIFS(OtherPersons!$Y:$Y,OtherPersons!$E:$E,M$8,OtherPersons!$J:$J,$C98,OtherPersons!$V:$V,"E"),0) -> 0 | N98: =IFERROR(SUMIFS(OtherPersons!$U:$U,OtherPersons!$E:$E,N$8,OtherPersons!$J:$J,$C98,OtherPersons!$V:$V,"E"),0) -> 0 | O98: =IFERROR(SUMIFS(OtherPersons!$Y:$Y,OtherPersons!$E:$E,O$8,OtherPersons!$J:$J,$C98,OtherPersons!$V:$V,"E"),0) -> 0 | P98: =IFERROR(SUMIFS(OtherPersons!$U:$U,OtherPersons!$E:$E,P$8,OtherPersons!$J:$J,$C98,OtherPersons!$V:$V,"E"),0) -> 0 | Q98: =IFERROR(SUMIFS(OtherPersons!$Y:$Y,OtherPersons!$E:$E,Q$8,OtherPersons!$J:$J,$C98,OtherPersons!$V:$V,"E"),0) -> 0 | R98: =IFERROR(SUMIFS(OtherPersons!$U:$U,OtherPersons!$E:$E,R$8,OtherPersons!$J:$J,$C98,OtherPersons!$V:$V,"E"),0) -> 0 | S98: =IFERROR(SUMIFS(OtherPersons!$Y:$Y,OtherPersons!$E:$E,S$8,OtherPersons!$J:$J,$C98,OtherPersons!$V:$V,"E"),0) -> 0 | T98: =IFERROR(SUMIFS(OtherPersons!$U:$U,OtherPersons!$E:$E,T$8,OtherPersons!$J:$J,$C98,OtherPersons!$V:$V,"E"),0) -> 0 | U98: =IFERROR(SUMIFS(OtherPersons!$Y:$Y,OtherPersons!$E:$E,U$8,OtherPersons!$J:$J,$C98,OtherPersons!$V:$V,"E"),0) -> 0 | V98: =IFERROR(SUMIFS(OtherPersons!$U:$U,OtherPersons!$E:$E,V$8,OtherPersons!$J:$J,$C98,OtherPersons!$V:$V,"E"),0) -> 0 | W98: =IFERROR(SUMIFS(OtherPersons!$Y:$Y,OtherPersons!$E:$E,W$8,OtherPersons!$J:$J,$C98,OtherPersons!$V:$V,"E"),0) -> 0 | X98: =IFERROR(SUMIFS(OtherPersons!$U:$U,OtherPersons!$E:$E,X$8,OtherPersons!$J:$J,$C98,OtherPersons!$V:$V,"E"),0) -> 0 | Y98: =IFERROR(SUMIFS(OtherPersons!$Y:$Y,OtherPersons!$E:$E,Y$8,OtherPersons!$J:$J,$C98,OtherPersons!$V:$V,"E"),0) -> 0 | Z98: =IFERROR(SUMIFS(OtherPersons!$U:$U,OtherPersons!$E:$E,Z$8,OtherPersons!$J:$J,$C98,OtherPersons!$V:$V,"E"),0) -> 0 | AA98: =IFERROR(SUMIFS(OtherPersons!$Y:$Y,OtherPersons!$E:$E,AA$8,OtherPersons!$J:$J,$C98,OtherPersons!$V:$V,"E"),0) -> 0 | AB98: 0 | AC98: 0 | AD98: 0
C99: 0 | D99: =IFERROR(H99/H55,"") ->  | H99: =IFERROR(SUMIFS(OtherPersons!$U:$U,OtherPersons!$E:$E,H$8,OtherPersons!$J:$J,$C99,OtherPersons!$V:$V,"E"),0) -> 0 | I99: =IFERROR(SUMIFS(OtherPersons!$Y:$Y,OtherPersons!$E:$E,I$8,OtherPersons!$J:$J,$C99,OtherPersons!$V:$V,"E"),0) -> 0 | J99: =IFERROR(SUMIFS(OtherPersons!$U:$U,OtherPersons!$E:$E,J$8,OtherPersons!$J:$J,$C99,OtherPersons!$V:$V,"E"),0) -> 0 | K99: =IFERROR(SUMIFS(OtherPersons!$Y:$Y,OtherPersons!$E:$E,K$8,OtherPersons!$J:$J,$C99,OtherPersons!$V:$V,"E"),0) -> 0 | L99: =IFERROR(SUMIFS(OtherPersons!$U:$U,OtherPersons!$E:$E,L$8,OtherPersons!$J:$J,$C99,OtherPersons!$V:$V,"E"),0) -> 0 | M99: =IFERROR(SUMIFS(OtherPersons!$Y:$Y,OtherPersons!$E:$E,M$8,OtherPersons!$J:$J,$C99,OtherPersons!$V:$V,"E"),0) -> 0 | N99: =IFERROR(SUMIFS(OtherPersons!$U:$U,OtherPersons!$E:$E,N$8,OtherPersons!$J:$J,$C99,OtherPersons!$V:$V,"E"),0) -> 0 | O99: =IFERROR(SUMIFS(OtherPersons!$Y:$Y,OtherPersons!$E:$E,O$8,OtherPersons!$J:$J,$C99,OtherPersons!$V:$V,"E"),0) -> 0 | P99: =IFERROR(SUMIFS(OtherPersons!$U:$U,OtherPersons!$E:$E,P$8,OtherPersons!$J:$J,$C99,OtherPersons!$V:$V,"E"),0) -> 0 | Q99: =IFERROR(SUMIFS(OtherPersons!$Y:$Y,OtherPersons!$E:$E,Q$8,OtherPersons!$J:$J,$C99,OtherPersons!$V:$V,"E"),0) -> 0 | R99: =IFERROR(SUMIFS(OtherPersons!$U:$U,OtherPersons!$E:$E,R$8,OtherPersons!$J:$J,$C99,OtherPersons!$V:$V,"E"),0) -> 0 | S99: =IFERROR(SUMIFS(OtherPersons!$Y:$Y,OtherPersons!$E:$E,S$8,OtherPersons!$J:$J,$C99,OtherPersons!$V:$V,"E"),0) -> 0 | T99: =IFERROR(SUMIFS(OtherPersons!$U:$U,OtherPersons!$E:$E,T$8,OtherPersons!$J:$J,$C99,OtherPersons!$V:$V,"E"),0) -> 0 | U99: =IFERROR(SUMIFS(OtherPersons!$Y:$Y,OtherPersons!$E:$E,U$8,OtherPersons!$J:$J,$C99,OtherPersons!$V:$V,"E"),0) -> 0 | V99: =IFERROR(SUMIFS(OtherPersons!$U:$U,OtherPersons!$E:$E,V$8,OtherPersons!$J:$J,$C99,OtherPersons!$V:$V,"E"),0) -> 0 | W99: =IFERROR(SUMIFS(OtherPersons!$Y:$Y,OtherPersons!$E:$E,W$8,OtherPersons!$J:$J,$C99,OtherPersons!$V:$V,"E"),0) -> 0 | X99: =IFERROR(SUMIFS(OtherPersons!$U:$U,OtherPersons!$E:$E,X$8,OtherPersons!$J:$J,$C99,OtherPersons!$V:$V,"E"),0) -> 0 | Y99: =IFERROR(SUMIFS(OtherPersons!$Y:$Y,OtherPersons!$E:$E,Y$8,OtherPersons!$J:$J,$C99,OtherPersons!$V:$V,"E"),0) -> 0 | Z99: =IFERROR(SUMIFS(OtherPersons!$U:$U,OtherPersons!$E:$E,Z$8,OtherPersons!$J:$J,$C99,OtherPersons!$V:$V,"E"),0) -> 0 | AA99: =IFERROR(SUMIFS(OtherPersons!$Y:$Y,OtherPersons!$E:$E,AA$8,OtherPersons!$J:$J,$C99,OtherPersons!$V:$V,"E"),0) -> 0 | AB99: 0 | AC99: 0 | AD99: 0
C100: 0 | H100: =IFERROR(SUMIFS(OtherPersons!$U:$U,OtherPersons!$E:$E,H$8,OtherPersons!$J:$J,$C100,OtherPersons!$V:$V,"E"),0) -> 0 | I100: =IFERROR(SUMIFS(OtherPersons!$Y:$Y,OtherPersons!$E:$E,I$8,OtherPersons!$J:$J,$C100,OtherPersons!$V:$V,"E"),0) -> 0 | J100: =IFERROR(SUMIFS(OtherPersons!$U:$U,OtherPersons!$E:$E,J$8,OtherPersons!$J:$J,$C100,OtherPersons!$V:$V,"E"),0) -> 0 | K100: =IFERROR(SUMIFS(OtherPersons!$Y:$Y,OtherPersons!$E:$E,K$8,OtherPersons!$J:$J,$C100,OtherPersons!$V:$V,"E"),0) -> 0 | L100: =IFERROR(SUMIFS(OtherPersons!$U:$U,OtherPersons!$E:$E,L$8,OtherPersons!$J:$J,$C100,OtherPersons!$V:$V,"E"),0) -> 0 | M100: =IFERROR(SUMIFS(OtherPersons!$Y:$Y,OtherPersons!$E:$E,M$8,OtherPersons!$J:$J,$C100,OtherPersons!$V:$V,"E"),0) -> 0 | N100: =IFERROR(SUMIFS(OtherPersons!$U:$U,OtherPersons!$E:$E,N$8,OtherPersons!$J:$J,$C100,OtherPersons!$V:$V,"E"),0) -> 0 | O100: =IFERROR(SUMIFS(OtherPersons!$Y:$Y,OtherPersons!$E:$E,O$8,OtherPersons!$J:$J,$C100,OtherPersons!$V:$V,"E"),0) -> 0 | P100: =IFERROR(SUMIFS(OtherPersons!$U:$U,OtherPersons!$E:$E,P$8,OtherPersons!$J:$J,$C100,OtherPersons!$V:$V,"E"),0) -> 0 | Q100: =IFERROR(SUMIFS(OtherPersons!$Y:$Y,OtherPersons!$E:$E,Q$8,OtherPersons!$J:$J,$C100,OtherPersons!$V:$V,"E"),0) -> 0 | R100: =IFERROR(SUMIFS(OtherPersons!$U:$U,OtherPersons!$E:$E,R$8,OtherPersons!$J:$J,$C100,OtherPersons!$V:$V,"E"),0) -> 0 | S100: =IFERROR(SUMIFS(OtherPersons!$Y:$Y,OtherPersons!$E:$E,S$8,OtherPersons!$J:$J,$C100,OtherPersons!$V:$V,"E"),0) -> 0 | T100: =IFERROR(SUMIFS(OtherPersons!$U:$U,OtherPersons!$E:$E,T$8,OtherPersons!$J:$J,$C100,OtherPersons!$V:$V,"E"),0) -> 0 | U100: =IFERROR(SUMIFS(OtherPersons!$Y:$Y,OtherPersons!$E:$E,U$8,OtherPersons!$J:$J,$C100,OtherPersons!$V:$V,"E"),0) -> 0 | V100: =IFERROR(SUMIFS(OtherPersons!$U:$U,OtherPersons!$E:$E,V$8,OtherPersons!$J:$J,$C100,OtherPersons!$V:$V,"E"),0) -> 0 | W100: =IFERROR(SUMIFS(OtherPersons!$Y:$Y,OtherPersons!$E:$E,W$8,OtherPersons!$J:$J,$C100,OtherPersons!$V:$V,"E"),0) -> 0 | X100: =IFERROR(SUMIFS(OtherPersons!$U:$U,OtherPersons!$E:$E,X$8,OtherPersons!$J:$J,$C100,OtherPersons!$V:$V,"E"),0) -> 0 | Y100: =IFERROR(SUMIFS(OtherPersons!$Y:$Y,OtherPersons!$E:$E,Y$8,OtherPersons!$J:$J,$C100,OtherPersons!$V:$V,"E"),0) -> 0 | Z100: =IFERROR(SUMIFS(OtherPersons!$U:$U,OtherPersons!$E:$E,Z$8,OtherPersons!$J:$J,$C100,OtherPersons!$V:$V,"E"),0) -> 0 | AA100: =IFERROR(SUMIFS(OtherPersons!$Y:$Y,OtherPersons!$E:$E,AA$8,OtherPersons!$J:$J,$C100,OtherPersons!$V:$V,"E"),0) -> 0 | AB100: 0 | AC100: 0 | AD100: 0
C102: Subtotal: Salaries, Wages, and Benefits | H102: =H58+H60 -> 0 | I102: 0 | J102: 0 | K102: 0 | L102: 0 | M102: 0 | N102: 0 | O102: 0 | P102: 0 | Q102: 0 | R102: 0 | S102: 0 | T102: 0 | U102: 0 | V102: 0 | W102: 0 | X102: 0 | Y102: 0 | Z102: 0 | AA102: 0 | AB102: =SUM(H102+J102+L102+N102+P102+R102+T102+V102+X102+Z102) -> 0 | AC102: =SUM(I102+K102+M102+O102+Q102+S102+U102+W102+Y102+AA102) -> 0 | AD102: =SUM(AB102+AC102) -> 0
A104: D | C104: Equipment (List Item and $ amount for each item > $5k) | H104: =SUM(H105:H119) -> 0 | I104: 0 | J104: 0 | K104: 0 | L104: 0 | M104: 0 | N104: 0 | O104: 0 | P104: =SUM(P105:P119) -> 0 | Q104: 0 | R104: 0 | S104: 0 | T104: 0 | U104: 0 | V104: 0 | W104: 0 | X104: 0 | Y104: 0 | Z104: 0 | AA104: 0 | AB104: =SUM(H104+J104+L104+N104+P104+R104+T104+V104+X104+Z104) -> 0 | AC104: =SUM(I104+K104+M104+O104+Q104+S104+U104+W104+Y104+AA104) -> 0 | AD104: =SUM(AB104+AC104) -> 0
C105: =_xlfn.UNIQUE(INDIRECT("Equipment!M2:M"&COUNTA(Equipment!A:A))) -> 0 | H105: =IFERROR(SUMIFS(Equipment!$P:$P,Equipment!$A:$A,H$8,Equipment!$M:$M,$C105),"") -> 0 | I105: =IFERROR(SUMIFS(Equipment!$V:$V,Equipment!$A:$A,I$8,Equipment!$M:$M,$C105),"") -> 0 | J105: =IFERROR(SUMIFS(Equipment!$P:$P,Equipment!$A:$A,J$8,Equipment!$M:$M,$C105),"") -> 0 | K105: =IFERROR(SUMIFS(Equipment!$V:$V,Equipment!$A:$A,K$8,Equipment!$M:$M,$C105),"") -> 0 | L105: =IFERROR(SUMIFS(Equipment!$P:$P,Equipment!$A:$A,L$8,Equipment!$M:$M,$C105),"") -> 0 | M105: =IFERROR(SUMIFS(Equipment!$V:$V,Equipment!$A:$A,M$8,Equipment!$M:$M,$C105),"") -> 0 | N105: =IFERROR(SUMIFS(Equipment!$P:$P,Equipment!$A:$A,N$8,Equipment!$M:$M,$C105),"") -> 0 | O105: =IFERROR(SUMIFS(Equipment!$V:$V,Equipment!$A:$A,O$8,Equipment!$M:$M,$C105),"") -> 0 | P105: =IFERROR(SUMIFS(Equipment!$P:$P,Equipment!$A:$A,P$8,Equipment!$M:$M,$C105),"") -> 0 | Q105: =IFERROR(SUMIFS(Equipment!$V:$V,Equipment!$A:$A,Q$8,Equipment!$M:$M,$C105),"") -> 0 | R105: =IFERROR(SUMIFS(Equipment!$P:$P,Equipment!$A:$A,R$8,Equipment!$M:$M,$C105),"") -> 0 | S105: =IFERROR(SUMIFS(Equipment!$V:$V,Equipment!$A:$A,S$8,Equipment!$M:$M,$C105),"") -> 0 | T105: =IFERROR(SUMIFS(Equipment!$P:$P,Equipment!$A:$A,T$8,Equipment!$M:$M,$C105),"") -> 0 | U105: =IFERROR(SUMIFS(Equipment!$V:$V,Equipment!$A:$A,U$8,Equipment!$M:$M,$C105),"") -> 0 | V105: =IFERROR(SUMIFS(Equipment!$P:$P,Equipment!$A:$A,V$8,Equipment!$M:$M,$C105),"") -> 0 | W105: =IFERROR(SUMIFS(Equipment!$V:$V,Equipment!$A:$A,W$8,Equipment!$M:$M,$C105),"") -> 0 | X105: =IFERROR(SUMIFS(Equipment!$P:$P,Equipment!$A:$A,X$8,Equipment!$M:$M,$C105),"") -> 0 | Y105: =IFERROR(SUMIFS(Equipment!$V:$V,Equipment!$A:$A,Y$8,Equipment!$M:$M,$C105),"") -> 0 | Z105: =IFERROR(SUMIFS(Equipment!$P:$P,Equipment!$A:$A,Z$8,Equipment!$M:$M,$C105),"") -> 0 | AA105: =IFERROR(SUMIFS(Equipment!$V:$V,Equipment!$A:$A,AA$8,Equipment!$M:$M,$C105),"") -> 0 | AB105: 0 | AC105: 0 | AD105: =SUM(AB105+AC105) -> 0
H106: =IFERROR(SUMIFS(Equipment!$P:$P,Equipment!$A:$A,H$8,Equipment!$M:$M,$C106),"") -> 0 | I106: =IFERROR(SUMIFS(Equipment!$V:$V,Equipment!$A:$A,I$8,Equipment!$M:$M,$C106),"") -> 0 | J106: =IFERROR(SUMIFS(Equipment!$P:$P,Equipment!$A:$A,J$8,Equipment!$M:$M,$C106),"") -> 0 | K106: =IFERROR(SUMIFS(Equipment!$V:$V,Equipment!$A:$A,K$8,Equipment!$M:$M,$C106),"") -> 0 | L106: =IFERROR(SUMIFS(Equipment!$P:$P,Equipment!$A:$A,L$8,Equipment!$M:$M,$C106),"") -> 0 | M106: =IFERROR(SUMIFS(Equipment!$V:$V,Equipment!$A:$A,M$8,Equipment!$M:$M,$C106),"") -> 0 | N106: =IFERROR(SUMIFS(Equipment!$P:$P,Equipment!$A:$A,N$8,Equipment!$M:$M,$C106),"") -> 0 | O106: =IFERROR(SUMIFS(Equipment!$V:$V,Equipment!$A:$A,O$8,Equipment!$M:$M,$C106),"") -> 0 | P106: =IFERROR(SUMIFS(Equipment!$P:$P,Equipment!$A:$A,P$8,Equipment!$M:$M,$C106),"") -> 0 | Q106: =IFERROR(SUMIFS(Equipment!$V:$V,Equipment!$A:$A,Q$8,Equipment!$M:$M,$C106),"") -> 0 | R106: =IFERROR(SUMIFS(Equipment!$P:$P,Equipment!$A:$A,R$8,Equipment!$M:$M,$C106),"") -> 0 | S106: =IFERROR(SUMIFS(Equipment!$V:$V,Equipment!$A:$A,S$8,Equipment!$M:$M,$C106),"") -> 0 | T106: =IFERROR(SUMIFS(Equipment!$P:$P,Equipment!$A:$A,T$8,Equipment!$M:$M,$C106),"") -> 0 | U106: =IFERROR(SUMIFS(Equipment!$V:$V,Equipment!$A:$A,U$8,Equipment!$M:$M,$C106),"") -> 0 | V106: =IFERROR(SUMIFS(Equipment!$P:$P,Equipment!$A:$A,V$8,Equipment!$M:$M,$C106),"") -> 0 | W106: =IFERROR(SUMIFS(Equipment!$V:$V,Equipment!$A:$A,W$8,Equipment!$M:$M,$C106),"") -> 0 | X106: =IFERROR(SUMIFS(Equipment!$P:$P,Equipment!$A:$A,X$8,Equipment!$M:$M,$C106),"") -> 0 | Y106: =IFERROR(SUMIFS(Equipment!$V:$V,Equipment!$A:$A,Y$8,Equipment!$M:$M,$C106),"") -> 0 | Z106: =IFERROR(SUMIFS(Equipment!$P:$P,Equipment!$A:$A,Z$8,Equipment!$M:$M,$C106),"") -> 0 | AA106: =IFERROR(SUMIFS(Equipment!$V:$V,Equipment!$A:$A,AA$8,Equipment!$M:$M,$C106),"") -> 0 | AB106: 0 | AC106: 0 | AD106: =SUM(AB106+AC106) -> 0
H107: =IFERROR(SUMIFS(Equipment!$P:$P,Equipment!$A:$A,H$8,Equipment!$M:$M,$C107),"") -> 0 | I107: =IFERROR(SUMIFS(Equipment!$V:$V,Equipment!$A:$A,I$8,Equipment!$M:$M,$C107),"") -> 0 | J107: =IFERROR(SUMIFS(Equipment!$P:$P,Equipment!$A:$A,J$8,Equipment!$M:$M,$C107),"") -> 0 | K107: =IFERROR(SUMIFS(Equipment!$V:$V,Equipment!$A:$A,K$8,Equipment!$M:$M,$C107),"") -> 0 | L107: =IFERROR(SUMIFS(Equipment!$P:$P,Equipment!$A:$A,L$8,Equipment!$M:$M,$C107),"") -> 0 | M107: =IFERROR(SUMIFS(Equipment!$V:$V,Equipment!$A:$A,M$8,Equipment!$M:$M,$C107),"") -> 0 | N107: =IFERROR(SUMIFS(Equipment!$P:$P,Equipment!$A:$A,N$8,Equipment!$M:$M,$C107),"") -> 0 | O107: =IFERROR(SUMIFS(Equipment!$V:$V,Equipment!$A:$A,O$8,Equipment!$M:$M,$C107),"") -> 0 | P107: =IFERROR(SUMIFS(Equipment!$P:$P,Equipment!$A:$A,P$8,Equipment!$M:$M,$C107),"") -> 0 | Q107: =IFERROR(SUMIFS(Equipment!$V:$V,Equipment!$A:$A,Q$8,Equipment!$M:$M,$C107),"") -> 0 | R107: =IFERROR(SUMIFS(Equipment!$P:$P,Equipment!$A:$A,R$8,Equipment!$M:$M,$C107),"") -> 0 | S107: =IFERROR(SUMIFS(Equipment!$V:$V,Equipment!$A:$A,S$8,Equipment!$M:$M,$C107),"") -> 0 | T107: =IFERROR(SUMIFS(Equipment!$P:$P,Equipment!$A:$A,T$8,Equipment!$M:$M,$C107),"") -> 0 | U107: =IFERROR(SUMIFS(Equipment!$V:$V,Equipment!$A:$A,U$8,Equipment!$M:$M,$C107),"") -> 0 | V107: =IFERROR(SUMIFS(Equipment!$P:$P,Equipment!$A:$A,V$8,Equipment!$M:$M,$C107),"") -> 0 | W107: =IFERROR(SUMIFS(Equipment!$V:$V,Equipment!$A:$A,W$8,Equipment!$M:$M,$C107),"") -> 0 | X107: =IFERROR(SUMIFS(Equipment!$P:$P,Equipment!$A:$A,X$8,Equipment!$M:$M,$C107),"") -> 0 | Y107: =IFERROR(SUMIFS(Equipment!$V:$V,Equipment!$A:$A,Y$8,Equipment!$M:$M,$C107),"") -> 0 | Z107: =IFERROR(SUMIFS(Equipment!$P:$P,Equipment!$A:$A,Z$8,Equipment!$M:$M,$C107),"") -> 0 | AA107: =IFERROR(SUMIFS(Equipment!$V:$V,Equipment!$A:$A,AA$8,Equipment!$M:$M,$C107),"") -> 0 | AB107: 0 | AC107: 0 | AD107: 0
H108: =IFERROR(SUMIFS(Equipment!$P:$P,Equipment!$A:$A,H$8,Equipment!$M:$M,$C108),"") -> 0 | I108: =IFERROR(SUMIFS(Equipment!$V:$V,Equipment!$A:$A,I$8,Equipment!$M:$M,$C108),"") -> 0 | J108: =IFERROR(SUMIFS(Equipment!$P:$P,Equipment!$A:$A,J$8,Equipment!$M:$M,$C108),"") -> 0 | K108: =IFERROR(SUMIFS(Equipment!$V:$V,Equipment!$A:$A,K$8,Equipment!$M:$M,$C108),"") -> 0 | L108: =IFERROR(SUMIFS(Equipment!$P:$P,Equipment!$A:$A,L$8,Equipment!$M:$M,$C108),"") -> 0 | M108: =IFERROR(SUMIFS(Equipment!$V:$V,Equipment!$A:$A,M$8,Equipment!$M:$M,$C108),"") -> 0 | N108: =IFERROR(SUMIFS(Equipment!$P:$P,Equipment!$A:$A,N$8,Equipment!$M:$M,$C108),"") -> 0 | O108: =IFERROR(SUMIFS(Equipment!$V:$V,Equipment!$A:$A,O$8,Equipment!$M:$M,$C108),"") -> 0 | P108: =IFERROR(SUMIFS(Equipment!$P:$P,Equipment!$A:$A,P$8,Equipment!$M:$M,$C108),"") -> 0 | Q108: =IFERROR(SUMIFS(Equipment!$V:$V,Equipment!$A:$A,Q$8,Equipment!$M:$M,$C108),"") -> 0 | R108: =IFERROR(SUMIFS(Equipment!$P:$P,Equipment!$A:$A,R$8,Equipment!$M:$M,$C108),"") -> 0 | S108: =IFERROR(SUMIFS(Equipment!$V:$V,Equipment!$A:$A,S$8,Equipment!$M:$M,$C108),"") -> 0 | T108: =IFERROR(SUMIFS(Equipment!$P:$P,Equipment!$A:$A,T$8,Equipment!$M:$M,$C108),"") -> 0 | U108: =IFERROR(SUMIFS(Equipment!$V:$V,Equipment!$A:$A,U$8,Equipment!$M:$M,$C108),"") -> 0 | V108: =IFERROR(SUMIFS(Equipment!$P:$P,Equipment!$A:$A,V$8,Equipment!$M:$M,$C108),"") -> 0 | W108: =IFERROR(SUMIFS(Equipment!$V:$V,Equipment!$A:$A,W$8,Equipment!$M:$M,$C108),"") -> 0 | X108: =IFERROR(SUMIFS(Equipment!$P:$P,Equipment!$A:$A,X$8,Equipment!$M:$M,$C108),"") -> 0 | Y108: =IFERROR(SUMIFS(Equipment!$V:$V,Equipment!$A:$A,Y$8,Equipment!$M:$M,$C108),"") -> 0 | Z108: =IFERROR(SUMIFS(Equipment!$P:$P,Equipment!$A:$A,Z$8,Equipment!$M:$M,$C108),"") -> 0 | AA108: =IFERROR(SUMIFS(Equipment!$V:$V,Equipment!$A:$A,AA$8,Equipment!$M:$M,$C108),"") -> 0 | AB108: 0 | AC108: 0 | AD108: 0
H109: =IFERROR(SUMIFS(Equipment!$P:$P,Equipment!$A:$A,H$8,Equipment!$M:$M,$C109),"") -> 0 | I109: =IFERROR(SUMIFS(Equipment!$V:$V,Equipment!$A:$A,I$8,Equipment!$M:$M,$C109),"") -> 0 | J109: =IFERROR(SUMIFS(Equipment!$P:$P,Equipment!$A:$A,J$8,Equipment!$M:$M,$C109),"") -> 0 | K109: =IFERROR(SUMIFS(Equipment!$V:$V,Equipment!$A:$A,K$8,Equipment!$M:$M,$C109),"") -> 0 | L109: =IFERROR(SUMIFS(Equipment!$P:$P,Equipment!$A:$A,L$8,Equipment!$M:$M,$C109),"") -> 0 | M109: =IFERROR(SUMIFS(Equipment!$V:$V,Equipment!$A:$A,M$8,Equipment!$M:$M,$C109),"") -> 0 | N109: =IFERROR(SUMIFS(Equipment!$P:$P,Equipment!$A:$A,N$8,Equipment!$M:$M,$C109),"") -> 0 | O109: =IFERROR(SUMIFS(Equipment!$V:$V,Equipment!$A:$A,O$8,Equipment!$M:$M,$C109),"") -> 0 | P109: =IFERROR(SUMIFS(Equipment!$P:$P,Equipment!$A:$A,P$8,Equipment!$M:$M,$C109),"") -> 0 | Q109: =IFERROR(SUMIFS(Equipment!$V:$V,Equipment!$A:$A,Q$8,Equipment!$M:$M,$C109),"") -> 0 | R109: =IFERROR(SUMIFS(Equipment!$P:$P,Equipment!$A:$A,R$8,Equipment!$M:$M,$C109),"") -> 0 | S109: =IFERROR(SUMIFS(Equipment!$V:$V,Equipment!$A:$A,S$8,Equipment!$M:$M,$C109),"") -> 0 | T109: =IFERROR(SUMIFS(Equipment!$P:$P,Equipment!$A:$A,T$8,Equipment!$M:$M,$C109),"") -> 0 | U109: =IFERROR(SUMIFS(Equipment!$V:$V,Equipment!$A:$A,U$8,Equipment!$M:$M,$C109),"") -> 0 | V109: =IFERROR(SUMIFS(Equipment!$P:$P,Equipment!$A:$A,V$8,Equipment!$M:$M,$C109),"") -> 0 | W109: =IFERROR(SUMIFS(Equipment!$V:$V,Equipment!$A:$A,W$8,Equipment!$M:$M,$C109),"") -> 0 | X109: =IFERROR(SUMIFS(Equipment!$P:$P,Equipment!$A:$A,X$8,Equipment!$M:$M,$C109),"") -> 0 | Y109: =IFERROR(SUMIFS(Equipment!$V:$V,Equipment!$A:$A,Y$8,Equipment!$M:$M,$C109),"") -> 0 | Z109: =IFERROR(SUMIFS(Equipment!$P:$P,Equipment!$A:$A,Z$8,Equipment!$M:$M,$C109),"") -> 0 | AA109: =IFERROR(SUMIFS(Equipment!$V:$V,Equipment!$A:$A,AA$8,Equipment!$M:$M,$C109),"") -> 0 | AB109: 0 | AC109: 0 | AD109: 0
H110: =IFERROR(SUMIFS(Equipment!$P:$P,Equipment!$A:$A,H$8,Equipment!$M:$M,$C110),"") -> 0 | I110: =IFERROR(SUMIFS(Equipment!$V:$V,Equipment!$A:$A,I$8,Equipment!$M:$M,$C110),"") -> 0 | J110: =IFERROR(SUMIFS(Equipment!$P:$P,Equipment!$A:$A,J$8,Equipment!$M:$M,$C110),"") -> 0 | K110: =IFERROR(SUMIFS(Equipment!$V:$V,Equipment!$A:$A,K$8,Equipment!$M:$M,$C110),"") -> 0 | L110: =IFERROR(SUMIFS(Equipment!$P:$P,Equipment!$A:$A,L$8,Equipment!$M:$M,$C110),"") -> 0 | M110: =IFERROR(SUMIFS(Equipment!$V:$V,Equipment!$A:$A,M$8,Equipment!$M:$M,$C110),"") -> 0 | N110: =IFERROR(SUMIFS(Equipment!$P:$P,Equipment!$A:$A,N$8,Equipment!$M:$M,$C110),"") -> 0 | O110: =IFERROR(SUMIFS(Equipment!$V:$V,Equipment!$A:$A,O$8,Equipment!$M:$M,$C110),"") -> 0 | P110: =IFERROR(SUMIFS(Equipment!$P:$P,Equipment!$A:$A,P$8,Equipment!$M:$M,$C110),"") -> 0 | Q110: =IFERROR(SUMIFS(Equipment!$V:$V,Equipment!$A:$A,Q$8,Equipment!$M:$M,$C110),"") -> 0 | R110: =IFERROR(SUMIFS(Equipment!$P:$P,Equipment!$A:$A,R$8,Equipment!$M:$M,$C110),"") -> 0 | S110: =IFERROR(SUMIFS(Equipment!$V:$V,Equipment!$A:$A,S$8,Equipment!$M:$M,$C110),"") -> 0 | T110: =IFERROR(SUMIFS(Equipment!$P:$P,Equipment!$A:$A,T$8,Equipment!$M:$M,$C110),"") -> 0 | U110: =IFERROR(SUMIFS(Equipment!$V:$V,Equipment!$A:$A,U$8,Equipment!$M:$M,$C110),"") -> 0 | V110: =IFERROR(SUMIFS(Equipment!$P:$P,Equipment!$A:$A,V$8,Equipment!$M:$M,$C110),"") -> 0 | W110: =IFERROR(SUMIFS(Equipment!$V:$V,Equipment!$A:$A,W$8,Equipment!$M:$M,$C110),"") -> 0 | X110: =IFERROR(SUMIFS(Equipment!$P:$P,Equipment!$A:$A,X$8,Equipment!$M:$M,$C110),"") -> 0 | Y110: =IFERROR(SUMIFS(Equipment!$V:$V,Equipment!$A:$A,Y$8,Equipment!$M:$M,$C110),"") -> 0 | Z110: =IFERROR(SUMIFS(Equipment!$P:$P,Equipment!$A:$A,Z$8,Equipment!$M:$M,$C110),"") -> 0 | AA110: =IFERROR(SUMIFS(Equipment!$V:$V,Equipment!$A:$A,AA$8,Equipment!$M:$M,$C110),"") -> 0 | AB110: 0 | AC110: 0 | AD110: 0
H111: =IFERROR(SUMIFS(Equipment!$P:$P,Equipment!$A:$A,H$8,Equipment!$M:$M,$C111),"") -> 0 | I111: =IFERROR(SUMIFS(Equipment!$V:$V,Equipment!$A:$A,I$8,Equipment!$M:$M,$C111),"") -> 0 | J111: =IFERROR(SUMIFS(Equipment!$P:$P,Equipment!$A:$A,J$8,Equipment!$M:$M,$C111),"") -> 0 | K111: =IFERROR(SUMIFS(Equipment!$V:$V,Equipment!$A:$A,K$8,Equipment!$M:$M,$C111),"") -> 0 | L111: =IFERROR(SUMIFS(Equipment!$P:$P,Equipment!$A:$A,L$8,Equipment!$M:$M,$C111),"") -> 0 | M111: =IFERROR(SUMIFS(Equipment!$V:$V,Equipment!$A:$A,M$8,Equipment!$M:$M,$C111),"") -> 0 | N111: =IFERROR(SUMIFS(Equipment!$P:$P,Equipment!$A:$A,N$8,Equipment!$M:$M,$C111),"") -> 0 | O111: =IFERROR(SUMIFS(Equipment!$V:$V,Equipment!$A:$A,O$8,Equipment!$M:$M,$C111),"") -> 0 | P111: =IFERROR(SUMIFS(Equipment!$P:$P,Equipment!$A:$A,P$8,Equipment!$M:$M,$C111),"") -> 0 | Q111: =IFERROR(SUMIFS(Equipment!$V:$V,Equipment!$A:$A,Q$8,Equipment!$M:$M,$C111),"") -> 0 | R111: =IFERROR(SUMIFS(Equipment!$P:$P,Equipment!$A:$A,R$8,Equipment!$M:$M,$C111),"") -> 0 | S111: =IFERROR(SUMIFS(Equipment!$V:$V,Equipment!$A:$A,S$8,Equipment!$M:$M,$C111),"") -> 0 | T111: =IFERROR(SUMIFS(Equipment!$P:$P,Equipment!$A:$A,T$8,Equipment!$M:$M,$C111),"") -> 0 | U111: =IFERROR(SUMIFS(Equipment!$V:$V,Equipment!$A:$A,U$8,Equipment!$M:$M,$C111),"") -> 0 | V111: =IFERROR(SUMIFS(Equipment!$P:$P,Equipment!$A:$A,V$8,Equipment!$M:$M,$C111),"") -> 0 | W111: =IFERROR(SUMIFS(Equipment!$V:$V,Equipment!$A:$A,W$8,Equipment!$M:$M,$C111),"") -> 0 | X111: =IFERROR(SUMIFS(Equipment!$P:$P,Equipment!$A:$A,X$8,Equipment!$M:$M,$C111),"") -> 0 | Y111: =IFERROR(SUMIFS(Equipment!$V:$V,Equipment!$A:$A,Y$8,Equipment!$M:$M,$C111),"") -> 0 | Z111: =IFERROR(SUMIFS(Equipment!$P:$P,Equipment!$A:$A,Z$8,Equipment!$M:$M,$C111),"") -> 0 | AA111: =IFERROR(SUMIFS(Equipment!$V:$V,Equipment!$A:$A,AA$8,Equipment!$M:$M,$C111),"") -> 0 | AB111: 0 | AC111: 0 | AD111: 0
H112: =IFERROR(SUMIFS(Equipment!$P:$P,Equipment!$A:$A,H$8,Equipment!$M:$M,$C112),"") -> 0 | I112: =IFERROR(SUMIFS(Equipment!$V:$V,Equipment!$A:$A,I$8,Equipment!$M:$M,$C112),"") -> 0 | J112: =IFERROR(SUMIFS(Equipment!$P:$P,Equipment!$A:$A,J$8,Equipment!$M:$M,$C112),"") -> 0 | K112: =IFERROR(SUMIFS(Equipment!$V:$V,Equipment!$A:$A,K$8,Equipment!$M:$M,$C112),"") -> 0 | L112: =IFERROR(SUMIFS(Equipment!$P:$P,Equipment!$A:$A,L$8,Equipment!$M:$M,$C112),"") -> 0 | M112: =IFERROR(SUMIFS(Equipment!$V:$V,Equipment!$A:$A,M$8,Equipment!$M:$M,$C112),"") -> 0 | N112: =IFERROR(SUMIFS(Equipment!$P:$P,Equipment!$A:$A,N$8,Equipment!$M:$M,$C112),"") -> 0 | O112: =IFERROR(SUMIFS(Equipment!$V:$V,Equipment!$A:$A,O$8,Equipment!$M:$M,$C112),"") -> 0 | P112: =IFERROR(SUMIFS(Equipment!$P:$P,Equipment!$A:$A,P$8,Equipment!$M:$M,$C112),"") -> 0 | Q112: =IFERROR(SUMIFS(Equipment!$V:$V,Equipment!$A:$A,Q$8,Equipment!$M:$M,$C112),"") -> 0 | R112: =IFERROR(SUMIFS(Equipment!$P:$P,Equipment!$A:$A,R$8,Equipment!$M:$M,$C112),"") -> 0 | S112: =IFERROR(SUMIFS(Equipment!$V:$V,Equipment!$A:$A,S$8,Equipment!$M:$M,$C112),"") -> 0 | T112: =IFERROR(SUMIFS(Equipment!$P:$P,Equipment!$A:$A,T$8,Equipment!$M:$M,$C112),"") -> 0 | U112: =IFERROR(SUMIFS(Equipment!$V:$V,Equipment!$A:$A,U$8,Equipment!$M:$M,$C112),"") -> 0 | V112: =IFERROR(SUMIFS(Equipment!$P:$P,Equipment!$A:$A,V$8,Equipment!$M:$M,$C112),"") -> 0 | W112: =IFERROR(SUMIFS(Equipment!$V:$V,Equipment!$A:$A,W$8,Equipment!$M:$M,$C112),"") -> 0 | X112: =IFERROR(SUMIFS(Equipment!$P:$P,Equipment!$A:$A,X$8,Equipment!$M:$M,$C112),"") -> 0 | Y112: =IFERROR(SUMIFS(Equipment!$V:$V,Equipment!$A:$A,Y$8,Equipment!$M:$M,$C112),"") -> 0 | Z112: =IFERROR(SUMIFS(Equipment!$P:$P,Equipment!$A:$A,Z$8,Equipment!$M:$M,$C112),"") -> 0 | AA112: =IFERROR(SUMIFS(Equipment!$V:$V,Equipment!$A:$A,AA$8,Equipment!$M:$M,$C112),"") -> 0 | AB112: 0 | AC112: 0 | AD112: 0
H113: =IFERROR(SUMIFS(Equipment!$P:$P,Equipment!$A:$A,H$8,Equipment!$M:$M,$C113),"") -> 0 | I113: =IFERROR(SUMIFS(Equipment!$V:$V,Equipment!$A:$A,I$8,Equipment!$M:$M,$C113),"") -> 0 | J113: =IFERROR(SUMIFS(Equipment!$P:$P,Equipment!$A:$A,J$8,Equipment!$M:$M,$C113),"") -> 0 | K113: =IFERROR(SUMIFS(Equipment!$V:$V,Equipment!$A:$A,K$8,Equipment!$M:$M,$C113),"") -> 0 | L113: =IFERROR(SUMIFS(Equipment!$P:$P,Equipment!$A:$A,L$8,Equipment!$M:$M,$C113),"") -> 0 | M113: =IFERROR(SUMIFS(Equipment!$V:$V,Equipment!$A:$A,M$8,Equipment!$M:$M,$C113),"") -> 0 | N113: =IFERROR(SUMIFS(Equipment!$P:$P,Equipment!$A:$A,N$8,Equipment!$M:$M,$C113),"") -> 0 | O113: =IFERROR(SUMIFS(Equipment!$V:$V,Equipment!$A:$A,O$8,Equipment!$M:$M,$C113),"") -> 0 | P113: =IFERROR(SUMIFS(Equipment!$P:$P,Equipment!$A:$A,P$8,Equipment!$M:$M,$C113),"") -> 0 | Q113: =IFERROR(SUMIFS(Equipment!$V:$V,Equipment!$A:$A,Q$8,Equipment!$M:$M,$C113),"") -> 0 | R113: =IFERROR(SUMIFS(Equipment!$P:$P,Equipment!$A:$A,R$8,Equipment!$M:$M,$C113),"") -> 0 | S113: =IFERROR(SUMIFS(Equipment!$V:$V,Equipment!$A:$A,S$8,Equipment!$M:$M,$C113),"") -> 0 | T113: =IFERROR(SUMIFS(Equipment!$P:$P,Equipment!$A:$A,T$8,Equipment!$M:$M,$C113),"") -> 0 | U113: =IFERROR(SUMIFS(Equipment!$V:$V,Equipment!$A:$A,U$8,Equipment!$M:$M,$C113),"") -> 0 | V113: =IFERROR(SUMIFS(Equipment!$P:$P,Equipment!$A:$A,V$8,Equipment!$M:$M,$C113),"") -> 0 | W113: =IFERROR(SUMIFS(Equipment!$V:$V,Equipment!$A:$A,W$8,Equipment!$M:$M,$C113),"") -> 0 | X113: =IFERROR(SUMIFS(Equipment!$P:$P,Equipment!$A:$A,X$8,Equipment!$M:$M,$C113),"") -> 0 | Y113: =IFERROR(SUMIFS(Equipment!$V:$V,Equipment!$A:$A,Y$8,Equipment!$M:$M,$C113),"") -> 0 | Z113: =IFERROR(SUMIFS(Equipment!$P:$P,Equipment!$A:$A,Z$8,Equipment!$M:$M,$C113),"") -> 0 | AA113: =IFERROR(SUMIFS(Equipment!$V:$V,Equipment!$A:$A,AA$8,Equipment!$M:$M,$C113),"") -> 0 | AB113: 0 | AC113: 0 | AD113: 0
H114: =IFERROR(SUMIFS(Equipment!$P:$P,Equipment!$A:$A,H$8,Equipment!$M:$M,$C114),"") -> 0 | I114: =IFERROR(SUMIFS(Equipment!$V:$V,Equipment!$A:$A,I$8,Equipment!$M:$M,$C114),"") -> 0 | J114: =IFERROR(SUMIFS(Equipment!$P:$P,Equipment!$A:$A,J$8,Equipment!$M:$M,$C114),"") -> 0 | K114: =IFERROR(SUMIFS(Equipment!$V:$V,Equipment!$A:$A,K$8,Equipment!$M:$M,$C114),"") -> 0 | L114: =IFERROR(SUMIFS(Equipment!$P:$P,Equipment!$A:$A,L$8,Equipment!$M:$M,$C114),"") -> 0 | M114: =IFERROR(SUMIFS(Equipment!$V:$V,Equipment!$A:$A,M$8,Equipment!$M:$M,$C114),"") -> 0 | N114: =IFERROR(SUMIFS(Equipment!$P:$P,Equipment!$A:$A,N$8,Equipment!$M:$M,$C114),"") -> 0 | O114: =IFERROR(SUMIFS(Equipment!$V:$V,Equipment!$A:$A,O$8,Equipment!$M:$M,$C114),"") -> 0 | P114: =IFERROR(SUMIFS(Equipment!$P:$P,Equipment!$A:$A,P$8,Equipment!$M:$M,$C114),"") -> 0 | Q114: =IFERROR(SUMIFS(Equipment!$V:$V,Equipment!$A:$A,Q$8,Equipment!$M:$M,$C114),"") -> 0 | R114: =IFERROR(SUMIFS(Equipment!$P:$P,Equipment!$A:$A,R$8,Equipment!$M:$M,$C114),"") -> 0 | S114: =IFERROR(SUMIFS(Equipment!$V:$V,Equipment!$A:$A,S$8,Equipment!$M:$M,$C114),"") -> 0 | T114: =IFERROR(SUMIFS(Equipment!$P:$P,Equipment!$A:$A,T$8,Equipment!$M:$M,$C114),"") -> 0 | U114: =IFERROR(SUMIFS(Equipment!$V:$V,Equipment!$A:$A,U$8,Equipment!$M:$M,$C114),"") -> 0 | V114: =IFERROR(SUMIFS(Equipment!$P:$P,Equipment!$A:$A,V$8,Equipment!$M:$M,$C114),"") -> 0 | W114: =IFERROR(SUMIFS(Equipment!$V:$V,Equipment!$A:$A,W$8,Equipment!$M:$M,$C114),"") -> 0 | X114: =IFERROR(SUMIFS(Equipment!$P:$P,Equipment!$A:$A,X$8,Equipment!$M:$M,$C114),"") -> 0 | Y114: =IFERROR(SUMIFS(Equipment!$V:$V,Equipment!$A:$A,Y$8,Equipment!$M:$M,$C114),"") -> 0 | Z114: =IFERROR(SUMIFS(Equipment!$P:$P,Equipment!$A:$A,Z$8,Equipment!$M:$M,$C114),"") -> 0 | AA114: =IFERROR(SUMIFS(Equipment!$V:$V,Equipment!$A:$A,AA$8,Equipment!$M:$M,$C114),"") -> 0 | AB114: 0 | AC114: 0 | AD114: 0
H115: =IFERROR(SUMIFS(Equipment!$P:$P,Equipment!$A:$A,H$8,Equipment!$M:$M,$C115),"") -> 0 | I115: =IFERROR(SUMIFS(Equipment!$V:$V,Equipment!$A:$A,I$8,Equipment!$M:$M,$C115),"") -> 0 | J115: =IFERROR(SUMIFS(Equipment!$P:$P,Equipment!$A:$A,J$8,Equipment!$M:$M,$C115),"") -> 0 | K115: =IFERROR(SUMIFS(Equipment!$V:$V,Equipment!$A:$A,K$8,Equipment!$M:$M,$C115),"") -> 0 | L115: =IFERROR(SUMIFS(Equipment!$P:$P,Equipment!$A:$A,L$8,Equipment!$M:$M,$C115),"") -> 0 | M115: =IFERROR(SUMIFS(Equipment!$V:$V,Equipment!$A:$A,M$8,Equipment!$M:$M,$C115),"") -> 0 | N115: =IFERROR(SUMIFS(Equipment!$P:$P,Equipment!$A:$A,N$8,Equipment!$M:$M,$C115),"") -> 0 | O115: =IFERROR(SUMIFS(Equipment!$V:$V,Equipment!$A:$A,O$8,Equipment!$M:$M,$C115),"") -> 0 | P115: =IFERROR(SUMIFS(Equipment!$P:$P,Equipment!$A:$A,P$8,Equipment!$M:$M,$C115),"") -> 0 | Q115: =IFERROR(SUMIFS(Equipment!$V:$V,Equipment!$A:$A,Q$8,Equipment!$M:$M,$C115),"") -> 0 | R115: =IFERROR(SUMIFS(Equipment!$P:$P,Equipment!$A:$A,R$8,Equipment!$M:$M,$C115),"") -> 0 | S115: =IFERROR(SUMIFS(Equipment!$V:$V,Equipment!$A:$A,S$8,Equipment!$M:$M,$C115),"") -> 0 | T115: =IFERROR(SUMIFS(Equipment!$P:$P,Equipment!$A:$A,T$8,Equipment!$M:$M,$C115),"") -> 0 | U115: =IFERROR(SUMIFS(Equipment!$V:$V,Equipment!$A:$A,U$8,Equipment!$M:$M,$C115),"") -> 0 | V115: =IFERROR(SUMIFS(Equipment!$P:$P,Equipment!$A:$A,V$8,Equipment!$M:$M,$C115),"") -> 0 | W115: =IFERROR(SUMIFS(Equipment!$V:$V,Equipment!$A:$A,W$8,Equipment!$M:$M,$C115),"") -> 0 | X115: =IFERROR(SUMIFS(Equipment!$P:$P,Equipment!$A:$A,X$8,Equipment!$M:$M,$C115),"") -> 0 | Y115: =IFERROR(SUMIFS(Equipment!$V:$V,Equipment!$A:$A,Y$8,Equipment!$M:$M,$C115),"") -> 0 | Z115: =IFERROR(SUMIFS(Equipment!$P:$P,Equipment!$A:$A,Z$8,Equipment!$M:$M,$C115),"") -> 0 | AA115: =IFERROR(SUMIFS(Equipment!$V:$V,Equipment!$A:$A,AA$8,Equipment!$M:$M,$C115),"") -> 0 | AB115: 0 | AC115: 0 | AD115: 0
H116: =IFERROR(SUMIFS(Equipment!$P:$P,Equipment!$A:$A,H$8,Equipment!$M:$M,$C116),"") -> 0 | I116: =IFERROR(SUMIFS(Equipment!$V:$V,Equipment!$A:$A,I$8,Equipment!$M:$M,$C116),"") -> 0 | J116: =IFERROR(SUMIFS(Equipment!$P:$P,Equipment!$A:$A,J$8,Equipment!$M:$M,$C116),"") -> 0 | K116: =IFERROR(SUMIFS(Equipment!$V:$V,Equipment!$A:$A,K$8,Equipment!$M:$M,$C116),"") -> 0 | L116: =IFERROR(SUMIFS(Equipment!$P:$P,Equipment!$A:$A,L$8,Equipment!$M:$M,$C116),"") -> 0 | M116: =IFERROR(SUMIFS(Equipment!$V:$V,Equipment!$A:$A,M$8,Equipment!$M:$M,$C116),"") -> 0 | N116: =IFERROR(SUMIFS(Equipment!$P:$P,Equipment!$A:$A,N$8,Equipment!$M:$M,$C116),"") -> 0 | O116: =IFERROR(SUMIFS(Equipment!$V:$V,Equipment!$A:$A,O$8,Equipment!$M:$M,$C116),"") -> 0 | P116: =IFERROR(SUMIFS(Equipment!$P:$P,Equipment!$A:$A,P$8,Equipment!$M:$M,$C116),"") -> 0 | Q116: =IFERROR(SUMIFS(Equipment!$V:$V,Equipment!$A:$A,Q$8,Equipment!$M:$M,$C116),"") -> 0 | R116: =IFERROR(SUMIFS(Equipment!$P:$P,Equipment!$A:$A,R$8,Equipment!$M:$M,$C116),"") -> 0 | S116: =IFERROR(SUMIFS(Equipment!$V:$V,Equipment!$A:$A,S$8,Equipment!$M:$M,$C116),"") -> 0 | T116: =IFERROR(SUMIFS(Equipment!$P:$P,Equipment!$A:$A,T$8,Equipment!$M:$M,$C116),"") -> 0 | U116: =IFERROR(SUMIFS(Equipment!$V:$V,Equipment!$A:$A,U$8,Equipment!$M:$M,$C116),"") -> 0 | V116: =IFERROR(SUMIFS(Equipment!$P:$P,Equipment!$A:$A,V$8,Equipment!$M:$M,$C116),"") -> 0 | W116: =IFERROR(SUMIFS(Equipment!$V:$V,Equipment!$A:$A,W$8,Equipment!$M:$M,$C116),"") -> 0 | X116: =IFERROR(SUMIFS(Equipment!$P:$P,Equipment!$A:$A,X$8,Equipment!$M:$M,$C116),"") -> 0 | Y116: =IFERROR(SUMIFS(Equipment!$V:$V,Equipment!$A:$A,Y$8,Equipment!$M:$M,$C116),"") -> 0 | Z116: =IFERROR(SUMIFS(Equipment!$P:$P,Equipment!$A:$A,Z$8,Equipment!$M:$M,$C116),"") -> 0 | AA116: =IFERROR(SUMIFS(Equipment!$V:$V,Equipment!$A:$A,AA$8,Equipment!$M:$M,$C116),"") -> 0 | AB116: 0 | AC116: 0 | AD116: 0
H117: =IFERROR(SUMIFS(Equipment!$P:$P,Equipment!$A:$A,H$8,Equipment!$M:$M,$C117),"") -> 0 | I117: =IFERROR(SUMIFS(Equipment!$V:$V,Equipment!$A:$A,I$8,Equipment!$M:$M,$C117),"") -> 0 | J117: =IFERROR(SUMIFS(Equipment!$P:$P,Equipment!$A:$A,J$8,Equipment!$M:$M,$C117),"") -> 0 | K117: =IFERROR(SUMIFS(Equipment!$V:$V,Equipment!$A:$A,K$8,Equipment!$M:$M,$C117),"") -> 0 | L117: =IFERROR(SUMIFS(Equipment!$P:$P,Equipment!$A:$A,L$8,Equipment!$M:$M,$C117),"") -> 0 | M117: =IFERROR(SUMIFS(Equipment!$V:$V,Equipment!$A:$A,M$8,Equipment!$M:$M,$C117),"") -> 0 | N117: =IFERROR(SUMIFS(Equipment!$P:$P,Equipment!$A:$A,N$8,Equipment!$M:$M,$C117),"") -> 0 | O117: =IFERROR(SUMIFS(Equipment!$V:$V,Equipment!$A:$A,O$8,Equipment!$M:$M,$C117),"") -> 0 | P117: =IFERROR(SUMIFS(Equipment!$P:$P,Equipment!$A:$A,P$8,Equipment!$M:$M,$C117),"") -> 0 | Q117: =IFERROR(SUMIFS(Equipment!$V:$V,Equipment!$A:$A,Q$8,Equipment!$M:$M,$C117),"") -> 0 | R117: =IFERROR(SUMIFS(Equipment!$P:$P,Equipment!$A:$A,R$8,Equipment!$M:$M,$C117),"") -> 0 | S117: =IFERROR(SUMIFS(Equipment!$V:$V,Equipment!$A:$A,S$8,Equipment!$M:$M,$C117),"") -> 0 | T117: =IFERROR(SUMIFS(Equipment!$P:$P,Equipment!$A:$A,T$8,Equipment!$M:$M,$C117),"") -> 0 | U117: =IFERROR(SUMIFS(Equipment!$V:$V,Equipment!$A:$A,U$8,Equipment!$M:$M,$C117),"") -> 0 | V117: =IFERROR(SUMIFS(Equipment!$P:$P,Equipment!$A:$A,V$8,Equipment!$M:$M,$C117),"") -> 0 | W117: =IFERROR(SUMIFS(Equipment!$V:$V,Equipment!$A:$A,W$8,Equipment!$M:$M,$C117),"") -> 0 | X117: =IFERROR(SUMIFS(Equipment!$P:$P,Equipment!$A:$A,X$8,Equipment!$M:$M,$C117),"") -> 0 | Y117: =IFERROR(SUMIFS(Equipment!$V:$V,Equipment!$A:$A,Y$8,Equipment!$M:$M,$C117),"") -> 0 | Z117: =IFERROR(SUMIFS(Equipment!$P:$P,Equipment!$A:$A,Z$8,Equipment!$M:$M,$C117),"") -> 0 | AA117: =IFERROR(SUMIFS(Equipment!$V:$V,Equipment!$A:$A,AA$8,Equipment!$M:$M,$C117),"") -> 0 | AB117: 0 | AC117: 0 | AD117: 0
H118: =IFERROR(SUMIFS(Equipment!$P:$P,Equipment!$A:$A,H$8,Equipment!$M:$M,$C118),"") -> 0 | I118: =IFERROR(SUMIFS(Equipment!$V:$V,Equipment!$A:$A,I$8,Equipment!$M:$M,$C118),"") -> 0 | J118: =IFERROR(SUMIFS(Equipment!$P:$P,Equipment!$A:$A,J$8,Equipment!$M:$M,$C118),"") -> 0 | K118: =IFERROR(SUMIFS(Equipment!$V:$V,Equipment!$A:$A,K$8,Equipment!$M:$M,$C118),"") -> 0 | L118: =IFERROR(SUMIFS(Equipment!$P:$P,Equipment!$A:$A,L$8,Equipment!$M:$M,$C118),"") -> 0 | M118: =IFERROR(SUMIFS(Equipment!$V:$V,Equipment!$A:$A,M$8,Equipment!$M:$M,$C118),"") -> 0 | N118: =IFERROR(SUMIFS(Equipment!$P:$P,Equipment!$A:$A,N$8,Equipment!$M:$M,$C118),"") -> 0 | O118: =IFERROR(SUMIFS(Equipment!$V:$V,Equipment!$A:$A,O$8,Equipment!$M:$M,$C118),"") -> 0 | P118: =IFERROR(SUMIFS(Equipment!$P:$P,Equipment!$A:$A,P$8,Equipment!$M:$M,$C118),"") -> 0 | Q118: =IFERROR(SUMIFS(Equipment!$V:$V,Equipment!$A:$A,Q$8,Equipment!$M:$M,$C118),"") -> 0 | R118: =IFERROR(SUMIFS(Equipment!$P:$P,Equipment!$A:$A,R$8,Equipment!$M:$M,$C118),"") -> 0 | S118: =IFERROR(SUMIFS(Equipment!$V:$V,Equipment!$A:$A,S$8,Equipment!$M:$M,$C118),"") -> 0 | T118: =IFERROR(SUMIFS(Equipment!$P:$P,Equipment!$A:$A,T$8,Equipment!$M:$M,$C118),"") -> 0 | U118: =IFERROR(SUMIFS(Equipment!$V:$V,Equipment!$A:$A,U$8,Equipment!$M:$M,$C118),"") -> 0 | V118: =IFERROR(SUMIFS(Equipment!$P:$P,Equipment!$A:$A,V$8,Equipment!$M:$M,$C118),"") -> 0 | W118: =IFERROR(SUMIFS(Equipment!$V:$V,Equipment!$A:$A,W$8,Equipment!$M:$M,$C118),"") -> 0 | X118: =IFERROR(SUMIFS(Equipment!$P:$P,Equipment!$A:$A,X$8,Equipment!$M:$M,$C118),"") -> 0 | Y118: =IFERROR(SUMIFS(Equipment!$V:$V,Equipment!$A:$A,Y$8,Equipment!$M:$M,$C118),"") -> 0 | Z118: =IFERROR(SUMIFS(Equipment!$P:$P,Equipment!$A:$A,Z$8,Equipment!$M:$M,$C118),"") -> 0 | AA118: =IFERROR(SUMIFS(Equipment!$V:$V,Equipment!$A:$A,AA$8,Equipment!$M:$M,$C118),"") -> 0 | AB118: 0 | AC118: 0 | AD118: 0
H119: =IFERROR(SUMIFS(Equipment!$P:$P,Equipment!$A:$A,H$8,Equipment!$M:$M,$C119),"") -> 0 | I119: =IFERROR(SUMIFS(Equipment!$V:$V,Equipment!$A:$A,I$8,Equipment!$M:$M,$C119),"") -> 0 | J119: =IFERROR(SUMIFS(Equipment!$P:$P,Equipment!$A:$A,J$8,Equipment!$M:$M,$C119),"") -> 0 | K119: =IFERROR(SUMIFS(Equipment!$V:$V,Equipment!$A:$A,K$8,Equipment!$M:$M,$C119),"") -> 0 | L119: =IFERROR(SUMIFS(Equipment!$P:$P,Equipment!$A:$A,L$8,Equipment!$M:$M,$C119),"") -> 0 | M119: =IFERROR(SUMIFS(Equipment!$V:$V,Equipment!$A:$A,M$8,Equipment!$M:$M,$C119),"") -> 0 | N119: =IFERROR(SUMIFS(Equipment!$P:$P,Equipment!$A:$A,N$8,Equipment!$M:$M,$C119),"") -> 0 | O119: =IFERROR(SUMIFS(Equipment!$V:$V,Equipment!$A:$A,O$8,Equipment!$M:$M,$C119),"") -> 0 | P119: =IFERROR(SUMIFS(Equipment!$P:$P,Equipment!$A:$A,P$8,Equipment!$M:$M,$C119),"") -> 0 | Q119: =IFERROR(SUMIFS(Equipment!$V:$V,Equipment!$A:$A,Q$8,Equipment!$M:$M,$C119),"") -> 0 | R119: =IFERROR(SUMIFS(Equipment!$P:$P,Equipment!$A:$A,R$8,Equipment!$M:$M,$C119),"") -> 0 | S119: =IFERROR(SUMIFS(Equipment!$V:$V,Equipment!$A:$A,S$8,Equipment!$M:$M,$C119),"") -> 0 | T119: =IFERROR(SUMIFS(Equipment!$P:$P,Equipment!$A:$A,T$8,Equipment!$M:$M,$C119),"") -> 0 | U119: =IFERROR(SUMIFS(Equipment!$V:$V,Equipment!$A:$A,U$8,Equipment!$M:$M,$C119),"") -> 0 | V119: =IFERROR(SUMIFS(Equipment!$P:$P,Equipment!$A:$A,V$8,Equipment!$M:$M,$C119),"") -> 0 | W119: =IFERROR(SUMIFS(Equipment!$V:$V,Equipment!$A:$A,W$8,Equipment!$M:$M,$C119),"") -> 0 | X119: =IFERROR(SUMIFS(Equipment!$P:$P,Equipment!$A:$A,X$8,Equipment!$M:$M,$C119),"") -> 0 | Y119: =IFERROR(SUMIFS(Equipment!$V:$V,Equipment!$A:$A,Y$8,Equipment!$M:$M,$C119),"") -> 0 | Z119: =IFERROR(SUMIFS(Equipment!$P:$P,Equipment!$A:$A,Z$8,Equipment!$M:$M,$C119),"") -> 0 | AA119: =IFERROR(SUMIFS(Equipment!$V:$V,Equipment!$A:$A,AA$8,Equipment!$M:$M,$C119),"") -> 0 | AB119: 0 | AC119: 0 | AD119: 0
A121: E | C121: Travel | H121: =SUM(H122:H123) -> 0 | I121: 0 | J121: 0 | K121: 0 | L121: 0 | M121: 0 | N121: 0 | O121: 0 | P121: =SUM(P122:P123) -> 0 | Q121: 0 | R121: 0 | S121: 0 | T121: 0 | U121: 0 | V121: 0 | W121: 0 | X121: 0 | Y121: 0 | Z121: 0 | AA121: 0 | AB121: =SUM(H121+J121+L121+N121+P121+R121+T121+V121+X121+Z121) -> 0 | AC121: =SUM(I121+K121+M121+O121+Q121+S121+U121+W121+Y121+AA121) -> 0 | AD121: =SUM(AB121+AC121) -> 0
C122: 1. Domestic Travel | H122: =SUMIFS(Travel!$P:$P,Travel!$A:$A,H$8,Travel!$E:$E,BudgetCalcs!$H$6) -> 0 | I122: =SUMIFS(Travel!$V:$V,Travel!$A:$A,I$8,Travel!$E:$E,BudgetCalcs!$H$6) -> 0 | J122: =SUMIFS(Travel!$P:$P,Travel!$A:$A,J$8,Travel!$E:$E,BudgetCalcs!$H$6) -> 0 | K122: =SUMIFS(Travel!$V:$V,Travel!$A:$A,K$8,Travel!$E:$E,BudgetCalcs!$H$6) -> 0 | L122: =SUMIFS(Travel!$P:$P,Travel!$A:$A,L$8,Travel!$E:$E,BudgetCalcs!$H$6) -> 0 | M122: =SUMIFS(Travel!$V:$V,Travel!$A:$A,M$8,Travel!$E:$E,BudgetCalcs!$H$6) -> 0 | N122: =SUMIFS(Travel!$P:$P,Travel!$A:$A,N$8,Travel!$E:$E,BudgetCalcs!$H$6) -> 0 | O122: =SUMIFS(Travel!$V:$V,Travel!$A:$A,O$8,Travel!$E:$E,BudgetCalcs!$H$6) -> 0 | P122: =SUMIFS(Travel!$P:$P,Travel!$A:$A,P$8,Travel!$E:$E,BudgetCalcs!$H$6) -> 0 | Q122: =SUMIFS(Travel!$V:$V,Travel!$A:$A,Q$8,Travel!$E:$E,BudgetCalcs!$H$6) -> 0 | R122: =SUMIFS(Travel!$P:$P,Travel!$A:$A,R$8,Travel!$E:$E,BudgetCalcs!$H$6) -> 0 | S122: =SUMIFS(Travel!$V:$V,Travel!$A:$A,S$8,Travel!$E:$E,BudgetCalcs!$H$6) -> 0 | T122: =SUMIFS(Travel!$P:$P,Travel!$A:$A,T$8,Travel!$E:$E,BudgetCalcs!$H$6) -> 0 | U122: =SUMIFS(Travel!$V:$V,Travel!$A:$A,U$8,Travel!$E:$E,BudgetCalcs!$H$6) -> 0 | V122: =SUMIFS(Travel!$P:$P,Travel!$A:$A,V$8,Travel!$E:$E,BudgetCalcs!$H$6) -> 0 | W122: =SUMIFS(Travel!$V:$V,Travel!$A:$A,W$8,Travel!$E:$E,BudgetCalcs!$H$6) -> 0 | X122: =SUMIFS(Travel!$P:$P,Travel!$A:$A,X$8,Travel!$E:$E,BudgetCalcs!$H$6) -> 0 | Y122: =SUMIFS(Travel!$V:$V,Travel!$A:$A,Y$8,Travel!$E:$E,BudgetCalcs!$H$6) -> 0 | Z122: =SUMIFS(Travel!$P:$P,Travel!$A:$A,Z$8,Travel!$E:$E,BudgetCalcs!$H$6) -> 0 | AA122: =SUMIFS(Travel!$V:$V,Travel!$A:$A,AA$8,Travel!$E:$E,BudgetCalcs!$H$6) -> 0 | AB122: 0 | AC122: 0 | AD122: =SUM(AB122+AC122) -> 0
